Workbook

Sheet Start
E9: Mit dieser Excel-Anwendung können Sie Tierschutzindikatoren erheben, verrechnen und in einer Ergebnisübersicht darstellen.
E10: Für die Nutzung sind die KTBL-Veröffentlichungen „Tierschutzindikatoren: Leitfäden für die Praxis (2., aktualisierte Auflage)“ erforderlich, in denen die Methoden der Datenerhebung ausführlich beschrieben werden.
E12: Zum Bearbeiten klicken Sie ggf. auf den Button „Bearbeitung aktivieren“, danach in der Sicherheitswarnung „Makros …“ auf „Inhalt aktivieren“.
E13: Falls Sie einzelne Formulare mit der Hand ausfüllen möchten, nutzen Sie die Druckfunktion. Erläuterungen finden Sie jeweils unter dem Symbol ?.
E16: Für welche Tierart möchten Sie die Anwendung nutzen?
F18: Geflügel | G18: (Jung- und Legehennen, Masthühner, Mastputen) | J18: loslegen ...
F20: Rind | G20: (Milchkühe, Aufzuchtkälber, Mastrinder) | J20: loslegen ...
F22: Schwein | G22: (Sauen, Saugferkel, Aufzuchtferkel und Mastschweine) | J22: loslegen ...
L39: © www.agrarfoto.com; Cmon | www.fotolia.com; C. Gajo KTBL

Sheet InternVorlagen (hidden)
A1: BEREICH_START | G1: SW_SAU
A2: FORMULAR|I>C1|M>D1|Q>E1 | D2: POS>M | F2: X | I2: Sauen | L2: Jahr | O2: Halbjahr | U2: Erhebung löschen ...
D3: BETRIEBID>M | G3: ="T01>" &IF(OR(BetriebID_SW<>"",M3<>"",M4<>""),"[" & IF(M3<>"",M3,BetriebID_SW) & IF(M4<>""," | " & M4,"") &"] ","") & I2 & " (" & Q2 & " " & M2 & ")" -> T01>Sauen ( ) | L3: Betriebs-ID
A4: FORMULAR|M>F1 | D4: STALL>M | F4: P | G4: ="T02>"&Q2&" "&M2&" "& G5 -> T02> | L4: Betriebsteil/Stall | U4: Erhebung drucken ...
G5: =IF(OR(BetriebID_SW<>"",M3<>"",M4<>""),"["&IF(M3<>"",M3,BetriebID_SW)& IF(AND(OR(BetriebID_SW<>"",M3<>""),M4<>"")," | ","") & IF(M4<>"",M4,"")&"] ","") -> 
I6: Stichproben
A7: FORMULAR|E>B1 | E7: SW_SAU | J7: Anzahl Tiere im …
J8: Sauen | M8: Deckstall | O8: Wartestall | Q8: Abferkelstall
A9: FORMULAR|E>K1 | E9: =IF(D10=2,"ANZ_GROSS","ANZ_KLEIN") -> ANZ_KLEIN
D10: =IF(SUM(M9:Q9)>=1000,2,1) -> 1 | E10: =ROUNDDOWN(M9/20,1) -> 0 | F10: =ROUNDDOWN(O9/30,1) -> 0 | G10: =ROUNDDOWN(Q9/20,1) -> 0 | J10: Auswahlregel | M10: =IF(M9>0,IF(OR(M9<=20,E10<1),"Jede","Jede " & E10 &"."),"") ->  | O10: =IF(O9>0,IF(OR(O9<=30,F10<1),"Jede","Jede " & F10 &"."),"") ->  | Q10: =IF(Q9>0,IF(OR(Q9<=20,G10<1),"Jede","Jede " & G10 &"."),"") ->  | R10: =IF(O10&M10&Q10="","","Sau beurteilen.") -> 
M11: =IF(M9>20,"(insg. 20)","") ->  | O11: =IF(O9>30,"(insg. 30)","") ->  | Q11: =IF(Q9>20,"(insg. 20)","") -> 
M12: =IF(D10=2,"In Beständen ab 1.000 Sauen empfiehlt es sich, die Stichprobe zu verdoppeln","") -> 
A14: STICHPROBE_START | K14: Formular | O14: Datum
A15: FORMULAR|K>H1|L>I1|O>J1 | B15: GEN_ID | C15: SW_EINZEL | D15: SW_DECK | E15: 2 | F15: GEN_Z | G15: F11 | K15: Tierbeurteilung/Wasser - Deckstall | M15: ausfüllen ...
A16: FORMULAR|K>H1|L>I1|O>J1 | B16: GEN_ID | C16: SW_EINZEL | D16: SW_WARTE | E16: 4 | F16: GEN_Z | G16: F12 | K16: Tierbeurteilung/Wasser - Wartestall | M16: ausfüllen ...
A17: FORMULAR|K>H1|L>I1|O>J1 | B17: GEN_ID | C17: SW_EINZEL | D17: SW_ABFERKEL | E17: 4 | F17: GEN_Z | G17: F13 | K17: Tierbeurteilung/Wasser - Abferkelstall | M17: ausfüllen ...
A18: STICHPROBE_ENDE
I19: Routinedokumentation
A20: LAUFEND_START | K20: Formular | O20: Datum
A21: FORMULAR|K>H1|L>I1|O>J1|Q>K1 | B21: GEN_ID | C21: SW_BESTAND | F21: GEN_Z | G21: F50 | K21: Bestandsbezogene Indikatoren | M21: ausfüllen ...
A22: FORMULAR|K>H1|L>I1|O>J1|Q>K1 | B22: GEN_ID | C22: ET_AZ | D22: SW_NORMAL | F22: GEN_Z | G22: F20 | K22: Antibiotikaeinsatz (Sauen) | M22: ausfüllen ...
A23: FORMULAR|K>H1|L>I1|O>J1|Q>K1 | B23: GEN_ID | C23: ET_AZ | D23: SW_SAUG | F23: GEN_Z | G23: F21 | K23: Antibiotikaeinsatz (Saugferkel) | M23: ausfüllen ...
A24: FORMULAR|K>H1|L>I1|O>J1|Q>K1 | B24: GEN_ID | C24: SW_SB | D24: SW_SAU | F24: GEN_Z | G24: F40 | K24: Schlachtbefunde | M24: ausfüllen ...
A25: LAUFEND_ENDE
A27: BEREICH_ENDE
A29: BEREICH_START | G29: SW_FERKEL
A30: FORMULAR|I>C1|M>D1|Q>E1 | D30: POS>M | F30: X | I30: Aufzuchtferkel | L30: Jahr | O30: Halbjahr | U30: Erhebung löschen ...
A31: FORMULAR|E>B1 | D31: BETRIEBID>M | E31: SW_FERKEL | G31: ="T01>" & IF(OR(BetriebID_SW<>"",M31<>"",M32<>""),"[" & IF(M31<>"",M31,BetriebID_SW) & IF(M32<>""," | " & M32,"") &"] ","") & I30 & " (" & Q30 & " " & M30 & ")" -> T01>Aufzuchtferkel ( ) | L31: Betriebs-ID
A32: FORMULAR|M>F1 | D32: STALL>M | F32: P | G32: ="T02>"&Q30&" "&M30&" "& G33 -> T02> | L32: Betriebsteil/Stall | U32: Erhebung drucken ...
G33: =IF(OR(BetriebID_SW<>"",M31<>"",M32<>""),"["&IF(M31<>"",M31,BetriebID_SW)& IF(AND(OR(BetriebID_SW<>"",M31<>""),M32<>"")," | ","") & IF(M32<>"",M32,"")&"] ","") -> 
I34: Stichproben
J35: Ferkelaufzucht | M35: Anzahl Tiere | O35: Anzahl Buchten
E37: =ROUNDDOWN(O36/10,1) -> 0 | J37: Mindeststichprobe | M37: =IF(M36>0,IF(M36<=150,"Bei Tierbeständen mit "&M36&" Tieren sollten alle Tiere beurteilt werden.",IF(COUNT(O36)=0,"Bitte Anzahl Buchten eintragen",IF(O36>10,"Aus jeder " & E37 & ". Bucht 15 zufällig ausgewählte Tiere beurteilen (insg. 150 Tiere).","Aus jeder Bucht "& MAX(ROUNDUP(150/O36,0),15) &" zufällig ausgewählte Tiere beurteilen (insg. 150 Tiere)."))),"") -> 
M38: =IF(AND(M36>150,O36>0),"Bei weniger als " & MAX(ROUNDUP(150/O36,0),15) &" Tieren pro Bucht, wird die Anzahl " & IF(O36<=10,"Tiere aus anderen Buchten","der Buchten") & " entsprechend erhöht.","") -> 
A40: STICHPROBE_START | K40: Formular | O40: Datum
A41: FORMULAR|K>H1|L>I1|O>J1|Q>K1 | B41: GEN_ID | C41: SW_BUCHT | E41: 1 | F41: GEN_Z | G41: ="F1" & TEXT(E41,"00") -> F101 | K41: ="Tierbeurteilung/Wasser - Bucht " & E41 -> Tierbeurteilung/Wasser - Bucht 1 | M41: ausfüllen ... | U41: Neue Bucht hinzufügen ...
A42: FORMULAR|K>H1|L>I1|O>J1|Q>K1 | B42: GEN_ID | C42: SW_BUCHT | E42: 2 | F42: GEN_Z | G42: ="F1" & TEXT(E42,"00") -> F102 | K42: ="Tierbeurteilung/Wasser - Bucht " & E42 -> Tierbeurteilung/Wasser - Bucht 2 | M42: ausfüllen ...
A43: STICHPROBE_ENDE
I44: Routinedokumentation
A45: LAUFEND_START | K45: Formular | O45: Datum
A46: FORMULAR|K>H1|L>I1|O>J1|Q>K1 | B46: GEN_ID | C46: SW_BESTAND | F46: GEN_Z | G46: F50 | K46: Bestandsbezogene Indikatoren | M46: ausfüllen ...
A47: FORMULAR|K>H1|L>I1|O>J1|Q>K1 | B47: GEN_ID | C47: ET_AZ | D47: SW_NORMAL | F47: GEN_Z | G47: F20 | K47: Antibiotikaeinsatz | M47: ausfüllen ...
A48: FORMULAR|K>H1|L>I1|O>J1|Q>K1 | B48: GEN_ID | C48: SW_SB | D48: MAST | F48: GEN_Z | G48: F40 | K48: Schlachtbefunde | M48: ausfüllen ...
A49: LAUFEND_ENDE
A51: BEREICH_ENDE
A53: BEREICH_START | G53: SW_MAST
A54: FORMULAR|I>C1|M>D1|Q>E1 | D54: POS>M | F54: X | I54: Mastschweine | L54: Jahr | O54: Halbjahr | U54: Erhebung löschen ...
A55: FORMULAR|E>B1 | D55: BETRIEBID>M | E55: SW_MAST | G55: ="T01>" & IF(OR(BetriebID_SW<>"",M55<>"",M56<>""),"[" & IF(M55<>"",M55,BetriebID_SW) & IF(M56<>""," | " & M56,"") &"] ","") & I54 & " (" & Q54 & " " & M54 & ")" -> T01>Mastschweine ( ) | L55: Betriebs-ID
A56: FORMULAR|M>F1 | D56: STALL>M | F56: P | G56: ="T02>"&Q54&" "&M54&" "& G57 -> T02> | L56: Betriebsteil/Stall | U56: Erhebung drucken ...
G57: =IF(OR(BetriebID_SW<>"",M55<>"",M56<>""),"["&IF(M55<>"",M55,BetriebID_SW)& IF(AND(OR(BetriebID_SW<>"",M55<>""),M56<>"")," | ","") & IF(M56<>"",M56,"")&"] ","") -> 
I58: Stichproben
J59: Schweinemast | M59: Anzahl Tiere | O59: Anzahl Buchten
E61: =ROUNDDOWN(O60/10,1) -> 0 | J61: Mindeststichprobe | M61: =IF(M60>0,IF(M60<=150,"Bei Tierbeständen mit "&M60&" Tieren sollten alle Tiere beurteilt werden.",IF(COUNT(O60)=0,"Bitte Anzahl Buchten eintragen",IF(O60>10,"Aus jeder " & E61 & ". Bucht 15 zufällig ausgewählte Tiere beurteilen (insg. 150 Tiere).","Aus jeder Bucht "& MAX(ROUNDUP(150/O60,0),15) &" zufällig ausgewählte Tiere beurteilen (insg. 150 Tiere)."))),"") -> 
M62: =IF(AND(M60>150,O60>0),"Bei weniger als " & MAX(ROUNDUP(150/O60,0),15) &" Tieren pro Bucht, wird die Anzahl " & IF(O60<=10,"Tiere aus anderen Buchten","der Buchten") & " entsprechend erhöht.","") -> 
A64: STICHPROBE_START | K64: Formular | O64: Datum
A65: FORMULAR|K>H1|L>I1|O>J1|Q>K1 | B65: GEN_ID | C65: SW_BUCHT | E65: 1 | F65: GEN_Z | G65: ="F1" & TEXT(E65,"00") -> F101 | K65: ="Tierbeurteilung/Wasser - Bucht " & E65 -> Tierbeurteilung/Wasser - Bucht 1 | M65: ausfüllen ... | U65: Neue Bucht hinzufügen ...
A66: FORMULAR|K>H1|L>I1|O>J1|Q>K1 | B66: GEN_ID | C66: SW_BUCHT | E66: 2 | F66: GEN_Z | G66: ="F1" & TEXT(E66,"00") -> F102 | K66: ="Tierbeurteilung/Wasser - Bucht " & E66 -> Tierbeurteilung/Wasser - Bucht 2 | M66: ausfüllen ...
A67: STICHPROBE_ENDE
I68: Routinedokumentation
A69: LAUFEND_START | K69: Formular | O69: Datum
A70: FORMULAR|K>H1|L>I1|O>J1|Q>K1 | B70: GEN_ID | C70: SW_BESTAND | F70: GEN_Z | G70: F50 | K70: Bestandsbezogene Indikatoren | M70: ausfüllen ...
A71: FORMULAR|K>H1|L>I1|O>J1|Q>K1 | B71: GEN_ID | C71: ET_AZ | D71: SW_NORMAL | F71: GEN_Z | G71: F20 | K71: Antibiotikaeinsatz | M71: ausfüllen ...
A72: FORMULAR|K>H1|L>I1|O>J1|Q>K1 | B72: GEN_ID | C72: SW_SB | D72: MAST | F72: GEN_Z | G72: F40 | K72: Schlachtbefunde | M72: ausfüllen ...
A73: LAUFEND_ENDE
A75: BEREICH_ENDE
A77: BEREICH_START | G77: RD_MILCH
A78: FORMULAR|I>C1|N>D1 | D78: POS>N | F78: X | I78: Milchkühe | L78: Jahr | W78: Erhebung löschen ...
A79: FORMULAR|P>E1 | D79: BETRIEBID>N|STALL>P | L79: Betriebs-ID
A80: FORMULAR|E>M1 | E80: =S89 -> 0 | F80: P | G80: ="T01>" & G82 & I78 & " (Jahr " & N78 & ")" -> T01>Milchkühe (Jahr ) | W80: Erhebung drucken ...
G81: ="T02>" & "Jahr " & N78 & " " & G82 -> T02>Jahr
A82: FORMULAR|E>N1 | E82: =S103 -> 0 | G82: =IF(OR(Intern_BetriebID<>"",N79<>"",P79<>""),"["&IF(N79<>"",N79,Intern_BetriebID)& IF(AND(OR(Intern_BetriebID<>"",N79<>""),P79<>"")," | ","") & IF(P79<>"",P79,"")&"] ","") ->  | I82: Erhebung Sommerhalbjahr
R83: Stichprobenempfehlung
G84: ="T03>" & L89 -> T03>0 | N84: Laktierend | P84: Trockenstehend | R84: (Tierbeurteilung, Ausweichdistanz)
G85: ="T04>" & L103 -> T04>0 | J85: Haltungsform | L85: Anzahl Tiere | N85: Anzahl Tiere | P85: Anzahl Tiere | S85: Tiere insg. | T85: Laktierend | U85: Trockenstehend
J86: Liegeboxenlaufstall | L86: =N86+P86 -> 0 | S86: =IF(L89>0,ROUND(L86/L89*S89,0),0) -> 0 | T86: =IF(L86>0,ROUND(N86/L86*S86,0),0) -> 0 | U86: =S86-T86 -> 0
A87: FORMULAR|E>B1 | E87: RD_MILCH | J87: Freie Liegefläche | L87: =N87+P87 -> 0 | S87: =IF(L89>0,ROUND(L87/L89*S89,0),0) -> 0 | T87: =IF(L87>0,ROUND(N87/L87*S87,0),0) -> 0 | U87: =S87-T87 -> 0
J88: Anbindehaltung | L88: =N88+P88 -> 0 | S88: =IF(L89>0,ROUND(L88/L89*S89,0),0) -> 0 | T88: =IF(L88>0,ROUND(N88/L88*S88,0),0) -> 0 | U88: =S88-T88 -> 0
D89: =L89 -> 0 | E89: =VLOOKUP(TEXT(D89,"00000"),Intern_RD_Stichprobe,2,TRUE) -> 0 | F89: =VLOOKUP(TEXT(D89,"00000"),Intern_RD_Stichprobe,3,TRUE) -> 30 | G89: =VLOOKUP(TEXT(D89,"00000"),Intern_RD_Stichprobe,4,TRUE) -> 0 | J89: Gesamtbestand | L89: =SUM(L86:L88) -> 0 | R89: Anzahl | S89: =IF(L89>0,MIN(F89+INT((L89-E89)*G89),L89),0) -> 0 | T89: =IF(L89>0,INT(SUM(N86:N88)/L89*S89),0) -> 0 | U89: =S89-T89 -> 0
A91: SOMMER_START | K91: Formular | P91: Datum
A92: FORMULAR|K>H1|P>J1 | B92: GEN_ID | C92: RD_EINZELAUSWEICH | D92: RD_MILCHAUSWEICH | E92: 1 | F92: GEN_Z | G92: F13 | K92: Ausweichdistanz | N92: ausfüllen ...
A93: FORMULAR|K>H1|P>J1 | B93: GEN_ID | C93: RD_EINZEL | D93: RD_MILCH | E93: 1 | F93: GEN_Z | G93: F11 | K93: Tierbeurteilung | N93: ausfüllen ...
A94: FORMULAR|K>H1|P>J1 | B94: GEN_ID | C94: RD_BUCHT | E94: 1 | F94: GEN_Z | G94: F14 | K94: Liegeplatz/Aufstehverh./Wasserversorgung | N94: ausfüllen ...
A95: SOMMER_ENDE
I96: Erhebung Winterhalbjahr
R97: Stichprobenempfehlung
N98: Laktierend | P98: Trockenstehend | R98: (Tierbeurteilung, Ausweichdistanz)
J99: Haltungsform | L99: Anzahl Tiere | N99: Anzahl Tiere | P99: Anzahl Tiere | S99: Tiere insg. | T99: Laktierend | U99: Trockenstehend
J100: Liegeboxenlaufstall | L100: =N100+P100 -> 0 | S100: =IF(L103>0,ROUND(L100/L103*S103,0),0) -> 0 | T100: =IF(L100>0,ROUND(N100/L100*S100,0),0) -> 0 | U100: =S100-T100 -> 0
J101: Freie Liegefläche | L101: =N101+P101 -> 0 | S101: =IF(L103>0,ROUND(L101/L103*S103,0),0) -> 0 | T101: =IF(L101>0,ROUND(N101/L101*S101,0),0) -> 0 | U101: =S101-T101 -> 0
J102: Anbindehaltung | L102: =N102+P102 -> 0 | S102: =IF(L103>0,ROUND(L102/L103*S103,0),0) -> 0 | T102: =IF(L102>0,ROUND(N102/L102*S102,0),0) -> 0 | U102: =S102-T102 -> 0
D103: =L103 -> 0 | E103: =VLOOKUP(TEXT(D103,"00000"),Intern_RD_Stichprobe,2,TRUE) -> 0 | F103: =VLOOKUP(TEXT(D103,"00000"),Intern_RD_Stichprobe,3,TRUE) -> 30 | G103: =VLOOKUP(TEXT(D103,"00000"),Intern_RD_Stichprobe,4,TRUE) -> 0 | J103: Gesamtbestand | L103: =SUM(L100:L102) -> 0 | R103: Anzahl | S103: =IF(L103>0,MIN(F103+INT((L103-E103)*G103),L103),0) -> 0 | T103: =IF(L103>0,INT(SUM(N100:N102)/L103*S103),0) -> 0 | U103: =S103-T103 -> 0
A105: WINTER_START | K105: Formular | P105: Datum
A106: FORMULAR|K>H1|P>J1 | B106: GEN_ID | C106: RD_EINZELAUSWEICH | D106: RD_MILCHAUSWEICH | E106: 2 | F106: GEN_Z | G106: F23 | K106: Ausweichdistanz | N106: ausfüllen ...
A107: FORMULAR|K>H1|P>J1 | B107: GEN_ID | C107: RD_EINZEL | D107: RD_MILCH | E107: 2 | F107: GEN_Z | G107: F21 | K107: Tierbeurteilung | N107: ausfüllen ...
A108: FORMULAR|K>H1|P>J1 | B108: GEN_ID | C108: RD_BUCHT | E108: 2 | F108: GEN_Z | G108: F24 | K108: Liegeplatz/Aufstehverh./Wasserversorgung | N108: ausfüllen ...
A109: WINTER_ENDE
I110: Fortlaufende Erhebungen
A111: ABSCHLUSS_START | K111: Formular | P111: Datum
A112: FORMULAR|K>H1|P>J1 | B112: GEN_ID | C112: RD_MILCH | F112: GEN_Z | G112: F31 | K112: MLP/Geburten/Nutzungsd./Tierverl./Mastitsbeh. | N112: ausfüllen ...
A113: ABSCHLUSS_ENDE
A115: BEREICH_ENDE
A117: BEREICH_START | G117: RD_KALB
A118: FORMULAR|I>C1|N>D1 | D118: POS>N | F118: X | I118: Aufzuchtkälber | L118: Jahr | W118: Erhebung löschen ...
A119: FORMULAR|P>E1 | D119: BETRIEBID>N|STALL>P | L119: Betriebs-ID
F120: P | G120: ="T01>" & G122 & I118 & " (Jahr " & N118 & ")" -> T01>Aufzuchtkälber (Jahr ) | W120: Erhebung drucken ...
G121: ="T02>" & "Jahr " & N118 & " " & G122 -> T02>Jahr
G122: =IF(OR(Intern_BetriebID<>"",N119<>"",P119<>""),"["&IF(N119<>"",N119,Intern_BetriebID)& IF(AND(OR(Intern_BetriebID<>"",N119<>""),P119<>"")," | ","") & IF(P119<>"",P119,"")&"] ","") ->  | I122: Erhebung Sommerhalbjahr
A123: FORMULAR|E>B1 | E123: RD_KALB | G123: ="T03>"&L126 -> T03>0
G124: ="T04>"&L135 -> T04>0 | L124: Anzahl Tiere
K125: Gesamtbestand
D126: =L126 -> 0 | J126: Gesamtbestand | L126: =L125 -> 0
A128: SOMMER_START | K128: Formular | P128: Datum
A129: FORMULAR|K>H1|P>J1 | B129: GEN_ID | C129: RD_BUCHTKALB | E129: 1 | F129: GEN_Z | G129: F11 | K129: Tierbeurteilung | N129: ausfüllen ...
A130: SOMMER_ENDE
I131: Erhebung Winterhalbjahr
L133: Anzahl Tiere
K134: Gesamtbestand
D135: =L135 -> 0 | J135: Gesamtbestand | L135: =L134 -> 0
A137: WINTER_START | K137: Formular | P137: Datum
A138: FORMULAR|K>H1|P>J1 | B138: GEN_ID | C138: RD_BUCHTKALB | E138: 2 | F138: GEN_Z | G138: F21 | K138: Tierbeurteilung | N138: ausfüllen ...
A139: WINTER_ENDE
I140: Fortlaufende Erhebungen
A141: ABSCHLUSS_START | K141: Formular | P141: Datum
A142: FORMULAR|K>H1|P>J1 | B142: GEN_ID | C142: RD_HORN | E142: 1 | F142: GEN_Z | G142: ="F4" & TEXT(E142,"00") -> F401 | K142: ="Komplikationen nach Enthornung - Blatt " & E142 -> Komplikationen nach Enthornung - Blatt 1 | N142: ausfüllen ... | V142: Neues Blatt hinzufügen ...
A143: FORMULAR|K>H1|P>J1 | B143: GEN_ID | C143: RD_HORN | E143: 2 | F143: GEN_Z | G143: ="F4" & TEXT(E143,"00") -> F402 | K143: ="Komplikationen nach Enthornung - Blatt " & E143 -> Komplikationen nach Enthornung - Blatt 2 | N143: ausfüllen ...
A144: FORMULAR|K>H1|P>J1 | B144: GEN_ID | C144: RD_KALB | F144: GEN_Z | G144: F31 | K144: Behandlungen/Tierverluste | N144: ausfüllen ...
A145: ABSCHLUSS_ENDE
A147: BEREICH_ENDE
A149: BEREICH_START | G149: RD_MAST
A150: FORMULAR|I>C1|N>D1 | D150: POS>N | F150: X | I150: Mastrinder | L150: Jahr | W150: Erhebung löschen ...
A151: FORMULAR|P>E1 | D151: BETRIEBID>N|STALL>P | L151: Betriebs-ID
A152: FORMULAR|E>B1 | E152: RD_MAST | F152: P | G152: ="T01>" & G154 & I150 & " (Jahr " & N150 & ")" -> T01>Mastrinder (Jahr ) | W152: Erhebung drucken ...
G153: ="T02>" & "Jahr " & N150 & " " & G154 -> T02>Jahr
G154: =IF(OR(Intern_BetriebID<>"",N151<>"",P151<>""),"["&IF(N151<>"",N151,Intern_BetriebID)& IF(AND(OR(Intern_BetriebID<>"",N151<>""),P151<>"")," | ","") & IF(P151<>"",P151,"")&"] ","") ->  | I154: Erhebung Sommerhalbjahr
A155: FORMULAR|E>M1 | E155: =S162 -> 0 | R155: Stichprobenempfehlung (Tierbeurteilung)
A156: FORMULAR|E>N1 | E156: =S176 -> 0 | G156: ="T03>" & L162 -> T03>0 | J156: Haltungsform | L156: Anzahl Tiere | N156: Anz. Buchten | S156: Tiere insg. | T156: Auswahlempfehlung
G157: ="T04>" & L176 -> T04>0 | K157: Vollspaltenbucht | S157: =IF(L162>0,ROUND(L157/L162*S162,0),0) -> 0 | T157: =IF(AND(S157>0,N157>0),"Je Bucht " & ROUND(S157/N157,0)&" Rinder untersuchen.","") -> 
K158: Zweiflächensystem | S158: =IF(L162>0,ROUND(L158/L162*S162,0),0) -> 0 | T158: =IF(AND(S158>0,N158>0),"Je Bucht " & ROUND(S158/N158,0)&" Rinder untersuchen.","") -> 
K159: Einraumstrohstall | S159: =IF(L162>0,ROUND(L159/L162*S162,0),0) -> 0 | T159: =IF(AND(S159>0,N159>0),"Je Bucht " & ROUND(S159/N159,0)&" Rinder untersuchen.","") -> 
K160: Boxenlaufstall | S160: =IF(L162>0,ROUND(L160/L162*S162,0),0) -> 0 | T160: =IF(AND(S160>0,N160>0),"Je Bucht " & ROUND(S160/N160,0)&" Rinder untersuchen.","") -> 
K161: Anbindehaltung | S161: =IF(L162>0,ROUND(L161/L162*S162,0),0) -> 0 | T161: =IF(AND(S161>0,N161>0),"Je Bucht " & ROUND(S161/N161,0)&" Rinder untersuchen.","") -> 
D162: =L162 -> 0 | E162: =VLOOKUP(TEXT(D162,"00000"),Intern_RD_Stichprobe,2,TRUE) -> 0 | F162: =VLOOKUP(TEXT(D162,"00000"),Intern_RD_Stichprobe,3,TRUE) -> 30 | G162: =VLOOKUP(TEXT(D162,"00000"),Intern_RD_Stichprobe,4,TRUE) -> 0 | J162: Gesamtbestand | L162: =SUM(L157:L161) -> 0 | R162: Anzahl | S162: =IF(D162>0,MIN(F162+INT((D162-E162)*G162),D162),0) -> 0
A164: SOMMER_START | K164: Formular | P164: Datum
A165: FORMULAR|K>H1|P>J1 | B165: GEN_ID | C165: RD_EINZEL | D165: RD_MAST | E165: 1 | F165: GEN_Z | G165: F11 | K165: Tierbeurteilung | N165: ausfüllen ...
A166: FORMULAR|K>H1|P>J1 | B166: GEN_ID | C166: RD_BUCHT | D166: RD_MAST | E166: 1 | F166: GEN_Z | G166: F12 | K166: Fläche/Wasserversorgung/Zungenrollen | N166: ausfüllen ...
A167: SOMMER_ENDE
I168: Erhebung Winterhalbjahr
R169: Stichprobenempfehlung (Tierbeurteilung)
J170: Haltungsform | L170: Anzahl Tiere | N170: Anz. Buchten | S170: Tiere insg. | T170: Auswahlempfehlung
K171: Vollspaltenbucht | S171: =IF(L176>0,ROUND(L171/L176*S176,0),0) -> 0 | T171: =IF(AND(S171>0,N171>0),"Je Bucht " & ROUND(S171/N171,0)&" Rinder untersuchen.","") -> 
K172: Zweiflächensystem | S172: =IF(L176>0,ROUND(L172/L176*S176,0),0) -> 0 | T172: =IF(AND(S172>0,N172>0),"Je Bucht " & ROUND(S172/N172,0)&" Rinder untersuchen.","") -> 
K173: Einraumstrohstall | S173: =IF(L176>0,ROUND(L173/L176*S176,0),0) -> 0 | T173: =IF(AND(S173>0,N173>0),"Je Bucht " & ROUND(S173/N173,0)&" Rinder untersuchen.","") -> 
K174: Boxenlaufstall | S174: =IF(L176>0,ROUND(L174/L176*S176,0),0) -> 0 | T174: =IF(AND(S174>0,N174>0),"Je Bucht " & ROUND(S174/N174,0)&" Rinder untersuchen.","") -> 
K175: Anbindehaltung | S175: =IF(L176>0,ROUND(L175/L176*S176,0),0) -> 0 | T175: =IF(AND(S175>0,N175>0),"Je Bucht " & ROUND(S175/N175,0)&" Rinder untersuchen.","") -> 
D176: =L176 -> 0 | E176: =VLOOKUP(TEXT(D176,"00000"),Intern_RD_Stichprobe,2,TRUE) -> 0 | F176: =VLOOKUP(TEXT(D176,"00000"),Intern_RD_Stichprobe,3,TRUE) -> 30 | G176: =VLOOKUP(TEXT(D176,"00000"),Intern_RD_Stichprobe,4,TRUE) -> 0 | J176: Gesamtbestand | L176: =SUM(L171:L175) -> 0 | R176: Anzahl | S176: =IF(D176>0,MIN(F176+INT((D176-E176)*G176),D176),0) -> 0
A178: WINTER_START | K178: Formular | P178: Datum
A179: FORMULAR|K>H1|P>J1 | B179: GEN_ID | C179: RD_EINZEL | D179: RD_MAST | E179: 2 | F179: GEN_Z | G179: F21 | K179: Tierbeurteilung | N179: ausfüllen ...
A180: FORMULAR|K>H1|P>J1 | B180: GEN_ID | C180: RD_BUCHT | D180: RD_MAST | E180: 2 | F180: GEN_Z | G180: F22 | K180: Fläche/Wasserversorgung/Zungenrollen | N180: ausfüllen ...
A181: WINTER_ENDE
I182: Fortlaufende Erhebungen
A183: ABSCHLUSS_START | K183: Formular | P183: Datum
A184: FORMULAR|K>H1|P>J1 | B184: GEN_ID | C184: RD_VERLUSTE | D184: RD_MAST | F184: GEN_Z | G184: F31 | K184: Tierverluste | N184: ausfüllen ...
A185: ABSCHLUSS_ENDE
A187: BEREICH_ENDE
A190: BEREICH_START | G190: GF_HENNE1
A191: FORMULAR|I>C1 | F191: X | I191: Junghennen | U191: Erhebung löschen ...
D193: BETRIEBID>L | F193: P | G193: ="T01>"& IF(L193<>"","[" & L193 & "] ","") & I191 & " (Stall: " & L194 & " / Schlupfdatum: " & TEXT(P195,"tt.MM.jjjj") & ")" -> T01>Junghennen (Stall: / Schlupfdatum: 00.01.1900) | K193: Betriebsname | U193: Erhebung drucken ...
A194: FORMULAR|L>D1 | D194: STALL>L | K194: Stall/Herde
A195: FORMULAR|P>F1 | D195: POS>L | G195: ="T02>"& IF(L193<>"","[" & L193 & "] ","") & " Stall: " & L194 & " / Schlupfdatum: " & TEXT(P195,"tt.MM.jjjj") -> T02> Stall: / Schlupfdatum: 00.01.1900 | K195: Durchgang | N195: Schlupfdatum | R195: Genetik (Herkunft)
A196: FORMULAR|L>E1 | G196: ="T04>" & L196 -> T04> | K196: Herdengröße (Einstallung) | N196: Einstalldatum | R196: Brüterei
A197: FORMULAR|E>B1 | E197: GF_HENNE | K197: Abteilgröße | N197: Schlachtdatum | R197: Schlachthof
I199: Bonitierung des Tierzustandes
A200: STICHPROBE_START | K200: Formular | N200: Datum | P200: Sollgewicht
A201: FORMULAR|K>H1|N>J1|P>K1 | B201: GEN_ID | C201: GF_SP | D201: LH_LW04 | E201: 4 | F201: GEN_Z | G201: F11 | K201: Tierbonitur (LW 4) | L201: ausfüllen ...
A202: FORMULAR|K>H1|N>J1|P>K1 | B202: GEN_ID | C202: GF_SP | D202: LH_LW12 | E202: 12 | F202: GEN_Z | G202: F12 | K202: Tierbonitur (LW 12) | L202: ausfüllen ...
A203: FORMULAR|K>H1|N>J1|P>K1 | B203: GEN_ID | C203: GF_SP | D203: LH_LW16 | E203: 16 | F203: GEN_Z | G203: F13 | K203: Tierbonitur (LW 16) | L203: ausfüllen ...
A204: STICHPROBE_ENDE
I206: Erhebung der Routinedokumentation
A207: LAUFEND_START | K207: Formular | N207: Datum
A208: FORMULAR|K>H1|N>J1|P>K1 | B208: GEN_ID | C208: ET_AZ | D208: GF | F208: GEN_Z | G208: F30 | K208: Antibiotikaeinsatz | L208: ausfüllen ...
A209: FORMULAR|K>H1|N>J1|E>L1|P>M1|P>M1 | B209: GEN_ID | C209: GF_STALL | D209: LH_TV | E209: 1 | F209: GEN_Z | G209: F40 | K209: Stallliste | L209: ausfüllen ... | P209: =MAX(IF(COUNT(P195:P196)=2,ROUNDUP((P196-P195+1)/7,0),1),1) -> 1
A210: LAUFEND_ENDE
A212: BEREICH_ENDE
A215: BEREICH_START | G215: GF_HENNE2
A216: FORMULAR|I>C1 | F216: X | I216: Legehennen | U216: Erhebung löschen ...
D218: BETRIEBID>L | F218: P | G218: ="T01>"& IF(L218<>"","[" & L218 & "] ","") & I216 & " (Stall: " & L219 & " / Schlupfdatum: " & TEXT(P220,"tt.MM.jjjj") & ")" -> T01>Legehennen (Stall: / Schlupfdatum: 00.01.1900) | K218: Betriebsname | U218: Erhebung drucken ...
A219: FORMULAR|L>D1 | D219: STALL>L | K219: Stall/Herde
A220: FORMULAR|P>F1 | D220: POS>L | G220: ="T02>"& IF(L218<>"","[" & L218 & "] ","") & " Stall: " & L219 & " / Schlupfdatum: " & TEXT(P220,"tt.MM.jjjj") -> T02> Stall: / Schlupfdatum: 00.01.1900 | K220: Durchgang | N220: Schlupfdatum | R220: Genetik (Herkunft)
A221: FORMULAR|L>E1 | G221: ="T04>" & L221 -> T04> | K221: Herdengröße (Einstallung) | N221: Einstalldatum | R221: Brüterei
A222: FORMULAR|E>B1 | E222: GF_HENNE | G222: ="T05>" & MAX(E226:E234,85) -> T05>85 | K222: Abteilgröße | N222: Schlachtdatum | R222: Schlachthof
I224: Bonitierung des Tierzustandes
A225: STICHPROBE_START | K225: Formular | N225: Datum | P225: Sollgewicht
A226: FORMULAR|K>H1|N>J1|P>K1 | B226: GEN_ID | C226: GF_SP | D226: LH_STALL | E226: Stall | F226: GEN_Z | G226: F14 | K226: Tierbonitur (Einstallen) | L226: ausfüllen ...
A227: FORMULAR|K>H1|N>J1|P>K1 | B227: GEN_ID | C227: GF_SP | D227: LH_LW25 | E227: 25 | F227: GEN_Z | G227: F15 | K227: Tierbonitur (LW 25) | L227: ausfüllen ...
A228: FORMULAR|K>H1|N>J1|P>K1 | B228: GEN_ID | C228: GF_SP | D228: LH_LW35 | E228: 35 | F228: GEN_Z | G228: F16 | K228: Tierbonitur (LW 35) | L228: ausfüllen ...
A229: FORMULAR|K>H1|N>J1|P>K1 | B229: GEN_ID | C229: GF_SP | D229: LH_LW45 | E229: 45 | F229: GEN_Z | G229: F17 | K229: Tierbonitur (LW 45) | L229: ausfüllen ...
A230: FORMULAR|K>H1|N>J1|P>K1 | B230: GEN_ID | C230: GF_SP | D230: LH_LW55 | E230: 55 | F230: GEN_Z | G230: F18 | K230: Tierbonitur (LW 55) | L230: ausfüllen ...
A231: FORMULAR|K>H1|N>J1|P>K1 | B231: GEN_ID | C231: GF_SP | D231: LH_LW65 | E231: 65 | F231: GEN_Z | G231: F19 | K231: Tierbonitur (LW 65) | L231: ausfüllen ...
A232: FORMULAR|K>H1|N>J1|P>K1 | B232: GEN_ID | C232: GF_SP | D232: LH_LW75 | E232: 75 | F232: GEN_Z | G232: F20 | K232: Tierbonitur (LW 75) | L232: ausfüllen ... | U232: weitere Tierbonitur hinzufügen ...
A233: FORMULAR|K>H1|N>J1|P>K1 | B233: GEN_ID | C233: GF_SP | D233: LH_LW85 | E233: 85 | F233: GEN_Z | G233: ="F1" & TEXT(E233,"000") -> F1085 | K233: ="Tierbonitur (LW "&E233&")" -> Tierbonitur (LW 85) | L233: ausfüllen ...
... 133 more rows

Sheet InternInfos (hidden)
A1: Intern_FormID | B1: 1
A2: Intern_GENZyklus | B2: 1
A3: Intern_NameErhebung | B3: Erhebungen
A4: Formel | B4: =IF(Intern_BetriebIDErhebung<>"",Intern_BetriebIDErhebung,IF(Intern_StartAuswahl="GF",0,IF(Intern_StartAuswahl="SW",BetriebID_SW,IF(Intern_StartAuswahl="RD",BetriebID_RD,0)))) -> 0
A5: Intern_BetriebID | B5: =IF(B4=0,Intern_BetriebName,B4) -> 
A6: Intern_BetriebIDErhebung
A7: Intern_BetriebName | B7: =IF(Intern_StartAuswahl="GF",'Allg. Betriebsdaten'!H9,"") & IF(Intern_StartAuswahl="SW",'Allg. Betriebsdaten_SW'!H9,"") & IF(Intern_StartAuswahl="RD",'Allg. Betriebsdaten_RD'!H9,"") -> 
A8: Intern_RD_MLP | B8: =TRUE -> TRUE
A9: Intern_GFStallzahl | B9: =COUNTIF(Betrieb_Stallliste_GF,"*") -> 0
A10: Intern_StartAuswahl | B10: GF
A11: Intern_StartAnzeigen | B11: N
A12: Intern_EiKoTiger | B12: Eigenkontrolle Tiergerechtheit
A13: Intern_KopiereWerte | B13: FALSE
A14: Intern_ErsterStall | B14: =IF(Intern_StartAuswahl="RD",'Allg. Betriebsdaten_RD'!H9,"") & IF(Intern_StartAuswahl="GF",'Allg. Betriebsdaten'!G22,"") & IF(Intern_StartAuswahl="SW",'Allg. Betriebsdaten_SW'!G23,"") -> 
A15: Intern_LastFormTyp | B15: GF_SP
A16: Intern_LastrowDaten | B16: 27
A17: Intern_LastPDFOrdner
A18: Intern_Version | B18: 202
A20: Ansteuerung der Ansichten für Stichprobenformular
A21: Ansicht | B21: Titel | C21: Bezeichnung | D21: Spaltenanzeige
A22: LH_LW04 | B22: LW 4 | C22: Junghennen | D22: W16;W01;W02;W03;W05;W06;W07;W09;W12
A23: LH_LW12 | B23: LW 12 | C23: Junghennen | D23: W16;W01;W02;W03;W05;W06;W07;W09;W12
A24: LH_LW16 | B24: LW 16 | C24: Junghennen | D24: W16;W01;W02;W03;W05;W06;W07;W09;W12
A25: LH_LW25 | B25: LW 25 | C25: Legehennen | D25: W01;W02;W03;W05;W06;W07;W09;W12
A26: LH_LW35 | B26: LW 35 | C26: Legehennen | D26: W01;W02;W03;W05;W06;W07;W09;W12
A27: LH_LW45 | B27: LW 45 | C27: Legehennen | D27: W01;W02;W03;W05;W06;W07;W09;W12
A28: LH_LW55 | B28: LW 55 | C28: Legehennen | D28: W01;W02;W03;W05;W06;W07;W09;W12
A29: LH_LW65 | B29: LW 65 | C29: Legehennen | D29: W01;W02;W03;W05;W06;W07;W09;W12
A30: LH_LW75 | B30: LW 75 | C30: Legehennen | D30: W01;W02;W03;W05;W06;W07;W09;W12
A31: LH_LW85 | B31: LW 85 | C31: Legehennen | D31: W01;W02;W03;W05;W06;W07;W09;W12
A32: LH_STALL | B32: Einstallen | C32: Legehennen | D32: W01;W02;W03;W05;W06;W07;W09;W12
A33: MH_LW02 | B33: LW 2 | C33: Masthühner | D33: ="MH1;W01;W08;W10;W15;W17" -> MH1;W01;W08;W10;W15;W17
A34: MH_LWENDE | B34: Letzte LW | C34: Masthühner | D34: ="MH2;W01;W06;W09;W10;W11;W15;W17" -> MH2;W01;W06;W09;W10;W11;W15;W17
A35: MP_LW05 | B35: LW 5 | C35: Mastputen | D35: W01;W04;W05;W06;W09;W11;W15;W17
A36: MP_LW12 | B36: LW 12 | C36: Mastputen | D36: W01;W05;W06;W09;W11;W15;W17
A37: MP_LWENDE | B37: Letzte LW | C37: Mastputen | D37: W01;W05;W06;W09;W11;W15;W17
A38: MP_STALL | B38: Einstallen | C38: Mastputen | D38: W01;W04;W05;W06;W09;W11;W17;W15
A39: RD_MAST | D39: W01;W02;W03;W11;W12;W13;W14;W15;W19;W20;W21;W22;W23;W24;W25;W26;W27;W29
A40: RD_MILCH | D40: W01;W02;W04;W05;W06;W07;W08;W09;R10;W16;W17;W18;W20;W21;W22;W23;W24;W25;W27;W28:W29;W31
A41: RD_MILCHAUSWEICH | D41: W01;W02;W30
A42: ZZZZZ
C44: Trennzeile | D44: Flacher Text
A45: Zeilenhöhe Auswertung | C45: 7 | D45: 12
A47: Listenwerte für Datenprüfungen
B48: Halbjahr | D48: Geschlecht | F48: Maststufen | G48: Haltung | H48: Bonitur Fußballen | J48: Absolut/Prozen
B49: Sommerhalbjahr | D49: M | F49: A | G49: LBS | H49: A | J49: n
B50: Winterhalbjahr | D50: W | F50: M | G50: LS | H50: B | J50: %
F51: E | G51: AB | H51: C
A54: Listeninhalte und Ergebniszellen für DropDownListen
A56: Auswahl Hennen | F56: Auswahl Rind | K56: Auswahl Schwein
C57: =IF(AND(Intern_GF_Junghennen,Intern_GF_Legehennen),"Jung-/Legehennen",IF(Intern_GF_Junghennen,C58,IF(Intern_GF_Legehennen,C59,"Keine"))) -> Jung-/Legehennen | D57: =IF(OR(Intern_GF_Junghennen,Intern_GF_Legehennen),TRUE,FALSE) -> TRUE | H57: Milchkühe | I57: TRUE | L57: Sauen/Saugferkel | M57: TRUE
C58: Junghennen | D58: TRUE | H58: Aufzuchtkälber | I58: TRUE | L58: Aufzuchtferkel | M58: TRUE
C59: Legehennen | D59: TRUE | H59: Mastrinder | I59: TRUE | L59: Mastschweine | M59: TRUE
C60: Masthühner | D60: TRUE
C61: Jungputen | D61: TRUE
C62: Mastputen | D62: TRUE
C63: =IF(AND(D61,D62),"Jung-/Mastputen",IF(D61,"Jungputen",IF(D62,"Mastputen","Keine"))) -> Jung-/Mastputen | D63: =OR(D61,D62) -> TRUE
K66: Schwein Wasserbedarf
L67: ---
F68: Stichprobe Milchkühe | L68: Aufzuchtferkel bis 29 kg | M68: 0.5 | N68: 0.7
F69: 00000 | G69: 0 | H69: 30 | I69: 0 | L69: Vormast 30 bis 50 kg | M69: 0.6 | N69: 1
F70: 00031 | G70: 31 | H70: 31 | I70: =4/19 -> 0.2105263158 | L70: Mittelmast 50 bis 80 kg | M70: 0.8 | N70: 1.2
A71: Auswahl Masthuhn | D71: 2 | F71: 00051 | G71: 51 | H71: 36 | I71: =I70 -> 0.2105263158 | L71: Endmast 80 bis 120 kg | M71: 1.5 | N71: 1.8
B72: --- | F72: 00070 | G72: 0 | H72: 40 | I72: 0
B73: Kurzmast | F73: 00073 | G73: 0 | H73: 41 | I73: 0
B74: Mittellangmast | F74: 00076 | G74: 0 | H74: 42 | I74: 0 | K74: Zahlenformat vom Schlachthof
B75: Langmast | F75: 00079 | G75: 0 | H75: 43 | I75: 0 | L75: Schlachtbefunde mit absoluten Angaben
B76: Splittingverfahren | F76: 00082 | G76: 0 | H76: 44 | I76: 0 | L76: Schlachtbefunde mit Prozentangaben
B77: sonstiges | F77: 00085 | G77: 0 | H77: 45 | I77: 0
F78: 00088 | G78: 0 | H78: 46 | I78: 0
F79: 00091 | G79: 0 | H79: 47 | I79: 0
F80: 00094 | G80: 0 | H80: 48 | I80: 0
F81: 00097 | G81: 0 | H81: 49 | I81: 0
F82: 00100 | G82: 100 | H82: 50 | I82: =10/50 -> 0.2
F83: 00150 | G83: 150 | H83: 60 | I83: =5/50 -> 0.1
F84: 00200 | G84: 200 | H84: 65 | I84: =5/50 -> 0.1
F85: 00250 | G85: 250 | H85: 70 | I85: =5/50 -> 0.1
F86: 00300 | G86: 300 | H86: 75 | I86: =5/200 -> 0.025
F87: 00500 | G87: 500 | H87: 80 | I87: =5/300 -> 0.01666666667
A88: Auswahl Mastpute | D88: 3 | F88: 00800 | G88: 800 | H88: 85 | I88: =5/200 -> 0.025
B89: --- | F89: 01000 | G89: 1000 | H89: 90
B90: 21 Wochen Rhythmus | F90: 09999 | G90: 9999 | H90: 90
B91: 18-19 Wochen Rhythmus | F91: 99999 | G91: 99999 | H91: 90
B92: Kurzmast
A94: Auswahl Haltung | D94: 3 | F94: 00000 | G94: 0 | H94: 30 | I94: 0
B95: --- | F95: 00031 | G95: 31 | H95: 31 | I95: =4/19 -> 0.2105263158
B96: Freilandhaltung | F96: 00051 | G96: 51 | H96: 36 | I96: =I95 -> 0.2105263158
B97: Bodenhaltung | F97: 00070 | G97: 70 | H97: 40 | I97: =10/29 -> 0.3448275862
B98: Volierenhaltung | F98: 00100 | G98: 100 | H98: 50 | I98: =10/50 -> 0.2
B99: Kleingruppenhaltung | F99: 00150 | G99: 150 | H99: 60 | I99: =5/50 -> 0.1
F100: 00200 | G100: 200 | H100: 65 | I100: =5/50 -> 0.1
A101: Auswahl AK | D101: 1 | F101: 00250 | G101: 250 | H101: 70
B102: --- | F102: 01000 | G102: 1000 | H102: 70
B103: Familienarbeitskräfte | F103: 09999 | G103: 9999 | H103: 70
B104: Fremdarbeitskräfte | F104: 99999 | G104: 99999 | H104: 70
A106: Auswahl Erwerb | D106: 2
B107: ---
B108: Haupterwerb
B109: Nebenerwerb
A111: Auswahl Bewirt | D111: 2
B112: ---
B113: Ökologisch
B114: Konventionell
A116: Auswahl Spezialisierung
B117: ---
B118: < 25%
B119: 25-50%
B120: 50-75%
B121: >75%

Sheet InternVorlagenAuswertung (hidden)
A1: BEREICH_START | T1: RD_MILCH | AT1: Milchkühe | BF1: #DATUM#
A2: AA>T02 | AU2: =AA2 -> 0
A3: AA>F11| | C3: AC>F21| | H3: Allg. Indikatoren | M3: n | N3: AB>F11| | P3: AD>F21| | Z3: =Intern_AuswertTrenner -> 7
A4: AA>F13| | C4: AC>F23| | H4: Ausweichdistanz | M4: n | N4: AB>F13| | P4: AD>F23| | AU4: Stichproben | BB4: Sommer- | BD4: Winter-
T5: Stichproben | Z5: =Intern_AuswertFlach -> 12 | BB5: halbjahr | BD5: halbjahr
A6: AA>T03 | N6: AB>T04 | AU6: Gesamtbestand | BB6: =IF(AA6>0,AA6,"") ->  | BD6: =IF(AB6>0,AB6,"") -> 
Z7: =Intern_AuswertFlach -> 12 | BB7: Ergeb- | BC7: Beurteilte | BD7: Ergeb- | BE7: Beurteilte
Z8: =Intern_AuswertFlach -> 12 | BB8: nisse | BC8: Tiere (insg.) | BD8: nisse | BE8: Tiere (insg.)
A9: =A4&H9 -> AA>F13|910|W30 | C9: =C4&H9 -> AC>F23|910|W30 | H9: 910|W30 | N9: =N4&R9 -> AB>F13|904|W30 | P9: =P4&R9 -> AD>F23|904|W30 | R9: 904|W30 | AU9: Ausweichdistanz | AX9: Tiere lassen sich berühren | BA9: Anteil Tiere in % | BB9: =IF(AB9>0,AA9/100,"") ->  | BC9: =IF(AB9>0,"["&AB9&"]","") ->  | BD9: =IF(AD9>0,AC9/100,"") ->  | BE9: =IF(AD9>0,"["&AD9&"]","") -> 
A10: =A4&H10 -> AA>F13|912|W30 | C10: =C4&H10 -> AC>F23|912|W30 | H10: 912|W30 | N10: =N4&R10 -> AB>F13|904|W30 | P10: =P4&R10 -> AD>F23|904|W30 | R10: 904|W30 | AX10: ≥ 1 m | BA10: Anteil Tiere in % | BB10: =IF(AB10>0,AA10/100,"") ->  | BC10: =IF(AB10>0,"["&AB10&"]","") ->  | BD10: =IF(AD10>0,AC10/100,"") ->  | BE10: =IF(AD10>0,"["&AD10&"]","") -> 
A11: =A3&H11 -> AA>F11|911|W10 | C11: =C3&H11 -> AC>F21|911|W10 | H11: 911|W10 | N11: =N3&R11 -> AB>F11|904|W10 | P11: =P3&R11 -> AD>F21|904|W10 | R11: 904|W10 | AU11: Körperkondition | AX11: zu mager | BA11: Anteil Tiere in % | BB11: =IF(AB11>0,AA11/100,"") ->  | BC11: =IF(AB11>0,"["&AB11&"]","") ->  | BD11: =IF(AD11>0,AC11/100,"") ->  | BE11: =IF(AD11>0,"["&AD11&"]","") -> 
A12: =A3&H12 -> AA>F11|912|W10 | C12: =C3&H12 -> AC>F21|912|W10 | H12: 912|W10 | N12: =N3&R12 -> AB>F11|904|W10 | P12: =P3&R12 -> AD>F21|904|W10 | R12: 904|W10 | AX12: zu fett | BA12: Anteil Tiere in % | BB12: =IF(AB12>0,AA12/100,"") ->  | BC12: =IF(AB12>0,"["&AB12&"]","") ->  | BD12: =IF(AD12>0,AC12/100,"") ->  | BE12: =IF(AD12>0,"["&AD12&"]","") -> 
AU13: Verschmutzung
A14: =A3&H14 -> AA>F11|911|W16 | C14: =C3&H14 -> AC>F21|911|W16 | H14: 911|W16 | N14: =N3&R14 -> AB>F11|904|W16 | P14: =P3&R14 -> AD>F21|904|W16 | R14: 904|W16 | AV14: Unteres Hinterbein | BA14: Anteil Tiere in % | BB14: =IF(AB14>0,AA14/100,"") ->  | BC14: =IF(AB14>0,"["&AB14&"]","") ->  | BD14: =IF(AD14>0,AC14/100,"") ->  | BE14: =IF(AD14>0,"["&AD14&"]","") -> 
A15: =A3&H15 -> AA>F11|911|W17 | C15: =C3&H15 -> AC>F21|911|W17 | H15: 911|W17 | N15: =N3&R15 -> AB>F11|904|W17 | P15: =P3&R15 -> AD>F21|904|W17 | R15: 904|W17 | AV15: Oberes Hinterbein | BA15: Anteil Tiere in % | BB15: =IF(AB15>0,AA15/100,"") ->  | BC15: =IF(AB15>0,"["&AB15&"]","") ->  | BD15: =IF(AD15>0,AC15/100,"") ->  | BE15: =IF(AD15>0,"["&AD15&"]","") -> 
A16: =A3&H16 -> AA>F11|911|W18 | C16: =C3&H16 -> AC>F21|911|W18 | H16: 911|W18 | N16: =N3&R16 -> AB>F11|904|W18 | P16: =P3&R16 -> AD>F21|904|W18 | R16: 904|W18 | AV16: Euter | BA16: Anteil Tiere in % | BB16: =IF(AB16>0,AA16/100,"") ->  | BC16: =IF(AB16>0,"["&AB16&"]","") ->  | BD16: =IF(AD16>0,AC16/100,"") ->  | BE16: =IF(AD16>0,"["&AD16&"]","") -> 
AU17: Integumentschäden - inkl. Schwellungen
A18: =A3&H18 -> AA>F11|920|W21 | C18: =C3&H18 -> AC>F21|920|W21 | H18: 920|W21 | N18: =N3&R18 -> AB>F11|920|W25 | P18: =P3&R18 -> AD>F21|920|W25 | R18: 920|W25 | AU18: Tiere mit Integumentschäden (insgesamt) | BA18: Anteil Tiere in % | BB18: =IF(AB18>0,AA18/100,"") ->  | BC18: =IF(AB18>0,"["&AB18&"]","") ->  | BD18: =IF(AD18>0,AC18/100,"") ->  | BE18: =IF(AD18>0,"["&AD18&"]","") -> 
A19: =A3&H19 -> AA>F11|911|W24 | C19: =C3&H19 -> AC>F21|911|W24 | H19: 911|W24 | N19: =N3&R19 -> AB>F11|904|W24 | P19: =P3&R19 -> AD>F21|904|W24 | R19: 904|W24 | AV19: Sprunggelenk | AX19: Wunde/Kruste | BA19: Anteil Tiere in % | BB19: =IF(AB19>0,AA19/100,"") ->  | BC19: =IF(AB19>0,"["&AB19&"]","") ->  | BD19: =IF(AD19>0,AC19/100,"") ->  | BE19: =IF(AD19>0,"["&AD19&"]","") -> 
A20: =A3&H20 -> AA>F11|911|W25 | C20: =C3&H20 -> AC>F21|911|W25 | H20: 911|W25 | N20: =N3&R20 -> AB>F11|904|W25 | P20: =P3&R20 -> AD>F21|904|W25 | R20: 904|W25 | AX20: Schwellung | BA20: Anteil Tiere in %
A21: =A3&H21 -> AA>F11|911|W22 | C21: =C3&H21 -> AC>F21|911|W22 | H21: 911|W22 | N21: =N3&R21 -> AB>F11|904|W22 | P21: =P3&R21 -> AD>F21|904|W22 | R21: 904|W22 | AV21: Vorderfußwurzelgelenk | AX21: Wunde/Kruste | BA21: Anteil Tiere in %
A22: =A3&H22 -> AA>F11|911|W23 | C22: =C3&H22 -> AC>F21|911|W23 | H22: 911|W23 | N22: =N3&R22 -> AB>F11|904|W23 | P22: =P3&R22 -> AD>F21|904|W23 | R22: 904|W23 | AX22: Schwellung | BA22: Anteil Tiere in %
A23: =A3&H23 -> AA>F11|911|W20 | C23: =C3&H23 -> AC>F21|911|W20 | H23: 911|W20 | N23: =N3&R23 -> AB>F11|904|W20 | P23: =P3&R23 -> AD>F21|904|W20 | R23: 904|W20 | AV23: Nacken | AX23: Wunde/Kruste | BA23: Anteil Tiere in %
A24: =A3&H24 -> AA>F11|911|W21 | C24: =C3&H24 -> AC>F21|911|W21 | H24: 911|W21 | N24: =N3&R24 -> AB>F11|904|W21 | P24: =P3&R24 -> AD>F21|904|W21 | R24: 904|W21 | AX24: Schwellung | BA24: Anteil Tiere in %
A25: =A3&H25 -> AA>F11|911|W31 | C25: =C3&H25 -> AC>F21|911|W31 | H25: 911|W31 | N25: =N3&R25 -> AB>F11|904|W31 | P25: =P3&R25 -> AD>F21|904|W31 | R25: 904|W31 | AU25: Schwanzschäden | BA25: Anteil Tiere in % | BB25: =IF(AB25>0,AA25/100,"") ->  | BC25: =IF(AB25>0,"["&AB25&"]","") ->  | BD25: =IF(AD25>0,AC25/100,"") ->  | BE25: =IF(AD25>0,"["&AD25&"]","") -> 
A26: =A3&H26 -> AA>F11|911|W27 | C26: =C3&H26 -> AC>F21|911|W27 | H26: 911|W27 | N26: =N3&R26 -> AB>F11|904|W27 | P26: =P3&R26 -> AD>F21|904|W27 | R26: 904|W27 | AU26: Klauenzustand - mangelhaft | BA26: Anteil Tiere in %
A27: =A3&H27 -> AA>F11|911|W28 | C27: =C3&H27 -> AC>F21|911|W28 | H27: 911|W28 | N27: =N3&R27 -> AB>F11|904|W28 | P27: =P3&R27 -> AD>F21|904|W28 | R27: 904|W28 | AU27: Lahmheit | AV27: Laufstall | AX27: geringgradig lahm | BA27: Anteil Tiere in %
A28: =A3&H28 -> AA>F11|912|W28 | C28: =C3&H28 -> AC>F21|912|W28 | H28: 912|W28 | N28: =N3&R28 -> AB>F11|904|W28 | P28: =P3&R28 -> AD>F21|904|W28 | R28: 904|W28 | AX28: hochgradig lahm | BA28: Anteil Tiere in %
AX29: lahme Tiere gesamt | BA29: Anteil Tiere in % | BB29: =IF(AB28+AB27>0,(AA28+AA27)/100,"") ->  | BC29: =BC28 ->  | BD29: =IF(AD28+AD27>0,(AC28+AC27)/100,"") ->  | BE29: =BE28 -> 
A30: =A3&H30 -> AA>F11|911|W29 | C30: =C3&H30 -> AC>F21|911|W29 | H30: 911|W29 | N30: =N3&R30 -> AB>F11|904|W29 | P30: =P3&R30 -> AD>F21|904|W29 | R30: 904|W29 | AV30: Anbindehaltung | AX30: lahme Tiere | BA30: Anteil Tiere in % | BD30: =IF(AD30>0,AC30/100,"") ->  | BE30: =IF(AD30>0,"["&AD30&"]","") -> 
A31: AA>F14| | C31: AC>F24| | H31: Liegeplatz/Aufsteh/Wasser | N31: AB>F14| | P31: AD>F24| | AU31: Liegeplatznutzung
A32: ="AA>F14|"&H32 -> AA>F14|904|W61 | C32: ="AC>F24|"&H32 -> AC>F24|904|W61 | H32: 904|W61 | N32: ="AB>F14|"&R32 -> AB>F14|901|W03 | P32: ="AD>F24|"&R32 -> AD>F24|901|W03 | R32: 901|W03 | AV32: Stall Usage Index | AX32: (LBS,LS,AB) | BA32: Anteil Tiere in % | BB32: =IF(AND(AB32>0,AA32<>""),AA32/100,"") ->  | BC32: =IF(AND(AB32>0,AA32<>""),"["&AB32&"]","") ->  | BD32: =IF(AND(AD32>0,AC32<>""),AC32/100,"") ->  | BE32: =IF(AND(AD32>0,AC32<>""),"["&AD32&"]","") -> 
A33: ="AA>F14|"&H33 -> AA>F14|904|W62 | C33: ="AC>F24|"&H33 -> AC>F24|904|W62 | H33: 904|W62 | N33: ="AB>F14|"&R33 -> AB>F14|902|W03 | P33: ="AD>F24|"&R33 -> AD>F24|902|W03 | R33: 902|W03 | AV33: mod. Cow Comfort Index | AX33: (LBS) | BA33: Anteil Tiere in % | BB33: =IF(AND(AB33>0,AA33<>""),AA33/100,"") ->  | BC33: =IF(AND(AB33>0,AA33<>""),"["&AB33&"]","") ->  | BD33: =IF(AND(AD33>0,AC33<>""),AC33/100,"") ->  | BE33: =IF(AND(AD33>0,AC33<>""),"["&AD33&"]","") -> 
A34: ="AA>F14|"&H34 -> AA>F14|904|W63 | C34: ="AC>F24|"&H34 -> AC>F24|904|W63 | H34: 904|W63 | N34: ="AB>F14|"&R34 -> AB>F14|903|W03 | P34: ="AD>F24|"&R34 -> AD>F24|903|W03 | R34: 903|W03 | AV34: Spaltenlieger | AX34: (LBS, LS) | BA34: Anteil Tiere in % | BB34: =IF(AND(AB34>0,AA34<>""),AA34/100,"") ->  | BC34: =IF(AND(AB34>0,AA34<>""),"["&AB34&"]","") ->  | BD34: =IF(AND(AD34>0,AC34<>""),AC34/100,"") ->  | BE34: =IF(AND(AD34>0,AC34<>""),"["&AD34&"]","") -> 
A35: ="AA>F14|"&H35 -> AA>F14|904|W64 | C35: ="AC>F24|"&H35 -> AC>F24|904|W64 | H35: 904|W64 | N35: ="AB>F14|"&R35 -> AB>F14|909|W03 | P35: ="AD>F24|"&R35 -> AD>F24|909|W03 | R35: 909|W03 | AV35: unvollständig liegende Kühe | AX35: (AB) | BA35: Anteil Tiere in % | BB35: =IF(AND(AB35>0,AA35<>""),AA35/100,"") ->  | BC35: =IF(AND(AB35>0,AA35<>""),"["&AB35&"]","") ->  | BD35: =IF(AND(AD35>0,AC35<>""),AC35/100,"") ->  | BE35: =IF(AND(AD35>0,AC35<>""),"["&AD35&"]","") -> 
A36: =A31&H36 -> AA>F14|903|W17 | C36: =C31&H36 -> AC>F24|903|W17 | H36: 903|W17 | N36: =N31&R36 -> AB>F14|901|W17 | P36: =P31&R36 -> AD>F24|901|W17 | R36: 901|W17 | AU36: Aufstehverhalten - nicht flüssiges Aufstehverhalten | BA36: Anteil Tiere in % | BB36: =IF(AB36>0,AA36/100,"") ->  | BC36: =IF(AB36>0,"["&AB36&"]","") ->  | BD36: =IF(AD36>0,AC36/100,"") ->  | BE36: =IF(AD36>0,"["&AD36&"]","") -> 
A37: =A31&H37 -> AA>F14|903|W30 | C37: =C31&H37 -> AC>F24|903|W30 | H37: 903|W30 | N37: =N31&R37 -> AB>F14|901|W30 | P37: =P31&R37 -> AD>F24|901|W30 | R37: 901|W30 | AU37: Wasserversorgung - unzureichend versorgte Tiere | BA37: Anteil Tiere in % | BB37: =IF(AB37>0,AA37/100,"") ->  | BC37: =IF(AB37>0,"["&AB37&"]","") ->  | BD37: =IF(AD37>0,AC37/100,"") ->  | BE37: =IF(AD37>0,"["&AD37&"]","") -> 
A39: AA>F31| | H39: Milchleistung usw. | T39: =AU39 -> Fortlaufende Erhebung | AU39: Fortlaufende Erhebung | BB39: Gesamtes
Z40: =Intern_AuswertFlach -> 12 | BB40: Jahr
Z41: =Intern_AuswertFlach -> 12 | BB41: Ergeb- | BC41: Beurteilte
Z42: =Intern_AuswertFlach -> 12 | BB42: nisse | BC42: Tiere (insg.)
AU43: Milchzellgehalt
A44: =A39&H44 -> AA>F31|901|W01 | H44: 901|W01 | N44: AB>F31|903|W01 | AV44: Eutergesunde Kühe | BA44: Anteil Tiere in % | BB44: =IF(AB44>0,AA44/100,"") -> 
A45: =A39&H45 -> AA>F31|901|W02 | H45: 901|W02 | N45: AB>F31|903|W02 | AV45: Euterkranke Kühe, die die Lieferfähigkeit der Milch gefährden | BA45: Anteil Tiere in % | BB45: =IF(AB45>0,AA45/100,"") -> 
A46: =A39&H46 -> AA>F31|901|W03 | H46: 901|W03 | N46: AB>F31|903|W03 | AV46: Euterkranke Erstlaktierende | BA46: Anteil Tiere in % | BB46: =IF(AB46>0,AA46/100,"") -> 
AU47: Fett-Eiweiß-Quotient (100 d-Grp.)
A48: =A39&H48 -> AA>F31|901|W20 | H48: 901|W20 | N48: AB>F31|901|W04 | AV48: Verdacht auf Energiemangel | BA48: Anteil Tiere in % | BB48: =IF(AND(AA48<>"",AB48>0),AA48/100,"") ->  | BC48: =IF(AND(AA48<>"",AB48>0),"["&AB48&"]","") -> 
A49: =A39&H49 -> AA>F31|901|W21 | H49: 901|W21 | N49: AB>F31|901|W04 | AV49: Verdacht auf Abweichungen in der Rohfaserversorgung | BA49: Anteil Tiere in % | BB49: =IF(AND(AA49<>"",AB49>0),AA49/100,"") ->  | BC49: =IF(AND(AA49<>"",AB49>0),"["&AB49&"]","") -> 
Z50: =Intern_AuswertTrenner -> 7
A51: =A39&H51 -> AA>F31|902|W10 | H51: 902|W10 | N51: AB>F31|903|W10 | AU51: Mastitisbehandlungsinzidenz (alternativ oder ergänzend)
A52: =A39&H52 -> AA>F31|902|W03 | H52: 902|W03 | AV52: Euterbehandlungen in der Laktation | BA52: Anteil pro 100 Tiere und Jahr | BB52: =IF(AA52>0,AA52,"") -> 
A53: =A39&H53 -> AA>F31|905|W03 | H53: 905|W03 | AV53: Behandlung mit antibiotischen Trockenstellpräparaten | BA53: Anteil pro 100 Tiere und Jahr | BB53: =IF(AA53>0,AA53,"") -> 
Z54: =Intern_AuswertTrenner -> 7
A55: =A39&H55 -> AA>F31|903|W09 | H55: 903|W09 | N55: AB>F31|904|W09 | AU55: Schwergeburtenrate | BA55: Anteil Geburten in % | BB55: =IF(COUNT(AA55) = 1,AA55/100,"") ->  | BC55: =IF(AB55>0,"["&AB55&"]","") -> 
A56: =A39&H56 -> AA>F31|901|W09 | H56: 901|W09 | AU56: Nutzungsdauer (Mittelwert) | BA56: Monate | BB56: =IF(AA56>0,AA56,"") -> 
A57: =A39&H57 -> AA>F31|902|W09 | H57: 902|W09 | AU57: Tierverluste | BA57: Mortalitätsrate | BB57: =IF(COUNT(AA57)=1,AA57,"") -> 
A58: BEREICH_ENDE | Z58: =Intern_AuswertTrenner -> 7
A61: BEREICH_START | T61: RD_MAST | AT61: Mastrinder | BF61: #DATUM#
A62: AA>T02 | AU62: =AA62 -> 0
A63: AA>F11| | B63: AC>F21| | H63: Algemeine Indikatoren | M63: AB>F11| | N63: AD>F21| | Z63: =Intern_AuswertTrenner -> 7
A64: AA>F12| | B64: AC>F22| | M64: AB>F12| | N64: AD>F22| | T64: Stichproben | AU64: Stichproben | BB64: Sommer- | BD64: Winter-
Z65: =Intern_AuswertFlach -> 12 | BB65: halbjahr | BD65: halbjahr
A66: AA>T03 | M66: AB>T04 | AU66: Gesamtbestand | BB66: =IF(AA66>0,AA66,"") ->  | BD66: =IF(AB66>0,AB66,"") -> 
Z67: =Intern_AuswertFlach -> 12 | BB67: Ergeb- | BC67: Beurteilte | BD67: Ergeb- | BE67: Beurteilte
Z68: =Intern_AuswertFlach -> 12 | BB68: nisse | BC68: Tiere (insg.) | BD68: nisse | BE68: Tiere (insg.)
A69: =A63&H69 -> AA>F11|911|W03 | B69: =B63&H69 -> AC>F21|911|W03 | H69: 911|W03 | M69: =M63&R69 -> AB>F11|904|W03 | N69: =N63&R69 -> AD>F21|904|W03 | R69: 904|W03 | AU69: Nasenausfluss | BA69: Anteil Tiere in % | BB69: =IF(AB69>0,AA69/100,"") ->  | BC69: =IF(AB69>0,"["&AB69&"]","") ->  | BD69: =IF(AD69>0,AC69/100,"") ->  | BE69: =IF(AD69>0,"["&AD69&"]","") -> 
A70: =A63&H70 -> AA>F11|911|W15 | B70: =B63&H70 -> AC>F21|911|W15 | H70: 911|W15 | M70: =M63&R70 -> AB>F11|904|W15 | N70: =N63&R70 -> AD>F21|904|W15 | R70: 904|W15 | AU70: Unterentwickelte Tiere | BA70: Anteil Tiere in % | BB70: =IF(AB70>0,AA70/100,"") ->  | BC70: =IF(AB70>0,"["&AB70&"]","") ->  | BD70: =IF(AD70>0,AC70/100,"") ->  | BE70: =IF(AD70>0,"["&AD70&"]","") -> 
A71: =A63&H71 -> AA>F11|911|W19 | B71: =B63&H71 -> AC>F21|911|W19 | H71: 911|W19 | M71: =M63&R71 -> AB>F11|904|W19 | N71: =N63&R71 -> AD>F21|904|W19 | R71: 904|W19 | AU71: Verschmutzung | BA71: Anteil Tiere in % | BB71: =IF(AB71>0,AA71/100,"") ->  | BC71: =IF(AB71>0,"["&AB71&"]","") ->  | BD71: =IF(AD71>0,AC71/100,"") ->  | BE71: =IF(AD71>0,"["&AD71&"]","") -> 
AU72: Integumentschäden - inkl. Schwellungen
A73: =A63&H73 -> AA>F11|920|W21 | B73: =B63&H73 -> AC>F21|920|W21 | H73: 920|W21 | M73: =M63&R73 -> AB>F11|920|W25 | N73: =N63&R73 -> AD>F21|920|W25 | R73: 920|W25 | AU73: Tiere mit Integumentschäden (insgesamt) | BA73: Anteil Tiere in % | BB73: =IF(AB73>0,AA73/100,"") ->  | BC73: =IF(AB73>0,"["&AB73&"]","") ->  | BD73: =IF(AD73>0,AC73/100,"") ->  | BE73: =IF(AD73>0,"["&AD73&"]","") -> 
A74: =A63&H74 -> AA>F11|911|W24 | B74: =B63&H74 -> AC>F21|911|W24 | H74: 911|W24 | M74: =M63&R74 -> AB>F11|904|W24 | N74: =N63&R74 -> AD>F21|904|W24 | R74: 904|W24 | AV74: Sprunggelenk | AX74: Wunde/Kruste | BA74: Anteil Tiere in %
A75: =A63&H75 -> AA>F11|911|W25 | B75: =B63&H75 -> AC>F21|911|W25 | H75: 911|W25 | M75: =M63&R75 -> AB>F11|904|W25 | N75: =N63&R75 -> AD>F21|904|W25 | R75: 904|W25 | AX75: Schwellung | BA75: Anteil Tiere in %
A76: =A63&H76 -> AA>F11|911|W22 | B76: =B63&H76 -> AC>F21|911|W22 | H76: 911|W22 | M76: =M63&R76 -> AB>F11|904|W22 | N76: =N63&R76 -> AD>F21|904|W22 | R76: 904|W22 | AV76: Vorderfußwurzelgelenk | AX76: Wunde/Kruste | BA76: Anteil Tiere in %
A77: =A63&H77 -> AA>F11|911|W23 | B77: =B63&H77 -> AC>F21|911|W23 | H77: 911|W23 | M77: =M63&R77 -> AB>F11|904|W23 | N77: =N63&R77 -> AD>F21|904|W23 | R77: 904|W23 | AX77: Schwellung | BA77: Anteil Tiere in %
A78: =A63&H78 -> AA>F11|911|W20 | B78: =B63&H78 -> AC>F21|911|W20 | H78: 911|W20 | M78: =M63&R78 -> AB>F11|904|W20 | N78: =N63&R78 -> AD>F21|904|W20 | R78: 904|W20 | AV78: Nacken | AX78: Wunde/Kruste | BA78: Anteil Tiere in %
A79: =A63&H79 -> AA>F11|911|W21 | B79: =B63&H79 -> AC>F21|911|W21 | H79: 911|W21 | M79: =M63&R79 -> AB>F11|904|W21 | N79: =N63&R79 -> AD>F21|904|W21 | R79: 904|W21 | AX79: Schwellung | BA79: Anteil Tiere in %
A80: =A63&H80 -> AA>F11|911|W27 | B80: =B63&H80 -> AC>F21|911|W27 | H80: 911|W27 | M80: =M63&R80 -> AB>F11|904|W27 | N80: =N63&R80 -> AD>F21|904|W27 | R80: 904|W27 | AU80: Klauenzustand mangelhaft | BA80: Anteil Tiere in %
A81: =A63&H81 -> AA>F11|911|W29 | B81: =B63&H81 -> AC>F21|911|W29 | H81: 911|W29 | M81: =M63&R81 -> AB>F11|904|W29 | N81: =N63&R81 -> AD>F21|904|W29 | R81: 904|W29 | AU81: Lahmheit | BA81: Anteil Tiere in %
A82: =A64&H82 -> AA>F12|904|W07 | B82: =B64&H82 -> AC>F22|904|W07 | H82: 904|W07 | M82: =M64&R82 -> AB>F12|904|W06 | N82: =N64&R82 -> AD>F22|904|W06 | R82: 904|W06 | AU82: Zungenrollen / Zungenschlagen | BA82: Anteil Tiere in % | BB82: =IF(AND(AB82>0,AA82<>""),AA82/100,"") ->  | BC82: =IF(AND(AA82<>"",AB82>0),"["&AB82&"]","") ->  | BD82: =IF(AND(AC82<>"",AD82>0),AC82/100,"") ->  | BE82: =IF(AND(AC82<>"",AD82>0),"["&AD82&"]","") -> 
A83: =A64&H83 -> AA>F12|903|W30 | B83: =B64&H83 -> AC>F22|903|W30 | H83: 903|W30 | M83: =M64&R83 -> AB>F12|901|W30 | N83: =N64&R83 -> AD>F22|901|W30 | R83: 901|W30 | AU83: Wasserversorgung - unzureichend versorgte Tiere | BA83: Anteil Tiere in % | BB83: =IF(AB83>0,AA83/100,"") ->  | BC83: =IF(AB83>0,"["&AB83&"]","") ->  | BD83: =IF(AD83>0,AC83/100,"") ->  | BE83: =IF(AD83>0,"["&AD83&"]","") -> 
AU85: Flächenangebot | AX85: Sommerhalbjahr | BB85: Winterhalbjahr
Z86: =Intern_AuswertFlach -> 12 | BA86: Beurteilte | BE86: Beurteilte
A87: AA>F12| | B87: AB>F12| | C87: AC>F12| | E87: AD>F22| | F87: AE>F22| | G87: AF>F22| | N87: AH>F12| | O87: AI>F22| | Z87: =Intern_AuswertFlach -> 12 | AX87: Mittelwert | AY87: Min-Wert | AZ87: Max-Wert | BA87: Tiere (insg.) | BB87: Mittelwert | BC87: Min-Wert | BD87: Max-Wert | BE87: Tiere (insg.)
A88: =A87&J88 -> AA>F12|901|W38 | B88: =B87&K88 -> AB>F12|901|W45 | C88: =C87&L88 -> AC>F12|901|W46 | E88: =E87&J88 -> AD>F22|901|W38 | F88: =F87&K88 -> AE>F22|901|W45 | G88: =G87&L88 -> AF>F22|901|W46 | J88: 901|W38 | K88: 901|W45 | L88: 901|W46 | N88: =N87&S88 -> AH>F12|901|W06 | O88: =O87&S88 -> AI>F22|901|W06 | S88: 901|W06 | AU88: Anfangsmast | AW88: m2/Tier | AX88: =IF(AH88>0,AA88,"") ->  | AY88: =IF(AH88>0,AB88,"") ->  | AZ88: =IF(AH88>0,AC88,"") ->  | BA88: =IF(AH88>0,"[" & AH88 & "]","") ->  | BB88: =IF(AI88>0,AD88,"") ->  | BC88: =IF(AI88>0,AE88,"") ->  | BD88: =IF(AI88>0,AF88,"") ->  | BE88: =IF(AI88>0,"[" & AI88 & "]","") -> 
A89: =A87&J89 -> AA>F12|902|W38 | B89: =B87&K89 -> AB>F12|902|W45 | C89: =C87&L89 -> AC>F12|902|W46 | E89: =E87&J89 -> AD>F22|902|W38 | F89: =F87&K89 -> AE>F22|902|W45 | G89: =G87&L89 -> AF>F22|902|W46 | J89: 902|W38 | K89: 902|W45 | L89: 902|W46 | N89: =N87&S89 -> AH>F12|902|W06 | O89: =O87&S89 -> AI>F22|902|W06 | S89: 902|W06 | AU89: Mittelmast | AW89: m2/Tier | AX89: =IF(AH89>0,AA89,"") ->  | AY89: =IF(AH89>0,AB89,"") ->  | AZ89: =IF(AH89>0,AC89,"") ->  | BA89: =IF(AH89>0,"[" & AH89 & "]","") ->  | BB89: =IF(AI89>0,AD89,"") ->  | BC89: =IF(AI89>0,AE89,"") ->  | BD89: =IF(AI89>0,AF89,"") ->  | BE89: =IF(AI89>0,"[" & AI89 & "]","") -> 
A90: =A87&J90 -> AA>F12|903|W38 | B90: =B87&K90 -> AB>F12|903|W45 | C90: =C87&L90 -> AC>F12|903|W46 | E90: =E87&J90 -> AD>F22|903|W38 | F90: =F87&K90 -> AE>F22|903|W45 | G90: =G87&L90 -> AF>F22|903|W46 | J90: 903|W38 | K90: 903|W45 | L90: 903|W46 | N90: =N87&S90 -> AH>F12|903|W06 | O90: =O87&S90 -> AI>F22|903|W06 | S90: 903|W06 | AU90: Endmast | AW90: m2/Tier | AX90: =IF(AH90>0,AA90,"") ->  | AY90: =IF(AH90>0,AB90,"") ->  | AZ90: =IF(AH90>0,AC90,"") ->  | BA90: =IF(AH90>0,"[" & AH90 & "]","") ->  | BB90: =IF(AI90>0,AD90,"") ->  | BC90: =IF(AI90>0,AE90,"") ->  | BD90: =IF(AI90>0,AF90,"") ->  | BE90: =IF(AI90>0,"[" & AI90 & "]","") -> 
AU91: Tiere mit unzureichendem
A92: AA>F12| | B92: AB>F12| | M92: AH>F22| | N92: AI>F22| | Z92: =Intern_AuswertFlach -> 12 | AU92: Flächenangebot | AX92: Sommerhalbjahr | BB92: Winterhalbjahr
A93: =A92&G93 -> AA>F12|905|R38 | B93: =B92&H93 -> AB>F12|905|R45 | G93: 905|R38 | H93: 905|R45 | M93: =M92&G93 -> AH>F22|905|R38 | N93: =N92&H93 -> AI>F22|905|R45 | AU93: Anfangsmast | AW93: Anteil Tiere in % | AX93: =IF(AA93<>"",AB93/100,"") ->  | BB93: =IF(AH93<>"",AI93/100,"") -> 
A94: =A92&G94 -> AA>F12|906|R38 | B94: =B92&H94 -> AB>F12|906|R45 | G94: 906|R38 | H94: 906|R45 | M94: =M92&G94 -> AH>F22|906|R38 | N94: =N92&H94 -> AI>F22|906|R45 | AU94: Mittelmast | AW94: Anteil Tiere in % | AX94: =IF(AA94<>"",AB94/100,"") ->  | BB94: =IF(AH94<>"",AI94/100,"") -> 
A95: =A92&G95 -> AA>F12|907|R38 | B95: =B92&H95 -> AB>F12|907|R45 | G95: 907|R38 | H95: 907|R45 | M95: =M92&G95 -> AH>F22|907|R38 | N95: =N92&H95 -> AI>F22|907|R45 | AU95: Endmast | AW95: Anteil Tiere in % | AX95: =IF(AA95<>"",AB95/100,"") ->  | BB95: =IF(AH95<>"",AI95/100,"") -> 
A96: =A92&G96 -> AA>F12|908|R38 | B96: =B92&H96 -> AB>F12|908|R45 | G96: 908|R38 | H96: 908|R45 | M96: =M92&G96 -> AH>F22|908|R38 | N96: =N92&H96 -> AI>F22|908|R45 | AU96: Gesamtbestand | AW96: Anteil Tiere in % | AX96: =IF(AA96<>"",AB96/100,"") ->  | BB96: =IF(AH96<>"",AI96/100,"") -> 
T98: =AU98 -> Fortlaufende Erhebung | AU98: Fortlaufende Erhebung | BB98: Gesamtes
A99: AA>F31| | BB99: Jahr
A100: =A99&H100 -> AA>F31|001|W01 | H100: 001|W01 | AU100: Tierverluste | BA100: Mortalitätsrate | BB100: =IF(COUNT(AA100)=1,AA100,"") -> 
A101: BEREICH_ENDE | Z101: =Intern_AuswertTrenner -> 7
A104: BEREICH_START | T104: RD_KALB | AT104: Aufzuchtkälber | BF104: #DATUM#
A105: AA>T02 | AU105: =AA105 -> 0
Z106: =Intern_AuswertTrenner -> 7
A107: AA>F11| | B107: AC>F21| | H107: Algemeine Indikatoren | M107: AB>F11| | N107: AD>F21| | AU107: Stichproben | BB107: Sommer- | BD107: Winter-
T108: Stichproben | Z108: =Intern_AuswertFlach -> 12 | BB108: halbjahr | BD108: halbjahr
A109: AA>T03 | M109: AB>T04 | AU109: Gesamtbestand | BB109: =IF(AA109>0,AA109,"") ->  | BD109: =IF(AB109>0,AB109,"") -> 
Z110: =Intern_AuswertFlach -> 12 | BB110: Ergeb- | BC110: Beurteilte | BD110: Ergeb- | BE110: Beurteilte
Z111: =Intern_AuswertFlach -> 12 | BB111: nisse | BC111: Tiere (insg.) | BD111: nisse | BE111: Tiere (insg.)
A112: =A107&H112 -> AA>F11|901|W11 | B112: =B107&H112 -> AC>F21|901|W11 | H112: 901|W11 | M112: =M107&R112 -> AB>F11|902|W11 | N112: =N107&R112 -> AD>F21|902|W11 | R112: 902|W11 | AU112: Gegenseitiges Besaugen/Nasenklammer | BA112: Anteil Kälber in % | BB112: =IF(AND(AB112>0,AA112<>""),AA112/100,"") ->  | BC112: =IF(AND(AB112>0,AA112<>""),"["&AB112&"]","") ->  | BD112: =IF(AND(AD112>0,AC112<>""),AC112/100,"") ->  | BE112: =IF(AND(AD112>0,AC112<>""),"["&AD112&"]","") -> 
A113: =A107&H113 -> AA>F11|901|W10 | B113: =B107&H113 -> AC>F21|901|W10 | H113: 901|W10 | M113: =M107&R113 -> AB>F11|901|W04 | N113: =N107&R113 -> AD>F21|901|W04 | R113: 901|W04 | AU113: Unterentwickelte Kälber | BA113: Anteil Kälber in % | BB113: =IF(AND(AB113>0,AA113<>""),AA113/100,"") ->  | BC113: =IF(AND(AB113>0,AA113<>""),"["&AB113&"]","") ->  | BD113: =IF(AND(AD113>0,AC113<>""),AC113/100,"") ->  | BE113: =IF(AND(AD113>0,AC113<>""),"["&AD113&"]","") -> 
A114: =A107&H114 -> AA>F11|901|W12 | B114: =B107&H114 -> AC>F21|901|W12 | H114: 901|W12 | M114: =M107&R114 -> AB>F11|901|W05 | N114: =N107&R114 -> AD>F21|901|W05 | R114: 901|W05 | AU114: Verschmutzung | BA114: Anteil Kälber in % | BB114: =IF(AND(AB114>0,AA114<>""),AA114/100,"") ->  | BC114: =IF(AB114>0,"["&AB114&"]","") ->  | BD114: =IF(AND(AD114>0,AC114<>""),AC114/100,"") ->  | BE114: =IF(AD114>0,"["&AD114&"]","") -> 
A115: =A107&H115 -> AA>F11|901|W07 | B115: =B107&H115 -> AC>F21|901|W07 | H115: 901|W07 | M115: =M107&R115 -> AB>F11|901|W06 | N115: =N107&R115 -> AD>F21|901|W06 | R115: 901|W06 | AU115: Einstreumanagement - Kälber mit unzureichender Einstreu | BA115: Anteil Kälber in % | BB115: =IF(AND(AB115>0,AA115<>""),AA115/100,"") ->  | BC115: =IF(AB115>0,"["&AB115&"]","") ->  | BD115: =IF(AND(AD115>0,AC115<>""),AC115/100,"") ->  | BE115: =IF(AD115>0,"["&AD115&"]","") -> 
T117: =AU117 -> Fortlaufende Erhebung | AU117: Fortlaufende Erhebung | BB117: Gesamtes
A118: AA>F31| | M118: AB>F31| | Z118: =Intern_AuswertFlach -> 12 | BB118: Jahr
Z119: =Intern_AuswertFlach -> 12 | BB119: Ergeb- | BC119: Beurteilte
Z120: =Intern_AuswertFlach -> 12 | BB120: nisse | BC120: Tiere (insg.)
A121: =A118&H121 -> AA>F31|901|W02 | H121: 901|W02 | M121: =M118&Q121 -> AB>F31|001|W03 | Q121: 001|W03 | AU121: Behandlungsinzidenz Atemwegserkrankungen | BA121: Anteil Behandlungen pro 100 Kälber und Jahr in % | BB121: =IF(COUNT(AA121)=1,AA121/100,"") ->  | BC121: =IF(COUNT(AA121)=1,"["&AB121&"]","") -> 
A122: =A118&H122 -> AA>F31|901|W03 | H122: 901|W03 | M122: =M118&Q121 -> AB>F31|001|W03 | AU122: Behandlungsinzidenz Durchfallerkrankungen | BA122: Anteil Behandlungen pro 100 Kälber und Jahr in % | BB122: =IF(COUNT(AA122)=1,AA122/100,"") ->  | BC122: =IF(COUNT(AA122)=1,"["&AB122&"]","") -> 
AU123: Tierverluste
A124: =A118&H124 -> AA>F31|902|W02 | H124: 902|W02 | AV124: ≥ 8. Tag bis einschl. 3. Lebensmonat | BA124: Mortalitätsrate | BB124: =IF(AA124<>"",AA124,"") -> 
A125: =A118&H125 -> AA>F31|902|W03 | H125: 902|W03 | AV125: > 3. Lebensmonat bis einschl. 6. Lebensmonat | BA125: Mortalitätsrate | BB125: =IF(AA125<>"",AA125,"") -> 
A126: AA>SUM|F401-F499|900|W03 | I126: AB>SUM|F401-F499|902|W03 | AU126: Komplikationen nach Enthornung | BA126: Anteil Kälber in % | BB126: =IF(AB126>0,AA126/AB126,"") ->  | BC126: =IF(AB126>0,"["&AB126&"]","") -> 
A127: BEREICH_ENDE | Z127: =Intern_AuswertTrenner -> 7
A130: BEREICH_START | T130: SW_SAU | Z130: 65 | AT130: Sauen/Saugferkel | BE130: #DATUM#
A131: AA>T02 | AU131: =AA131 -> 0
Z132: =Intern_AuswertTrenner -> 7
A133: AA>F11| | B133: AC>F12| | C133: AE>F13| | L133: AB>F11| | M133: AD>F12| | N133: AF>F13| | T133: Stichproben | AU133: Stichproben | AY133: Deck- | BA133: Warte- | BC133: Abferkel-
AU134: Tierbeurteilung | AY134: stall | BA134: stall | BC134: stall
Z135: =Intern_AuswertFlach -> 12 | AU135: Sauen | AY135: Ergeb- | AZ135: Beurteilte | BA135: Ergeb- | BB135: Beurteilte | BC135: Ergeb- | BD135: Beurteilte
Z136: =Intern_AuswertFlach -> 12 | AY136: nisse | AZ136: Tiere (insg.) | BA136: nisse | BB136: Tiere (insg.) | BC136: nisse | BD136: Tiere (insg.)
C137: =C133&H137 -> AE>F13|911|W31 | H137: 911|W31 | N137: =N133&Q137 -> AF>F13|001|W02 | Q137: 001|W02 | AU137: Nestbaumaterial | AX137: Sauen | BC137: =IF(AF137>0,AE137/100,"") ->  | BD137: =IF(AF137>0,"["&AF137&"]","") -> 
A138: =A133&H138 -> AA>F11|911|W01 | B138: =B133&H138 -> AC>F12|911|W01 | C138: =C133&H138 -> AE>F13|911|W01 | H138: 911|W01 | L138: =L133&Q138 -> AB>F11|901|W01 | M138: =M133&Q138 -> AD>F12|901|W01 | N138: =N133&Q138 -> AF>F13|901|W01 | Q138: 901|W01 | AU138: Anzeichen für Stereotypien | AX138: Boniturnote 1 | AY138: =IF(AB138>0,AA138/100,"") ->  | AZ138: =IF(AB138>0,"["&AB138&"]","") ->  | BA138: =IF(AD138>0,AC138/100,"") ->  | BB138: =IF(AD138>0,"["&AD138&"]","") -> 
A139: =A133&H139 -> AA>F11|911|W02 | B139: =B133&H139 -> AC>F12|911|W02 | C139: =C133&H139 -> AE>F13|911|W02 | H139: 911|W02 | L139: =L133&Q139 -> AB>F11|901|W02 | M139: =M133&Q139 -> AD>F12|901|W02 | N139: =N133&Q139 -> AF>F13|901|W02 | Q139: 901|W02 | AU139: Kotverschmutzung der Tiere | AX139: Boniturnote 1
A140: =A133&H140 -> AA>F11|911|W03 | B140: =B133&H140 -> AC>F12|911|W03 | C140: =C133&H140 -> AE>F13|911|W03 | H140: 911|W03 | L140: =L133&Q140 -> AB>F11|901|W03 | M140: =M133&Q140 -> AD>F12|901|W03 | N140: =N133&Q140 -> AF>F13|901|W03 | Q140: 901|W03 | AU140: Hautverletzungen (ohne Vulva, Gesäuge und Schulterläsionen) | AX140: Boniturnote 2
A141: =A133&H141 -> AA>F11|911|W04 | B141: =B133&H141 -> AC>F12|911|W04 | C141: =C133&H141 -> AE>F13|911|W04 | H141: 911|W04 | L141: =L133&Q141 -> AB>F11|901|W04 | M141: =M133&Q141 -> AD>F12|901|W04 | N141: =N133&Q141 -> AF>F13|901|W04 | Q141: 901|W04 | AU141: Körperkondition | AX141: Boniturnote 1
A142: =A133&H142 -> AA>F11|912|W04 | B142: =B133&H142 -> AC>F12|912|W04 | C142: =C133&H142 -> AE>F13|912|W04 | H142: 912|W04 | L142: =L133&Q142 -> AB>F11|901|W04 | M142: =M133&Q142 -> AD>F12|901|W04 | N142: =N133&Q142 -> AF>F13|901|W04 | Q142: 901|W04 | AX142: Boniturnoten 1+2 | AY142: =IF(AB142>0,AA142/100,"") ->  | AZ142: =IF(AB142>0,"["&AB142&"]","") ->  | BA142: =IF(AD142>0,AC142/100,"") ->  | BB142: =IF(AD142>0,"["&AD142&"]","") ->  | BC142: =IF(AF142>0,AE142/100,"") ->  | BD142: =IF(AF142>0,"["&AF142&"]","") -> 
A143: =A133&H143 -> AA>F11|913|W04 | B143: =B133&H143 -> AC>F12|913|W04 | C143: =C133&H143 -> AE>F13|913|W04 | H143: 913|W04 | L143: =L133&Q143 -> AB>F11|901|W04 | M143: =M133&Q143 -> AD>F12|901|W04 | N143: =N133&Q143 -> AF>F13|901|W04 | Q143: 901|W04 | AX143: Boniturnote 5 | AY143: =IF(AB143>0,AA143/100,"") ->  | AZ143: =IF(AB143>0,"["&AB143&"]","") ->  | BA143: =IF(AD143>0,AC143/100,"") ->  | BB143: =IF(AD143>0,"["&AD143&"]","") ->  | BC143: =IF(AF143>0,AE143/100,"") ->  | BD143: =IF(AF143>0,"["&AF143&"]","") -> 
A144: =A133&H144 -> AA>F11|911|W05 | B144: =B133&H144 -> AC>F12|911|W05 | C144: =C133&H144 -> AE>F13|911|W05 | H144: 911|W05 | L144: =L133&Q144 -> AB>F11|901|W05 | M144: =M133&Q144 -> AD>F12|901|W05 | N144: =N133&Q144 -> AF>F13|901|W05 | Q144: 901|W05 | AU144: Schwellungen an den Hinterbeinen | AX144: Boniturnote 1
A145: =A133&H145 -> AA>F11|914|W06 | B145: =B133&H145 -> AC>F12|914|W06 | C145: =C133&H145 -> AE>F13|914|W06 | H145: 914|W06 | L145: =L133&Q145 -> AB>F11|901|W06 | M145: =M133&Q145 -> AD>F12|901|W06 | N145: =N133&Q145 -> AF>F13|901|W06 | Q145: 901|W06 | AU145: Anzeichen von Ektoparasiten | AY145: =IF(AB145>0,AA145,"") ->  | BA145: =IF(AD145>0,AC145,"") ->  | BC145: =IF(AF145>0,AE145,"") -> 
B146: =B133&H146 -> AC>F12|911|W12 | H146: 911|W12 | M146: =M133&Q146 -> AD>F12|901|W12 | Q146: 901|W12 | AU146: Vulvaverletzungen | AX146: Boniturnote 1 | BA146: =IF(AD146>0,AC146/100,"") ->  | BB146: =IF(AD146>0,"["&AD146&"]","") -> 
B147: =B133&H147 -> AC>F12|911|W07 | H147: 911|W07 | M147: =M133&Q147 -> AD>F12|901|W07 | N147: =N133&Q147 -> AF>F13|901|W07 | Q147: 901|W07 | AU147: Lahmheit | AX147: Boniturnote 1 | BA147: =IF(AD147>0,AC147/100,"") -> 
C148: =C133&H148 -> AE>F13|911|W08 | H148: 911|W08 | N148: =N133&Q148 -> AF>F13|901|W08 | Q148: 901|W08 | AU148: Schulterläsionen | AX148: Boniturnoten 1+2 | BC148: =IF(AF148>0,AE148/100,"") ->  | BD148: =IF(AF148>0,"["&AF148&"]","") -> 
C149: =C133&H149 -> AE>F13|912|W08 | H149: 912|W08 | N149: =N133&Q149 -> AF>F13|901|W08 | Q149: 901|W08 | AX149: Boniturnote 2 | BC149: =IF(AF149>0,AE149/100,"") ->  | BD149: =IF(AF149>0,"["&AF149&"]","") -> 
C150: =C133&H150 -> AE>F13|911|W10 | H150: 911|W10 | N150: =N133&Q150 -> AF>F13|901|W10 | Q150: 901|W10 | AU150: Verletzungen an Zitzen und Gesäuge | AX150: Boniturnote 1 | BC150: =IF(AF150>0,AE150/100,"") ->  | BD150: =IF(AF150>0,"["&AF150&"]","") -> 
C151: =C133&H151 -> AE>F13|911|W13 | H151: 911|W13 | N151: =N133&Q151 -> AF>F13|901|W13 | Q151: 901|W13 | AU151: Überlange Klauen | AX151: Boniturnote 1 | BC151: =IF(AF151>0,AE151/100,"") ->  | BD151: =IF(AF151>0,"["&AF151&"]","") -> 
C152: =C133&H152 -> AE>F13|911|W11 | H152: 911|W11 | N152: =N133&Q152 -> AF>F13|901|W11 | Q152: 901|W11 | AU152: Klauenveränderungen (außer an Ballen und Sohle) | AX152: Boniturnote 1 | BC152: =IF(AF152>0,AE152/100,"") ->  | BD152: =IF(AF152>0,"["&AF152&"]","") -> 
Z153: =Intern_AuswertFlach -> 12 | BC153: Ergeb- | BD153: Beurteilte
Z154: =Intern_AuswertFlach -> 12 | AU154: Saugferkel | BC154: nisse | BD154: Tiere (insg.)
C155: =C133&H155 -> AE>F13|904|W31 | H155: 904|W31 | N155: =N133&Q155 -> AF>F13|901|W30 | Q155: 901|W30 | AU155: Kümmerer | BC155: =IF(AF155>0,AE155/100,"") ->  | BD155: =IF(AF155>0,"["&AF155&"]","") -> 
Z156: =Intern_AuswertFlach -> 12 | BC156: Ergeb- | BD156: Beurteilte
Z157: =Intern_AuswertFlach -> 12 | BC157: nisse | BD157: Würfe (insg.)
C158: =C133&H158 -> AE>F13|904|W32 | H158: 904|W32 | N158: =N133&Q158 -> AF>F13|901|W32 | Q158: 901|W32 | AU158: Hautverletzungen am Kopf | AX158: Boniturnote 1 | BC158: =IF(AF158>0,AE158/100,"") ->  | BD158: =IF(AF158>0,"["&AF158&"]","") -> 
C159: =C133&H159 -> AE>F13|904|W33 | H159: 904|W33 | N159: =N133&Q159 -> AF>F13|901|W33 | Q159: 901|W33 | AU159: Hautverletzungen an den Karpalgelenken | AX159: Boniturnote 1 | BC159: =IF(AF159>0,AE159/100,"") ->  | BD159: =IF(AF159>0,"["&AF159&"]","") -> 
Z161: =Intern_AuswertFlach -> 12 | AU161: Wasserversorgung | AY161: Ergeb- | AZ161: Beurteilte | BA161: Ergeb- | BB161: Beurteilte | BC161: Ergeb- | BD161: Beurteilte
Z162: =Intern_AuswertFlach -> 12 | AU162: Sauen | AY162: nis | AZ162: Tränken (insg.) | BA162: nis | BB162: Tränken (insg.) | BC162: nisse | BD162: Tränken (insg.)
A163: =A133&H163 -> AA>F11|906|W24 | B163: =B133&H163 -> AC>F12|906|W24 | C163: =C133&H163 -> AE>F13|906|W24 | H163: 906|W24 | L163: =L133&Q163 -> AB>F11|901|W24 | M163: =M133&Q163 -> AD>F12|901|W24 | N163: =N133&Q163 -> AF>F13|901|W24 | Q163: 901|W24 | AU163: Nicht funktionsfähige Tränken | AY163: =IF(AB163>0,AA163/100,"") ->  | AZ163: =IF(AB163>0,"["&AB163&"]","") ->  | BA163: =IF(AD163>0,AC163/100,"") ->  | BB163: =IF(AD163>0,"["&AD163&"]","") ->  | BC163: =IF(AF163>0,AE163/100,"") ->  | BD163: =IF(AF163>0,"["&AF163&"]","") -> 
A164: =A133&H164 -> AA>F11|908|W24 | B164: =B133&H164 -> AC>F12|908|W24 | C164: =C133&H164 -> AE>F13|908|W24 | H164: 908|W24 | L164: =L133&Q164 -> AB>F11|901|W24 | M164: =M133&Q164 -> AD>F12|901|W24 | N164: =N133&Q164 -> AF>F13|901|W24 | Q164: 901|W24 | AU164: Funktionsfähige Tränken mit unzureichender Durchflussrate | AY164: =IF(AB164>0,AA164/100,"") ->  | AZ164: =IF(AB164>0,"["&AB164&"]","") ->  | BA164: =IF(AD164>0,AC164/100,"") ->  | BB164: =IF(AD164>0,"["&AD164&"]","") ->  | BC164: =IF(AF164>0,AE164/100,"") ->  | BD164: =IF(AF164>0,"["&AF164&"]","") -> 
AU165: Saugferkel
C166: =C133&H166 -> AE>F13|906|W29 | H166: 906|W29 | N166: =N133&Q166 -> AF>F13|901|W29 | Q166: 901|W29 | AU166: Nicht funktionsfähige Tränken | BC166: =IF(AF166>0,AE166/100,"") ->  | BD166: =IF(COUNT(AF166)=1,"["&AF166&"]","") -> 
C167: =C133&H167 -> AE>F13|908|W29 | H167: 908|W29 | N167: =N133&Q167 -> AF>F13|901|W29 | Q167: 901|W29 | AU167: Funktionsfähige Tränken mit unzureichender Durchflussrate | BC167: =IF(AF167>0,AE167/100,"") ->  | BD167: =IF(COUNT(AF167)=1,"["&AF167&"]","") -> 
T170: =AU170 -> Routinedokumentation | AU170: Routinedokumentation
Z171: =Intern_AuswertTrenner -> 7
Z172: =Intern_AuswertFlach -> 12 | AU172: Bestandsbezogene Indikatoren | AY172: Ergeb-
Z173: =Intern_AuswertFlach -> 12 | AU173: Sauen | AY173: nisse
A174: AA>F50|021|W01 | AU174: Abferkelquote | AY174: =IF(AA174<>"",AA174/100,"") -> 
A175: AA>F50|023|W01 | AU175: Wurfnummer bei Abgang | AY175: =IF(AA175<>"",AA175,"") -> 
A176: AA>F50|024|W01 | AU176: Tierverluste | AY176: =IF(AA176<>"",AA176/100,"") -> 
AU177: Saugferkel
AU178: Tierverluste
A179: AA>F50|025|W01 | AU179: totgeborene Tiere | AY179: =IF(AA179<>"",AA179/100,"") -> 
A180: AA>F50|026|W01 | AU180: verendete und euthanasierte Tiere | AY180: =IF(AA180<>"",AA180/100,"") -> 
A181: AA>F50|027|W01 | AU181: insgesamt | AY181: =IF(AA181<>"",AA181/100,"") -> 
Z182: =Intern_AuswertTrenner -> 7
Z183: =Intern_AuswertFlach * -1 -> -12 | AY183: Sauen | AZ183: Saugferkel
Z184: =Intern_AuswertFlach -> 12 | AY184: Ergeb- | AZ184: Ergeb-
Z185: =Intern_AuswertFlach -> 12 | AU185: Antibiotikaeinsatz | AY185: nisse | AZ185: nisse
A186: AA>F20|001|W07 | H186: AC>F21|001|W07 | AU186: Therapiehäufigkeit aus HIT | AY186: =IF(COUNT(AA186)=1,AA186,"") ->  | AZ186: =IF(COUNT(AC186)=1,AC186,"") -> 
A187: AA>F20|001|W11 | H187: AC>F21|001|W11 | AU187: Therapieindex nach QS | AX187: =IF(AB187<>"",AB187& ". Quartal","") ->  | AY187: =IF(AA187<>"",AA187,"") ->  | AZ187: =IF(AC187<>"",AC187,"") -> 
A188: AA>F20|901|W11 | H188: AC>F21|901|W11 | AU188: Therapieindex nach QS (aus dem Formularbereich berechnet) | AX188: =IF(AB188<>"",AB188& ". Quartal","") ->  | AY188: =IF(AA188<>"",AA188,"") ->  | AZ188: =IF(AC188<>"",AC188,"") -> 
Z189: =Intern_AuswertTrenner -> 7
Z190: =Intern_AuswertFlach -> 12 | AY190: Ergeb- | AZ190: Beurteilte
T191: =AU191 -> Schlachtbefunde | Z191: =Intern_AuswertFlach -> 12 | AU191: Schlachtbefunde | AY191: nisse | AZ191: Tiere (insg.)
A192: AA>F40|901|W03 | I192: AB>F40|902|W02 | AU192: Brustfellentzündungen (Pleuritiden) | AY192: =IF(AB192>0,AA192/100,"") ->  | AZ192: =IF(AB192>0,"["&AB192&"]","") -> 
A193: AA>F40|901|W06 | I193: AB>F40|902|W02 | AU193: Bauchfellentzündungen (Peritonitiden)
A194: AA>F40|901|W09 | I194: AB>F40|902|W02 | AU194: Lungenentzündungen (Pneumonien)
A195: AA>F40|901|W12 | I195: AB>F40|902|W02 | AU195: Gelenkentzündungen (Arthritiden)
A196: AA>F40|901|W15 | I196: AB>F40|902|W02 | AU196: Leberveränderungen
A197: AA>F40|901|W18 | I197: AB>F40|902|W02 | AU197: Herzveränderungen
A198: AA>F40|901|W21 | I198: AB>F40|902|W02 | AU198: Darmveränderungen | AY198: =IF(AB198>0,AA198/100,"") ->  | AZ198: =IF(AB198>0,"["&AB198&"]","") -> 
A199: AA>F40|901|W24 | I199: AB>F40|902|W02 | AU199: Nierenveränderungen
A200: AA>F40|901|W27 | I200: AB>F40|902|W02 | AU200: Milzveränderungen
A201: AA>F40|901|W30 | I201: AB>F40|902|W02 | AU201: Hautveränderungen
A202: AA>F40|901|W39 | I202: AB>F40|902|W02 | AU202: Liegebeulen/Bursitiden
A203: AA>F40|901|W42 | I203: AB>F40|902|W02 | AU203: Abszesse
A204: AA>F40|901|W45 | I204: AB>F40|902|W02 | AU204: Treibespuren
A205: BEREICH_ENDE
A208: BEREICH_START | T208: SW_FERKEL | Z208: 65 | AT208: Aufzuchtferkel | BE208: #DATUM#
A209: AA>T02 | AU209: =AA209 -> 0
Z210: =Intern_AuswertTrenner -> 7
T211: Stichproben | AU211: Stichproben | AZ211: Alle Buchten
Z212: =Intern_AuswertFlach -> 12 | AZ212: Ergeb- | BA212: Beurteilte
Z213: =Intern_AuswertFlach -> 12 | AU213: Tierbeurteilung | AZ213: nisse | BA213: Tiere (insg.)
A214: AA>SUM|F101-F199|003|W02 | I214: AB>SUM|F101-F199|003|W01 | AU214: Kümmerer | AZ214: =IF(AB214>0,AA214/AB214,"") ->  | BA214: =IF(AB214>0,"["&AB214&"]","") -> 
A215: AA>SUM|F101-F199|903|W11 | I215: AB>SUM|F101-F199|901|W11 | AU215: Kotverschmutzung der Tiere | AY215: Boniturnote 1 | AZ215: =IF(AB215>0,AA215/AB215,"") -> 
... 624 more rows

Sheet InternAuswertung (hidden)
A1: F14_Z903 | B1: W05 | F1: Listen | G1: Geflügel | J1: Schwein | M1: Rind
A2: ZeileID | B2: SpaltenName | G2: Masthühner (Durchgang: 2 / Schlupfdatum: 20.05.2017) | H2: 10 | I2: GF_HUHN
A3: =A1 -> F14_Z903 | B3: =B1 -> W05 | C3: =DGET(InternDaten_Datenbank,B3,$A$2:$A$3) ->  | G3: Jung- und Legehennen (Durchgang: 1 / Schlupfdatum: 23.06.2017) | H3: 38 | I3: GF_HENNE
A7: Listen der verfügbaren Erhebungen
A8: Keine Erhebungen vorhanden
A9: START_GF
A10: ENDE_GF
A12: START_SW
A13: ENDE_SW
A15: START_RD
A16: ENDE_RD

Sheet InternDaten (hidden)
A1: FormID | B1: ZeileID | C1: TypTier | D1: TypForm | E1: TypAnz | F1: TypZeit | G1: TypAuswert | H1: Zyklus | I1: W01 | J1: W02 | K1: W03 | L1: W04 | M1: W05 | N1: W06 | O1: W07 | P1: W08 | Q1: W09 | R1: W10 | S1: W11 | T1: W12 | U1: W13 | V1: W14 | W1: W15 | X1: W16 | Y1: W17 | Z1: W18 | AA1: W19 | AB1: W20 | AC1: W21 | AD1: W22 | AE1: W23 | AF1: W24 | AG1: W25 | AH1: W26 | AI1: W27 | AJ1: W28 | AK1: W29 | AL1: W30 | AM1: W31 | AN1: W32 | AO1: W33 | AP1: W34 | AQ1: W35 | AR1: W36 | AS1: W37 | AT1: W38 | AU1: W39 | AV1: W40 | AW1: W41 | AX1: W42 | AY1: W43 | AZ1: W44 | BA1: W45 | BB1: W46 | BC1: W47 | BD1: W48 | BE1: W49 | BF1: W50 | BG1: W51 | BH1: W52 | BI1: W53 | BJ1: W54 | BK1: W55 | BL1: W56 | BM1: W57 | BN1: W58 | BO1: W59 | BP1: W60 | BQ1: W61 | BR1: W62 | BS1: W63 | BT1: W64 | BU1: W65 | BV1: W66 | BW1: W67 | BX1: W68 | BY1: W69

Sheet Allg. Betriebsdaten (hidden)
B1: GF
H2: =Intern_Eikotiger -> Eigenkontrolle Tiergerechtheit
B3: GF_BETRIEB | H3: Allg. Betriebsdaten
D4: ?
E8: Betrieb
F9: Name
F10: Straße
F11: Ort
F12: Verantwortliche/r
E14: Produktionsrichtung
H18: Für die Datenerhebung klicken Sie bitte auf den Reiter 'Erhebungen'.
E20: Ställe/Herden | H20: (falls gesonderte Erhebungen durchgeführt werden)
F21: Nr. | G21: Bezeichnung
F22: 1
F23: 2
F24: 3
F25: 4
F26: 5
F27: 6
F28: 7
F29: 8
F30: 9
F31: 10

Sheet Allg. Betriebsdaten_SW (hidden)
B1: SW
H2: =Intern_Eikotiger -> Eigenkontrolle Tiergerechtheit
B3: SW_BETRIEB | H3: Allg. Betriebsdaten
D4: ?
E8: Betrieb
F9: Name
E10: * | F10: Zusatz
E11: * | F11: Ort
E12: * | F12: Straße
E13: * | F13: Bearbeiter
E14: * = optionale Angaben
E15: Betriebs-ID
E17: Produktionsrichtung
H19: Für die Datenerhebung klicken Sie bitte auf den Reiter 'Erhebungen'
E21: Betriebsteil/Ställe | H21: (falls gesonderte Erhebungen durchgeführt werden)
F22: Nr. | G22: Eigene Bezeichnung | H22: Lageskizze / Notizen
F23: 1
F24: 2
F25: 3
F26: 4
F27: 5
F28: 6
F29: 7
F30: 8
F31: 9
F32: 10

Sheet Erhebungen (hidden)
A1: GF | U1: Neue Erhebung hinzufügen
A2: GF_SP | B2: Wirklich ein weiteres Formular zur Tierbonitur einfügen? | P2: =Intern_Eikotiger -> Eigenkontrolle Tiergerechtheit | U2: Jung-/Legehennen ...
A3: 1 | P3: Erhebungen Übersicht | U3: Masthühner ...
B4: GF_HENNE3 | H4: ? | U4: Jung-/Mastputen ...
A7: DATEN_START | H7: Erhebung auswählen | T7: anzeigen ...
A11: DATEN_ENDE

Sheet Erhebungen_SW (hidden)
A1: SW | U1: Neue Erhebung hinzufügen
A2: SW_BUCHT | B2: Wirklich ein Formular für eine weitere Bucht einfügen? | Q2: =Intern_Eikotiger -> Eigenkontrolle Tiergerechtheit | U2: Sauen/Saugferkel ...
A3: 1 | Q3: Erhebungen Übersicht | U3: Aufzuchtferkel ...
B4: SW_MAST | H4: ? | U4: Mastschweine ...
A7: DATEN_START | H7: Erhebung auswählen | T7: anzeigen ...
A12: DATEN_ENDE

Sheet GF_SP (hidden)
B1: GF_HENNE | C1: Jung-/Legehennen | H1: Tierbonitur (LW 45)
B2: 8 | C2: T | D2: T | E2: =IF(ISERROR(FIND(E3,$B$7))=FALSE,"W","-") -> W | F2: =IF(ISERROR(FIND(F3,$B$7))=FALSE,"W","-") -> - | G2: =IF(B1="GF_HUHN","-","-") -> - | H2: =I2 -> - | I2: =IF(ISERROR(FIND(I3,$B$7))=FALSE,"W","-") -> - | J2: =K2 -> - | K2: =IF(ISERROR(FIND(K3,$B$7))=FALSE,"W","-") -> - | L2: =M2 -> W | M2: =IF(ISERROR(FIND(M3,$B$7))=FALSE,"W","-") -> W | N2: =O2 -> W | O2: =IF(ISERROR(FIND(O3,$B$7))=FALSE,"W","-") -> W | P2: =Q2 -> W | Q2: =IF(ISERROR(FIND(Q3,$B$7))=FALSE,"W","-") -> W | R2: =S2 -> - | S2: =IF(ISERROR(FIND(S3,$B$7))=FALSE,"W","-") -> - | T2: =U2 -> - | U2: =IF(ISERROR(FIND(U3,$B$7))=FALSE,"W","-") -> - | V2: =W2 -> W | W2: =IF(ISERROR(FIND(W3,$B$7))=FALSE,"W","-") -> W | X2: =Y2 -> W | Y2: =IF(ISERROR(FIND(Y3,$B$7))=FALSE,"W","-") -> W | Z2: =AA2 -> - | AA2: =IF(ISERROR(FIND(AA3,$B$7))=FALSE,"W","-") -> - | AB2: =AC2 -> W | AC2: =IF(ISERROR(FIND(AC3,$B$7))=FALSE,"W","-") -> W | AD2: =AC2 -> W | AE2: =AC2 -> W | AF2: =AC2 -> W | AG2: =AH2 -> - | AH2: =IF(ISERROR(FIND(AH3,$B$7))=FALSE,"W","-") -> -
B3: GF_SP | C3: T | D3: W01 | E3: W02 | F3: W15 | G3: T | H3: T | I3: W16 | J3: T | K3: W04 | L3: T | M3: W05 | N3: T | O3: W06 | P3: T | Q3: W07 | R3: T | S3: W10 | T3: T | U3: W08 | V3: T | W3: W09 | X3: T | Y3: W03 | Z3: T | AA3: W11 | AB3: T | AC3: W12 | AD3: T | AE3: T | AF3: R13 | AG3: T | AH3: W17
B4: LH_LW45 | C4: Clear | D4: 17-66 | E4: =$D$4 -> 17-66 | F4: =$D$4 -> 17-66 | I4: 17-66;69-71 | K4: =$I$4 -> 17-66;69-71 | M4: =$I$4 -> 17-66;69-71 | O4: =$I$4 -> 17-66;69-71 | Q4: =$I$4 -> 17-66;69-71 | S4: =U4 -> 17-66;69-70 | U4: 17-66;69-70 | W4: =$I$4 -> 17-66;69-71 | Y4: =$I$4 -> 17-66;69-71 | AA4: =$U$4 -> 17-66;69-70 | AC4: 17-66;69;71 | AH4: =AC4 -> 17-66;69;71
B5: 45 | D5: =$C$1 & " (" & Intern_BetriebID & ")" -> Jung-/Legehennen ()
B6: 2 | D6: ="Stichprobe: " & H1 & IF($J$1<> ""," vom " & TEXT($J$1,"tt.MM.jjjj"),"") -> Stichprobe: Tierbonitur (LW 45)
B7: =VLOOKUP(B4,Intern_FormAnsichten,4) -> W01;W02;W03;W05;W06;W07;W09;W12 | C7: ? | D7: =IF(D1<>"", D1 & " - ","") & IF(F1<>"","Schlupfdatum: " & TEXT(F1,"tt.MM.JJJJ"),"") ->  | AI7: © KTBL & Uni Kassel
B8: "VOLLEANZEIGE"
C10: Speichern und schließen ...
C12: Stichprobe | H12: =IF(AND(B1="GF_Pute",B5=8),"Tierschutzindikatoren","") ->  | L12: Tierschutzindikatoren
C14: Tier | D14: Stall | E14: Abteil | F14: Geschlecht | I14: Feder- | K14: Schnabel- | M14: Gefieder- | O14: Haut- | Q14: Zehen- | R14: Fersenhöcker- | U14: Fußballen- | W14: Fußballen- | Y14: Brustbein- | AA14: Lahmheit | AC14: Tiergewicht | AH14: Tiergewicht
I15: zustand | K15: kürzung | M15: schäden | O15: verletzungen | Q15: verletzungen | R15: veränderungen | T15: veränderungen | V15: veränderungen | Y15: schäden
C16: Nr. | D16: Bez. | E16: Bez. | F16: [M,W] | I16: [0,1,2] | K16: [0,1,2] | M16: [0,1,2] | O16: [0,1,2] | Q16: [0,1,2] | S16: [0,1] | U16: [0,1] | W16: [0,1,2] | Y16: [0,1,2] | AA16: [0,1] | AC16: g | AH16: g
B17: DATEN002 | C17: 1
B18: DATEN003 | C18: 2
B19: DATEN004 | C19: 3
B20: DATEN005 | C20: 4
B21: DATEN006 | C21: 5 | M21: 2
B22: DATEN007 | C22: 6 | M22: 2
B23: DATEN008 | C23: 7 | M23: 2
B24: DATEN009 | C24: 8
B25: DATEN010 | C25: 9
B26: DATEN011 | C26: 10
B27: DATEN012 | C27: 11
B28: DATEN013 | C28: 12
B29: DATEN014 | C29: 13
B30: DATEN015 | C30: 14
B31: DATEN016 | C31: 15
B32: DATEN017 | C32: 16
B33: DATEN018 | C33: 17
B34: DATEN019 | C34: 18
B35: DATEN020 | C35: 19
B36: DATEN021 | C36: 20
B37: DATEN022 | C37: 21
B38: DATEN023 | C38: 22
B39: DATEN024 | C39: 23
B40: DATEN025 | C40: 24
B41: DATEN026 | C41: 25
B42: DATEN027 | C42: 26
B43: DATEN028 | C43: 27
B44: DATEN029 | C44: 28
B45: DATEN030 | C45: 29
B46: DATEN031 | C46: 30
B47: DATEN032 | C47: 31
B48: DATEN033 | C48: 32
B49: DATEN034 | C49: 33
B50: DATEN035 | C50: 34
B51: DATEN036 | C51: 35
B52: DATEN037 | C52: 36
B53: DATEN038 | C53: 37
B54: DATEN039 | C54: 38
B55: DATEN040 | C55: 39
B56: DATEN041 | C56: 40
B57: DATEN042 | C57: 41
B58: DATEN043 | C58: 42
B59: DATEN044 | C59: 43
B60: DATEN045 | C60: 44
B61: DATEN046 | C61: 45
B62: DATEN047 | C62: 46
B63: DATEN048 | C63: 47
B64: DATEN049 | C64: 48
B65: DATEN050 | C65: 49
B66: DATEN051 | C66: 50
C68: Direkteingabe | I68: Anzahl | K68: Anzahl | M68: Anzahl | O68: Anzahl | Q68: Anzahl | S68: Anzahl | U68: Anzahl | W68: Anzahl | Y68: Anzahl | AA68: Anzahl | AC68: Ø Gewicht g | AH68: Ø Gewicht g
B69: DATEN071_W03_W04_W05_W06_W07_W08_W09_W10_W11_W12 | D69: Boniturnote 0
B70: DATEN072_W03_W04_W05_W06_W07_W08_W09_W10_W11 | D70: Boniturnote 1 | AC70: Uniformität % | AH70: Uniformität %
B71: DATEN073_W03_W04_W05_W06_W07_W09_W10_W12 | D71: =IF(B1<>"GF_HUHN","Boniturnote 2","") -> Boniturnote 2
B72: ERGEB950 | D72: Anzahl Tiere | I72: =IF(SUM(I69:I71)>0,SUM(I69:I71),COUNTIF(I17:I66,">-1")) -> 0 | K72: =IF(SUM(K69:K71)>0,SUM(K69:K71),COUNTIF(K17:K66,">-1")) -> 0 | M72: =IF(SUM(M69:M71)>0,SUM(M69:M71),COUNTIF(M17:M66,">-1")) -> 3 | O72: =IF(SUM(O69:O71)>0,SUM(O69:O71),COUNTIF(O17:O66,">-1")) -> 0 | Q72: =IF(SUM(Q69:Q71)>0,SUM(Q69:Q71),COUNTIF(Q17:Q66,">-1")) -> 0 | S72: =IF(SUM(S69:S71)>0,SUM(S69:S71),COUNTIF(S17:S66,">-1")) -> 0 | U72: =IF(SUM(U69:U71)>0,SUM(U69:U71),COUNTIF(U17:U66,">-1")) -> 0 | W72: =IF(SUM(W69:W71)>0,SUM(W69:W71),COUNTIF(W17:W66,">-1")) -> 0 | Y72: =IF(SUM(Y69:Y71)>0,SUM(Y69:Y71),COUNTIF(Y17:Y66,">-1")) -> 0 | AA72: =IF(SUM(AA69:AA71)>0,SUM(AA69:AA71),COUNTIF(AA17:AA66,">-1")) -> 0 | AC72: =IF(AC69="",COUNTIF(AC17:AC66,">-1"),"?") -> 0 | AH72: =IF(AH69="",COUNTIF(AH17:AH66,">-1"),"?") -> 0
D74: Ergebnisse | AC74: Sollgewichts- | AF74: Uniformität | AH74: Uniformität
B75: ERGEB901 | D75: Boniturnote 0 | E75: Anzahl | F75: Anzahl | G75: Anz. | I75: =IF(COUNT(I69)=1,I69,COUNTIF(I17:I66,0)) -> 0 | K75: =IF(COUNT(K69)=1,K69,COUNTIF(K17:K66,0)) -> 0 | M75: =IF(COUNT(M69)=1,M69,COUNTIF(M17:M66,0)) -> 0 | O75: =IF(COUNT(O69)=1,O69,COUNTIF(O17:O66,0)) -> 0 | Q75: =IF(COUNT(Q69)=1,Q69,COUNTIF(Q17:Q66,0)) -> 0 | S75: =IF(COUNT(S69)=1,S69,COUNTIF(S17:S66,0)) -> 0 | U75: =IF(COUNT(U69)=1,U69,COUNTIF(U17:U66,0)) -> 0 | W75: =IF(COUNT(W69)=1,W69,COUNTIF(W17:W66,0)) -> 0 | Y75: =IF(COUNT(Y69)=1,Y69,COUNTIF(Y17:Y66,0)) -> 0 | AA75: =IF(AA69<>"",AA69,COUNTIF(AA17:AA66,0)) -> 0 | AC75: erfüllung % | AF75: % | AH75: %
B76: ERGEB902 | E76: % | F76: % | G76: % | I76: =IF(I72>0,I75/I72*100,"") ->  | K76: =IF(K72>0,K75/K72*100,"") ->  | M76: =IF(M72>0,M75/M72*100,"") -> 0 | O76: =IF(O72>0,O75/O72*100,"") ->  | Q76: =IF(Q72>0,Q75/Q72*100,"") ->  | S76: =IF(S72>0,S75/S72*100,"") ->  | U76: =IF(U72>0,U75/U72*100,"") ->  | W76: =IF(W72>0,W75/W72*100,"") ->  | Y76: =IF(Y72>0,Y75/Y72*100,"") ->  | AA76: =IF(AA72>0,AA75/AA72*100,"") ->  | AC76: =IF(AND(AC82>0,COUNT(AC79) = 1),AC79/AC82*100,"") ->  | AF76: =IF(AC71<>"",AC71,IF(AND(COUNT(AC72)=1,AC72>0),(AC72-AF78-AF81)/AC72*100,"")) ->  | AH76: =IF(AH71<>"",AH71,IF(AND(COUNT(AH72)=1,AH72>0),(AH72-AH78-AH80)/AH72*100,"")) -> 
AF77: Zu leichte Tiere | AH77: Zu leichte Tiere
B78: ERGEB911 | D78: =IF(B1<>"GF_HUHN","Boniturnote 1+2", "Boniturnote 1") -> Boniturnote 1+2 | E78: Anzahl | F78: Anzahl | G78: Anz. | I78: =IF(COUNT(I70:I71)>0,I70+I71,COUNTIF(I17:I66,1)+COUNTIF(I17:I66,2)) -> 0 | K78: =IF(COUNT(K70:K71)>0,K70+K71,COUNTIF(K17:K66,1)+COUNTIF(K17:K66,2)) -> 0 | M78: =IF(COUNT(M70:M71)>0,M70+M71,COUNTIF(M17:M66,1)+COUNTIF(M17:M66,2)) -> 3 | O78: =IF(COUNT(O70:O71)>0,O70+O71,COUNTIF(O17:O66,1)+COUNTIF(O17:O66,2)) -> 0 | Q78: =IF(COUNT(Q70:Q71)>0,Q70+Q71,COUNTIF(Q17:Q66,1)+COUNTIF(Q17:Q66,2)) -> 0 | S78: =IF(COUNT(S70:S71)>0,S70+S71,COUNTIF(S17:S66,1)+COUNTIF(S17:S66,2)) -> 0 | U78: =IF(COUNT(U70:U71)>0,U70+U71,COUNTIF(U17:U66,1)+COUNTIF(U17:U66,2)) -> 0 | W78: =IF(COUNT(W70:W71)>0,W70+W71,COUNTIF(W17:W66,1)+COUNTIF(W17:W66,2)) -> 0 | Y78: =IF(COUNT(Y70:Y71)>0,Y70+Y71,COUNTIF(Y17:Y66,1)+COUNTIF(Y17:Y66,2)) -> 0 | AA78: =IF(AA70<>"",AA70,COUNTIF(AA17:AA66,1)) -> 0 | AC78: Ø Gewicht g | AE78: Anz. | AF78: =COUNTIF(AC17:AC66,"<"&AC82*0.9) -> 0 | AH78: =IF(AH72>0,COUNTIF(AH17:AH66,"<"&AH82*0.9),"") -> 
B79: ERGEB912 | E79: % | F79: % | G79: % | I79: =IF(I72>0,I78/I72*100,"") ->  | K79: =IF(K72>0,K78/K72*100,"") ->  | M79: =IF(M72>0,M78/M72*100,"") -> 100 | O79: =IF(O72>0,O78/O72*100,"") ->  | Q79: =IF(Q72>0,Q78/Q72*100,"") ->  | S79: =IF(S72>0,S78/S72*100,"") ->  | U79: =IF(U72>0,U78/U72*100,"") ->  | W79: =IF(W72>0,W78/W72*100,"") ->  | Y79: =IF(Y72>0,Y78/Y72*100,"") ->  | AA79: =IF(AA72>0,AA78/AA72*100,"") ->  | AC79: =IF(AC72>0,IF(AC69<>"",AC69,IF(SUM($AC$17:AC$66)> 0,AVERAGE($AC$17:AC$66),0)),"") ->  | AE79: % | AF79: =IF(AND(COUNT(AC72)=1,AC72>0),AF78/AC72*100,"") ->  | AH79: Zu schwere Tiere
B80: ERGEB913 | AF80: Zu schwere Tiere | AH80: =IF(AH72>0,COUNTIF(AH17:AH66,">"&AH82*1.1),"") -> 
B81: ERGEB921 | D81: =IF(B4<>"MH_LW02","Boniturnote 2","") -> Boniturnote 2 | E81: Anzahl | F81: =IF(B4<>"MH_LW02","Anzahl","") -> Anzahl | G81: Anz. | I81: =IF(COUNT(I71)>0,I71,COUNTIF(I17:I66,2)) -> 0 | K81: =IF(COUNT(K71)>0,K71,COUNTIF(K17:K66,2)) -> 0 | M81: =IF(COUNT(M71)>0,M71,COUNTIF(M17:M66,2)) -> 3 | O81: =IF(COUNT(O71)>0,O71,COUNTIF(O17:O66,2)) -> 0 | Q81: =IF(COUNT(Q71)>0,Q71,COUNTIF(Q17:Q66,2)) -> 0 | W81: =IF(COUNT(W71)>0,W71,COUNTIF(W17:W66,2)) -> 0 | Y81: =IF(COUNT(Y71)>0,Y71,COUNTIF(Y17:Y66,2)) -> 0 | AC81: Sollgewicht g | AE81: Anz. | AF81: =COUNTIF(AC17:AC66,">"&AC82*1.1) -> 0 | AH81: Ø Gewicht g
B82: ERGEB922 | E82: % | F82: =IF(B4<>"MH_LW02","%","") -> % | G82: % | I82: =IF(I72>0,I81/I72*100,"") ->  | K82: =IF(K72>0,K81/K72*100,"") ->  | M82: =IF(M72>0,M81/M72*100,"") -> 100 | O82: =IF(O72>0,O81/O72*100,"") ->  | Q82: =IF(Q72>0,Q81/Q72*100,"") ->  | W82: =IF(W72>0,W81/W72*100,"") ->  | Y82: =IF(Y72>0,Y81/Y72*100,"") ->  | AC82: =K1 -> 0 | AE82: % | AF82: =IF(AND(COUNT(AC72)=1,AC72>0),AF81/AC72*100,"") ->  | AH82: =IF(AH72>0,IF(AH69<>"",AH69,IF(SUM($AH$17:AH$66)> 0,AVERAGE($AH$17:AH$66),0)),"") -> 
B84: DATEN_ENDE

Sheet GF_GW (hidden)
B1: GF_HUHN | C1: Masthühner | H1: Tiergewichte/Uniformität (Futterphase 1-5) | K1: 35 | L1: 1
B2: 47 | C2: T | D2: T | E2: =IF(B1="GF_PUTE","W","-") -> - | F2: =IF(RIGHT(B1,5)= "HENNE","W","-") -> - | G2: =IF(RIGHT(B1,5)= "HENNE","-","W") -> W | H2: =IF(B1<>"GF_PUTE","W","-") -> W | I2: =IF(OR($B$1="GF_HENNE",$B$4="GF_MAST"),"W",IF(J13<=INT(($K$1-1)/7)+1,"W","-")) -> W | J2: =I2 -> W | K2: =IF(OR($B$1="GF_HENNE",$B$4="GF_MAST"),"W",IF(L13<=INT(($K$1-1)/7)+1,"W","-")) -> W | L2: =K2 -> W | M2: =IF(OR($B$1="GF_HENNE",$B$4="GF_MAST"),"W",IF(N13<=INT(($K$1-1)/7)+1,"W","-")) -> W | N2: =M2 -> W | O2: =IF(OR($B$1="GF_HENNE",$B$4="GF_MAST"),"W",IF(P13<=INT(($K$1-1)/7)+1,"W","-")) -> W | P2: =O2 -> W | Q2: =IF(OR($B$1="GF_HENNE",$B$4="GF_MAST"),"W",IF(R13<=INT(($K$1-1)/7)+1,"W","-")) -> W | R2: =Q2 -> W | S2: =IF(OR($B$1="GF_HENNE",$B$4="GF_MAST"),"W",IF(T13<=INT(($K$1-1)/7)+1,"W","-")) -> - | T2: =S2 -> - | U2: =IF(OR($B$1="GF_HENNE",$B$4="GF_MAST"),"W",IF(V13<=INT(($K$1-1)/7)+1,"W","-")) -> - | V2: =U2 -> - | W2: =IF(OR($B$1="GF_HENNE",$B$4="GF_MAST"),"W",IF(X13<=INT(($K$1-1)/7)+1,"W","-")) -> - | X2: =W2 -> - | Y2: =IF(OR($B$1="GF_HENNE",$B$4="GF_MAST"),"W",IF(Z13<=INT(($K$1-1)/7)+1,"W","-")) -> - | Z2: =Y2 -> - | AA2: =IF(OR($B$1="GF_HENNE",$B$4="GF_MAST"),"W",IF(AB13<=INT(($K$1-1)/7)+1,"W","-")) -> - | AB2: =AA2 -> - | AC2: =IF(OR($B$1="GF_HENNE",$B$4="GF_MAST"),"W",IF(AD13<=INT(($K$1-1)/7)+1,"W","-")) -> - | AD2: =AC2 -> - | AE2: =IF(OR($B$1="GF_HENNE",$B$4="GF_MAST"),"W",IF(AF13<=INT(($K$1-1)/7)+1,"W","-")) -> - | AF2: =AE2 -> - | AG2: =IF(OR($B$1="GF_HENNE",$B$4="GF_MAST"),"W",IF(AH13<=INT(($K$1-1)/7)+1,"W","-")) -> - | AH2: =AG2 -> - | AI2: =IF(OR($B$1="GF_HENNE",$B$4="GF_MAST"),"W",IF(AJ13<=INT(($K$1-1)/7)+1,"W","-")) -> - | AJ2: =AI2 -> - | AK2: =IF(OR($B$1="GF_HENNE",$B$4="GF_MAST"),"W",IF(AL13<=INT(($K$1-1)/7)+1,"W","-")) -> - | AL2: =AK2 -> - | AM2: =IF(OR($B$1="GF_HENNE",$B$4="GF_MAST"),"W",IF(AN13<=INT(($K$1-1)/7)+1,"W","-")) -> - | AN2: =AM2 -> - | AO2: =IF(OR($B$1="GF_HENNE",$B$4="GF_MAST"),"W",IF(AP13<=INT(($K$1-1)/7)+1,"W","-")) -> - | AP2: =AO2 -> - | AQ2: =IF(OR($B$1="GF_HENNE",$B$4="GF_MAST"),"W",IF(AR13<=INT(($K$1-1)/7)+1,"W","-")) -> - | AR2: =AQ2 -> - | AS2: =IF(OR($B$1="GF_HENNE",$B$4="GF_MAST"),"W",IF(AT13<=INT(($K$1-1)/7)+1,"W","-")) -> - | AT2: =AS2 -> - | AU2: =IF(OR($B$1="GF_HENNE",$B$4="GF_MAST"),"W",IF(AV13<=INT(($K$1-1)/7)+1,"W","-")) -> - | AV2: =AU2 -> - | AW2: =IF(OR($B$1="GF_HENNE",$B$4="GF_MAST"),"W",IF(AX13<=INT(($K$1-1)/7)+1,"W","-")) -> - | AX2: =AW2 -> - | AY2: =IF(OR($B$1="GF_HENNE",$B$4="GF_MAST"),"W",IF(AZ13<=INT(($K$1-1)/7)+1,"W","-")) -> - | AZ2: =AY2 -> - | BA2: =IF(OR($B$1="GF_HENNE",$B$4="GF_MAST"),"W",IF(BB13<=INT(($K$1-1)/7)+1,"W","-")) -> - | BB2: =BA2 -> - | BC2: =IF(OR($B$1="GF_HENNE",$B$4="GF_MAST"),"W",IF(BD13<=INT(($K$1-1)/7)+1,"W","-")) -> - | BD2: =BC2 -> - | BE2: T
B3: GF_GW | C3: T | D3: W01 | E3: T | F3: W02 | G3: W03 | H3: T | I3: T | J3: W04 | K3: T | L3: W05 | M3: T | N3: W06 | O3: T | P3: W07 | Q3: T | R3: W08 | S3: T | T3: W09 | U3: T | V3: W10 | W3: T | X3: W11 | Y3: T | Z3: W12 | AA3: T | AB3: W13 | AC3: T | AD3: W14 | AE3: T | AF3: W15 | AG3: T | AH3: W16 | AI3: T | AJ3: W17 | AK3: T | AL3: W18 | AM3: T | AN3: W19 | AO3: T | AP3: W20 | AQ3: T | AR3: W21 | AS3: T | AT3: W22 | AU3: T | AV3: W23 | AW3: T | AX3: W24 | AY3: T | AZ3: W25 | BA3: T | BB3: W26 | BC3: T | BD3: W27 | BE3: T
B4: GF_HUHN | C4: Clear | D4: 19-68 | F4: =$D$4 -> 19-68 | G4: =$D$4 -> 19-68 | J4: 19-68;15;71-72 | L4: =J4 -> 19-68;15;71-72 | N4: =L4 -> 19-68;15;71-72 | P4: =N4 -> 19-68;15;71-72 | R4: =P4 -> 19-68;15;71-72 | T4: =R4 -> 19-68;15;71-72 | V4: =T4 -> 19-68;15;71-72 | X4: =V4 -> 19-68;15;71-72 | Z4: =X4 -> 19-68;15;71-72 | AB4: =Z4 -> 19-68;15;71-72 | AD4: =AB4 -> 19-68;15;71-72 | AF4: =AD4 -> 19-68;15;71-72 | AH4: =AF4 -> 19-68;15;71-72 | AJ4: =AH4 -> 19-68;15;71-72 | AL4: =AJ4 -> 19-68;15;71-72 | AN4: =AL4 -> 19-68;15;71-72 | AP4: =AN4 -> 19-68;15;71-72 | AR4: =AP4 -> 19-68;15;71-72 | AT4: =AR4 -> 19-68;15;71-72 | AV4: =AT4 -> 19-68;15;71-72 | AX4: =AV4 -> 19-68;15;71-72 | AZ4: =AX4 -> 19-68;15;71-72 | BB4: =AZ4 -> 19-68;15;71-72 | BD4: =BB4 -> 19-68;15;71-72
B5: 1 | D5: =$C$1 & " (" & Intern_BetriebID & ")" -> Masthühner ()
B6: 9 | D6: =$H$1 & IF($J$1<> ""," (Stand vom " & TEXT($J$1,"tt.MM.jjjj") &")","") -> Tiergewichte/Uniformität (Futterphase 1-5)
C7: ? | D7: =IF(D1<>"", D1 & " - ","") & IF(F1<>"","Schlupfdatum: " & TEXT(F1,"tt.MM.JJJJ"),"") ->  | BE7: © KTBL & Uni Kassel
B8: HUHN_85-87
C10: Speichern und schließen ...
C12: Tiergewichte/Uniformität
D13: =IF(RIGHT(B1,4)="HUHN","Futterphasenwechsel","Lebenswoche") -> Futterphasenwechsel | J13: =L1 -> 1 | L13: =J13+1 -> 2 | N13: =L13+1 -> 3 | P13: =N13+1 -> 4 | R13: =P13+1 -> 5 | T13: =R13+1 -> 6 | V13: =T13+1 -> 7 | X13: =V13+1 -> 8 | Z13: =X13+1 -> 9 | AB13: =Z13+1 -> 10 | AD13: =AB13+1 -> 11 | AF13: =AD13+1 -> 12 | AH13: =AF13+1 -> 13 | AJ13: =AH13+1 -> 14 | AL13: =AJ13+1 -> 15 | AN13: =AL13+1 -> 16 | AP13: =AN13+1 -> 17 | AR13: =AP13+1 -> 18 | AT13: =AR13+1 -> 19 | AV13: =AT13+1 -> 20 | AX13: =AV13+1 -> 21 | AZ13: =AX13+1 -> 22 | BB13: =AZ13+1 -> 23 | BD13: =BB13+1 -> 24
J14: g | L14: g | N14: g | P14: g | R14: g | T14: g | V14: g | X14: g | Z14: g | AB14: g | AD14: g | AF14: g | AH14: g | AJ14: g | AL14: g | AN14: g | AP14: g | AR14: g | AT14: g | AV14: g | AX14: g | AZ14: g | BB14: g | BD14: g
B15: DATEN002_W03_W04_W05_W06_W07_W08_W09_W10_W11_W12_W13_W14_W15_W16_W17_W18_W19_W20_W21_W22_W23_W24_W25_W26_W27 | D15: Sollgewicht
C17: Tier | D17: Stall | F17: Abteil | G17: Geschlecht | J17: Gewicht | L17: Gewicht | N17: Gewicht | P17: Gewicht | R17: Gewicht | T17: Gewicht | V17: Gewicht | X17: Gewicht | Z17: Gewicht | AB17: Gewicht | AD17: Gewicht | AF17: Gewicht | AH17: Gewicht | AJ17: Gewicht | AL17: Gewicht | AN17: Gewicht | AP17: Gewicht | AR17: Gewicht | AT17: Gewicht | AV17: Gewicht | AX17: Gewicht | AZ17: Gewicht | BB17: Gewicht | BD17: Gewicht
C18: Nr | D18: Bez. | F18: Bez. | G18: [M,W] | J18: g | L18: g | N18: g | P18: g | R18: g | T18: g | V18: g | X18: g | Z18: g | AB18: g | AD18: g | AF18: g | AH18: g | AJ18: g | AL18: g | AN18: g | AP18: g | AR18: g | AT18: g | AV18: g | AX18: g | AZ18: g | BB18: g | BD18: g
B19: DATEN003 | C19: 1
B20: DATEN004 | C20: 2
B21: DATEN005 | C21: 3
B22: DATEN006 | C22: 4
B23: DATEN007 | C23: 5
B24: DATEN008 | C24: 6
B25: DATEN009 | C25: 7
B26: DATEN010 | C26: 8
B27: DATEN011 | C27: 9
B28: DATEN012 | C28: 10
B29: DATEN013 | C29: 11
B30: DATEN014 | C30: 12
B31: DATEN015 | C31: 13
B32: DATEN016 | C32: 14
B33: DATEN017 | C33: 15
B34: DATEN018 | C34: 16
B35: DATEN019 | C35: 17
B36: DATEN020 | C36: 18
B37: DATEN021 | C37: 19
B38: DATEN022 | C38: 20
B39: DATEN023 | C39: 21
B40: DATEN024 | C40: 22
B41: DATEN025 | C41: 23
B42: DATEN026 | C42: 24
B43: DATEN027 | C43: 25
B44: DATEN028 | C44: 26
B45: DATEN029 | C45: 27
B46: DATEN030 | C46: 28
B47: DATEN031 | C47: 29
B48: DATEN032 | C48: 30
B49: DATEN033 | C49: 31
B50: DATEN034 | C50: 32
B51: DATEN035 | C51: 33
B52: DATEN036 | C52: 34
B53: DATEN037 | C53: 35
B54: DATEN038 | C54: 36
B55: DATEN039 | C55: 37
B56: DATEN040 | C56: 38
B57: DATEN041 | C57: 39
B58: DATEN042 | C58: 40
B59: DATEN043 | C59: 41
B60: DATEN044 | C60: 42
B61: DATEN045 | C61: 43
B62: DATEN046 | C62: 44
B63: DATEN047 | C63: 45
B64: DATEN048 | C64: 46
B65: DATEN049 | C65: 47
B66: DATEN050 | C66: 48
B67: DATEN051 | C67: 49
B68: DATEN052 | C68: 50
D70: Direkteingabe (bei automatischer Wiegung)
B71: DATEN060_W04_W05_W06_W07_W08_W09_W10_W11_W12_W13_W14_W15_W16_W17_W18_W19_W20_W21_W22_W23_W24_W25_W26_W27 | D71: Uniformität | E71: % | H71: %
B72: DATEN061_W04_W05_W06_W07_W08_W09_W10_W11_W12_W13_W14_W15_W16_W17_W18_W19_W20_W21_W22_W23_W24_W25_W26_W27 | D72: Sollgewichtserfüllung | E72: % | H72: %
D75: Ergebnisse
B76: ERGEB901_GFGWMittel | D76: Ø Gewicht | E76: g | H76: g | J76: =IF(J77>0,AVERAGE(J19:J68),0) -> 0 | L76: =IF(L77>0,AVERAGE(L19:L68),0) -> 0 | N76: =IF(N77>0,AVERAGE(N19:N68),0) -> 0 | P76: =IF(P77>0,AVERAGE(P19:P68),0) -> 0 | R76: =IF(R77>0,AVERAGE(R19:R68),0) -> 0 | T76: =IF(T77>0,AVERAGE(T19:T68),0) -> 0 | V76: =IF(V77>0,AVERAGE(V19:V68),0) -> 0 | X76: =IF(X77>0,AVERAGE(X19:X68),0) -> 0 | Z76: =IF(Z77>0,AVERAGE(Z19:Z68),0) -> 0 | AB76: =IF(AB77>0,AVERAGE(AB19:AB68),0) -> 0 | AD76: =IF(AD77>0,AVERAGE(AD19:AD68),0) -> 0 | AF76: =IF(AF77>0,AVERAGE(AF19:AF68),0) -> 0 | AH76: =IF(AH77>0,AVERAGE(AH19:AH68),0) -> 0 | AJ76: =IF(AJ77>0,AVERAGE(AJ19:AJ68),0) -> 0 | AL76: =IF(AL77>0,AVERAGE(AL19:AL68),0) -> 0 | AN76: =IF(AN77>0,AVERAGE(AN19:AN68),0) -> 0 | AP76: =IF(AP77>0,AVERAGE(AP19:AP68),0) -> 0 | AR76: =IF(AR77>0,AVERAGE(AR19:AR68),0) -> 0 | AT76: =IF(AT77>0,AVERAGE(AT19:AT68),0) -> 0 | AV76: =IF(AV77>0,AVERAGE(AV19:AV68),0) -> 0 | AX76: =IF(AX77>0,AVERAGE(AX19:AX68),0) -> 0 | AZ76: =IF(AZ77>0,AVERAGE(AZ19:AZ68),0) -> 0 | BB76: =IF(BB77>0,AVERAGE(BB19:BB68),0) -> 0 | BD76: =IF(BD77>0,AVERAGE(BD19:BD68),0) -> 0
D77: Anzahl Tiere | E77: Anz. | H77: Anz. | J77: =COUNTIF(J19:J68,">0") -> 0 | L77: =COUNTIF(L19:L68,">0") -> 0 | N77: =COUNTIF(N19:N68,">0") -> 0 | P77: =COUNTIF(P19:P68,">0") -> 0 | R77: =COUNTIF(R19:R68,">0") -> 0 | T77: =COUNTIF(T19:T68,">0") -> 0 | V77: =COUNTIF(V19:V68,">0") -> 0 | X77: =COUNTIF(X19:X68,">0") -> 0 | Z77: =COUNTIF(Z19:Z68,">0") -> 0 | AB77: =COUNTIF(AB19:AB68,">0") -> 0 | AD77: =COUNTIF(AD19:AD68,">0") -> 0 | AF77: =COUNTIF(AF19:AF68,">0") -> 0 | AH77: =COUNTIF(AH19:AH68,">0") -> 0 | AJ77: =COUNTIF(AJ19:AJ68,">0") -> 0 | AL77: =COUNTIF(AL19:AL68,">0") -> 0 | AN77: =COUNTIF(AN19:AN68,">0") -> 0 | AP77: =COUNTIF(AP19:AP68,">0") -> 0 | AR77: =COUNTIF(AR19:AR68,">0") -> 0 | AT77: =COUNTIF(AT19:AT68,">0") -> 0 | AV77: =COUNTIF(AV19:AV68,">0") -> 0 | AX77: =COUNTIF(AX19:AX68,">0") -> 0 | AZ77: =COUNTIF(AZ19:AZ68,">0") -> 0 | BB77: =COUNTIF(BB19:BB68,">0") -> 0 | BD77: =COUNTIF(BD19:BD68,">0") -> 0
B79: ERGEB902_GWLower | D79: Tiere unter -10% | E79: Anz. | H79: Anz. | J79: =COUNTIF(J19:J68,"<"&J76*0.9) -> 0 | L79: =COUNTIF(L19:L68,"<"&L76*0.9) -> 0 | N79: =COUNTIF(N19:N68,"<"&N76*0.9) -> 0 | P79: =COUNTIF(P19:P68,"<"&P76*0.9) -> 0 | R79: =COUNTIF(R19:R68,"<"&R76*0.9) -> 0 | T79: =COUNTIF(T19:T68,"<"&T76*0.9) -> 0 | V79: =COUNTIF(V19:V68,"<"&V76*0.9) -> 0 | X79: =COUNTIF(X19:X68,"<"&X76*0.9) -> 0 | Z79: =COUNTIF(Z19:Z68,"<"&Z76*0.9) -> 0 | AB79: =COUNTIF(AB19:AB68,"<"&AB76*0.9) -> 0 | AD79: =COUNTIF(AD19:AD68,"<"&AD76*0.9) -> 0 | AF79: =COUNTIF(AF19:AF68,"<"&AF76*0.9) -> 0 | AH79: =COUNTIF(AH19:AH68,"<"&AH76*0.9) -> 0 | AJ79: =COUNTIF(AJ19:AJ68,"<"&AJ76*0.9) -> 0 | AL79: =COUNTIF(AL19:AL68,"<"&AL76*0.9) -> 0 | AN79: =COUNTIF(AN19:AN68,"<"&AN76*0.9) -> 0 | AP79: =COUNTIF(AP19:AP68,"<"&AP76*0.9) -> 0 | AR79: =COUNTIF(AR19:AR68,"<"&AR76*0.9) -> 0 | AT79: =COUNTIF(AT19:AT68,"<"&AT76*0.9) -> 0 | AV79: =COUNTIF(AV19:AV68,"<"&AV76*0.9) -> 0 | AX79: =COUNTIF(AX19:AX68,"<"&AX76*0.9) -> 0 | AZ79: =COUNTIF(AZ19:AZ68,"<"&AZ76*0.9) -> 0 | BB79: =COUNTIF(BB19:BB68,"<"&BB76*0.9) -> 0 | BD79: =COUNTIF(BD19:BD68,"<"&BD76*0.9) -> 0
B80: ERGEB903_GWUpper | D80: Tiere über +10% | E80: Anz. | H80: Anz. | J80: =COUNTIF(J19:J68,">"&J76*1.1) -> 0 | L80: =COUNTIF(L19:L68,">"&L76*1.1) -> 0 | N80: =COUNTIF(N19:N68,">"&N76*1.1) -> 0 | P80: =COUNTIF(P19:P68,">"&P76*1.1) -> 0 | R80: =COUNTIF(R19:R68,">"&R76*1.1) -> 0 | T80: =COUNTIF(T19:T68,">"&T76*1.1) -> 0 | V80: =COUNTIF(V19:V68,">"&V76*1.1) -> 0 | X80: =COUNTIF(X19:X68,">"&X76*1.1) -> 0 | Z80: =COUNTIF(Z19:Z68,">"&Z76*1.1) -> 0 | AB80: =COUNTIF(AB19:AB68,">"&AB76*1.1) -> 0 | AD80: =COUNTIF(AD19:AD68,">"&AD76*1.1) -> 0 | AF80: =COUNTIF(AF19:AF68,">"&AF76*1.1) -> 0 | AH80: =COUNTIF(AH19:AH68,">"&AH76*1.1) -> 0 | AJ80: =COUNTIF(AJ19:AJ68,">"&AJ76*1.1) -> 0 | AL80: =COUNTIF(AL19:AL68,">"&AL76*1.1) -> 0 | AN80: =COUNTIF(AN19:AN68,">"&AN76*1.1) -> 0 | AP80: =COUNTIF(AP19:AP68,">"&AP76*1.1) -> 0 | AR80: =COUNTIF(AR19:AR68,">"&AR76*1.1) -> 0 | AT80: =COUNTIF(AT19:AT68,">"&AT76*1.1) -> 0 | AV80: =COUNTIF(AV19:AV68,">"&AV76*1.1) -> 0 | AX80: =COUNTIF(AX19:AX68,">"&AX76*1.1) -> 0 | AZ80: =COUNTIF(AZ19:AZ68,">"&AZ76*1.1) -> 0 | BB80: =COUNTIF(BB19:BB68,">"&BB76*1.1) -> 0 | BD80: =COUNTIF(BD19:BD68,">"&BD76*1.1) -> 0
B81: ERGEB904_GWOK | D81: Tiere im Bereich | E81: Anz. | H81: Anz. | J81: =J77-J79-J80 -> 0 | L81: =L77-L79-L80 -> 0 | N81: =N77-N79-N80 -> 0 | P81: =P77-P79-P80 -> 0 | R81: =R77-R79-R80 -> 0 | T81: =T77-T79-T80 -> 0 | V81: =V77-V79-V80 -> 0 | X81: =X77-X79-X80 -> 0 | Z81: =Z77-Z79-Z80 -> 0 | AB81: =AB77-AB79-AB80 -> 0 | AD81: =AD77-AD79-AD80 -> 0 | AF81: =AF77-AF79-AF80 -> 0 | AH81: =AH77-AH79-AH80 -> 0 | AJ81: =AJ77-AJ79-AJ80 -> 0 | AL81: =AL77-AL79-AL80 -> 0 | AN81: =AN77-AN79-AN80 -> 0 | AP81: =AP77-AP79-AP80 -> 0 | AR81: =AR77-AR79-AR80 -> 0 | AT81: =AT77-AT79-AT80 -> 0 | AV81: =AV77-AV79-AV80 -> 0 | AX81: =AX77-AX79-AX80 -> 0 | AZ81: =AZ77-AZ79-AZ80 -> 0 | BB81: =BB77-BB79-BB80 -> 0 | BD81: =BD77-BD79-BD80 -> 0
B82: ERGEG905_LEICHTE | D82: Zu leichte Tiere | E82: % | H82: % | J82: =IF(J77>0,J79/J77*100,"") ->  | L82: =IF(L77>0,L79/L77*100,"") ->  | N82: =IF(N77>0,N79/N77*100,"") ->  | P82: =IF(P77>0,P79/P77*100,"") ->  | R82: =IF(R77>0,R79/R77*100,"") ->  | T82: =IF(T77>0,T79/T77*100,"") ->  | V82: =IF(V77>0,V79/V77*100,"") ->  | X82: =IF(X77>0,X79/X77*100,"") ->  | Z82: =IF(Z77>0,Z79/Z77*100,"") ->  | AB82: =IF(AB77>0,AB79/AB77*100,"") ->  | AD82: =IF(AD77>0,AD79/AD77*100,"") ->  | AF82: =IF(AF77>0,AF79/AF77*100,"") ->  | AH82: =IF(AH77>0,AH79/AH77*100,"") ->  | AJ82: =IF(AJ77>0,AJ79/AJ77*100,"") ->  | AL82: =IF(AL77>0,AL79/AL77*100,"") ->  | AN82: =IF(AN77>0,AN79/AN77*100,"") ->  | AP82: =IF(AP77>0,AP79/AP77*100,"") ->  | AR82: =IF(AR77>0,AR79/AR77*100,"") ->  | AT82: =IF(AT77>0,AT79/AT77*100,"") ->  | AV82: =IF(AV77>0,AV79/AV77*100,"") ->  | AX82: =IF(AX77>0,AX79/AX77*100,"") ->  | AZ82: =IF(AZ77>0,AZ79/AZ77*100,"") ->  | BB82: =IF(BB77>0,BB79/BB77*100,"") ->  | BD82: =IF(BD77>0,BD79/BD77*100,"") -> 
B83: ERGEB906_GWUNI | D83: Uniformität | E83: % | H83: % | J83: =IF(COUNT(J71) = 1,J71,IF(J77>0,J81/J77*100,"")) ->  | L83: =IF(COUNT(L71) = 1,L71,IF(L77>0,L81/L77*100,"")) ->  | N83: =IF(COUNT(N71) = 1,N71,IF(N77>0,N81/N77*100,"")) ->  | P83: =IF(COUNT(P71) = 1,P71,IF(P77>0,P81/P77*100,"")) ->  | R83: =IF(COUNT(R71) = 1,R71,IF(R77>0,R81/R77*100,"")) ->  | T83: =IF(COUNT(T71) = 1,T71,IF(T77>0,T81/T77*100,"")) ->  | V83: =IF(COUNT(V71) = 1,V71,IF(V77>0,V81/V77*100,"")) ->  | X83: =IF(COUNT(X71) = 1,X71,IF(X77>0,X81/X77*100,"")) ->  | Z83: =IF(COUNT(Z71) = 1,Z71,IF(Z77>0,Z81/Z77*100,"")) ->  | AB83: =IF(COUNT(AB71) = 1,AB71,IF(AB77>0,AB81/AB77*100,"")) ->  | AD83: =IF(COUNT(AD71) = 1,AD71,IF(AD77>0,AD81/AD77*100,"")) ->  | AF83: =IF(COUNT(AF71) = 1,AF71,IF(AF77>0,AF81/AF77*100,"")) ->  | AH83: =IF(COUNT(AH71) = 1,AH71,IF(AH77>0,AH81/AH77*100,"")) ->  | AJ83: =IF(COUNT(AJ71) = 1,AJ71,IF(AJ77>0,AJ81/AJ77*100,"")) ->  | AL83: =IF(COUNT(AL71) = 1,AL71,IF(AL77>0,AL81/AL77*100,"")) ->  | AN83: =IF(COUNT(AN71) = 1,AN71,IF(AN77>0,AN81/AN77*100,"")) ->  | AP83: =IF(COUNT(AP71) = 1,AP71,IF(AP77>0,AP81/AP77*100,"")) ->  | AR83: =IF(COUNT(AR71) = 1,AR71,IF(AR77>0,AR81/AR77*100,"")) ->  | AT83: =IF(COUNT(AT71) = 1,AT71,IF(AT77>0,AT81/AT77*100,"")) ->  | AV83: =IF(COUNT(AV71) = 1,AV71,IF(AV77>0,AV81/AV77*100,"")) ->  | AX83: =IF(COUNT(AX71) = 1,AX71,IF(AX77>0,AX81/AX77*100,"")) ->  | AZ83: =IF(COUNT(AZ71) = 1,AZ71,IF(AZ77>0,AZ81/AZ77*100,"")) ->  | BB83: =IF(COUNT(BB71) = 1,BB71,IF(BB77>0,BB81/BB77*100,"")) ->  | BD83: =IF(COUNT(BD71) = 1,BD71,IF(BD77>0,BD81/BD77*100,"")) -> 
B84: ERGEB907_GWSOLL | D84: Sollgewichtserfüllung | E84: % | H84: % | J84: =IF(COUNT(J72)=1,J72,IF(J15>0,J76/J15*100,"")) ->  | L84: =IF(COUNT(L72)=1,L72,IF(L15>0,L76/L15*100,"")) ->  | N84: =IF(COUNT(N72)=1,N72,IF(N15>0,N76/N15*100,"")) ->  | P84: =IF(COUNT(P72)=1,P72,IF(P15>0,P76/P15*100,"")) ->  | R84: =IF(COUNT(R72)=1,R72,IF(R15>0,R76/R15*100,"")) ->  | T84: =IF(COUNT(T72)=1,T72,IF(T15>0,T76/T15*100,"")) ->  | V84: =IF(COUNT(V72)=1,V72,IF(V15>0,V76/V15*100,"")) ->  | X84: =IF(COUNT(X72)=1,X72,IF(X15>0,X76/X15*100,"")) ->  | Z84: =IF(COUNT(Z72)=1,Z72,IF(Z15>0,Z76/Z15*100,"")) ->  | AB84: =IF(COUNT(AB72)=1,AB72,IF(AB15>0,AB76/AB15*100,"")) ->  | AD84: =IF(COUNT(AD72)=1,AD72,IF(AD15>0,AD76/AD15*100,"")) ->  | AF84: =IF(COUNT(AF72)=1,AF72,IF(AF15>0,AF76/AF15*100,"")) ->  | AH84: =IF(COUNT(AH72)=1,AH72,IF(AH15>0,AH76/AH15*100,"")) ->  | AJ84: =IF(COUNT(AJ72)=1,AJ72,IF(AJ15>0,AJ76/AJ15*100,"")) ->  | AL84: =IF(COUNT(AL72)=1,AL72,IF(AL15>0,AL76/AL15*100,"")) ->  | AN84: =IF(COUNT(AN72)=1,AN72,IF(AN15>0,AN76/AN15*100,"")) ->  | AP84: =IF(COUNT(AP72)=1,AP72,IF(AP15>0,AP76/AP15*100,"")) ->  | AR84: =IF(COUNT(AR72)=1,AR72,IF(AR15>0,AR76/AR15*100,"")) ->  | AT84: =IF(COUNT(AT72)=1,AT72,IF(AT15>0,AT76/AT15*100,"")) ->  | AV84: =IF(COUNT(AV72)=1,AV72,IF(AV15>0,AV76/AV15*100,"")) ->  | AX84: =IF(COUNT(AX72)=1,AX72,IF(AX15>0,AX76/AX15*100,"")) ->  | AZ84: =IF(COUNT(AZ72)=1,AZ72,IF(AZ15>0,AZ76/AZ15*100,"")) ->  | BB84: =IF(COUNT(BB72)=1,BB72,IF(BB15>0,BB76/BB15*100,"")) ->  | BD84: =IF(COUNT(BD72)=1,BD72,IF(BD15>0,BD76/BD15*100,"")) -> 
B85: ERGEB908_GWUNI_MON | D85: Monatswerte | E85: % zu leichte Tiere | H85: % zu leichte Tiere | P85: =IF(COUNT(J82:P82)>0,AVERAGE(J82:P82),"") ->  | X85: =IF(COUNT(R82:X82)>0,AVERAGE(R82:X82),"") ->  | AF85: =IF(COUNT(Z82:AF82)>0,AVERAGE(Z82:AF82),"") ->  | AN85: =IF(COUNT(AH82:AN82)>0,AVERAGE(AH82:AN82),"") ->  | AV85: =IF(COUNT(AP82:AV82)>0,AVERAGE(AP82:AV82),"") ->  | BD85: =IF(COUNT(AX82:BD82)>0,AVERAGE(AX82:BD82),"") -> 
B86: ERGEB909 | E86: Uniformität % | H86: Uniformität % | P86: =IF(COUNT(J83:P83)>0,AVERAGE(J83:P83),"") ->  | X86: =IF(COUNT(R83:X83)>0,AVERAGE(R83:X83),"") ->  | AF86: =IF(COUNT(Z83:AF83)>0,AVERAGE(Z83:AF83),"") ->  | AN86: =IF(COUNT(AH83:AN83)>0,AVERAGE(AH83:AN83),"") ->  | AV86: =IF(COUNT(AP83:AV83)>0,AVERAGE(AP83:AV83),"") ->  | BD86: =IF(COUNT(AX83:BD83)>0,AVERAGE(AX83:BD83),"") -> 
B87: ERGEB910 | E87: Sollgewichtserfüllung % | H87: Sollgewichtserfüllung % | P87: =IF(COUNT(J84:P84)>0,AVERAGE(J84:P84),"") ->  | X87: =IF(COUNT(R84:X84)>0,AVERAGE(R84:X84),"") ->  | AF87: =IF(COUNT(Z84:AF84)>0,AVERAGE(Z84:AF84),"") ->  | AN87: =IF(COUNT(AH84:AN84)>0,AVERAGE(AH84:AN84),"") ->  | AV87: =IF(COUNT(AP84:AV84)>0,AVERAGE(AP84:AV84),"") ->  | BD87: =IF(COUNT(AX84:BD84)>0,AVERAGE(AX84:BD84),"") -> 
B89: DATEN_ENDE

Sheet GF_GWAUTO (hidden)
B1: GF_HUHN | C1: Masthühner | D1: 1900-01-13 | E1: 1910-12-13 | F1: 2017-04-03 | H1: Gewicht (automatische Wiegung) | L1: 1
B2: 28 | C2: T | D2: T | F2: T | G2: T | H2: T | I2: T | J2: T
B3: GF_GWAUTO | C3: T | D3: W01 | G3: W02 | H3: W03 | J3: T
B4: GF_HUHN | C4: Clear | D4: 16-57 | G4: 16-57 | H4: 16-57
B5: 1 | D5: =$C$1& " (" & $D$1 & ". Durchgang)" -> Masthühner (13. Durchgang)
B6: 2 | D6: =$M$1 & IF($O$1<> ""," vom " & TEXT($O$1,"tt.MM.jjjj"),"") -> 
C7: ? | D7: ="Betrieb: " & Intern_BetriebID -> Betrieb: | J7: © KTBL & Uni Kassel
C10: Speichern und schließen ...
C12: Gewicht | G12: Lahmheit
C13: Tag im | D13: Durchschnitts- | E13: Wochen | G13: Lahme Tiere
C14: Betrieb | D14: gewicht | E14: Nr | G14: separiert | H14: gemerzt | I14: Gesamt
C15: Nr | D15: g | G15: Anzahl | H15: Anzahl | I15: Anzahl
B16: DATEN002 | C16: 1 | E16: =INT((C16-1)/7)+1 -> 1 | I16: =SUM(G16:H16) -> 0
B17: DATEN003 | C17: 2 | E17: =INT((C17-1)/7)+1 -> 1 | I17: =SUM(G17:H17) -> 0
B18: DATEN004 | C18: 3 | E18: 1 | I18: 0
B19: DATEN005 | C19: 4 | E19: 1 | I19: 0
B20: DATEN006 | C20: 5 | E20: 1 | I20: 0
B21: DATEN007 | C21: 6 | E21: 1 | I21: 0
B22: DATEN008 | C22: 7 | E22: 1 | I22: 0
B23: DATEN009 | C23: 8 | E23: 2 | I23: 0
B24: DATEN010 | C24: 9 | E24: 2 | I24: 0
B25: DATEN011 | C25: 10 | E25: 2 | I25: 0
B26: DATEN012 | C26: 11 | E26: 2 | I26: 0
B27: DATEN013 | C27: 12 | E27: 2 | I27: 0
B28: DATEN014 | C28: 13 | E28: 2 | I28: 0
B29: DATEN015 | C29: 14 | E29: 2 | I29: 0
B30: DATEN016 | C30: 15 | E30: 3 | I30: 0
B31: DATEN017 | C31: 16 | E31: 3 | I31: 0
B32: DATEN018 | C32: 17 | E32: 3 | I32: 0
B33: DATEN019 | C33: 18 | E33: 3 | I33: 0
B34: DATEN020 | C34: 19 | E34: 3 | I34: 0
B35: DATEN021 | C35: 20 | E35: 3 | I35: 0
B36: DATEN022 | C36: 21 | E36: 3 | I36: 0
B37: DATEN023 | C37: 22 | E37: 4 | I37: 0
B38: DATEN024 | C38: 23 | E38: 4 | I38: 0
B39: DATEN025 | C39: 24 | E39: 4 | I39: 0
B40: DATEN026 | C40: 25 | E40: 4 | I40: 0
B41: DATEN027 | C41: 26 | E41: 4 | I41: 0
B42: DATEN028 | C42: 27 | E42: 4 | I42: 0
B43: DATEN029 | C43: 28 | E43: 4 | I43: 0
B44: DATEN030 | C44: 29 | E44: 5 | I44: 0
B45: DATEN031 | C45: 30 | E45: 5 | I45: 0
B46: DATEN032 | C46: 31 | E46: 5 | I46: 0
B47: DATEN033 | C47: 32 | E47: 5 | I47: 0
B48: DATEN034 | C48: 33 | E48: 5 | I48: 0
B49: DATEN035 | C49: 34 | E49: 5 | I49: 0
B50: DATEN036 | C50: 35 | E50: 5 | I50: 0
B51: DATEN037 | C51: 36 | E51: 6 | I51: 0
B52: DATEN038 | C52: 37 | E52: 6 | I52: 0
B53: DATEN039 | C53: 38 | E53: 6 | I53: 0
B54: DATEN040 | C54: 39 | E54: 6 | I54: 0
B55: DATEN041 | C55: 40 | E55: 6 | I55: 0
B56: DATEN042 | C56: 41 | E56: 6 | I56: 0
B57: DATEN043 | C57: 42 | E57: 6 | I57: 0
C60: Ergebnis
C61: Woche 1 | D61: =IF(SUMIFS($D$16:$D$57,$E$16:$E$57,E61)>0,AVERAGEIFS($D$16:$D$57,$E$16:$E$57,E61),0) -> 0 | E61: 1 | G61: =SUMIFS($G$16:$G$57,$E$16:$E$57,E61) -> 0 | H61: =SUMIFS($H$16:$H$57,$E$16:$E$57,E61) -> 0
C62: Woche 2 | D62: 0 | E62: 2 | G62: 0 | H62: 0
C63: Woche 3 | D63: 0 | E63: 3 | G63: 0 | H63: 0
C64: Woche 4 | D64: 0 | E64: 4 | G64: 0 | H64: 0
C65: Woche 5 | D65: 0 | E65: 5 | G65: 0 | H65: 0
C66: Woche 6 | D66: 0 | E66: 6 | G66: 0 | H66: 0
B68: DATEN_ENDE

Sheet GF_MB (hidden)
B1: GF_PUTE | C1: Jungputen | H1: Verluste, Wasserverbrauch - Aufzucht | K1: 28
B2: 54 | C2: T | D2: T | E2: =IF(RIGHT($B$4,2) = "TV","W","-") -> W | F2: =$E$2 -> W | G2: W | H2: W | I2: W | J2: W | K2: =IF(AND(RIGHT(B1,4)<>"HUHN",RIGHT(B4,2)="TV"),"W","-") -> W | L2: =K2 -> W | M2: W | N2: W | O2: =IF(AND(RIGHT(B1,4)<>"PUTE",RIGHT(B4,2)="TV"),"W","-") -> - | P2: =IF(AND(RIGHT(B1,4)<>"PUTE",RIGHT(B4,2)="TV"),"W","-") -> - | Q2: =IF(AND(RIGHT(B1,4)="PUTE",RIGHT(B4,2)="TV"),"W","-") -> W | R2: =IF(AND(RIGHT(B1,4)="PUTE",RIGHT(B4,2)="TV"),"W","-") -> W | S2: W | T2: W | U2: =T2 -> W | V2: =U2 -> W | W2: =IF(AND(RIGHT(B1,4)<>"HUHN",RIGHT(B4,2)="TV"),"W","-") -> W | X2: =IF(AND(RIGHT(B1,4)="HUHN",RIGHT(B4,2)="TV"),"W","-") -> - | Y2: =$X$2 -> - | Z2: - | AA2: - | AB2: - | AC2: - | AD2: - | AE2: =IF(OR($B$4 = "MH_TV",$B$4 = "MP_TV"),"W","-") -> W | AF2: =$AE$2 -> W | AG2: =$AE$2 -> W | AH2: =IF($B$4 = "MP_TV","W","-") -> W | AI2: =AH2 -> W | AJ2: =IF($B$4 = "MH_TV","W","-") -> - | AK2: - | AL2: - | AM2: =IF(RIGHT($B$4,2) = "LL","W","-") -> - | AN2: =$AM$2 -> - | AO2: =$AM$2 -> - | AP2: - | AQ2: - | AR2: =$AM$2 -> - | AS2: - | AT2: - | AU2: - | AV2: - | AW2: - | AX2: - | AY2: - | AZ2: - | BA2: - | BB2: - | BC2: - | BD2: - | BE2: - | BF2: =IF(RIGHT($B$4,2) = "WV","W","-") -> - | BG2: =$BF$2 -> - | BH2: - | BI2: - | BJ2: - | BK2: - | BL2: - | BM2: - | BN2: - | BO2: - | BP2: - | BQ2: - | BR2: - | BS2: - | BT2: - | BU2: =IF(AND(RIGHT(B1,4)="PUTE",RIGHT(B4,2)="WV"),"W","-") -> - | BV2: =IF(AND(RIGHT(B1,4)<>"PUTE",RIGHT(B4,2)="WV"),"W","-") -> - | BW2: T
B3: GF_MB | C3: T | D3: R30 | E3: T | F3: W02 | G3: T | H3: W03 | I3: T | J3: W04 | K3: T | L3: W05 | M3: T | N3: W06 | O3: T | P3: W07 | Q3: T | R3: W09 | S3: T | T3: W08 | U3: T | V3: R31 | W3: R36 | X3: R32 | Y3: R33 | Z3: R34 | AA3: R35 | AB3: R37 | AC3: R38 | AD3: R39 | AE3: T | AF3: T | AG3: W10 | AH3: T | AI3: =LEFT(AG3,1) & TEXT(INT(RIGHT(AG3,2)) + 1,"00") -> W11 | AJ3: T | AK3: T | AL3: T | AM3: T | AN3: W12 | AO3: T | AP3: R42 | AQ3: T | AR3: W13 | AS3: T | AT3: =LEFT(AR3,1) & TEXT(INT(RIGHT(AR3,2)) + 1,"00") -> W14 | AU3: T | AV3: =LEFT(AT3,1) & TEXT(INT(RIGHT(AT3,2)) + 1,"00") -> W15 | AW3: T | AX3: =LEFT(AV3,1) & TEXT(INT(RIGHT(AV3,2)) + 1,"00") -> W16 | AY3: T | AZ3: =LEFT(AX3,1) & TEXT(INT(RIGHT(AX3,2)) + 1,"00") -> W17 | BA3: T | BB3: =LEFT(AZ3,1) & TEXT(INT(RIGHT(AZ3,2)) + 1,"00") -> W18 | BC3: T | BD3: R43 | BE3: R47 | BF3: T | BG3: W20 | BH3: T | BI3: T | BJ3: W21 | BK3: T | BL3: T | BM3: W22 | BN3: T | BO3: T | BP3: W23 | BQ3: T | BR3: W24 | BS3: T | BT3: R44 | BU3: R45 | BV3: R46 | BW3: T
B4: MP_TV | D4: 17 | F4: 21-27;29-35;37-43;45-51;53-59;61-67;69-75;77-83;86 | H4: =$F$4 -> 21-27;29-35;37-43;45-51;53-59;61-67;69-75;77-83;86 | J4: =$F$4 -> 21-27;29-35;37-43;45-51;53-59;61-67;69-75;77-83;86 | L4: =$F$4 -> 21-27;29-35;37-43;45-51;53-59;61-67;69-75;77-83;86 | N4: =$F$4 -> 21-27;29-35;37-43;45-51;53-59;61-67;69-75;77-83;86 | P4: =$F$4 -> 21-27;29-35;37-43;45-51;53-59;61-67;69-75;77-83;86 | R4: =$F$4 -> 21-27;29-35;37-43;45-51;53-59;61-67;69-75;77-83;86 | T4: =$F$4 -> 21-27;29-35;37-43;45-51;53-59;61-67;69-75;77-83;86 | AG4: =$F$4 -> 21-27;29-35;37-43;45-51;53-59;61-67;69-75;77-83;86 | AI4: =$F$4 -> 21-27;29-35;37-43;45-51;53-59;61-67;69-75;77-83;86 | AN4: =$F$4 -> 21-27;29-35;37-43;45-51;53-59;61-67;69-75;77-83;86 | AR4: =$F$4 -> 21-27;29-35;37-43;45-51;53-59;61-67;69-75;77-83;86 | AT4: =$F$4 -> 21-27;29-35;37-43;45-51;53-59;61-67;69-75;77-83;86 | AV4: =$F$4 -> 21-27;29-35;37-43;45-51;53-59;61-67;69-75;77-83;86 | AX4: =$F$4 -> 21-27;29-35;37-43;45-51;53-59;61-67;69-75;77-83;86 | AZ4: =$F$4 -> 21-27;29-35;37-43;45-51;53-59;61-67;69-75;77-83;86 | BB4: =$F$4 -> 21-27;29-35;37-43;45-51;53-59;61-67;69-75;77-83;86 | BG4: =BR4& ";17" -> 21-27;29-35;37-43;45-51;53-59;61-67;69-75;77-83;17 | BJ4: =$BG$4 -> 21-27;29-35;37-43;45-51;53-59;61-67;69-75;77-83;17 | BM4: =$BG$4 -> 21-27;29-35;37-43;45-51;53-59;61-67;69-75;77-83;17 | BP4: =$BG$4 -> 21-27;29-35;37-43;45-51;53-59;61-67;69-75;77-83;17 | BR4: 21-27;29-35;37-43;45-51;53-59;61-67;69-75;77-83
B5: 1 | D5: =$C$1 & " (" & Intern_BetriebID & ")" -> Jungputen ()
B6: 10 | D6: =$H$1 & IF($J$1<> ""," (Stand vom " & TEXT($J$1,"tt.MM.jjjj") &")","") -> Verluste, Wasserverbrauch - Aufzucht
C7: ? | D7: =IF(D1<>"", D1 & " - ","") & IF(F1<>"","Schlupfdatum: " & TEXT(F1,"tt.MM.JJJJ"),"") ->  | BW7: © KTBL & Uni Kassel
B8: ="HENNE_53-84|HUHN_52-84" & IF(B10<>"","|" & B10,"")&"|HENNE_95-95|HUHN_28-28|HUHN_36-36|HUHN_44-44|HUHN_52-52|PUTE_95-95|" -> HENNE_53-84|HUHN_52-84|PUTE_53-84|HENNE_95-95|HUHN_28-28|HUHN_36-36|HUHN_44-44|HUHN_52-52|PUTE_95-95|
B10: =IF(AND(B1="GF_PUTE",B5=1),IF(K1<50,"PUTE_" &21+( (INT((MAX(K1,7)-1)/7)+1)*8) & "-84",""),"PUTE_53-84") -> PUTE_53-84 | C10: Speichern und schließen ...
C14: Tierbestand | G14: Tierverluste | AF14: Separierungen | AN14: Legeleistung | AR14: Eiqualität | BG14: Wasserverbrauch
C15: =IF(OR(COUNT(E1)=0,E1<1),"Keine Anzahl eingestallter Tiere angegeben.","Zahl eingestallter Tiere: " & TEXT(E1,"#.###") & " Tiere") -> Keine Anzahl eingestallter Tiere angegeben.
D16: Anfangsbestand | BG16: Startwert Zähler | BJ16: Startwert Zähler | BM16: Startwert Zähler | BP16: Startwert Zähler
B17: DATEN002_W30_W20_W21_W22_W23 | V17: Gesamtverluste | Y17: Verluste nach Ursachen | AH17: Haut- | AX17: Eischalen- | BR17: Direkteingabe | BT17: Täglicher
C18: Tag | D18: Anzahl anwesende | F18: Unfall | H18: Erkrank- | J18: Hunger/ | L18: Kanniba- | N18: Lahm- | P18: Beute- | R18: Haut- | T18: Sonstige | Y18: Unfall | Z18: Erkrank- | AA18: Hunger/ | AB18: Lahm- | AC18: Beute- | AD18: Sonstige | AG18: Lahm- | AH18: verletz- | AP18: Lege- | AR18: Knick- | AT18: Bruch- | AV18: Schmutz- | AX18: deforma- | AZ18: Blut- | BB18: Sonstige | BD18: Sekunda- | BG18: Wasser- | BJ18: Wasser- | BM18: Wasser- | BP18: Wasser- | BR18: Wasser- | BT18: Wasserverbrauch
D19: =IF(B1="GF_HENNE","Legehennen",IF(B1="GF_HUHN","Masthühner","Mastputen")) -> Mastputen | H19: ungen | J19: Durst | L19: lismus | N19: heit | P19: greifer | R19: verletz. | T19: Ursachen | Z19: ungen | AA19: Durst | AB19: heit | AC19: greifer | AD19: Ursachen | AG19: heit | AH19: ungen | AN19: Eier | AP19: leistung | AR19: eier | AT19: eier | AV19: eier | AX19: tionen | AZ19: eier | BD19: eier | BG19: uhr 1 | BJ19: uhr 2 | BM19: uhr 3 | BP19: uhr 4 | BR19: verbrauch
C20: Nr | D20: Anz. | F20: Anz. | H20: Anz. | J20: Anz. | L20: Anz. | N20: Anz. | P20: Anz. | R20: Anz. | T20: Anz. | V20: Anz. | W20: % | X20: % | Y20: % | Z20: % | AA20: % | AB20: % | AC20: % | AD20: % | AG20: Anz. | AI20: Anz. | AL20: Anz. | AN20: Anz. | AP20: % | AR20: Anz. | AT20: Anz. | AV20: Anz. | AX20: Anz. | AZ20: Anz. | BB20: Anz. | BD20: Anz. | BE20: % | BG20: Zählerstand | BH20: m3 | BJ20: Zählerstand | BK20: m3 | BM20: Zählerstand | BN20: m3 | BP20: Zählerstand | BQ20: m3 | BR20: Liter | BT20: l/Herde | BU20: l/Tier | BV20: l/1000 Tiere
B21: DATEN003 | C21: 1 | D21: =D17 -> 0 | V21: =SUM(F21:T21) -> 0 | W21: =IF(AND(V21>0,$E$1>0),V21/$E$1*100,0) -> 0 | X21: =IF(AND(V21>0,D21>0),V21/D21*100,0) -> 0 | Y21: =IF(AND(COUNT(F21)=1,D21>0),F21/D21*100,"") ->  | Z21: =IF(AND(COUNT(H21)=1,D21>0),H21/D21*100,"") ->  | AA21: =IF(AND(COUNT(J21)=1,D21>0),J21/D21*100,"") ->  | AB21: =IF(AND(COUNT(N21)=1,D21>0),N21/D21*100,"") ->  | AC21: =IF(AND(COUNT(P21)=1,D21>0),P21/D21*100,"") ->  | AD21: =IF(AND(COUNT(T21)=1,D21>0),T21/D21*100,"") ->  | AL21: =SUM(AG21:AI21) -> 0 | AP21: =IF(D21>0,AN21/D21*100,"") ->  | BD21: =SUM(AR21:BB21) -> 0 | BE21: =IF(AN21>0,BD21/AN21*100,0) -> 0 | BH21: =IF(AND(COUNT(BG$17)=1,BG21>BG17),BG21-BG17,0) -> 0 | BK21: =IF(AND(COUNT(BJ$17)=1,BJ21>BJ17),BJ21-BJ17,0) -> 0 | BN21: =IF(AND(COUNT(BM$17)=1,BM21>BM17),BM21-BM17,0) -> 0 | BQ21: =IF(AND(COUNT(BP$17)=1,BP21>BP17),BP21-BP17,0) -> 0 | BT21: =IF((BH21+BK21+BN21+BQ21+BR21/1000)>0,(BH21+BK21+BN21+BQ21+BR21/1000)*1000,"") ->  | BU21: =IF(AND(D21>0,BT21<>""),BT21/D21,"") ->  | BV21: =IF(AND(D21>0,BT21<>""),BT21/D21*1000,"") -> 
B22: DATEN004 | C22: 2 | D22: =D21-V21 -> 0 | V22: 0 | W22: 0 | X22: 0 | AL22: 0 | BD22: 0 | BE22: =IF(AN22>0,BD22/AN22*100,0) -> 0 | BH22: =IF(AND(COUNT(BG$17)=1,COUNT(BG21)=1, BG22>BG21),BG22-BG21,0) -> 0 | BK22: =IF(AND(COUNT(BJ$17)=1,COUNT(BJ21)=1, BJ22>BJ21),BJ22-BJ21,0) -> 0 | BN22: =IF(AND(COUNT(BM$17)=1,COUNT(BM21)=1, BM22>BM21),BM22-BM21,0) -> 0 | BQ22: =IF(AND(COUNT(BP$17)=1,COUNT(BP21)=1, BP22>BP21),BP22-BP21,0) -> 0 | BT22: =IF((BH22+BK22+BN22+BQ22+BR22/1000)>0,(BH22+BK22+BN22+BQ22+BR22/1000)*1000,"") -> 
B23: DATEN005 | C23: 3 | D23: 0 | V23: =SUM(F23:T23) -> 0 | W23: 0 | X23: 0 | AL23: 0 | BD23: 0 | BE23: 0 | BH23: =IF(AND(COUNT(BG$17)=1,COUNT(BG22)=1, BG23>BG22),BG23-BG22,0) -> 0 | BK23: =IF(AND(COUNT(BJ$17)=1,COUNT(BJ22)=1, BJ23>BJ22),BJ23-BJ22,0) -> 0 | BN23: =IF(AND(COUNT(BM$17)=1,COUNT(BM22)=1, BM23>BM22),BM23-BM22,0) -> 0 | BQ23: =IF(AND(COUNT(BP$17)=1,COUNT(BP22)=1, BP23>BP22),BP23-BP22,0) -> 0
B24: DATEN006 | C24: 4 | D24: 0 | V24: 0 | W24: 0 | X24: 0 | AL24: 0 | BD24: 0 | BE24: 0 | BH24: 0 | BK24: 0 | BN24: 0 | BQ24: 0
B25: DATEN007 | C25: 5 | D25: 0 | V25: 0 | W25: 0 | X25: 0 | AL25: 0 | BD25: 0 | BE25: 0 | BH25: 0 | BK25: 0 | BN25: 0 | BQ25: 0
B26: DATEN008 | C26: 6 | D26: 0 | V26: 0 | W26: 0 | X26: 0 | AL26: 0 | BD26: 0 | BE26: 0 | BH26: 0 | BK26: 0 | BN26: 0 | BQ26: 0
B27: DATEN009 | C27: 7 | D27: 0 | V27: 0 | W27: 0 | X27: 0 | AL27: 0 | BD27: 0 | BE27: 0 | BH27: 0 | BK27: 0 | BN27: 0 | BQ27: 0
B28: ERGEB901 | D28: Ergebnisse | E28: % | F28: =IF($E$1>0,SUM(F21:F27)/$E$1*100,0) -> 0 | H28: =IF($E$1>0,SUM(H21:H27)/$E$1*100,0) -> 0 | J28: =IF($E$1>0,SUM(J21:J27)/$E$1*100,0) -> 0 | L28: =IF($E$1>0,SUM(L21:L27)/$E$1*100,0) -> 0 | N28: =IF($E$1>0,SUM(N21:N27)/$E$1*100,0) -> 0 | P28: =IF($E$1>0,SUM(P21:P27)/$E$1*100,0) -> 0 | R28: =IF($E$1>0,SUM(R21:R27)/$E$1*100,0) -> 0 | T28: =IF($E$1>0,SUM(T21:T27)/$E$1*100,0) -> 0 | V28: =SUM(V21:V27) -> 0 | W28: =IF($E$1>0,SUM(V21:V27)/$E$1*100,0) -> 0 | X28: =SUM(X21:X27) -> 0 | Y28: =IF(COUNT(Y21:Y27)>0,SUM(Y21:Y27),"") ->  | AG28: =IF($E$1>0,SUM(AG21:AG27)/$E$1*100,0) -> 0 | AI28: =IF($E$1>0,SUM(AI21:AI27)/$E$1*100,0) -> 0 | AL28: =IF($E$1>0,SUM(AL21:AL27)/$E$1*100,0) -> 0 | AN28: =SUM(AN21:AN27) -> 0 | AR28: =IF($AN28>0,SUM(AR21:AR27)/$AN28,0) -> 0 | AT28: =IF($AN28>0,SUM(AT21:AT27)/$AN28,0) -> 0 | AV28: =IF($AN28>0,SUM(AV21:AV27)/$AN28,0) -> 0 | AX28: =IF($AN28>0,SUM(AX21:AX27)/$AN28,0) -> 0 | AZ28: =IF($AN28>0,SUM(AZ21:AZ27)/$AN28,0) -> 0 | BB28: =IF($AN28>0,SUM(BB21:BB27)/$AN28,0) -> 0 | BD28: =SUM(BD21:BD27) -> 0 | BE28: =IF(AN28>0,BD28/AN28,0) -> 0 | BH28: =SUM(BH21:BH27) -> 0 | BK28: =SUM(BK21:BK27) -> 0 | BN28: =SUM(BN21:BN27) -> 0 | BQ28: =SUM(BQ21:BQ27) -> 0 | BR28: =SUM(BR21:BR27) -> 0 | BT28: =IF(SUM(BT21:BT27)>0,AVERAGE(BT21:BT27),"") ->  | BU28: =IF(SUM(BU21:BU27)>0,AVERAGE(BU21:BU27),"") ->  | BV28: =IF(SUM(BV21:BV27)>0,AVERAGE(BV21:BV27),"") -> 
B29: DATEN010 | C29: 8 | D29: =D27-V27 -> 0 | V29: =SUM(F29:T29) -> 0 | W29: =IF(AND(V29>0,$E$1>0),V29/$E$1*100,0) -> 0 | X29: =IF(AND(V29>0,D29>0),V29/D29*100,0) -> 0 | Y29: =IF(AND(COUNT(F29)=1,D29>0),F29/D29*100,"") ->  | Z29: =IF(AND(COUNT(H29)=1,D29>0),H29/D29*100,"") ->  | AA29: =IF(AND(COUNT(J29)=1,D29>0),J29/D29*100,"") ->  | AB29: =IF(AND(COUNT(N29)=1,D29>0),N29/D29*100,"") ->  | AC29: =IF(AND(COUNT(P29)=1,D29>0),P29/D29*100,"") ->  | AD29: =IF(AND(COUNT(T29)=1,D29>0),T29/D29*100,"") ->  | AL29: =SUM(AG29:AI29) -> 0 | AP29: =IF(D29>0,AN29/D29*100,"") ->  | BD29: =SUM(AR29:BB29) -> 0 | BE29: 0 | BH29: =IF(AND(COUNT(BG$17)=1,COUNT(BG27)=1, BG29>BG27),BG29-BG27,0) -> 0 | BK29: =IF(AND(COUNT(BJ$17)=1,COUNT(BJ27)=1, BJ29>BJ27),BJ29-BJ27,0) -> 0 | BN29: =IF(AND(COUNT(BM$17)=1,COUNT(BM27)=1, BM29>BM27),BM29-BM27,0) -> 0 | BQ29: =IF(AND(COUNT(BP$17)=1,COUNT(BP27)=1, BP29>BP27),BP29-BP27,0) -> 0 | BT29: =IF((BH29+BK29+BN29+BQ29+BR29/1000)>0,(BH29+BK29+BN29+BQ29+BR29/1000)*1000,"") ->  | BU29: =IF(AND(D29>0,BT29<>""),BT29/D29,"") ->  | BV29: =IF(AND(D29>0,BT29<>""),BT29/D29*1000,"") -> 
B30: DATEN011 | C30: 9 | D30: =D29-V29 -> 0 | V30: 0 | W30: 0 | X30: 0 | AL30: 0 | BD30: 0 | BE30: 0 | BH30: 0 | BK30: 0 | BN30: 0 | BQ30: 0
B31: DATEN012 | C31: 10 | D31: 0 | V31: 0 | W31: 0 | X31: 0 | AL31: 0 | BD31: 0 | BE31: 0 | BH31: 0 | BK31: 0 | BN31: 0 | BQ31: 0
B32: DATEN013 | C32: 11 | D32: 0 | V32: 0 | W32: 0 | X32: 0 | AL32: 0 | BD32: 0 | BE32: 0 | BH32: 0 | BK32: 0 | BN32: 0 | BQ32: 0
B33: DATEN014 | C33: 12 | D33: 0 | V33: 0 | W33: 0 | X33: 0 | AL33: 0 | BD33: 0 | BE33: 0 | BH33: 0 | BK33: 0 | BN33: 0 | BQ33: 0
B34: DATEN015 | C34: 13 | D34: 0 | V34: 0 | W34: 0 | X34: 0 | AL34: 0 | BD34: 0 | BE34: 0 | BH34: 0 | BK34: 0 | BN34: 0 | BQ34: 0
B35: DATEN016 | C35: 14 | D35: 0 | V35: 0 | W35: 0 | X35: 0 | AL35: 0 | BD35: 0 | BE35: 0 | BH35: 0 | BK35: 0 | BN35: 0 | BQ35: 0
B36: ERGEB902 | D36: Ergebnisse | E36: % | F36: =IF($E$1>0,SUM(F29:F35)/$E$1*100,0) -> 0 | H36: =IF($E$1>0,SUM(H29:H35)/$E$1*100,0) -> 0 | J36: =IF($E$1>0,SUM(J29:J35)/$E$1*100,0) -> 0 | L36: =IF($E$1>0,SUM(L29:L35)/$E$1*100,0) -> 0 | N36: =IF($E$1>0,SUM(N29:N35)/$E$1*100,0) -> 0 | P36: =IF($E$1>0,SUM(P29:P35)/$E$1*100,0) -> 0 | R36: =IF($E$1>0,SUM(R29:R35)/$E$1*100,0) -> 0 | T36: =IF($E$1>0,SUM(T29:T35)/$E$1*100,0) -> 0 | V36: =SUM(V29:V35) -> 0 | W36: =IF($E$1>0,SUM(V29:V35)/$E$1*100,0) -> 0 | X36: =SUM(X29:X35) -> 0 | Y36: =IF(COUNT(Y29:Y35)>0,SUM(Y29:Y35),"") ->  | AG36: =IF($E$1>0,SUM(AG29:AG35)/$E$1*100,0) -> 0 | AI36: =IF($E$1>0,SUM(AI29:AI35)/$E$1*100,0) -> 0 | AL36: =IF($E$1>0,SUM(AL29:AL35)/$E$1*100,0) -> 0 | AN36: =SUM(AN29:AN35) -> 0 | AR36: =IF($AN36>0,SUM(AR29:AR35)/$AN36,0) -> 0 | AT36: =IF($AN36>0,SUM(AT29:AT35)/$AN36,0) -> 0 | AV36: =IF($AN36>0,SUM(AV29:AV35)/$AN36,0) -> 0 | AX36: =IF($AN36>0,SUM(AX29:AX35)/$AN36,0) -> 0 | AZ36: =IF($AN36>0,SUM(AZ29:AZ35)/$AN36,0) -> 0 | BB36: =IF($AN36>0,SUM(BB29:BB35)/$AN36,0) -> 0 | BD36: =SUM(BD29:BD35) -> 0 | BE36: =IF(AN36>0,BD36/AN36,0) -> 0 | BH36: =SUM(BH29:BH35) -> 0 | BK36: =SUM(BK29:BK35) -> 0 | BN36: =SUM(BN29:BN35) -> 0 | BQ36: =SUM(BQ29:BQ35) -> 0 | BR36: =SUM(BR29:BR35) -> 0 | BT36: =IF(SUM(BT29:BT35)>0,AVERAGE(BT29:BT35),"") ->  | BU36: =IF(SUM(BU29:BU35)>0,AVERAGE(BU29:BU35),"") ->  | BV36: =IF(SUM(BV29:BV35)>0,AVERAGE(BV29:BV35),"") -> 
B37: DATEN017 | C37: 15 | D37: =D35-V35 -> 0 | V37: =SUM(F37:T37) -> 0 | W37: =IF(AND(V37>0,$E$1>0),V37/$E$1*100,0) -> 0 | X37: =IF(AND(V37>0,D37>0),V37/D37*100,0) -> 0 | Y37: =IF(AND(COUNT(F37)=1,D37>0),F37/D37*100,"") ->  | Z37: =IF(AND(COUNT(H37)=1,D37>0),H37/D37*100,"") ->  | AA37: =IF(AND(COUNT(J37)=1,D37>0),J37/D37*100,"") ->  | AB37: =IF(AND(COUNT(N37)=1,D37>0),N37/D37*100,"") ->  | AC37: =IF(AND(COUNT(P37)=1,D37>0),P37/D37*100,"") ->  | AD37: =IF(AND(COUNT(T37)=1,D37>0),T37/D37*100,"") ->  | AL37: =SUM(AG37:AI37) -> 0 | AP37: =IF(D37>0,AN37/D37*100,"") ->  | BD37: =SUM(AR37:BB37) -> 0 | BE37: 0 | BH37: =IF(AND(COUNT(BG$17)=1,COUNT(BG35)=1, BG37>BG35),BG37-BG35,0) -> 0 | BK37: =IF(AND(COUNT(BJ$17)=1,COUNT(BJ35)=1, BJ37>BJ35),BJ37-BJ35,0) -> 0 | BN37: =IF(AND(COUNT(BM$17)=1,COUNT(BM35)=1, BM37>BM35),BM37-BM35,0) -> 0 | BQ37: =IF(AND(COUNT(BP$17)=1,COUNT(BP35)=1, BP37>BP35),BP37-BP35,0) -> 0 | BT37: =IF((BH37+BK37+BN37+BQ37+BR37/1000)>0,(BH37+BK37+BN37+BQ37+BR37/1000)*1000,"") ->  | BU37: =IF(AND(D37>0,BT37<>""),BT37/D37,"") ->  | BV37: =IF(AND(D37>0,BT37<>""),BT37/D37*1000,"") -> 
B38: DATEN018 | C38: 16 | D38: =D37-V37 -> 0 | V38: 0 | W38: 0 | X38: 0 | AL38: 0 | BD38: 0 | BE38: 0 | BH38: =IF(AND(COUNT(BG$17)=1,COUNT(BG37)=1, BG38>BG37),BG38-BG37,0) -> 0 | BK38: =IF(AND(COUNT(BJ$17)=1,COUNT(BJ37)=1, BJ38>BJ37),BJ38-BJ37,0) -> 0 | BN38: =IF(AND(COUNT(BM$17)=1,COUNT(BM37)=1, BM38>BM37),BM38-BM37,0) -> 0 | BQ38: =IF(AND(COUNT(BP$17)=1,COUNT(BP37)=1, BP38>BP37),BP38-BP37,0) -> 0
B39: DATEN019 | C39: 17 | D39: 0 | V39: 0 | W39: 0 | X39: 0 | AL39: 0 | BD39: 0 | BE39: =IF(AN39>0,BD39/AN39*100,0) -> 0 | BH39: 0 | BK39: 0 | BN39: 0 | BQ39: 0
B40: DATEN020 | C40: 18 | D40: 0 | V40: 0 | W40: 0 | X40: 0 | AL40: 0 | BD40: 0 | BE40: 0 | BH40: 0 | BK40: 0 | BN40: 0 | BQ40: 0
B41: DATEN021 | C41: 19 | D41: 0 | V41: 0 | W41: 0 | X41: 0 | AL41: 0 | BD41: 0 | BE41: 0 | BH41: 0 | BK41: 0 | BN41: 0 | BQ41: 0
B42: DATEN022 | C42: 20 | D42: 0 | V42: 0 | W42: 0 | X42: 0 | AL42: 0 | BD42: 0 | BE42: 0 | BH42: 0 | BK42: 0 | BN42: 0 | BQ42: 0
B43: DATEN023 | C43: 21 | D43: 0 | V43: 0 | W43: 0 | X43: 0 | AL43: 0 | BD43: 0 | BE43: 0 | BH43: 0 | BK43: 0 | BN43: 0 | BQ43: 0
B44: ERGEB903 | D44: Ergebnisse | E44: % | F44: =IF($E$1>0,SUM(F37:F43)/$E$1*100,0) -> 0 | H44: =IF($E$1>0,SUM(H37:H43)/$E$1*100,0) -> 0 | J44: =IF($E$1>0,SUM(J37:J43)/$E$1*100,0) -> 0 | L44: =IF($E$1>0,SUM(L37:L43)/$E$1*100,0) -> 0 | N44: =IF($E$1>0,SUM(N37:N43)/$E$1*100,0) -> 0 | P44: =IF($E$1>0,SUM(P37:P43)/$E$1*100,0) -> 0 | R44: =IF($E$1>0,SUM(R37:R43)/$E$1*100,0) -> 0 | T44: =IF($E$1>0,SUM(T37:T43)/$E$1*100,0) -> 0 | V44: =SUM(V37:V43) -> 0 | W44: =IF($E$1>0,SUM(V37:V43)/$E$1*100,0) -> 0 | X44: =SUM(X37:X43) -> 0 | Y44: =IF(COUNT(Y37:Y43)>0,SUM(Y37:Y43),"") ->  | AG44: =IF($E$1>0,SUM(AG37:AG43)/$E$1*100,0) -> 0 | AI44: =IF($E$1>0,SUM(AI37:AI43)/$E$1*100,0) -> 0 | AL44: =IF($E$1>0,SUM(AL37:AL43)/$E$1*100,0) -> 0 | AN44: =SUM(AN37:AN43) -> 0 | AR44: =IF($AN44>0,SUM(AR37:AR43)/$AN44,0) -> 0 | AT44: =IF($AN44>0,SUM(AT37:AT43)/$AN44,0) -> 0 | AV44: =IF($AN44>0,SUM(AV37:AV43)/$AN44,0) -> 0 | AX44: =IF($AN44>0,SUM(AX37:AX43)/$AN44,0) -> 0 | AZ44: =IF($AN44>0,SUM(AZ37:AZ43)/$AN44,0) -> 0 | BB44: =IF($AN44>0,SUM(BB37:BB43)/$AN44,0) -> 0 | BD44: =SUM(BD37:BD43) -> 0 | BE44: =IF(AN44>0,BD44/AN44,0) -> 0 | BH44: =SUM(BH37:BH43) -> 0 | BK44: =SUM(BK37:BK43) -> 0 | BN44: =SUM(BN37:BN43) -> 0 | BQ44: =SUM(BQ37:BQ43) -> 0 | BR44: =SUM(BR37:BR43) -> 0 | BT44: =IF(SUM(BT37:BT43)>0,AVERAGE(BT37:BT43),"") ->  | BU44: =IF(SUM(BU37:BU43)>0,AVERAGE(BU37:BU43),"") ->  | BV44: =IF(SUM(BV37:BV43)>0,AVERAGE(BV37:BV43),"") -> 
B45: DATEN024 | C45: 22 | D45: =D43-V43 -> 0 | V45: =SUM(F45:T45) -> 0 | W45: =IF(AND(V45>0,$E$1>0),V45/$E$1*100,0) -> 0 | X45: =IF(AND(V45>0,D45>0),V45/D45*100,0) -> 0 | Y45: =IF(AND(COUNT(F45)=1,D45>0),F45/D45*100,"") ->  | Z45: =IF(AND(COUNT(H45)=1,D45>0),H45/D45*100,"") ->  | AA45: =IF(AND(COUNT(J45)=1,D45>0),J45/D45*100,"") ->  | AB45: =IF(AND(COUNT(N45)=1,D45>0),N45/D45*100,"") ->  | AC45: =IF(AND(COUNT(P45)=1,D45>0),P45/D45*100,"") ->  | AD45: =IF(AND(COUNT(T45)=1,D45>0),T45/D45*100,"") ->  | AL45: =SUM(AG45:AI45) -> 0 | AP45: =IF(D45>0,AN45/D45*100,"") ->  | BD45: =SUM(AR45:BB45) -> 0 | BE45: =IF(AN45>0,BD45/AN45*100,0) -> 0 | BH45: =IF(AND(COUNT(BG$17)=1,COUNT(BG43)=1, BG45>BG43),BG45-BG43,0) -> 0 | BK45: =IF(AND(COUNT(BJ$17)=1,COUNT(BJ43)=1, BJ45>BJ43),BJ45-BJ43,0) -> 0 | BN45: =IF(AND(COUNT(BM$17)=1,COUNT(BM43)=1, BM45>BM43),BM45-BM43,0) -> 0 | BQ45: =IF(AND(COUNT(BP$17)=1,COUNT(BP43)=1, BP45>BP43),BP45-BP43,0) -> 0 | BT45: =IF((BH45+BK45+BN45+BQ45+BR45/1000)>0,(BH45+BK45+BN45+BQ45+BR45/1000)*1000,"") ->  | BU45: =IF(AND(D45>0,BT45<>""),BT45/D45,"") ->  | BV45: =IF(AND(D45>0,BT45<>""),BT45/D45*1000,"") -> 
B46: DATEN025 | C46: 23 | D46: =D45-V45 -> 0 | V46: 0 | W46: 0 | X46: 0 | AL46: 0 | BD46: 0 | BE46: 0 | BH46: =IF(AND(COUNT(BG$17)=1,COUNT(BG45)=1, BG46>BG45),BG46-BG45,0) -> 0 | BK46: =IF(AND(COUNT(BJ$17)=1,COUNT(BJ45)=1, BJ46>BJ45),BJ46-BJ45,0) -> 0 | BN46: =IF(AND(COUNT(BM$17)=1,COUNT(BM45)=1, BM46>BM45),BM46-BM45,0) -> 0 | BQ46: =IF(AND(COUNT(BP$17)=1,COUNT(BP45)=1, BP46>BP45),BP46-BP45,0) -> 0
B47: DATEN026 | C47: 24 | D47: 0 | V47: 0 | W47: 0 | X47: 0 | AL47: 0 | BD47: 0 | BE47: 0 | BH47: 0 | BK47: 0 | BN47: 0 | BQ47: 0
B48: DATEN027 | C48: 25 | D48: 0 | V48: 0 | W48: 0 | X48: 0 | AL48: 0 | BD48: 0 | BE48: 0 | BH48: 0 | BK48: 0 | BN48: 0 | BQ48: 0
B49: DATEN028 | C49: 26 | D49: 0 | V49: 0 | W49: 0 | X49: 0 | AL49: 0 | BD49: 0 | BE49: 0 | BH49: 0 | BK49: 0 | BN49: 0 | BQ49: 0
B50: DATEN029 | C50: 27 | D50: 0 | V50: 0 | W50: 0 | X50: 0 | AL50: 0 | BD50: 0 | BE50: 0 | BH50: 0 | BK50: 0 | BN50: 0 | BQ50: 0
B51: DATEN030 | C51: 28 | D51: 0 | V51: 0 | W51: 0 | X51: 0 | AL51: 0 | BD51: 0 | BE51: 0 | BH51: 0 | BK51: 0 | BN51: 0 | BQ51: 0
B52: ERGEB904 | D52: Ergebnisse | E52: % | F52: =IF($E$1>0,SUM(F45:F51)/$E$1*100,0) -> 0 | H52: =IF($E$1>0,SUM(H45:H51)/$E$1*100,0) -> 0 | J52: =IF($E$1>0,SUM(J45:J51)/$E$1*100,0) -> 0 | L52: =IF($E$1>0,SUM(L45:L51)/$E$1*100,0) -> 0 | N52: =IF($E$1>0,SUM(N45:N51)/$E$1*100,0) -> 0 | P52: =IF($E$1>0,SUM(P45:P51)/$E$1*100,0) -> 0 | R52: =IF($E$1>0,SUM(R45:R51)/$E$1*100,0) -> 0 | T52: =IF($E$1>0,SUM(T45:T51)/$E$1*100,0) -> 0 | V52: =SUM(V45:V51) -> 0 | W52: =IF($E$1>0,SUM(V45:V51)/$E$1*100,0) -> 0 | X52: =SUM(X45:X51) -> 0 | Y52: =IF(COUNT(Y45:Y51)>0,SUM(Y45:Y51),"") ->  | AG52: =IF($E$1>0,SUM(AG45:AG51)/$E$1*100,0) -> 0 | AI52: =IF($E$1>0,SUM(AI45:AI51)/$E$1*100,0) -> 0 | AL52: =IF($E$1>0,SUM(AL45:AL51)/$E$1*100,0) -> 0 | AN52: =SUM(AN45:AN51) -> 0 | AR52: =IF($AN52>0,SUM(AR45:AR51)/$AN52,0) -> 0 | AT52: =IF($AN52>0,SUM(AT45:AT51)/$AN52,0) -> 0 | AV52: =IF($AN52>0,SUM(AV45:AV51)/$AN52,0) -> 0 | AX52: =IF($AN52>0,SUM(AX45:AX51)/$AN52,0) -> 0 | AZ52: =IF($AN52>0,SUM(AZ45:AZ51)/$AN52,0) -> 0 | BB52: =IF($AN52>0,SUM(BB45:BB51)/$AN52,0) -> 0 | BD52: =SUM(BD45:BD51) -> 0 | BE52: =IF(AN52>0,BD52/AN52,0) -> 0 | BH52: =SUM(BH45:BH51) -> 0 | BK52: =SUM(BK45:BK51) -> 0 | BN52: =SUM(BN45:BN51) -> 0 | BQ52: =SUM(BQ45:BQ51) -> 0 | BR52: =SUM(BR45:BR51) -> 0 | BT52: =IF(SUM(BT45:BT51)>0,AVERAGE(BT45:BT51),"") ->  | BU52: =IF(SUM(BU45:BU51)>0,AVERAGE(BU45:BU51),"") ->  | BV52: =IF(SUM(BV45:BV51)>0,AVERAGE(BV45:BV51),"") -> 
B53: DATEN032 | C53: 29 | D53: =D51-V51 -> 0 | V53: =SUM(F53:T53) -> 0 | W53: =IF(AND(V53>0,$E$1>0),V53/$E$1*100,0) -> 0 | X53: =IF(AND(V53>0,D53>0),V53/D53*100,0) -> 0 | Y53: =IF(AND(COUNT(F53)=1,D53>0),F53/D53*100,"") ->  | Z53: =IF(AND(COUNT(H53)=1,D53>0),H53/D53*100,"") ->  | AA53: =IF(AND(COUNT(J53)=1,D53>0),J53/D53*100,"") ->  | AB53: =IF(AND(COUNT(N53)=1,D53>0),N53/D53*100,"") ->  | AC53: =IF(AND(COUNT(P53)=1,D53>0),P53/D53*100,"") ->  | AD53: =IF(AND(COUNT(T53)=1,D53>0),T53/D53*100,"") ->  | AL53: =SUM(AG53:AI53) -> 0 | AP53: =IF(D53>0,AN53/D53*100,"") ->  | BD53: =SUM(AR53:BB53) -> 0 | BE53: =IF(AN53>0,BD53/AN53*100,0) -> 0 | BH53: =IF(AND(COUNT(BG$17)=1,COUNT(BG51)=1, BG53>BG51),BG53-BG51,0) -> 0 | BK53: =IF(AND(COUNT(BJ$17)=1,COUNT(BJ51)=1, BJ53>BJ51),BJ53-BJ51,0) -> 0 | BN53: =IF(AND(COUNT(BM$17)=1,COUNT(BM51)=1, BM53>BM51),BM53-BM51,0) -> 0 | BQ53: =IF(AND(COUNT(BP$17)=1,COUNT(BP51)=1, BP53>BP51),BP53-BP51,0) -> 0 | BT53: =IF((BH53+BK53+BN53+BQ53+BR53/1000)>0,(BH53+BK53+BN53+BQ53+BR53/1000)*1000,"") ->  | BU53: =IF(AND(D53>0,BT53<>""),BT53/D53,"") ->  | BV53: =IF(AND(D53>0,BT53<>""),BT53/D53*1000,"") -> 
B54: DATEN033 | C54: 30 | D54: =D53-V53 -> 0 | V54: 0 | W54: 0 | X54: 0 | AL54: 0 | BD54: 0 | BE54: 0 | BH54: =IF(AND(COUNT(BG$17)=1,COUNT(BG53)=1, BG54>BG53),BG54-BG53,0) -> 0 | BK54: =IF(AND(COUNT(BJ$17)=1,COUNT(BJ53)=1, BJ54>BJ53),BJ54-BJ53,0) -> 0 | BN54: =IF(AND(COUNT(BM$17)=1,COUNT(BM53)=1, BM54>BM53),BM54-BM53,0) -> 0 | BQ54: =IF(AND(COUNT(BP$17)=1,COUNT(BP53)=1, BP54>BP53),BP54-BP53,0) -> 0
B55: DATEN034 | C55: 31 | D55: 0 | V55: 0 | W55: 0 | X55: 0 | AL55: 0 | BD55: 0 | BE55: 0 | BH55: 0 | BK55: 0 | BN55: 0 | BQ55: 0
B56: DATEN035 | C56: 32 | D56: 0 | V56: 0 | W56: 0 | X56: 0 | AL56: 0 | BD56: 0 | BE56: 0 | BH56: 0 | BK56: 0 | BN56: 0 | BQ56: 0
B57: DATEN036 | C57: 33 | D57: 0 | V57: 0 | W57: 0 | X57: 0 | AL57: 0 | BD57: 0 | BE57: 0 | BH57: 0 | BK57: 0 | BN57: 0 | BQ57: 0
B58: DATEN037 | C58: 34 | D58: 0 | V58: 0 | W58: 0 | X58: 0 | AL58: 0 | BD58: 0 | BE58: 0 | BH58: 0 | BK58: 0 | BN58: 0 | BQ58: 0
B59: DATEN038 | C59: 35 | D59: 0 | V59: 0 | W59: 0 | X59: 0 | AL59: 0 | BD59: 0 | BE59: 0 | BH59: 0 | BK59: 0 | BN59: 0 | BQ59: 0
B60: ERGEB905 | D60: Ergebnisse | E60: % | F60: =IF($E$1>0,SUM(F53:F59)/$E$1*100,0) -> 0 | H60: =IF($E$1>0,SUM(H53:H59)/$E$1*100,0) -> 0 | J60: =IF($E$1>0,SUM(J53:J59)/$E$1*100,0) -> 0 | L60: =IF($E$1>0,SUM(L53:L59)/$E$1*100,0) -> 0 | N60: =IF($E$1>0,SUM(N53:N59)/$E$1*100,0) -> 0 | P60: =IF($E$1>0,SUM(P53:P59)/$E$1*100,0) -> 0 | R60: =IF($E$1>0,SUM(R53:R59)/$E$1*100,0) -> 0 | T60: =IF($E$1>0,SUM(T53:T59)/$E$1*100,0) -> 0 | V60: =SUM(V53:V59) -> 0 | W60: =IF($E$1>0,SUM(V53:V59)/$E$1*100,0) -> 0 | X60: =SUM(X53:X59) -> 0 | Y60: =IF(COUNT(Y53:Y59)>0,SUM(Y53:Y59),"") ->  | AG60: =IF($E$1>0,SUM(AG53:AG59)/$E$1*100,0) -> 0 | AI60: =IF($E$1>0,SUM(AI53:AI59)/$E$1*100,0) -> 0 | AL60: =IF($E$1>0,SUM(AL53:AL59)/$E$1*100,0) -> 0 | AN60: =SUM(AN53:AN59) -> 0 | AR60: =IF($AN60>0,SUM(AR53:AR59)/$AN60,0) -> 0 | AT60: =IF($AN60>0,SUM(AT53:AT59)/$AN60,0) -> 0 | AV60: =IF($AN60>0,SUM(AV53:AV59)/$AN60,0) -> 0 | AX60: =IF($AN60>0,SUM(AX53:AX59)/$AN60,0) -> 0 | AZ60: =IF($AN60>0,SUM(AZ53:AZ59)/$AN60,0) -> 0 | BB60: =IF($AN60>0,SUM(BB53:BB59)/$AN60,0) -> 0 | BD60: =SUM(BD53:BD59) -> 0 | BE60: =IF(AN60>0,BD60/AN60,0) -> 0 | BH60: =SUM(BH53:BH59) -> 0 | BK60: =SUM(BK53:BK59) -> 0 | BN60: =SUM(BN53:BN59) -> 0 | BQ60: =SUM(BQ53:BQ59) -> 0 | BR60: =SUM(BR53:BR59) -> 0 | BT60: =IF(SUM(BT53:BT59)>0,AVERAGE(BT53:BT59),"") ->  | BU60: =IF(SUM(BU53:BU59)>0,AVERAGE(BU53:BU59),"") ->  | BV60: =IF(SUM(BV53:BV59)>0,AVERAGE(BV53:BV59),"") -> 
B61: DATEN040 | C61: 36 | D61: =D59-V59 -> 0 | V61: =SUM(F61:T61) -> 0 | W61: =IF(AND(V61>0,$E$1>0),V61/$E$1*100,0) -> 0 | X61: =IF(AND(V61>0,D61>0),V61/D61*100,0) -> 0 | Y61: =IF(AND(COUNT(F61)=1,D61>0),F61/D61*100,"") ->  | Z61: =IF(AND(COUNT(H61)=1,D61>0),H61/D61*100,"") ->  | AA61: =IF(AND(COUNT(J61)=1,D61>0),J61/D61*100,"") ->  | AB61: =IF(AND(COUNT(N61)=1,D61>0),N61/D61*100,"") ->  | AC61: =IF(AND(COUNT(P61)=1,D61>0),P61/D61*100,"") ->  | AD61: =IF(AND(COUNT(T61)=1,D61>0),T61/D61*100,"") ->  | AL61: =SUM(AG61:AI61) -> 0 | AP61: =IF(D61>0,AN61/D61*100,"") ->  | BD61: =SUM(AR61:BB61) -> 0 | BE61: =IF(AN61>0,BD61/AN61*100,0) -> 0 | BH61: =IF(AND(COUNT(BG$17)=1,COUNT(BG59)=1, BG61>BG59),BG61-BG59,0) -> 0 | BK61: =IF(AND(COUNT(BJ$17)=1,COUNT(BJ59)=1, BJ61>BJ59),BJ61-BJ59,0) -> 0 | BN61: =IF(AND(COUNT(BM$17)=1,COUNT(BM59)=1, BM61>BM59),BM61-BM59,0) -> 0 | BQ61: =IF(AND(COUNT(BP$17)=1,COUNT(BP59)=1, BP61>BP59),BP61-BP59,0) -> 0 | BT61: =IF((BH61+BK61+BN61+BQ61+BR61/1000)>0,(BH61+BK61+BN61+BQ61+BR61/1000)*1000,"") ->  | BU61: =IF(AND(D61>0,BT61<>""),BT61/D61,"") ->  | BV61: =IF(AND(D61>0,BT61<>""),BT61/D61*1000,"") -> 
B62: DATEN041 | C62: 37 | D62: =D61-V61 -> 0 | V62: 0 | W62: 0 | X62: 0 | AL62: 0 | BD62: 0 | BE62: 0 | BH62: =IF(AND(COUNT(BG$17)=1,COUNT(BG61)=1, BG62>BG61),BG62-BG61,0) -> 0 | BK62: =IF(AND(COUNT(BJ$17)=1,COUNT(BJ61)=1, BJ62>BJ61),BJ62-BJ61,0) -> 0 | BN62: =IF(AND(COUNT(BM$17)=1,COUNT(BM61)=1, BM62>BM61),BM62-BM61,0) -> 0 | BQ62: =IF(AND(COUNT(BP$17)=1,COUNT(BP61)=1, BP62>BP61),BP62-BP61,0) -> 0
B63: DATEN042 | C63: 38 | D63: 0 | V63: 0 | W63: 0 | X63: 0 | AL63: 0 | BD63: 0 | BE63: 0 | BH63: 0 | BK63: 0 | BN63: 0 | BQ63: 0
B64: DATEN043 | C64: 39 | D64: 0 | V64: 0 | W64: 0 | X64: 0 | AL64: 0 | BD64: 0 | BE64: 0 | BH64: 0 | BK64: 0 | BN64: 0 | BQ64: 0
B65: DATEN044 | C65: 40 | D65: 0 | V65: 0 | W65: 0 | X65: 0 | AL65: 0 | BD65: 0 | BE65: 0 | BH65: 0 | BK65: 0 | BN65: 0 | BQ65: 0
B66: DATEN045 | C66: 41 | D66: 0 | V66: 0 | W66: 0 | X66: 0 | AL66: 0 | BD66: 0 | BE66: 0 | BH66: 0 | BK66: 0 | BN66: 0 | BQ66: 0
B67: DATEN046 | C67: 42 | D67: 0 | V67: 0 | W67: 0 | X67: 0 | AL67: 0 | BD67: 0 | BE67: 0 | BH67: 0 | BK67: 0 | BN67: 0 | BQ67: 0
B68: ERGEB906 | D68: Ergebnisse | E68: % | F68: =IF($E$1>0,SUM(F61:F67)/$E$1*100,0) -> 0 | H68: =IF($E$1>0,SUM(H61:H67)/$E$1*100,0) -> 0 | J68: =IF($E$1>0,SUM(J61:J67)/$E$1*100,0) -> 0 | L68: =IF($E$1>0,SUM(L61:L67)/$E$1*100,0) -> 0 | N68: =IF($E$1>0,SUM(N61:N67)/$E$1*100,0) -> 0 | P68: =IF($E$1>0,SUM(P61:P67)/$E$1*100,0) -> 0 | R68: =IF($E$1>0,SUM(R61:R67)/$E$1*100,0) -> 0 | T68: =IF($E$1>0,SUM(T61:T67)/$E$1*100,0) -> 0 | V68: =SUM(V61:V67) -> 0 | W68: =IF($E$1>0,SUM(V61:V67)/$E$1*100,0) -> 0 | X68: =SUM(X61:X67) -> 0 | Y68: =IF(COUNT(Y61:Y67)>0,SUM(Y61:Y67),"") ->  | AG68: =IF($E$1>0,SUM(AG61:AG67)/$E$1*100,0) -> 0 | AI68: =IF($E$1>0,SUM(AI61:AI67)/$E$1*100,0) -> 0 | AL68: =IF($E$1>0,SUM(AL61:AL67)/$E$1*100,0) -> 0 | AN68: =SUM(AN61:AN67) -> 0 | AR68: =IF($AN68>0,SUM(AR61:AR67)/$AN68,0) -> 0 | AT68: =IF($AN68>0,SUM(AT61:AT67)/$AN68,0) -> 0 | AV68: =IF($AN68>0,SUM(AV61:AV67)/$AN68,0) -> 0 | AX68: =IF($AN68>0,SUM(AX61:AX67)/$AN68,0) -> 0 | AZ68: =IF($AN68>0,SUM(AZ61:AZ67)/$AN68,0) -> 0 | BB68: =IF($AN68>0,SUM(BB61:BB67)/$AN68,0) -> 0 | BD68: =SUM(BD61:BD67) -> 0 | BE68: =IF(AN68>0,BD68/AN68,0) -> 0 | BH68: =SUM(BH61:BH67) -> 0 | BK68: =SUM(BK61:BK67) -> 0 | BN68: =SUM(BN61:BN67) -> 0 | BQ68: =SUM(BQ61:BQ67) -> 0 | BR68: =SUM(BR61:BR67) -> 0 | BT68: =IF(SUM(BT61:BT67)>0,AVERAGE(BT61:BT67),"") ->  | BU68: =IF(SUM(BU61:BU67)>0,AVERAGE(BU61:BU67),"") ->  | BV68: =IF(SUM(BV61:BV67)>0,AVERAGE(BV61:BV67),"") -> 
B69: DATEN047 | C69: 43 | D69: =D67-V68 -> 0 | V69: =SUM(F69:T69) -> 0 | W69: =IF(AND(V69>0,$E$1>0),V69/$E$1*100,0) -> 0 | X69: =IF(AND(V69>0,D69>0),V69/D69*100,0) -> 0 | Y69: =IF(AND(COUNT(F69)=1,D69>0),F69/D69*100,"") ->  | Z69: =IF(AND(COUNT(H69)=1,D69>0),H69/D69*100,"") ->  | AA69: =IF(AND(COUNT(J69)=1,D69>0),J69/D69*100,"") ->  | AB69: =IF(AND(COUNT(N69)=1,D69>0),N69/D69*100,"") ->  | AC69: =IF(AND(COUNT(P69)=1,D69>0),P69/D69*100,"") ->  | AD69: =IF(AND(COUNT(T69)=1,D69>0),T69/D69*100,"") ->  | AL69: =SUM(AG69:AI69) -> 0 | AP69: =IF(D69>0,AN69/D69*100,"") ->  | BD69: =SUM(AR69:BB69) -> 0 | BE69: =IF(AN69>0,BD69/AN69*100,0) -> 0 | BH69: =IF(AND(COUNT(BG$17)=1,COUNT(BG67)=1, BG69>BG67),BG69-BG67,0) -> 0 | BK69: =IF(AND(COUNT(BJ$17)=1,COUNT(BJ67)=1, BJ69>BJ67),BJ69-BJ67,0) -> 0 | BN69: =IF(AND(COUNT(BM$17)=1,COUNT(BM67)=1, BM69>BM67),BM69-BM67,0) -> 0 | BQ69: =IF(AND(COUNT(BP$17)=1,COUNT(BP67)=1, BP69>BP67),BP69-BP67,0) -> 0 | BT69: =IF((BH69+BK69+BN69+BQ69+BR69/1000)>0,(BH69+BK69+BN69+BQ69+BR69/1000)*1000,"") ->  | BU69: =IF(AND(D69>0,BT69<>""),BT69/D69,"") ->  | BV69: =IF(AND(D69>0,BT69<>""),BT69/D69*1000,"") -> 
B70: DATEN048 | C70: 44 | D70: =D69-V69 -> 0 | V70: 0 | W70: 0 | X70: 0 | AL70: 0 | BD70: 0 | BE70: 0 | BH70: =IF(AND(COUNT(BG$17)=1,COUNT(BG69)=1, BG70>BG69),BG70-BG69,0) -> 0 | BK70: =IF(AND(COUNT(BJ$17)=1,COUNT(BJ69)=1, BJ70>BJ69),BJ70-BJ69,0) -> 0 | BN70: =IF(AND(COUNT(BM$17)=1,COUNT(BM69)=1, BM70>BM69),BM70-BM69,0) -> 0 | BQ70: =IF(AND(COUNT(BP$17)=1,COUNT(BP69)=1, BP70>BP69),BP70-BP69,0) -> 0
B71: DATEN049 | C71: 45 | D71: 0 | V71: 0 | W71: 0 | X71: 0 | AL71: 0 | BD71: 0 | BE71: 0 | BH71: 0 | BK71: 0 | BN71: 0 | BQ71: 0
B72: DATEN050 | C72: 46 | D72: 0 | V72: 0 | W72: 0 | X72: 0 | AL72: 0 | BD72: 0 | BE72: 0 | BH72: 0 | BK72: 0 | BN72: 0 | BQ72: 0
B73: DATEN051 | C73: 47 | D73: 0 | V73: 0 | W73: 0 | X73: 0 | AL73: 0 | BD73: 0 | BE73: 0 | BH73: 0 | BK73: 0 | BN73: 0 | BQ73: 0
B74: DATEN052 | C74: 48 | D74: 0 | V74: 0 | W74: 0 | X74: 0 | AL74: 0 | BD74: 0 | BE74: 0 | BH74: 0 | BK74: 0 | BN74: 0 | BQ74: 0
B75: DATEN053 | C75: 49 | D75: 0 | V75: 0 | W75: 0 | X75: 0 | AL75: 0 | BD75: 0 | BE75: 0 | BH75: 0 | BK75: 0 | BN75: 0 | BQ75: 0
B76: ERGEB907 | D76: Ergebnisse | E76: % | F76: =IF($E$1>0,SUM(F69:F75)/$E$1*100,0) -> 0 | H76: =IF($E$1>0,SUM(H69:H75)/$E$1*100,0) -> 0 | J76: =IF($E$1>0,SUM(J69:J75)/$E$1*100,0) -> 0 | L76: =IF($E$1>0,SUM(L69:L75)/$E$1*100,0) -> 0 | N76: =IF($E$1>0,SUM(N69:N75)/$E$1*100,0) -> 0 | P76: =IF($E$1>0,SUM(P69:P75)/$E$1*100,0) -> 0 | R76: =IF($E$1>0,SUM(R69:R75)/$E$1*100,0) -> 0 | T76: =IF($E$1>0,SUM(T69:T75)/$E$1*100,0) -> 0 | V76: =SUM(V69:V75) -> 0 | W76: =IF($E$1>0,SUM(V69:V75)/$E$1*100,0) -> 0 | X76: =SUM(X69:X75) -> 0 | Y76: =IF(COUNT(Y69:Y75)>0,SUM(Y69:Y75),"") ->  | AG76: =IF($E$1>0,SUM(AG69:AG75)/$E$1*100,0) -> 0 | AI76: =IF($E$1>0,SUM(AI69:AI75)/$E$1*100,0) -> 0 | AL76: =IF($E$1>0,SUM(AL69:AL75)/$E$1*100,0) -> 0 | AN76: =SUM(AN69:AN75) -> 0 | AR76: =IF($AN76>0,SUM(AR69:AR75)/$AN76,0) -> 0 | AT76: =IF($AN76>0,SUM(AT69:AT75)/$AN76,0) -> 0 | AV76: =IF($AN76>0,SUM(AV69:AV75)/$AN76,0) -> 0 | AX76: =IF($AN76>0,SUM(AX69:AX75)/$AN76,0) -> 0 | AZ76: =IF($AN76>0,SUM(AZ69:AZ75)/$AN76,0) -> 0 | BB76: =IF($AN76>0,SUM(BB69:BB75)/$AN76,0) -> 0 | BD76: =SUM(BD69:BD75) -> 0 | BE76: =IF(AN76>0,BD76/AN76,0) -> 0 | BH76: =SUM(BH69:BH75) -> 0 | BK76: =SUM(BK69:BK75) -> 0 | BN76: =SUM(BN69:BN75) -> 0 | BQ76: =SUM(BQ69:BQ75) -> 0 | BR76: =SUM(BR69:BR75) -> 0 | BT76: =IF(SUM(BT69:BT75)>0,AVERAGE(BT69:BT75),"") ->  | BU76: =IF(SUM(BU69:BU75)>0,AVERAGE(BU69:BU75),"") ->  | BV76: =IF(SUM(BV69:BV75)>0,AVERAGE(BV69:BV75),"") -> 
B77: DATEN054 | C77: 50 | D77: =D75-V76 -> 0 | V77: =SUM(F77:T77) -> 0 | W77: =IF(AND(V77>0,$E$1>0),V77/$E$1*100,0) -> 0 | X77: =IF(AND(V77>0,D77>0),V77/D77*100,0) -> 0 | Y77: =IF(AND(COUNT(F77)=1,D77>0),F77/D77*100,"") ->  | Z77: =IF(AND(COUNT(H77)=1,D77>0),H77/D77*100,"") ->  | AA77: =IF(AND(COUNT(J77)=1,D77>0),J77/D77*100,"") ->  | AB77: =IF(AND(COUNT(N77)=1,D77>0),N77/D77*100,"") ->  | AC77: =IF(AND(COUNT(P77)=1,D77>0),P77/D77*100,"") ->  | AD77: =IF(AND(COUNT(T77)=1,D77>0),T77/D77*100,"") ->  | AL77: =SUM(AG77:AI77) -> 0 | AP77: =IF(D77>0,AN77/D77*100,"") ->  | BD77: =SUM(AR77:BB77) -> 0 | BE77: =IF(AN77>0,BD77/AN77*100,0) -> 0 | BH77: =IF(AND(COUNT(BG$17)=1,COUNT(BG75)=1, BG77>BG75),BG77-BG75,0) -> 0 | BK77: =IF(AND(COUNT(BJ$17)=1,COUNT(BJ75)=1, BJ77>BJ75),BJ77-BJ75,0) -> 0 | BN77: =IF(AND(COUNT(BM$17)=1,COUNT(BM75)=1, BM77>BM75),BM77-BM75,0) -> 0 | BQ77: =IF(AND(COUNT(BP$17)=1,COUNT(BP75)=1, BP77>BP75),BP77-BP75,0) -> 0 | BT77: =IF((BH77+BK77+BN77+BQ77+BR77/1000)>0,(BH77+BK77+BN77+BQ77+BR77/1000)*1000,"") ->  | BU77: =IF(AND(D77>0,BT77<>""),BT77/D77,"") ->  | BV77: =IF(AND(D77>0,BT77<>""),BT77/D77*1000,"") -> 
B78: DATEN055 | C78: 51 | D78: =D77-V77 -> 0 | V78: 0 | W78: 0 | X78: 0 | AL78: 0 | BD78: 0 | BE78: 0 | BH78: =IF(AND(COUNT(BG$17)=1,COUNT(BG77)=1, BG78>BG77),BG78-BG77,0) -> 0 | BK78: =IF(AND(COUNT(BJ$17)=1,COUNT(BJ77)=1, BJ78>BJ77),BJ78-BJ77,0) -> 0 | BN78: =IF(AND(COUNT(BM$17)=1,COUNT(BM77)=1, BM78>BM77),BM78-BM77,0) -> 0 | BQ78: =IF(AND(COUNT(BP$17)=1,COUNT(BP77)=1, BP78>BP77),BP78-BP77,0) -> 0
B79: DATEN056 | C79: 52 | D79: 0 | V79: 0 | W79: 0 | X79: 0 | AL79: 0 | BD79: 0 | BE79: 0 | BH79: 0 | BK79: 0 | BN79: 0 | BQ79: 0
B80: DATEN057 | C80: 53 | D80: 0 | V80: 0 | W80: 0 | X80: 0 | AL80: 0 | BD80: 0 | BE80: 0 | BH80: 0 | BK80: 0 | BN80: 0 | BQ80: 0
B81: DATEN058 | C81: 54 | D81: 0 | V81: 0 | W81: 0 | X81: 0 | AL81: 0 | BD81: 0 | BE81: 0 | BH81: 0 | BK81: 0 | BN81: 0 | BQ81: 0
B82: DATEN059 | C82: 55 | D82: 0 | V82: 0 | W82: 0 | X82: 0 | AL82: 0 | BD82: 0 | BE82: 0 | BH82: 0 | BK82: 0 | BN82: 0 | BQ82: 0
B83: DATEN060 | C83: 56 | D83: 0 | V83: 0 | W83: 0 | X83: 0 | AL83: 0 | BD83: 0 | BE83: 0 | BH83: 0 | BK83: 0 | BN83: 0 | BQ83: 0
B84: ERGEB908 | D84: Ergebnisse | E84: % | F84: =IF($E$1>0,SUM(F77:F83)/$E$1*100,0) -> 0 | H84: =IF($E$1>0,SUM(H77:H83)/$E$1*100,0) -> 0 | J84: =IF($E$1>0,SUM(J77:J83)/$E$1*100,0) -> 0 | L84: =IF($E$1>0,SUM(L77:L83)/$E$1*100,0) -> 0 | N84: =IF($E$1>0,SUM(N77:N83)/$E$1*100,0) -> 0 | P84: =IF($E$1>0,SUM(P77:P83)/$E$1*100,0) -> 0 | R84: =IF($E$1>0,SUM(R77:R83)/$E$1*100,0) -> 0 | T84: =IF($E$1>0,SUM(T77:T83)/$E$1*100,0) -> 0 | V84: =SUM(V77:V83) -> 0 | W84: =IF($E$1>0,SUM(V77:V83)/$E$1*100,0) -> 0 | X84: =SUM(X77:X83) -> 0 | Y84: =IF(COUNT(Y77:Y83)>0,SUM(Y77:Y83),"") ->  | AG84: =IF($E$1>0,SUM(AG77:AG83)/$E$1*100,0) -> 0 | AI84: =IF($E$1>0,SUM(AI77:AI83)/$E$1*100,0) -> 0 | AL84: =IF($E$1>0,SUM(AL77:AL83)/$E$1*100,0) -> 0 | AN84: =SUM(AN77:AN83) -> 0 | AR84: =IF($AN84>0,SUM(AR77:AR83)/$AN84,0) -> 0 | AT84: =IF($AN84>0,SUM(AT77:AT83)/$AN84,0) -> 0 | AV84: =IF($AN84>0,SUM(AV77:AV83)/$AN84,0) -> 0 | AX84: =IF($AN84>0,SUM(AX77:AX83)/$AN84,0) -> 0 | AZ84: =IF($AN84>0,SUM(AZ77:AZ83)/$AN84,0) -> 0 | BB84: =IF($AN84>0,SUM(BB77:BB83)/$AN84,0) -> 0 | BD84: =SUM(BD77:BD83) -> 0 | BE84: =IF(AN84>0,BD84/AN84,0) -> 0 | BH84: =SUM(BH77:BH83) -> 0 | BK84: =SUM(BK77:BK83) -> 0 | BN84: =SUM(BN77:BN83) -> 0 | BQ84: =SUM(BQ77:BQ83) -> 0 | BR84: =SUM(BR77:BR83) -> 0 | BT84: =IF(SUM(BT77:BT83)>0,AVERAGE(BT77:BT83),"") ->  | BU84: =IF(SUM(BU77:BU83)>0,AVERAGE(BU77:BU83),"") ->  | BV84: =IF(SUM(BV77:BV83)>0,AVERAGE(BV77:BV83),"") -> 
B86: DATEN099 | C86: =IF(RIGHT(B4,2)="WV","","Direkteingabe") -> Direkteingabe | V86: =SUM(F86:T86) -> 0 | W86: =IF(V86>0,V86/D17*100,0) -> 0 | X86: =X84+X76+X68+X60+X52+X44+X36+X28 -> 0 | AL86: =SUM(AG86:AI86) -> 0 | BD86: =SUM(AR86:BB86) -> 0
E89: Ergebnisse
E90: Tierverluste nach Ursachen | X90: Summe täglicher Mortalitätsraten | AF90: Separierung wegen | AN90: Ergebnisse | BG90: Ergebnisse
F91: =F18 -> Unfall | H91: Erkrank- | J91: Hunger/ | L91: Kanniba- | N91: Lahm- | P91: Beute- | R91: Haut- | T91: Sonstige | W91: Gesamt- | X91: Gesamt | Y91: =Y18 -> Unfall | Z91: Erkrank- | AA91: Hunger/ | AB91: Lahm- | AC91: Beute- | AD91: Sonstige | AG91: Lahm- | AI91: Haut- | AN91: Legeleistung / Eiqualität | BG91: Wasserverbrauch
H92: ungen | J92: Durst | L92: lismus | N92: heit | P92: greifer | R92: verletz. | T92: Ursachen | W92: verluste | Z92: ungen | AA92: Durst | AB92: heit | AC92: greifer | AD92: Ursachen | AG92: heit | AI92: verl. | BT92: Durchschnittsverbrauch
B93: ERGEB910 | E93: Anzahl | F93: =IF(F86<>"",F86,SUM(F21:F27,F29:F35,F37:F43,F45:F51,F53:F59,F61:F67,F69:F75,F77:F83)) -> 0 | H93: =IF(H86<>"",H86,SUM(H21:H27,H29:H35,H37:H43,H45:H51,H53:H59,H61:H67,H69:H75,H77:H83)) -> 0 | J93: =IF(J86<>"",J86,SUM(J21:J27,J29:J35,J37:J43,J45:J51,J53:J59,J61:J67,J69:J75,J77:J83)) -> 0 | L93: =IF(L86<>"",L86,SUM(L21:L27,L29:L35,L37:L43,L45:L51,L53:L59,L61:L67,L69:L75,L77:L83)) -> 0 | N93: =IF(N86<>"",N86,SUM(N21:N27,N29:N35,N37:N43,N45:N51,N53:N59,N61:N67,N69:N75,N77:N83)) -> 0 | P93: =IF(P86<>"",P86,SUM(P21:P27,P29:P35,P37:P43,P45:P51,P53:P59,P61:P67,P69:P75,P77:P83)) -> 0 | R93: =IF(R86<>"",R86,SUM(R21:R27,R29:R35,R37:R43,R45:R51,R53:R59,R61:R67,R69:R75,R77:R83)) -> 0 | T93: =IF(T86<>"",T86,SUM(T21:T27,T29:T35,T37:T43,T45:T51,T53:T59,T61:T67,T69:T75,T77:T83)) -> 0 | W93: =SUM(F93:T93) -> 0 | AG93: =IF(AG86<>"",AG86,SUM(AG21:AG27,AG29:AG35,AG37:AG43,AG45:AG51,AG53:AG59,AG61:AG67,AG69:AG75,AG77:AG83)) -> 0 | AI93: =IF(AI86<>"",AI86,SUM(AI21:AI27,AI29:AI35,AI37:AI43,AI45:AI51,AI53:AI59,AI61:AI67,AI69:AI75,AI77:AI83)) -> 0 | AM93: Anzahl | AN93: =IF(AN86<>"",AN86,SUM(AN21:AN27,AN29:AN35,AN37:AN43,AN45:AN51,AN53:AN59,AN61:AN67,AN69:AN75,AN77:AN83)) -> 0 | AR93: =IF(AR86<>"",AR86,SUM(AR21:AR27,AR29:AR35,AR37:AR43,AR45:AR51,AR53:AR59,AR61:AR67,AR69:AR75,AR77:AR83)) -> 0 | AT93: =IF(AT86<>"",AT86,SUM(AT21:AT27,AT29:AT35,AT37:AT43,AT45:AT51,AT53:AT59,AT61:AT67,AT69:AT75,AT77:AT83)) -> 0 | AV93: =IF(AV86<>"",AV86,SUM(AV21:AV27,AV29:AV35,AV37:AV43,AV45:AV51,AV53:AV59,AV61:AV67,AV69:AV75,AV77:AV83)) -> 0 | AX93: =IF(AX86<>"",AX86,SUM(AX21:AX27,AX29:AX35,AX37:AX43,AX45:AX51,AX53:AX59,AX61:AX67,AX69:AX75,AX77:AX83)) -> 0 | AZ93: =IF(AZ86<>"",AZ86,SUM(AZ21:AZ27,AZ29:AZ35,AZ37:AZ43,AZ45:AZ51,AZ53:AZ59,AZ61:AZ67,AZ69:AZ75,AZ77:AZ83)) -> 0 | BB93: =IF(BB86<>"",BB86,SUM(BB21:BB27,BB29:BB35,BB37:BB43,BB45:BB51,BB53:BB59,BB61:BB67,BB69:BB75,BB77:BB83)) -> 0 | BD93: =SUM(AR93:BB93) -> 0 | BG93: Wasseruhr 1 | BJ93: Wasseruhr 2 | BM93: Wasseruhr 3 | BP93: Wasseruhr 4 | BT93: l/Herde | BU93: l/Tier | BV93: l/1000 Tiere
B94: ERGEB911 | E94: % | F94: =IF(B1="GF_HUHN","",IF(AND(COUNT(F21:F27,F29:F35,F37:F43,F45:F51,F53:F59,F61:F67,F69:F75,F77:F83,F86)>0,$E$1>0),F93/$E$1*100,"")) ->  | H94: =IF(D1="GF_HUHN","",IF(AND(COUNT(H21:H27,H29:H35,H37:H43,H45:H51,H53:H59,H61:H67,H69:H75,H77:H83,H86)>0,$E$1>0),H93/$E$1*100,"")) ->  | J94: =IF(F1="GF_HUHN","",IF(AND(COUNT(J21:J27,J29:J35,J37:J43,J45:J51,J53:J59,J61:J67,J69:J75,J77:J83,J86)>0,$E$1>0),J93/$E$1*100,"")) ->  | L94: =IF(H1="GF_HUHN","",IF(AND(COUNT(L21:L27,L29:L35,L37:L43,L45:L51,L53:L59,L61:L67,L69:L75,L77:L83,L86)>0,$E$1>0),L93/$E$1*100,"")) ->  | N94: =IF(J1="GF_HUHN","",IF(AND(COUNT(N21:N27,N29:N35,N37:N43,N45:N51,N53:N59,N61:N67,N69:N75,N77:N83,N86)>0,$E$1>0),N93/$E$1*100,"")) ->  | P94: =IF(L1="GF_HUHN","",IF(AND(COUNT(P21:P27,P29:P35,P37:P43,P45:P51,P53:P59,P61:P67,P69:P75,P77:P83,P86)>0,$E$1>0),P93/$E$1*100,"")) ->  | R94: =IF(N1="GF_HUHN","",IF(AND(COUNT(R21:R27,R29:R35,R37:R43,R45:R51,R53:R59,R61:R67,R69:R75,R77:R83,R86)>0,$E$1>0),R93/$E$1*100,"")) ->  | T94: =IF(P1="GF_HUHN","",IF(AND(COUNT(T21:T27,T29:T35,T37:T43,T45:T51,T53:T59,T61:T67,T69:T75,T77:T83,T86)>0,$E$1>0),T93/$E$1*100,"")) ->  | W94: =IF(B1="GF_HUHN","",IF(AND(W93>0,$E$1>0),W93/$E$1*100,0)) -> 0 | X94: =IF(X86<>"",X86,SUM(X21:X27,X29:X35,X37:X43,X45:X51,X53:X59,X61:X67,X69:X75,X77:X83)) -> 0 | Y94: =IF(COUNT(Y21:Y86) >0,IF(Y86<>"",Y86,SUM(Y21:Y27,Y29:Y35,Y37:Y43,Y45:Y51,Y53:Y59,Y61:Y67,Y69:Y75,Y77:Y83)),"") ->  | AG94: =IF(AND(COUNT(AG21:AG86)>8,$E$1>0),AG93/$E$1*100,"") ->  | AI94: =IF(AND(COUNT(AI21:AI86)>8,$E$1>0),AI93/$E$1*100,"") ->  | AM94: % | AP94: =IF(SUM(D21:D51)>0,AN93/SUM(D21:D51)*100,0) -> 0 | AR94: =IF(AND(AR93>0,$AN$93>0),AR93/$AN$93*100,0) -> 0 | AT94: =IF(AND(AT93>0,$AN$93>0),AT93/$AN$93*100,0) -> 0 | AV94: =IF(AND(AV93>0,$AN$93>0),AV93/$AN$93*100,0) -> 0 | AX94: =IF(AND(AX93>0,$AN$93>0),AX93/$AN$93*100,0) -> 0 | AZ94: =IF(AND(AZ93>0,$AN$93>0),AZ93/$AN$93*100,0) -> 0 | BB94: =IF(AND(BB93>0,$AN$93>0),BB93/$AN$93*100,0) -> 0 | BD94: =IF(AND(BD93>0,$AN$93>0),BD93/$AN$93*100,0) -> 0 | BG94: =SUM(BH21:BH27,BH29:BH35,BH37:BH43,BH45:BH51,BH53:BH59,BH61:BH67,BH69:BH75,BH77:BH83) -> 0 | BH94: m3 | BJ94: =SUM(BK21:BK27,BK29:BK35,BK37:BK43,BK45:BK51,BK53:BK59,BK61:BK67,BK69:BK75,BK77:BK83) -> 0 | BK94: m3 | BM94: =SUM(BN21:BN27,BN29:BN35,BN37:BN43,BN45:BN51,BN53:BN59,BN61:BN67,BN69:BN75,BN77:BN83) -> 0 | BN94: m3 | BP94: =SUM(BQ21:BQ27,BQ29:BQ35,BQ37:BQ43,BQ45:BQ51,BQ53:BQ59,BQ61:BQ67,BQ69:BQ75,BQ77:BQ83) -> 0 | BQ94: m3 | BT94: =IF(SUM(BT21:BT84)>0,AVERAGE(BT21:BT27,BT29:BT35,BT37:BT43,BT45:BT51,BT53:BT59,BT61:BT67,BT69:BT75,BT77:BT83),0) -> 0 | BU94: =IF(SUM(BU21:BU84)>0,AVERAGE(BU21:BU27,BU29:BU35,BU37:BU43,BU45:BU51,BU53:BU59,BU61:BU67,BU69:BU75,BU77:BU83),0) -> 0 | BV94: =IF(SUM(BV21:BV84)>0,AVERAGE(BV21:BV27,BV29:BV35,BV37:BV43,BV45:BV51,BV53:BV59,BV61:BV67,BV69:BV75,BV77:BV83),0) -> 0
B95: ERGEB912 | AE95: ="% aufgrund von Lahmheit" & IF(B1="GF_Pute","/Hautverletzungen","") & " gemerzte/separierte Tiere" -> % aufgrund von Lahmheit/Hautverletzungen gemerzte/separierte Tiere | AG95: =IF($E$1>0,(N93+R93+AG93+AI93)/$E$1*100,0) -> 0
B97: DATEN_ENDE
B98: CheckWert
B99: 1

Sheet GF_STALL (hidden)
B1: GF_HUHN | C1: Masthühner | E1: 10000 | F1: 2020-01-01 | H1: Stallliste | K1: 6 | L1: 10
B2: 13 | C2: T | D2: =IF(RIGHT($B$4,2) = "TV","W","-") -> W | E2: =IF(RIGHT($B$4,2) = "TV","W","-") -> W | F2: =$E$2 -> W | G2: W | H2: W | I2: W | J2: W | K2: =IF(AND(RIGHT(B1,5)="HENNE",RIGHT(B4,2)="TV"),"W","-") -> - | L2: =K2 -> - | M2: =IF(AND(RIGHT(B1,5)<>"HENNE",RIGHT(B4,2)="TV"),"W","-") -> W | N2: =M2 -> W | O2: =IF(AND(RIGHT(B1,4)<>"PUTE",RIGHT(B4,2)="TV"),"W","-") -> W | P2: =O2 -> W | Q2: =IF(AND(RIGHT(B1,4)="PUTE",RIGHT(B4,2)="TV"),"W","-") -> - | R2: =Q2 -> - | S2: W | T2: W | U2: W | V2: W | W2: W | X2: W | Y2: W | Z2: W | AA2: - | AB2: =IF(RIGHT(B4,2)="TV","W","-") -> W | AC2: =IF(AND(RIGHT(B1,5)<>"HENNE",RIGHT(B4,2)="TV"),"W","-") -> W | AD2: =$AC$2 -> W | AE2: =$AC$2 -> W | AF2: - | AG2: =$AC$2 -> W | AH2: =IF(AND(RIGHT(B1,4)="HUHN",RIGHT(B4,2)="TV"),"W","-") -> W | AI2: =Q2 -> - | AJ2: =$AC$2 -> W | AK2: =IF(AND(RIGHT(B1,5)<>"HENNE",RIGHT(B4,2)="TV"),"W","-") -> W | AL2: =$AK$2 -> W | AM2: =$AK$2 -> W | AN2: =IF(AND(RIGHT(B1,4)="PUTE",RIGHT(B4,2)="TV"),"W","-") -> - | AO2: =AN2 -> - | AP2: =$AK$2 -> W | AQ2: =$AK$2 -> W | AR2: =AO2 -> - | AS2: =AO2 -> - | AT2: =AK2 -> W | AU2: =AT2 -> W | AV2: =AU2 -> W | AW2: =IF(AND(RIGHT(B1,5)="HENNE",RIGHT(B4,2)="LL"),"W","-") -> - | AX2: =$AW$2 -> - | AY2: =$AW$2 -> - | AZ2: - | BA2: - | BB2: - | BC2: - | BD2: - | BE2: - | BF2: - | BG2: - | BH2: - | BI2: - | BJ2: - | BK2: - | BL2: - | BM2: - | BN2: - | BO2: - | BP2: - | BQ2: - | BR2: - | BS2: - | BT2: =IF(RIGHT($B$4,2) = "WV","W","-") -> - | BU2: =IF(AND(RIGHT(B1,5)="HENNE",RIGHT(B4,2)="WV"),"W","-") -> - | BV2: =BU2 -> - | BW2: =IF(RIGHT($B$4,2) = "WV","W","-") -> - | BX2: =BW2 -> - | BY2: =BU2 -> - | BZ2: =BU2 -> - | CA2: =IF(RIGHT($B$4,2) = "WV","W","-") -> - | CB2: - | CC2: - | CD2: - | CE2: - | CF2: - | CG2: T
B3: GF_STALL | C3: T | D3: R51 | E3: T | F3: W02 | G3: T | H3: =LEFT(F3,1) & TEXT(INT(RIGHT(F3,2)) + 1,"00") -> W03 | I3: T | J3: =LEFT(H3,1) & TEXT(INT(RIGHT(H3,2)) + 1,"00") -> W04 | K3: T | L3: =LEFT(J3,1) & TEXT(INT(RIGHT(J3,2)) + 1,"00") -> W05 | M3: T | N3: =LEFT(L3,1) & TEXT(INT(RIGHT(L3,2)) + 1,"00") -> W06 | O3: T | P3: =LEFT(N3,1) & TEXT(INT(RIGHT(N3,2)) + 1,"00") -> W07 | Q3: T | R3: =LEFT(P3,1) & TEXT(INT(RIGHT(P3,2)) + 1,"00") -> W08 | S3: T | T3: =LEFT(R3,1) & TEXT(INT(RIGHT(R3,2)) + 1,"00") -> W09 | U3: T | V3: =LEFT(T3,1) & TEXT(INT(RIGHT(T3,2)) + 1,"00") -> W10 | W3: T | X3: T | Y3: T | Z3: R30 | AA3: T | AB3: =LEFT(Z3,1) & TEXT(INT(RIGHT(Z3,2)) + 1,"00") -> R31 | AC3: =LEFT(AB3,1) & TEXT(INT(RIGHT(AB3,2)) + 1,"00") -> R32 | AD3: =LEFT(AC3,1) & TEXT(INT(RIGHT(AC3,2)) + 1,"00") -> R33 | AE3: R34 | AF3: R35 | AG3: R36 | AH3: R37 | AI3: R38 | AJ3: R39 | AK3: T | AL3: T | AM3: =LEFT(V3,1) & TEXT(INT(RIGHT(V3,2)) + 1,"00") -> W11 | AN3: T | AO3: =LEFT(AM3,1) & TEXT(INT(RIGHT(AM3,2)) + 1,"00") -> W12 | AP3: =LEFT(AJ3,1) & TEXT(INT(RIGHT(AJ3,2)) + 1,"00") -> R40 | AQ3: =LEFT(AP3,1) & TEXT(INT(RIGHT(AP3,2)) + 1,"00") -> R41 | AR3: R42 | AS3: R43 | AT3: T | AU3: R52 | AV3: R53 | AW3: T | AX3: R54 | AY3: T | AZ3: =LEFT(AO3,1) & TEXT(INT(RIGHT(AO3,2)) + 1,"00") -> W13 | BA3: T | BB3: =LEFT(AS3,1) & TEXT(INT(RIGHT(AS3,2)) + 1,"00") -> R44 | BC3: =LEFT(BB3,1) & TEXT(INT(RIGHT(BB3,2)) + 1,"00") -> R45 | BD3: T | BE3: =LEFT(AZ3,1) & TEXT(INT(RIGHT(AZ3,2)) + 1,"00") -> W14 | BF3: T | BG3: =LEFT(BE3,1) & TEXT(INT(RIGHT(BE3,2)) + 1,"00") -> W15 | BH3: T | BI3: =LEFT(BG3,1) & TEXT(INT(RIGHT(BG3,2)) + 1,"00") -> W16 | BJ3: T | BK3: =LEFT(BI3,1) & TEXT(INT(RIGHT(BI3,2)) + 1,"00") -> W17 | BL3: T | BM3: =LEFT(BK3,1) & TEXT(INT(RIGHT(BK3,2)) + 1,"00") -> W18 | BN3: T | BO3: =LEFT(BM3,1) & TEXT(INT(RIGHT(BM3,2)) + 1,"00") -> W19 | BP3: T | BQ3: =LEFT(BC3,1) & TEXT(INT(RIGHT(BC3,2)) + 1,"00") -> R46 | BR3: =LEFT(BQ3,1) & TEXT(INT(RIGHT(BQ3,2)) + 1,"00") -> R47 | BS3: =LEFT(BR3,1) & TEXT(INT(RIGHT(BR3,2)) + 1,"00") -> R48 | BT3: T | BU3: T | BV3: =LEFT(BO3,1) & TEXT(INT(RIGHT(BO3,2)) + 1,"00") -> W20 | BW3: T | BX3: =LEFT(BV3,1) & TEXT(INT(RIGHT(BV3,2)) + 1,"00") -> W21 | BY3: T | BZ3: =LEFT(BX3,1) & TEXT(INT(RIGHT(BX3,2)) + 1,"00") -> W22 | CA3: T | CB3: =LEFT(BZ3,1) & TEXT(INT(RIGHT(BZ3,2)) + 1,"00") -> W23 | CC3: T | CD3: =LEFT(CB3,1) & TEXT(INT(RIGHT(CB3,2)) + 1,"00") -> W24 | CE3: T | CF3: =LEFT(BS3,1) & TEXT(INT(RIGHT(BS3,2)) + 1,"00") -> R49 | CG3: T
B4: MH_TV | F4: 19;21-24;26-29;31-34;36-39;41-44;46-49;51-54;56-59;61-64;66-69;71-74;76-79;81-84;86-89;91-94;96-99;101-104;106-109;111-114;116-119;121-124;126-129;131-134;136-139;142 | H4: =$F$4 -> 19;21-24;26-29;31-34;36-39;41-44;46-49;51-54;56-59;61-64;66-69;71-74;76-79;81-84;86-89;91-94;96-99;101-104;106-109;111-114;116-119;121-124;126-129;131-134;136-139;142 | J4: =$F$4 -> 19;21-24;26-29;31-34;36-39;41-44;46-49;51-54;56-59;61-64;66-69;71-74;76-79;81-84;86-89;91-94;96-99;101-104;106-109;111-114;116-119;121-124;126-129;131-134;136-139;142 | L4: =$F$4 -> 19;21-24;26-29;31-34;36-39;41-44;46-49;51-54;56-59;61-64;66-69;71-74;76-79;81-84;86-89;91-94;96-99;101-104;106-109;111-114;116-119;121-124;126-129;131-134;136-139;142 | N4: =$F$4 -> 19;21-24;26-29;31-34;36-39;41-44;46-49;51-54;56-59;61-64;66-69;71-74;76-79;81-84;86-89;91-94;96-99;101-104;106-109;111-114;116-119;121-124;126-129;131-134;136-139;142 | P4: =$F$4 -> 19;21-24;26-29;31-34;36-39;41-44;46-49;51-54;56-59;61-64;66-69;71-74;76-79;81-84;86-89;91-94;96-99;101-104;106-109;111-114;116-119;121-124;126-129;131-134;136-139;142 | R4: =$F$4 -> 19;21-24;26-29;31-34;36-39;41-44;46-49;51-54;56-59;61-64;66-69;71-74;76-79;81-84;86-89;91-94;96-99;101-104;106-109;111-114;116-119;121-124;126-129;131-134;136-139;142 | T4: =$F$4 -> 19;21-24;26-29;31-34;36-39;41-44;46-49;51-54;56-59;61-64;66-69;71-74;76-79;81-84;86-89;91-94;96-99;101-104;106-109;111-114;116-119;121-124;126-129;131-134;136-139;142 | V4: 21-24;26-29;31-34;36-39;41-44;46-49;51-54;56-59;61-64;66-69;71-74;76-79;81-84;86-89;91-94;96-99;101-104;106-109;111-114;116-119;121-124;126-129;131-134;136-139 | AM4: =$F$4 -> 19;21-24;26-29;31-34;36-39;41-44;46-49;51-54;56-59;61-64;66-69;71-74;76-79;81-84;86-89;91-94;96-99;101-104;106-109;111-114;116-119;121-124;126-129;131-134;136-139;142 | AO4: =$F$4 -> 19;21-24;26-29;31-34;36-39;41-44;46-49;51-54;56-59;61-64;66-69;71-74;76-79;81-84;86-89;91-94;96-99;101-104;106-109;111-114;116-119;121-124;126-129;131-134;136-139;142 | AZ4: =V4 -> 21-24;26-29;31-34;36-39;41-44;46-49;51-54;56-59;61-64;66-69;71-74;76-79;81-84;86-89;91-94;96-99;101-104;106-109;111-114;116-119;121-124;126-129;131-134;136-139 | BE4: =$F$4 -> 19;21-24;26-29;31-34;36-39;41-44;46-49;51-54;56-59;61-64;66-69;71-74;76-79;81-84;86-89;91-94;96-99;101-104;106-109;111-114;116-119;121-124;126-129;131-134;136-139;142 | BG4: =$F$4 -> 19;21-24;26-29;31-34;36-39;41-44;46-49;51-54;56-59;61-64;66-69;71-74;76-79;81-84;86-89;91-94;96-99;101-104;106-109;111-114;116-119;121-124;126-129;131-134;136-139;142 | BI4: =$F$4 -> 19;21-24;26-29;31-34;36-39;41-44;46-49;51-54;56-59;61-64;66-69;71-74;76-79;81-84;86-89;91-94;96-99;101-104;106-109;111-114;116-119;121-124;126-129;131-134;136-139;142 | BK4: =$F$4 -> 19;21-24;26-29;31-34;36-39;41-44;46-49;51-54;56-59;61-64;66-69;71-74;76-79;81-84;86-89;91-94;96-99;101-104;106-109;111-114;116-119;121-124;126-129;131-134;136-139;142 | BM4: =$F$4 -> 19;21-24;26-29;31-34;36-39;41-44;46-49;51-54;56-59;61-64;66-69;71-74;76-79;81-84;86-89;91-94;96-99;101-104;106-109;111-114;116-119;121-124;126-129;131-134;136-139;142 | BO4: =$F$4 -> 19;21-24;26-29;31-34;36-39;41-44;46-49;51-54;56-59;61-64;66-69;71-74;76-79;81-84;86-89;91-94;96-99;101-104;106-109;111-114;116-119;121-124;126-129;131-134;136-139;142 | BV4: =$V$4 & ";142" -> 21-24;26-29;31-34;36-39;41-44;46-49;51-54;56-59;61-64;66-69;71-74;76-79;81-84;86-89;91-94;96-99;101-104;106-109;111-114;116-119;121-124;126-129;131-134;136-139;142 | BX4: =$BV$4 -> 21-24;26-29;31-34;36-39;41-44;46-49;51-54;56-59;61-64;66-69;71-74;76-79;81-84;86-89;91-94;96-99;101-104;106-109;111-114;116-119;121-124;126-129;131-134;136-139;142 | BZ4: =$BV$4 -> 21-24;26-29;31-34;36-39;41-44;46-49;51-54;56-59;61-64;66-69;71-74;76-79;81-84;86-89;91-94;96-99;101-104;106-109;111-114;116-119;121-124;126-129;131-134;136-139;142 | CB4: =$BV$4 -> 21-24;26-29;31-34;36-39;41-44;46-49;51-54;56-59;61-64;66-69;71-74;76-79;81-84;86-89;91-94;96-99;101-104;106-109;111-114;116-119;121-124;126-129;131-134;136-139;142 | CD4: =$BV$4 -> 21-24;26-29;31-34;36-39;41-44;46-49;51-54;56-59;61-64;66-69;71-74;76-79;81-84;86-89;91-94;96-99;101-104;106-109;111-114;116-119;121-124;126-129;131-134;136-139;142
B5: 10 | D5: =$C$1 & " (" & Intern_BetriebID & ")" -> Masthühner () | AX5: =$D$5 -> Masthühner () | BT5: =$D$5 -> Masthühner ()
B6: 3 | D6: =$H$1 & IF($J$1<> ""," (Stand vom " & TEXT($J$1,"tt.MM.jjjj") &")","") -> Stallliste | AX6: =$D$6 -> Stallliste | BT6: =$D$6 -> Stallliste
C7: ? | D7: =IF(D1<>"", D1 & " - ","") & IF(F1<>"","Schlupfdatum: " & TEXT(F1,"tt.MM.JJJJ"),"") -> Schlupfdatum: 01.01.2020 | AX7: =$D$7 -> Schlupfdatum: 01.01.2020 | BT7: =$D$7 -> Schlupfdatum: 01.01.2020 | CG7: © KTBL & Uni Kassel
B8: ="HENNE_20|HUHN_20|PUTE_20|" & C20 & AC20 -> HENNE_20|HUHN_20|PUTE_20|HUHN_25|HUHN_30|HUHN_35|HUHN_40|HUHN_45|HUHN_50|HUHN_55|HUHN_60|HUHN_65|HUHN_70|HUHN_75|HUHN_80|HUHN_85|HUHN_90|HUHN_95|HUHN_100|HUHN_105|HUHN_110|HUHN_115|HUHN_120|HUHN_125|HUHN_130|HUHN_135|HUHN_140|HUHN_145|HUHN_150|PUTE_25|PUTE_30|PUTE_35|PUTE_40|PUTE_45|PUTE_50|PUTE_55|PUTE_60|PUTE_65|PUTE_70|PUTE_75|PUTE_80|PUTE_85|PUTE_90|PUTE_95|PUTE_100|PUTE_105|PUTE_110|PUTE_115|PUTE_120|PUTE_125|PUTE_130|PUTE_135|PUTE_140|PUTE_145|PUTE_150||HUHN_28-150|PUTE_28-150|HENNE_28-150
B10: =IF(AND(B1="GF_PUTE",B5=1),IF(K1<50,"PUTE_" &21+( (INT((MAX(K1,7)-1)/7)+1)*8) & "-84",""),"PUTE_53-84") -> PUTE_53-84 | D10: Speichern und schließen ... | AX10: Speichern und schließen ... | BX10: Speichern und schließen ...
D14: Tierverluste | AL14: Separierungen | AU14: Tierverluste / | BE14: Eiqualität | BW14: Tiergewicht | CB14: Futter-/Wasserverbrauch
C15: =IF(OR(COUNT(E1,N1)=0,(E1+N1)<1),"Keine Anzahl eingestallter Tiere angegeben.","Zahl eingestallter Tiere: " & TEXT(D21,"#.###") & " Tiere") -> Zahl eingestallter Tiere: 10.000 Tiere | AR15: Nach Ursachen | AU15: Separierungen
D16: Anzahl der | Z16: Gesamtverluste | AC16: Verluste nach Ursachen | AN16: Haut- | AP16: Insgesamt | AX16: Ø Anzahl | BA16: Legeleistung | BK16: Eischalen- | BV16: Soll- | BZ16: Anteil zu | CF16: Futter-
C17: LW | D17: anwesenden | F17: Unfall | H17: Erkrank- | J17: Hunger/ | L17: Kanniba- | N17: Lahm- | P17: Beute- | R17: Hautver- | T17: Sonstige | V17: =IF(RIGHT(B1,5)="HENNE","Verkauf","Vorgriff") -> Vorgriff | X17: Bestand | AC17: Unfall | AD17: Erkrank- | AE17: Hunger/ | AF17: Kanniba- | AG17: Lahm- | AH17: Beute- | AI17: Hautver- | AJ17: Sonstige | AM17: Lahm- | AN17: verletz- | AR17: Lahm- | AS17: Hautver- | AU17: Lahm- | AV17: =IF($B$1="GF_PUTE","Hautver-","") ->  | AX17: anwesende | AZ17: Gesamt- | BA17: Durchschnittshenne | BE17: Knick- | BG17: Bruch- | BI17: Schmutz- | BK17: deforma- | BM17: Blut- | BO17: Sonstige | BQ17: Sekundaeier | BV17: gewichts- | BX17: Uniformität | BZ17: leichter | CB17: Futter | CD17: Wasser- | CF17: Wasser-
D18: Tiere | H18: ungen | J18: Durst | L18: lismus | N18: heit | P18: greifer | R18: letzungen | T18: Ursachen | AD18: ungen | AE18: Durst | AF18: lismus | AG18: heit | AH18: greifer | AI18: letzungen | AJ18: Ursachen | AM18: heit | AN18: ungen | AR18: heit | AS18: letzungen | AU18: heit | AV18: =IF($B$1="GF_PUTE","letzungen","") ->  | AX18: Legehennen | AZ18: eierzahl | BC18: Veränd. | BE18: eier | BG18: eier | BI18: eier | BK18: tionen | BM18: eier | BS18: Veränd. | BV18: erfüllung | BZ18: Tiere | CB18: verbrauch | CD18: verbrauch | CF18: verhältnis
B19: DATEN999_W02_W03_W04_W05_W06_W07_W08_W09_W11_W12_W14_W15_W16_W17_W18_W19 | C19: Nr. | D19: n | F19: n | H19: n | J19: n | L19: n | N19: n | P19: n | R19: n | T19: n | V19: n | X19: n | Z19: n | AA19: n | AB19: % | AC19: % | AD19: % | AE19: % | AF19: % | AG19: % | AH19: % | AI19: % | AJ19: % | AM19: n | AO19: n | AP19: n | AQ19: % | AR19: % | AS19: % | AX19: n | AZ19: n | BB19: % | BC19: % Punkte | BE19: n | BG19: n | BI19: n | BK19: n | BM19: n | BO19: n | BQ19: n | BR19: % | BS19: % Punkte | BV19: % | BX19: % | BZ19: % | CB19: kg/Tier | CD19: l/Tier | CF19: kg/l
C20: HUHN_25|HUHN_30|HUHN_35|HUHN_40|HUHN_45|HUHN_50|HUHN_55|HUHN_60|HUHN_65|HUHN_70|HUHN_75|HUHN_80|HUHN_85|HUHN_90|HUHN_95|HUHN_100|HUHN_105|HUHN_110|HUHN_115|HUHN_120|HUHN_125|HUHN_130|HUHN_135|HUHN_140|HUHN_145|HUHN_150|PUTE_25|PUTE_30|PUTE_35|PUTE_40|PUTE_45|PUTE_50|PUTE_55|PUTE_60|PUTE_65|PUTE_70|PUTE_75|PUTE_80|PUTE_85|PUTE_90|PUTE_95|PUTE_100|PUTE_105|PUTE_110|PUTE_115|PUTE_120|PUTE_125|PUTE_130|PUTE_135|PUTE_140|PUTE_145|PUTE_150| | F20: =IF(F19="%","P","A") -> A | H20: =IF(H19="%","P","A") -> A | J20: =IF(J19="%","P","A") -> A | L20: =IF(L19="%","P","A") -> A | N20: =IF(N19="%","P","A") -> A | P20: =IF(P19="%","P","A") -> A | R20: =IF(R19="%","P","A") -> A | T20: =IF(T19="%","P","A") -> A | V20: =IF(V19="%","P","A") -> A | Z20: Zeilenanzeige | AA20: =IF(COUNT(M1)=1,M1,IF(B1="GF_HUHN",6,IF(LEFT(B4,6)="MPMAST",16,6))) -> 6 | AB20: =21 + MAX(AA20,2) + INT(MAX(AA20,2)/4) -> 28 | AC20: ="|HUHN_"&AB20 & "-150|PUTE_"&AB20 & "-150|HENNE_"&AB20 & "-150" -> |HUHN_28-150|PUTE_28-150|HENNE_28-150 | AM20: =IF(AM19="%","P","A") -> A | AO20: =IF(AO19="%","P","A") -> A | BE20: =IF(BE19="%","P","A") -> A | BG20: =IF(BG19="%","P","A") -> A | BI20: =IF(BI19="%","P","A") -> A | BK20: =IF(BK19="%","P","A") -> A | BM20: =IF(BM19="%","P","A") -> A | BO20: =IF(BO19="%","P","A") -> A
B21: DATEN001 | C21: =L1 -> 10 | D21: =IF(AND(LEFT(B4,6)="MPMAST",N1>0),$N$1,IF($E$1>0,$E$1,"")) -> 10000 | X21: =IF(COUNT(D21,Z21)=2,D21-Z21-V21,"") -> 10000 | Z21: =IF(COUNT(D21)=1,kalkTV(F21,D21)+kalkTV(H21,D21)+kalkTV(J21,D21)+kalkTV(L21,D21)+kalkTV(N21,D21)+kalkTV(P21,D21)+kalkTV(R21,D21)+kalkTV(T21,D21),"") -> 0 | AA21: =IF(COUNT(D21)=1,IF($B$1="GF_HUHN",(D21+X21)/2,$E$1),0) -> 10000 | AB21: =IF(AA21>0,SUM(AC21:AJ21),"") -> 0 | AC21: =IF($AA21>0,IF(COUNT(F21)=1,IF(F$20="P",IF($B$1="GF_HUHN",F21*D21/AA21*100,F21*100),F21/$AA21*100),""),"") ->  | AD21: =IF($AA21>0,IF(COUNT(H21)=1,IF(H$20="P",IF($B$1="GF_HUHN",H21*D21/AA21*100,H21*100),H21/$AA21*100),""),"") ->  | AE21: =IF($AA21>0,IF(COUNT(J21)=1,IF(J$20="P",IF($B$1="GF_HUHN",J21*D21/AA21*100,J21*100),J21/$AA21*100),""),"") ->  | AF21: =IF($AA21>0,IF(COUNT(L21)=1,IF(L$20="P",IF($B$1="GF_HUHN",L21*D21/AA21*100,L21*100),L21/$AA21*100),""),"") ->  | AG21: =IF($AA21>0,IF(COUNT(N21)=1,IF(N$20="P",IF($B$1="GF_HUHN",N21*D21/AA21*100,N21*100),N21/$AA21*100),""),"") ->  | AH21: =IF($AA21>0,IF(COUNT(P21)=1,IF(P$20="P",IF($B$1="GF_HUHN",P21*D21/AA21*100,P21*100),P21/$AA21*100),""),"") ->  | AI21: =IF($AA21>0,IF(COUNT(R21)=1,IF(R$20="P",IF($B$1="GF_HUHN",R21*D21/AA21*100,R21*100),R21/$AA21*100),""),"") ->  | AJ21: =IF($AA21>0,IF(COUNT(T21)=1,IF(T$20="P",IF($B$1="GF_HUHN",T21*D21/AA21*100,T21*100),T21/$AA21*100),""),"") ->  | AP21: =IF(AA21>0,kalkTV(AM21,D21)+kalkTV(AO21,D21),"") -> 0 | AQ21: =IF(COUNT(AP21)=1,SUM(AR21:AS21),"") -> 0 | AR21: =IF($AA21>0,IF(COUNT(AM21)=1,IF(AM$20="P",IF($B$1="GF_HUHN",AM21*D21/AA21*100,AM21*100),AM21/$AA21*100),""),"") ->  | AS21: =IF($AA21>0,IF(COUNT(AO21)=1,IF(AO$20="P",IF($B$1="GF_HUHN",AO21*D21/AA21*100,AO21*100),AO21/$AA21*100),""),"") ->  | AU21: =IF(AND(AA21>0,COUNT(AG21,AR21)>0),IF(COUNT(AG21)=1,AG21,0)+IF(COUNT(AR21)=1,AR21,0),"") ->  | AV21: =IF(AND(AA21>0,COUNT(AI21,AS21)>0,$B$1="GF_PUTE"),IF(COUNT(AI21)=1,AI21,0)+IF(COUNT(AS21)=1,AS21,0),"") ->  | AX21: =IF(COUNT(D21)=1,(D21+X21)/2,"") -> 10000 | BB21: =IF(COUNT(AX21)=1,AZ21/7/AX21*100,"") -> 0 | BC21: =IF(COUNT(AZ20:AZ21)=2,BB21-BB20,"") ->  | BQ21: =IF(AZ21>0,IF(BE$20="P",BE21*$AZ21,BE21)+IF(BG$20="P",BG21*$AZ21,BG21)+IF(BI$20="P",BI21*$AZ21,BI21)+IF(BK$20="P",BK21*$AZ21,BK21)+IF(BM$20="P",BM21*$AZ21,BM21)+IF(BO$20="P",BO21*$AZ21,BO21),"") ->  | BR21: =IF(AND(AZ21>0,COUNT(BQ21)=1),BQ21/AZ21*100,"") ->  | BS21: =IF(COUNT(BR20:BR21)=2,BR21-BR20,"") ->  | BX21: 0.91 | CF21: =IF(AND(COUNT(CB21:CD21)=2,CD21>0),CB21/CD21,"") -> 
B22: DATEN002 | C22: =C21+1 -> 11 | D22: =X21 -> 10000 | X22: =IF(COUNT(D22)=1,D22-Z22-V22,"") -> 10000 | Z22: =IF(COUNT(D22)=1,kalkTV(F22,D22)+kalkTV(H22,D22)+kalkTV(J22,D22)+kalkTV(L22,D22)+kalkTV(N22,D22)+kalkTV(P22,D22)+kalkTV(R22,D22)+kalkTV(T22,D22),"") -> 0 | AA22: =IF(COUNT(D22)=1,IF($B$1="GF_HUHN",(D22+X22)/2,$E$1),0) -> 10000 | AB22: =IF(AA22>0,SUM(AC22:AJ22),"") -> 0 | AC22: =IF($AA22>0,IF(COUNT(F22)=1,IF(F$20="P",IF($B$1="GF_HUHN",F22*D22/AA22*100,F22*100),F22/$AA22*100),""),"") ->  | AD22: =IF($AA22>0,IF(COUNT(H22)=1,IF(H$20="P",IF($B$1="GF_HUHN",H22*D22/AA22*100,H22*100),H22/$AA22*100),""),"") ->  | AE22: =IF($AA22>0,IF(COUNT(J22)=1,IF(J$20="P",IF($B$1="GF_HUHN",J22*D22/AA22*100,J22*100),J22/$AA22*100),""),"") ->  | AF22: =IF($AA22>0,IF(COUNT(L22)=1,IF(L$20="P",IF($B$1="GF_HUHN",L22*D22/AA22*100,L22*100),L22/$AA22*100),""),"") ->  | AG22: =IF($AA22>0,IF(COUNT(N22)=1,IF(N$20="P",IF($B$1="GF_HUHN",N22*D22/AA22*100,N22*100),N22/$AA22*100),""),"") ->  | AH22: =IF($AA22>0,IF(COUNT(P22)=1,IF(P$20="P",IF($B$1="GF_HUHN",P22*D22/AA22*100,P22*100),P22/$AA22*100),""),"") ->  | AI22: =IF($AA22>0,IF(COUNT(R22)=1,IF(R$20="P",IF($B$1="GF_HUHN",R22*D22/AA22*100,R22*100),R22/$AA22*100),""),"") ->  | AJ22: =IF($AA22>0,IF(COUNT(T22)=1,IF(T$20="P",IF($B$1="GF_HUHN",T22*D22/AA22*100,T22*100),T22/$AA22*100),""),"") ->  | AP22: =IF(AA22>0,kalkTV(AM22,D22)+kalkTV(AO22,D22),"") -> 0 | AQ22: =IF(COUNT(AP22)=1,SUM(AR22:AS22),"") -> 0 | AR22: =IF($AA22>0,IF(COUNT(AM22)=1,IF(AM$20="P",IF($B$1="GF_HUHN",AM22*D22/AA22*100,AM22*100),AM22/$AA22*100),""),"") ->  | AS22: =IF($AA22>0,IF(COUNT(AO22)=1,IF(AO$20="P",IF($B$1="GF_HUHN",AO22*D22/AA22*100,AO22*100),AO22/$AA22*100),""),"") ->  | AU22: =IF(AND(AA22>0,COUNT(AG22,AR22)>0),IF(COUNT(AG22)=1,AG22,0)+IF(COUNT(AR22)=1,AR22,0),"") ->  | AV22: =IF(AND(AA22>0,COUNT(AI22,AS22)>0,$B$1="GF_PUTE"),IF(COUNT(AI22)=1,AI22,0)+IF(COUNT(AS22)=1,AS22,0),"") ->  | AX22: =IF(COUNT(D22)=1,(D22+X22)/2,"") -> 10000 | BB22: =IF(COUNT(AX22)=1,AZ22/7/AX22*100,"") -> 0 | BC22: =IF(COUNT(AZ21:AZ22)=2,BB22-BB21,"") ->  | BQ22: =IF(AZ22>0,IF(BE$20="P",BE22*$AZ22,BE22)+IF(BG$20="P",BG22*$AZ22,BG22)+IF(BI$20="P",BI22*$AZ22,BI22)+IF(BK$20="P",BK22*$AZ22,BK22)+IF(BM$20="P",BM22*$AZ22,BM22)+IF(BO$20="P",BO22*$AZ22,BO22),"") ->  | BR22: =IF(AND(AZ22>0,COUNT(BQ22)=1),BQ22/AZ22*100,"") ->  | BS22: =IF(COUNT(BR21:BR22)=2,BR22-BR21,"") ->  | BX22: 0.92 | CF22: =IF(AND(COUNT(CB22:CD22)=2,CD22>0),CB22/CD22,"") -> 
B23: DATEN003 | C23: =C22+1 -> 12 | D23: =X22 -> 10000 | X23: =IF(COUNT(D23)=1,D23-Z23-V23,"") -> 10000 | Z23: =IF(COUNT(D23)=1,kalkTV(F23,D23)+kalkTV(H23,D23)+kalkTV(J23,D23)+kalkTV(L23,D23)+kalkTV(N23,D23)+kalkTV(P23,D23)+kalkTV(R23,D23)+kalkTV(T23,D23),"") -> 0 | AA23: 10000 | AB23: 0 | AC23: =IF($AA23>0,IF(COUNT(F23)=1,IF(F$20="P",IF($B$1="GF_HUHN",F23*D23/AA23*100,F23*100),F23/$AA23*100),""),"") ->  | AD23: =IF($AA23>0,IF(COUNT(H23)=1,IF(H$20="P",IF($B$1="GF_HUHN",H23*D23/AA23*100,H23*100),H23/$AA23*100),""),"") ->  | AE23: =IF($AA23>0,IF(COUNT(J23)=1,IF(J$20="P",IF($B$1="GF_HUHN",J23*D23/AA23*100,J23*100),J23/$AA23*100),""),"") ->  | AF23: =IF($AA23>0,IF(COUNT(L23)=1,IF(L$20="P",IF($B$1="GF_HUHN",L23*D23/AA23*100,L23*100),L23/$AA23*100),""),"") ->  | AG23: =IF($AA23>0,IF(COUNT(N23)=1,IF(N$20="P",IF($B$1="GF_HUHN",N23*D23/AA23*100,N23*100),N23/$AA23*100),""),"") ->  | AH23: =IF($AA23>0,IF(COUNT(P23)=1,IF(P$20="P",IF($B$1="GF_HUHN",P23*D23/AA23*100,P23*100),P23/$AA23*100),""),"") ->  | AI23: =IF($AA23>0,IF(COUNT(R23)=1,IF(R$20="P",IF($B$1="GF_HUHN",R23*D23/AA23*100,R23*100),R23/$AA23*100),""),"") ->  | AJ23: =IF($AA23>0,IF(COUNT(T23)=1,IF(T$20="P",IF($B$1="GF_HUHN",T23*D23/AA23*100,T23*100),T23/$AA23*100),""),"") ->  | AP23: =IF(AA23>0,kalkTV(AM23,D23)+kalkTV(AO23,D23),"") -> 0 | AQ23: 0 | AR23: =IF($AA23>0,IF(COUNT(AM23)=1,IF(AM$20="P",IF($B$1="GF_HUHN",AM23*D23/AA23*100,AM23*100),AM23/$AA23*100),""),"") ->  | AS23: =IF($AA23>0,IF(COUNT(AO23)=1,IF(AO$20="P",IF($B$1="GF_HUHN",AO23*D23/AA23*100,AO23*100),AO23/$AA23*100),""),"") ->  | AX23: =IF(COUNT(D23)=1,(D23+X23)/2,"") -> 10000 | BB23: 0 | BC23: =IF(COUNT(AZ22:AZ23)=2,BB23-BB22,"") ->  | BR23: =IF(AND(AZ23>0,COUNT(BQ23)=1),BQ23/AZ23*100,"") ->  | BX23: 0.93 | CF23: =IF(AND(COUNT(CB23:CD23)=2,CD23>0),CB23/CD23,"") -> 
B24: DATEN004 | C24: =C23+1 -> 13 | D24: =X23 -> 10000 | X24: =IF(COUNT(D24)=1,D24-Z24-V24,"") -> 10000 | Z24: =IF(COUNT(D24)=1,kalkTV(F24,D24)+kalkTV(H24,D24)+kalkTV(J24,D24)+kalkTV(L24,D24)+kalkTV(N24,D24)+kalkTV(P24,D24)+kalkTV(R24,D24)+kalkTV(T24,D24),"") -> 0 | AA24: 10000 | AB24: 0 | AC24: =IF($AA24>0,IF(COUNT(F24)=1,IF(F$20="P",IF($B$1="GF_HUHN",F24*D24/AA24*100,F24*100),F24/$AA24*100),""),"") ->  | AD24: =IF($AA24>0,IF(COUNT(H24)=1,IF(H$20="P",IF($B$1="GF_HUHN",H24*D24/AA24*100,H24*100),H24/$AA24*100),""),"") ->  | AE24: =IF($AA24>0,IF(COUNT(J24)=1,IF(J$20="P",IF($B$1="GF_HUHN",J24*D24/AA24*100,J24*100),J24/$AA24*100),""),"") ->  | AF24: =IF($AA24>0,IF(COUNT(L24)=1,IF(L$20="P",IF($B$1="GF_HUHN",L24*D24/AA24*100,L24*100),L24/$AA24*100),""),"") ->  | AG24: =IF($AA24>0,IF(COUNT(N24)=1,IF(N$20="P",IF($B$1="GF_HUHN",N24*D24/AA24*100,N24*100),N24/$AA24*100),""),"") ->  | AH24: =IF($AA24>0,IF(COUNT(P24)=1,IF(P$20="P",IF($B$1="GF_HUHN",P24*D24/AA24*100,P24*100),P24/$AA24*100),""),"") ->  | AI24: =IF($AA24>0,IF(COUNT(R24)=1,IF(R$20="P",IF($B$1="GF_HUHN",R24*D24/AA24*100,R24*100),R24/$AA24*100),""),"") ->  | AJ24: =IF($AA24>0,IF(COUNT(T24)=1,IF(T$20="P",IF($B$1="GF_HUHN",T24*D24/AA24*100,T24*100),T24/$AA24*100),""),"") ->  | AP24: =IF(AA24>0,kalkTV(AM24,D24)+kalkTV(AO24,D24),"") -> 0 | AQ24: 0 | AR24: =IF($AA24>0,IF(COUNT(AM24)=1,IF(AM$20="P",IF($B$1="GF_HUHN",AM24*D24/AA24*100,AM24*100),AM24/$AA24*100),""),"") ->  | AS24: =IF($AA24>0,IF(COUNT(AO24)=1,IF(AO$20="P",IF($B$1="GF_HUHN",AO24*D24/AA24*100,AO24*100),AO24/$AA24*100),""),"") ->  | AX24: =IF(COUNT(D24)=1,(D24+X24)/2,"") -> 10000 | BB24: 0 | BC24: =IF(COUNT(AZ23:AZ24)=2,BB24-BB23,"") ->  | BR24: =IF(AND(AZ24>0,COUNT(BQ24)=1),BQ24/AZ24*100,"") ->  | BX24: 0.94 | CF24: =IF(AND(COUNT(CB24:CD24)=2,CD24>0),CB24/CD24,"") -> 
B25: ERGEB901 | D25: Ergebnisse | E25: % | F25: =AC25 ->  | H25: =AD25 ->  | J25: =AE25 ->  | L25: =AF25 ->  | N25: =AG25 ->  | P25: =AH25 ->  | R25: =AI25 ->  | T25: =AJ25 ->  | Z25: =IF(COUNT(Z21:Z24)>0,SUM(Z21:Z24),"") -> 0 | AA25: =IF(COUNT(D25)=1,IF($B$1="GF_HUHN",(D25+X25)/2,$E$1),0) -> 0 | AB25: =IF(AND($E$1>0,Z25<>""),SUM(Z21:Z24)/$E$1*100,"") -> 0 | AC25: =IF(COUNT(AC21:AC24)>0,SUM(AC21:AC24),"") ->  | AD25: =IF(COUNT(AD21:AD24)>0,SUM(AD21:AD24),"") ->  | AJ25: =IF(COUNT(AJ21:AJ24)>0,SUM(AJ21:AJ24),"") ->  | AM25: =IF(AND($E$1>0,COUNT(AM21:AM24)>0),IF(AM$20="P",SUM(AM21:AM24)*100,SUM(AM21:AM24)/$E$1*100),"") ->  | AO25: =IF(AND($E$1>0,COUNT(AO21:AO24)>0),IF(AO$20="P",SUM(AO21:AO24)*100,SUM(AO21:AO24)/$E$1*100),"") ->  | AP25: =IF(COUNT(AP21:AP24)>0,SUM(AP21:AP24),"") -> 0 | AQ25: =IF(COUNT(AQ21:AQ24)>0,SUM(AQ21:AQ24),"") -> 0 | AU25: =IF(COUNT(AU21:AU24)>0,SUM(AU21:AU24),"") ->  | AW25: Ergebnisse [% und n] | AZ25: =SUM(AZ21:AZ24) -> 0 | BB25: =IF(COUNT(BB21:BB24)>0,AVERAGE(BB21:BB24),"") -> 0 | BC25: =IF(COUNT(BC21:BC24)>0,AVERAGE(BC21:BC24),"") ->  | BE25: =IF($AZ25>0,IF(BE$20="P",BE21*$AZ21+BE22*$AZ22+BE23*$AZ23+BE24*$AZ24,SUM(BE21:BE24))/$AZ25*100,"") ->  | BG25: =IF($AZ25>0,IF(BG$20="P",BG21*$AZ21+BG22*$AZ22+BG23*$AZ23+BG24*$AZ24,SUM(BG21:BG24))/$AZ25*100,"") ->  | BI25: =IF($AZ25>0,IF(BI$20="P",BI21*$AZ21+BI22*$AZ22+BI23*$AZ23+BI24*$AZ24,SUM(BI21:BI24))/$AZ25*100,"") ->  | BK25: =IF($AZ25>0,IF(BK$20="P",BK21*$AZ21+BK22*$AZ22+BK23*$AZ23+BK24*$AZ24,SUM(BK21:BK24))/$AZ25*100,"") ->  | BM25: =IF($AZ25>0,IF(BM$20="P",BM21*$AZ21+BM22*$AZ22+BM23*$AZ23+BM24*$AZ24,SUM(BM21:BM24))/$AZ25*100,"") ->  | BO25: =IF($AZ25>0,IF(BO$20="P",BO21*$AZ21+BO22*$AZ22+BO23*$AZ23+BO24*$AZ24,SUM(BO21:BO24))/$AZ25*100,"") ->  | BQ25: =IF(AZ25>0,SUM(BQ21:BQ24),"") ->  | BR25: =IF(AZ25>0,BQ25/AZ25*100,"") ->  | BS25: =IF(COUNT(BS21:BS24)>0,AVERAGE(BS21:BS24),"") ->  | BT25: Erg. % | BV25: =IF(COUNT(BV21:BV24)>0,AVERAGE(BV21:BV24)*100,"") ->  | BX25: =IF(COUNT(BX21:BX24)>0,AVERAGE(BX21:BX24)*100,"") -> 92.5 | BZ25: =IF(COUNT(BZ21:BZ24)>0,AVERAGE(BZ21:BZ24)*100,"") ->  | CB25: =IF(COUNT(CB21:CB24)>0,AVERAGE(CB21:CB24),"") ->  | CD25: =IF(COUNT(CD21:CD24)>0,AVERAGE(CD21:CD24),"") ->  | CF25: =IF(COUNT(CF21:CF24)>0,AVERAGE(CF21:CF24),"") -> 
B26: DATEN005 | C26: =C24+1 -> 14 | D26: =X24 -> 10000 | X26: =IF(COUNT(D26,Z26)=2,D26-Z26-V26,"") -> 10000 | Z26: =IF(COUNT(D26)=1,kalkTV(F26,D26)+kalkTV(H26,D26)+kalkTV(J26,D26)+kalkTV(L26,D26)+kalkTV(N26,D26)+kalkTV(P26,D26)+kalkTV(R26,D26)+kalkTV(T26,D26),"") -> 0 | AA26: =IF(COUNT(D26)=1,IF($B$1="GF_HUHN",(D26+X26)/2,$E$1),0) -> 10000 | AB26: =IF(AA26>0,Z26/AA26*100,"") -> 0 | AC26: =IF($AA26>0,IF(COUNT(F26)=1,IF(F$20="P",IF($B$1="GF_HUHN",F26*D26/AA26*100,F26*100),F26/$AA26*100),""),"") ->  | AD26: =IF($AA26>0,IF(COUNT(H26)=1,IF(H$20="P",IF($B$1="GF_HUHN",H26*D26/AA26*100,H26*100),H26/$AA26*100),""),"") ->  | AE26: =IF($AA26>0,IF(COUNT(J26)=1,IF(J$20="P",IF($B$1="GF_HUHN",J26*D26/AA26*100,J26*100),J26/$AA26*100),""),"") ->  | AF26: =IF($AA26>0,IF(COUNT(L26)=1,IF(L$20="P",IF($B$1="GF_HUHN",L26*D26/AA26*100,L26*100),L26/$AA26*100),""),"") ->  | AG26: =IF($AA26>0,IF(COUNT(N26)=1,IF(N$20="P",IF($B$1="GF_HUHN",N26*D26/AA26*100,N26*100),N26/$AA26*100),""),"") ->  | AH26: =IF($AA26>0,IF(COUNT(P26)=1,IF(P$20="P",IF($B$1="GF_HUHN",P26*D26/AA26*100,P26*100),P26/$AA26*100),""),"") ->  | AI26: =IF($AA26>0,IF(COUNT(R26)=1,IF(R$20="P",IF($B$1="GF_HUHN",R26*D26/AA26*100,R26*100),R26/$AA26*100),""),"") ->  | AJ26: =IF($AA26>0,IF(COUNT(T26)=1,IF(T$20="P",IF($B$1="GF_HUHN",T26*D26/AA26*100,T26*100),T26/$AA26*100),""),"") ->  | AP26: =IF(AA26>0,kalkTV(AM26,D26)+kalkTV(AO26,D26),"") -> 0 | AQ26: =IF(COUNT(AP26)=1,SUM(AR26:AS26),"") -> 0 | AR26: =IF($AA26>0,IF(COUNT(AM26)=1,IF(AM$20="P",IF($B$1="GF_HUHN",AM26*D26/AA26*100,AM26*100),AM26/$AA26*100),""),"") ->  | AS26: =IF($AA26>0,IF(COUNT(AO26)=1,IF(AO$20="P",IF($B$1="GF_HUHN",AO26*D26/AA26*100,AO26*100),AO26/$AA26*100),""),"") ->  | AU26: =IF(AND(AA26>0,COUNT(AG26,AR26)>0),IF(COUNT(AG26)=1,AG26,0)+IF(COUNT(AR26)=1,AR26,0),"") ->  | AV26: =IF(AND(AA26>0,COUNT(AI26,AS26)>0,$B$1="GF_PUTE"),IF(COUNT(AI26)=1,AI26,0)+IF(COUNT(AS26)=1,AS26,0),"") ->  | AX26: =IF(COUNT(D26)=1,(D26+X26)/2,"") -> 10000 | BB26: =IF(COUNT(AX26)=1,AZ26/7/AX26*100,"") -> 0 | BC26: =IF(COUNT(AZ24,AZ26)=2,BB26-BB24,"") ->  | BQ26: =IF(AZ26>0,IF(BE$20="P",BE26*$AZ26,BE26)+IF(BG$20="P",BG26*$AZ26,BG26)+IF(BI$20="P",BI26*$AZ26,BI26)+IF(BK$20="P",BK26*$AZ26,BK26)+IF(BM$20="P",BM26*$AZ26,BM26)+IF(BO$20="P",BO26*$AZ26,BO26),"") ->  | BR26: =IF(AND(AZ26>0,COUNT(BQ26)=1),BQ26/AZ26*100,"") ->  | BS26: =IF(COUNT(BR24,BR26)=2,BR26-BR24,"") ->  | BX26: 0.95 | CF26: =IF(AND(COUNT(CB26:CD26)=2,CD26>0),CB26/CD26,"") -> 
B27: DATEN006 | C27: =C26+1 -> 15 | D27: =X26 -> 10000 | X27: =IF(COUNT(D27)=1,D27-Z27-V27,"") -> 10000 | Z27: =IF(COUNT(D27)=1,kalkTV(F27,D27)+kalkTV(H27,D27)+kalkTV(J27,D27)+kalkTV(L27,D27)+kalkTV(N27,D27)+kalkTV(P27,D27)+kalkTV(R27,D27)+kalkTV(T27,D27),"") -> 0 | AA27: 10000 | AB27: =IF(AA27>0,Z27/AA27*100,"") -> 0 | AC27: =IF($AA27>0,IF(COUNT(F27)=1,IF(F$20="P",IF($B$1="GF_HUHN",F27*D27/AA27*100,F27*100),F27/$AA27*100),""),"") ->  | AD27: =IF($AA27>0,IF(COUNT(H27)=1,IF(H$20="P",IF($B$1="GF_HUHN",H27*D27/AA27*100,H27*100),H27/$AA27*100),""),"") ->  | AE27: =IF($AA27>0,IF(COUNT(J27)=1,IF(J$20="P",IF($B$1="GF_HUHN",J27*D27/AA27*100,J27*100),J27/$AA27*100),""),"") ->  | AF27: =IF($AA27>0,IF(COUNT(L27)=1,IF(L$20="P",IF($B$1="GF_HUHN",L27*D27/AA27*100,L27*100),L27/$AA27*100),""),"") ->  | AG27: =IF($AA27>0,IF(COUNT(N27)=1,IF(N$20="P",IF($B$1="GF_HUHN",N27*D27/AA27*100,N27*100),N27/$AA27*100),""),"") ->  | AH27: =IF($AA27>0,IF(COUNT(P27)=1,IF(P$20="P",IF($B$1="GF_HUHN",P27*D27/AA27*100,P27*100),P27/$AA27*100),""),"") ->  | AI27: =IF($AA27>0,IF(COUNT(R27)=1,IF(R$20="P",IF($B$1="GF_HUHN",R27*D27/AA27*100,R27*100),R27/$AA27*100),""),"") ->  | AJ27: =IF($AA27>0,IF(COUNT(T27)=1,IF(T$20="P",IF($B$1="GF_HUHN",T27*D27/AA27*100,T27*100),T27/$AA27*100),""),"") ->  | AP27: =IF(AA27>0,kalkTV(AM27,D27)+kalkTV(AO27,D27),"") -> 0 | AQ27: =IF(COUNT(AP27)=1,SUM(AR27:AS27),"") -> 0 | AR27: =IF($AA27>0,IF(COUNT(AM27)=1,IF(AM$20="P",IF($B$1="GF_HUHN",AM27*D27/AA27*100,AM27*100),AM27/$AA27*100),""),"") ->  | AS27: =IF($AA27>0,IF(COUNT(AO27)=1,IF(AO$20="P",IF($B$1="GF_HUHN",AO27*D27/AA27*100,AO27*100),AO27/$AA27*100),""),"") ->  | AU27: =IF(AND(AA27>0,COUNT(AG27,AR27)>0),IF(COUNT(AG27)=1,AG27,0)+IF(COUNT(AR27)=1,AR27,0),"") ->  | AV27: =IF(AND(AA27>0,COUNT(AI27,AS27)>0,$B$1="GF_PUTE"),IF(COUNT(AI27)=1,AI27,0)+IF(COUNT(AS27)=1,AS27,0),"") ->  | AX27: 10000 | BB27: =IF(COUNT(AX27)=1,AZ27/7/AX27*100,"") -> 0 | BC27: =IF(COUNT(AZ26:AZ27)=2,BB27-BB26,"") ->  | BQ27: =IF(AZ27>0,IF(BE$20="P",BE27*$AZ27,BE27)+IF(BG$20="P",BG27*$AZ27,BG27)+IF(BI$20="P",BI27*$AZ27,BI27)+IF(BK$20="P",BK27*$AZ27,BK27)+IF(BM$20="P",BM27*$AZ27,BM27)+IF(BO$20="P",BO27*$AZ27,BO27),"") ->  | BR27: =IF(AND(AZ27>0,COUNT(BQ27)=1),BQ27/AZ27*100,"") ->  | BS27: =IF(COUNT(BR26:BR27)=2,BR27-BR26,"") ->  | BX27: 0.96 | CF27: =IF(AND(COUNT(CB27:CD27)=2,CD27>0),CB27/CD27,"") -> 
B28: DATEN007 | C28: =C27+1 -> 16 | D28: =X27 -> 10000 | X28: =IF(COUNT(D28)=1,D28-Z28-V28,"") -> 10000 | Z28: =IF(COUNT(D28)=1,kalkTV(F28,D28)+kalkTV(H28,D28)+kalkTV(J28,D28)+kalkTV(L28,D28)+kalkTV(N28,D28)+kalkTV(P28,D28)+kalkTV(R28,D28)+kalkTV(T28,D28),"") -> 0 | AA28: 10000 | AB28: =IF(AA28>0,Z28/AA28*100,"") -> 0 | AC28: =IF($AA28>0,IF(COUNT(F28)=1,IF(F$20="P",IF($B$1="GF_HUHN",F28*D28/AA28*100,F28*100),F28/$AA28*100),""),"") ->  | AD28: =IF($AA28>0,IF(COUNT(H28)=1,IF(H$20="P",IF($B$1="GF_HUHN",H28*D28/AA28*100,H28*100),H28/$AA28*100),""),"") ->  | AE28: =IF($AA28>0,IF(COUNT(J28)=1,IF(J$20="P",IF($B$1="GF_HUHN",J28*D28/AA28*100,J28*100),J28/$AA28*100),""),"") ->  | AF28: =IF($AA28>0,IF(COUNT(L28)=1,IF(L$20="P",IF($B$1="GF_HUHN",L28*D28/AA28*100,L28*100),L28/$AA28*100),""),"") ->  | AG28: =IF($AA28>0,IF(COUNT(N28)=1,IF(N$20="P",IF($B$1="GF_HUHN",N28*D28/AA28*100,N28*100),N28/$AA28*100),""),"") ->  | AH28: =IF($AA28>0,IF(COUNT(P28)=1,IF(P$20="P",IF($B$1="GF_HUHN",P28*D28/AA28*100,P28*100),P28/$AA28*100),""),"") ->  | AI28: =IF($AA28>0,IF(COUNT(R28)=1,IF(R$20="P",IF($B$1="GF_HUHN",R28*D28/AA28*100,R28*100),R28/$AA28*100),""),"") ->  | AJ28: =IF($AA28>0,IF(COUNT(T28)=1,IF(T$20="P",IF($B$1="GF_HUHN",T28*D28/AA28*100,T28*100),T28/$AA28*100),""),"") ->  | AP28: =IF(AA28>0,kalkTV(AM28,D28)+kalkTV(AO28,D28),"") -> 0 | AQ28: 0 | AR28: =IF($AA28>0,IF(COUNT(AM28)=1,IF(AM$20="P",IF($B$1="GF_HUHN",AM28*D28/AA28*100,AM28*100),AM28/$AA28*100),""),"") ->  | AS28: =IF($AA28>0,IF(COUNT(AO28)=1,IF(AO$20="P",IF($B$1="GF_HUHN",AO28*D28/AA28*100,AO28*100),AO28/$AA28*100),""),"") ->  | AX28: 10000 | BB28: 0 | BR28: =IF(AND(AZ28>0,COUNT(BQ28)=1),BQ28/AZ28*100,"") ->  | CF28: =IF(AND(COUNT(CB28:CD28)=2,CD28>0),CB28/CD28,"") -> 
B29: DATEN008 | C29: =C28+1 -> 17 | D29: 10000 | X29: =IF(COUNT(D29)=1,D29-Z29-V29,"") -> 10000 | Z29: =IF(COUNT(D29)=1,kalkTV(F29,D29)+kalkTV(H29,D29)+kalkTV(J29,D29)+kalkTV(L29,D29)+kalkTV(N29,D29)+kalkTV(P29,D29)+kalkTV(R29,D29)+kalkTV(T29,D29),"") -> 0 | AA29: 10000 | AB29: =IF(AA29>0,Z29/AA29*100,"") -> 0 | AC29: =IF($AA29>0,IF(COUNT(F29)=1,IF(F$20="P",IF($B$1="GF_HUHN",F29*D29/AA29*100,F29*100),F29/$AA29*100),""),"") ->  | AD29: =IF($AA29>0,IF(COUNT(H29)=1,IF(H$20="P",IF($B$1="GF_HUHN",H29*D29/AA29*100,H29*100),H29/$AA29*100),""),"") ->  | AE29: =IF($AA29>0,IF(COUNT(J29)=1,IF(J$20="P",IF($B$1="GF_HUHN",J29*D29/AA29*100,J29*100),J29/$AA29*100),""),"") ->  | AF29: =IF($AA29>0,IF(COUNT(L29)=1,IF(L$20="P",IF($B$1="GF_HUHN",L29*D29/AA29*100,L29*100),L29/$AA29*100),""),"") ->  | AG29: =IF($AA29>0,IF(COUNT(N29)=1,IF(N$20="P",IF($B$1="GF_HUHN",N29*D29/AA29*100,N29*100),N29/$AA29*100),""),"") ->  | AH29: =IF($AA29>0,IF(COUNT(P29)=1,IF(P$20="P",IF($B$1="GF_HUHN",P29*D29/AA29*100,P29*100),P29/$AA29*100),""),"") ->  | AI29: =IF($AA29>0,IF(COUNT(R29)=1,IF(R$20="P",IF($B$1="GF_HUHN",R29*D29/AA29*100,R29*100),R29/$AA29*100),""),"") ->  | AJ29: =IF($AA29>0,IF(COUNT(T29)=1,IF(T$20="P",IF($B$1="GF_HUHN",T29*D29/AA29*100,T29*100),T29/$AA29*100),""),"") ->  | AP29: =IF(AA29>0,kalkTV(AM29,D29)+kalkTV(AO29,D29),"") -> 0 | AQ29: 0 | AR29: =IF($AA29>0,IF(COUNT(AM29)=1,IF(AM$20="P",IF($B$1="GF_HUHN",AM29*D29/AA29*100,AM29*100),AM29/$AA29*100),""),"") ->  | AS29: =IF($AA29>0,IF(COUNT(AO29)=1,IF(AO$20="P",IF($B$1="GF_HUHN",AO29*D29/AA29*100,AO29*100),AO29/$AA29*100),""),"") ->  | AX29: 10000 | BB29: 0 | BR29: =IF(AND(AZ29>0,COUNT(BQ29)=1),BQ29/AZ29*100,"") ->  | CF29: =IF(AND(COUNT(CB29:CD29)=2,CD29>0),CB29/CD29,"") -> 
B30: ERGEB902 | D30: Ergebnisse | E30: % | F30: =AC30 ->  | H30: =AD30 ->  | J30: =AE30 ->  | L30: =AF30 ->  | N30: =AG30 ->  | P30: =AH30 ->  | R30: =AI30 ->  | T30: =AJ30 ->  | Z30: =IF(COUNT(Z26:Z29)>0,SUM(Z26:Z29),"") -> 0 | AA30: 0 | AB30: =IF(AND($E$1>0,Z30<>""),SUM(Z26:Z29)/$E$1*100,"") -> 0 | AC30: =IF(COUNT(AC26:AC29)>0,SUM(AC26:AC29),"") ->  | AD30: =IF(COUNT(AD26:AD29)>0,SUM(AD26:AD29),"") ->  | AE30: =IF(COUNT(AE26:AE29)>0,SUM(AE26:AE29),"") ->  | AJ30: =IF(COUNT(AJ26:AJ29)>0,SUM(AJ26:AJ29),"") ->  | AM30: =IF(AND($E$1>0,COUNT(AM26:AM29)>0),IF(AM$20="P",SUM(AM26:AM29)*100,SUM(AM26:AM29)/$E$1*100),"") ->  | AO30: =IF(AND($E$1>0,COUNT(AO26:AO29)>0),IF(AO$20="P",SUM(AO26:AO29)*100,SUM(AO26:AO29)/$E$1*100),"") ->  | AP30: =IF(COUNT(AP26:AP29)>0,SUM(AP26:AP29),"") -> 0 | AQ30: =IF(COUNT(AQ26:AQ29)>0,SUM(AQ26:AQ29),"") -> 0 | AR30: =IF(COUNT(AR26:AR29)>0,SUM(AR26:AR29),"") ->  | AS30: =IF(COUNT(AS26:AS29)>0,SUM(AS26:AS29),"") ->  | AU30: =IF(COUNT(AU26:AU29)>0,SUM(AU26:AU29),"") ->  | AW30: Ergebnisse [% und n] | AZ30: =SUM(AZ26:AZ29) -> 0 | BB30: =IF(COUNT(BB26:BB29)>0,AVERAGE(BB26:BB29),"") -> 0 | BC30: =IF(COUNT(BC26:BC29)>0,AVERAGE(BC26:BC29),"") ->  | BE30: =IF($AZ30>0,IF(BE$20="P",BE26*$AZ26+BE27*$AZ27+BE28*$AZ28+BE29*$AZ29,SUM(BE26:BE29))/$AZ30*100,"") ->  | BG30: =IF($AZ30>0,IF(BG$20="P",BG26*$AZ26+BG27*$AZ27+BG28*$AZ28+BG29*$AZ29,SUM(BG26:BG29))/$AZ30*100,"") ->  | BI30: =IF($AZ30>0,IF(BI$20="P",BI26*$AZ26+BI27*$AZ27+BI28*$AZ28+BI29*$AZ29,SUM(BI26:BI29))/$AZ30*100,"") ->  | BK30: =IF($AZ30>0,IF(BK$20="P",BK26*$AZ26+BK27*$AZ27+BK28*$AZ28+BK29*$AZ29,SUM(BK26:BK29))/$AZ30*100,"") ->  | BM30: =IF($AZ30>0,IF(BM$20="P",BM26*$AZ26+BM27*$AZ27+BM28*$AZ28+BM29*$AZ29,SUM(BM26:BM29))/$AZ30*100,"") ->  | BO30: =IF($AZ30>0,IF(BO$20="P",BO26*$AZ26+BO27*$AZ27+BO28*$AZ28+BO29*$AZ29,SUM(BO26:BO29))/$AZ30*100,"") ->  | BQ30: =IF(AZ30>0,SUM(BQ26:BQ29),"") ->  | BR30: =IF(AZ30>0,BQ30/AZ30*100,"") ->  | BS30: =IF(COUNT(BS26:BS29)>0,AVERAGE(BS26:BS29),"") ->  | BT30: Erg. % | BV30: =IF(COUNT(BV26:BV29)>0,AVERAGE(BV26:BV29)*100,"") ->  | BX30: =IF(COUNT(BX26:BX29)>0,AVERAGE(BX26:BX29)*100,"") -> 95.5 | BZ30: =IF(COUNT(BZ26:BZ29)>0,AVERAGE(BZ26:BZ29)*100,"") ->  | CB30: =IF(COUNT(CB26:CB29)>0,AVERAGE(CB26:CB29),"") ->  | CD30: =IF(COUNT(CD26:CD29)>0,AVERAGE(CD26:CD29),"") ->  | CF30: =IF(COUNT(CF26:CF29)>0,AVERAGE(CF26:CF29),"") -> 
B31: DATEN009 | C31: =C29+1 -> 18 | D31: =X29 -> 10000 | X31: =IF(COUNT(D31,Z31)=2,D31-Z31-V31,"") -> 10000 | Z31: =IF(COUNT(D31)=1,kalkTV(F31,D31)+kalkTV(H31,D31)+kalkTV(J31,D31)+kalkTV(L31,D31)+kalkTV(N31,D31)+kalkTV(P31,D31)+kalkTV(R31,D31)+kalkTV(T31,D31),"") -> 0 | AA31: 10000 | AB31: =IF(AA31>0,Z31/AA31*100,"") -> 0 | AC31: =IF($AA31>0,IF(COUNT(F31)=1,IF(F$20="P",IF($B$1="GF_HUHN",F31*D31/AA31*100,F31*100),F31/$AA31*100),""),"") ->  | AD31: =IF($AA31>0,IF(COUNT(H31)=1,IF(H$20="P",IF($B$1="GF_HUHN",H31*D31/AA31*100,H31*100),H31/$AA31*100),""),"") ->  | AE31: =IF($AA31>0,IF(COUNT(J31)=1,IF(J$20="P",IF($B$1="GF_HUHN",J31*D31/AA31*100,J31*100),J31/$AA31*100),""),"") ->  | AF31: =IF($AA31>0,IF(COUNT(L31)=1,IF(L$20="P",IF($B$1="GF_HUHN",L31*D31/AA31*100,L31*100),L31/$AA31*100),""),"") ->  | AG31: =IF($AA31>0,IF(COUNT(N31)=1,IF(N$20="P",IF($B$1="GF_HUHN",N31*D31/AA31*100,N31*100),N31/$AA31*100),""),"") ->  | AH31: =IF($AA31>0,IF(COUNT(P31)=1,IF(P$20="P",IF($B$1="GF_HUHN",P31*D31/AA31*100,P31*100),P31/$AA31*100),""),"") ->  | AI31: =IF($AA31>0,IF(COUNT(R31)=1,IF(R$20="P",IF($B$1="GF_HUHN",R31*D31/AA31*100,R31*100),R31/$AA31*100),""),"") ->  | AJ31: =IF($AA31>0,IF(COUNT(T31)=1,IF(T$20="P",IF($B$1="GF_HUHN",T31*D31/AA31*100,T31*100),T31/$AA31*100),""),"") ->  | AP31: =IF(AA31>0,kalkTV(AM31,D31)+kalkTV(AO31,D31),"") -> 0 | AQ31: =IF(COUNT(AP31)=1,SUM(AR31:AS31),"") -> 0 | AR31: =IF($AA31>0,IF(COUNT(AM31)=1,IF(AM$20="P",IF($B$1="GF_HUHN",AM31*D31/AA31*100,AM31*100),AM31/$AA31*100),""),"") ->  | AS31: =IF($AA31>0,IF(COUNT(AO31)=1,IF(AO$20="P",IF($B$1="GF_HUHN",AO31*D31/AA31*100,AO31*100),AO31/$AA31*100),""),"") ->  | AU31: =IF(AND(AA31>0,COUNT(AG31,AR31)>0),IF(COUNT(AG31)=1,AG31,0)+IF(COUNT(AR31)=1,AR31,0),"") ->  | AV31: =IF(AND(AA31>0,COUNT(AI31,AS31)>0,$B$1="GF_PUTE"),IF(COUNT(AI31)=1,AI31,0)+IF(COUNT(AS31)=1,AS31,0),"") ->  | AX31: =IF(COUNT(D31)=1,(D31+X31)/2,"") -> 10000 | BB31: =IF(COUNT(AX31)=1,AZ31/7/AX31*100,"") -> 0 | BC31: =IF(COUNT(AZ29,AZ31)=2,BB31-BB29,"") ->  | BQ31: =IF(AZ31>0,IF(BE$20="P",BE31*$AZ31,BE31)+IF(BG$20="P",BG31*$AZ31,BG31)+IF(BI$20="P",BI31*$AZ31,BI31)+IF(BK$20="P",BK31*$AZ31,BK31)+IF(BM$20="P",BM31*$AZ31,BM31)+IF(BO$20="P",BO31*$AZ31,BO31),"") ->  | BR31: =IF(AND(AZ31>0,COUNT(BQ31)=1),BQ31/AZ31*100,"") ->  | BS31: =IF(COUNT(BR29,BR31)=2,BR31-BR29,"") ->  | CF31: =IF(AND(COUNT(CB31:CD31)=2,CD31>0),CB31/CD31,"") -> 
B32: DATEN010 | C32: =C31+1 -> 19 | D32: =X31 -> 10000 | X32: =IF(COUNT(D32)=1,D32-Z32-V32,"") -> 10000 | Z32: =IF(COUNT(D32)=1,kalkTV(F32,D32)+kalkTV(H32,D32)+kalkTV(J32,D32)+kalkTV(L32,D32)+kalkTV(N32,D32)+kalkTV(P32,D32)+kalkTV(R32,D32)+kalkTV(T32,D32),"") -> 0 | AA32: 10000 | AB32: =IF(AA32>0,Z32/AA32*100,"") -> 0 | AC32: =IF($AA32>0,IF(COUNT(F32)=1,IF(F$20="P",IF($B$1="GF_HUHN",F32*D32/AA32*100,F32*100),F32/$AA32*100),""),"") ->  | AD32: =IF($AA32>0,IF(COUNT(H32)=1,IF(H$20="P",IF($B$1="GF_HUHN",H32*D32/AA32*100,H32*100),H32/$AA32*100),""),"") ->  | AE32: =IF($AA32>0,IF(COUNT(J32)=1,IF(J$20="P",IF($B$1="GF_HUHN",J32*D32/AA32*100,J32*100),J32/$AA32*100),""),"") ->  | AF32: =IF($AA32>0,IF(COUNT(L32)=1,IF(L$20="P",IF($B$1="GF_HUHN",L32*D32/AA32*100,L32*100),L32/$AA32*100),""),"") ->  | AG32: =IF($AA32>0,IF(COUNT(N32)=1,IF(N$20="P",IF($B$1="GF_HUHN",N32*D32/AA32*100,N32*100),N32/$AA32*100),""),"") ->  | AH32: =IF($AA32>0,IF(COUNT(P32)=1,IF(P$20="P",IF($B$1="GF_HUHN",P32*D32/AA32*100,P32*100),P32/$AA32*100),""),"") ->  | AI32: =IF($AA32>0,IF(COUNT(R32)=1,IF(R$20="P",IF($B$1="GF_HUHN",R32*D32/AA32*100,R32*100),R32/$AA32*100),""),"") ->  | AJ32: =IF($AA32>0,IF(COUNT(T32)=1,IF(T$20="P",IF($B$1="GF_HUHN",T32*D32/AA32*100,T32*100),T32/$AA32*100),""),"") ->  | AP32: =IF(AA32>0,kalkTV(AM32,D32)+kalkTV(AO32,D32),"") -> 0 | AQ32: =IF(COUNT(AP32)=1,SUM(AR32:AS32),"") -> 0 | AR32: =IF($AA32>0,IF(COUNT(AM32)=1,IF(AM$20="P",IF($B$1="GF_HUHN",AM32*D32/AA32*100,AM32*100),AM32/$AA32*100),""),"") ->  | AS32: =IF($AA32>0,IF(COUNT(AO32)=1,IF(AO$20="P",IF($B$1="GF_HUHN",AO32*D32/AA32*100,AO32*100),AO32/$AA32*100),""),"") ->  | AU32: =IF(AND(AA32>0,COUNT(AG32,AR32)>0),IF(COUNT(AG32)=1,AG32,0)+IF(COUNT(AR32)=1,AR32,0),"") ->  | AV32: =IF(AND(AA32>0,COUNT(AI32,AS32)>0,$B$1="GF_PUTE"),IF(COUNT(AI32)=1,AI32,0)+IF(COUNT(AS32)=1,AS32,0),"") ->  | AX32: 10000 | BB32: =IF(COUNT(AX32)=1,AZ32/7/AX32*100,"") -> 0 | BC32: =IF(COUNT(AZ31:AZ32)=2,BB32-BB31,"") ->  | BQ32: =IF(AZ32>0,IF(BE$20="P",BE32*$AZ32,BE32)+IF(BG$20="P",BG32*$AZ32,BG32)+IF(BI$20="P",BI32*$AZ32,BI32)+IF(BK$20="P",BK32*$AZ32,BK32)+IF(BM$20="P",BM32*$AZ32,BM32)+IF(BO$20="P",BO32*$AZ32,BO32),"") ->  | BR32: =IF(AND(AZ32>0,COUNT(BQ32)=1),BQ32/AZ32*100,"") ->  | BS32: =IF(COUNT(BR31:BR32)=2,BR32-BR31,"") ->  | CF32: =IF(AND(COUNT(CB32:CD32)=2,CD32>0),CB32/CD32,"") -> 
B33: DATEN011 | C33: =C32+1 -> 20 | D33: =X32 -> 10000 | X33: =IF(COUNT(D33)=1,D33-Z33-V33,"") -> 10000 | Z33: =IF(COUNT(D33)=1,kalkTV(F33,D33)+kalkTV(H33,D33)+kalkTV(J33,D33)+kalkTV(L33,D33)+kalkTV(N33,D33)+kalkTV(P33,D33)+kalkTV(R33,D33)+kalkTV(T33,D33),"") -> 0 | AA33: 10000 | AB33: =IF(AA33>0,Z33/AA33*100,"") -> 0 | AC33: =IF($AA33>0,IF(COUNT(F33)=1,IF(F$20="P",IF($B$1="GF_HUHN",F33*D33/AA33*100,F33*100),F33/$AA33*100),""),"") ->  | AD33: =IF($AA33>0,IF(COUNT(H33)=1,IF(H$20="P",IF($B$1="GF_HUHN",H33*D33/AA33*100,H33*100),H33/$AA33*100),""),"") ->  | AE33: =IF($AA33>0,IF(COUNT(J33)=1,IF(J$20="P",IF($B$1="GF_HUHN",J33*D33/AA33*100,J33*100),J33/$AA33*100),""),"") ->  | AF33: =IF($AA33>0,IF(COUNT(L33)=1,IF(L$20="P",IF($B$1="GF_HUHN",L33*D33/AA33*100,L33*100),L33/$AA33*100),""),"") ->  | AG33: =IF($AA33>0,IF(COUNT(N33)=1,IF(N$20="P",IF($B$1="GF_HUHN",N33*D33/AA33*100,N33*100),N33/$AA33*100),""),"") ->  | AH33: =IF($AA33>0,IF(COUNT(P33)=1,IF(P$20="P",IF($B$1="GF_HUHN",P33*D33/AA33*100,P33*100),P33/$AA33*100),""),"") ->  | AI33: =IF($AA33>0,IF(COUNT(R33)=1,IF(R$20="P",IF($B$1="GF_HUHN",R33*D33/AA33*100,R33*100),R33/$AA33*100),""),"") ->  | AJ33: =IF($AA33>0,IF(COUNT(T33)=1,IF(T$20="P",IF($B$1="GF_HUHN",T33*D33/AA33*100,T33*100),T33/$AA33*100),""),"") ->  | AP33: =IF(AA33>0,kalkTV(AM33,D33)+kalkTV(AO33,D33),"") -> 0 | AQ33: 0 | AR33: =IF($AA33>0,IF(COUNT(AM33)=1,IF(AM$20="P",IF($B$1="GF_HUHN",AM33*D33/AA33*100,AM33*100),AM33/$AA33*100),""),"") ->  | AS33: =IF($AA33>0,IF(COUNT(AO33)=1,IF(AO$20="P",IF($B$1="GF_HUHN",AO33*D33/AA33*100,AO33*100),AO33/$AA33*100),""),"") ->  | AX33: 10000 | BB33: 0 | BR33: =IF(AND(AZ33>0,COUNT(BQ33)=1),BQ33/AZ33*100,"") ->  | CF33: =IF(AND(COUNT(CB33:CD33)=2,CD33>0),CB33/CD33,"") -> 
B34: DATEN012 | C34: =C33+1 -> 21 | D34: =X33 -> 10000 | X34: =IF(COUNT(D34)=1,D34-Z34-V34,"") -> 10000 | Z34: =IF(COUNT(D34)=1,kalkTV(F34,D34)+kalkTV(H34,D34)+kalkTV(J34,D34)+kalkTV(L34,D34)+kalkTV(N34,D34)+kalkTV(P34,D34)+kalkTV(R34,D34)+kalkTV(T34,D34),"") -> 0 | AA34: 10000 | AB34: =IF(AA34>0,Z34/AA34*100,"") -> 0 | AC34: =IF($AA34>0,IF(COUNT(F34)=1,IF(F$20="P",IF($B$1="GF_HUHN",F34*D34/AA34*100,F34*100),F34/$AA34*100),""),"") ->  | AD34: =IF($AA34>0,IF(COUNT(H34)=1,IF(H$20="P",IF($B$1="GF_HUHN",H34*D34/AA34*100,H34*100),H34/$AA34*100),""),"") ->  | AE34: =IF($AA34>0,IF(COUNT(J34)=1,IF(J$20="P",IF($B$1="GF_HUHN",J34*D34/AA34*100,J34*100),J34/$AA34*100),""),"") ->  | AF34: =IF($AA34>0,IF(COUNT(L34)=1,IF(L$20="P",IF($B$1="GF_HUHN",L34*D34/AA34*100,L34*100),L34/$AA34*100),""),"") ->  | AG34: =IF($AA34>0,IF(COUNT(N34)=1,IF(N$20="P",IF($B$1="GF_HUHN",N34*D34/AA34*100,N34*100),N34/$AA34*100),""),"") ->  | AH34: =IF($AA34>0,IF(COUNT(P34)=1,IF(P$20="P",IF($B$1="GF_HUHN",P34*D34/AA34*100,P34*100),P34/$AA34*100),""),"") ->  | AI34: =IF($AA34>0,IF(COUNT(R34)=1,IF(R$20="P",IF($B$1="GF_HUHN",R34*D34/AA34*100,R34*100),R34/$AA34*100),""),"") ->  | AJ34: =IF($AA34>0,IF(COUNT(T34)=1,IF(T$20="P",IF($B$1="GF_HUHN",T34*D34/AA34*100,T34*100),T34/$AA34*100),""),"") ->  | AP34: =IF(AA34>0,kalkTV(AM34,D34)+kalkTV(AO34,D34),"") -> 0 | AQ34: 0 | AR34: =IF($AA34>0,IF(COUNT(AM34)=1,IF(AM$20="P",IF($B$1="GF_HUHN",AM34*D34/AA34*100,AM34*100),AM34/$AA34*100),""),"") ->  | AS34: =IF($AA34>0,IF(COUNT(AO34)=1,IF(AO$20="P",IF($B$1="GF_HUHN",AO34*D34/AA34*100,AO34*100),AO34/$AA34*100),""),"") ->  | AX34: 10000 | BB34: 0 | BR34: =IF(AND(AZ34>0,COUNT(BQ34)=1),BQ34/AZ34*100,"") ->  | CF34: =IF(AND(COUNT(CB34:CD34)=2,CD34>0),CB34/CD34,"") -> 
B35: ERGEB903 | D35: Ergebnisse | E35: % | F35: =AC35 ->  | H35: =AD35 ->  | J35: =AE35 ->  | L35: =AF35 ->  | N35: =AG35 ->  | P35: =AH35 ->  | R35: =AI35 ->  | T35: =AJ35 ->  | Z35: =IF(COUNT(Z31:Z34)>0,SUM(Z31:Z34),"") -> 0 | AA35: 0 | AB35: =IF(AND($E$1>0,Z35<>""),SUM(Z31:Z34)/$E$1*100,"") -> 0 | AC35: =IF(COUNT(AC31:AC34)>0,SUM(AC31:AC34),"") ->  | AD35: =IF(COUNT(AD31:AD34)>0,SUM(AD31:AD34),"") ->  | AE35: =IF(COUNT(AE31:AE34)>0,SUM(AE31:AE34),"") ->  | AJ35: =IF(COUNT(AJ31:AJ34)>0,SUM(AJ31:AJ34),"") ->  | AM35: =IF(AND($E$1>0,COUNT(AM31:AM34)>0),IF(AM$20="P",SUM(AM31:AM34)*100,SUM(AM31:AM34)/$E$1*100),"") ->  | AO35: =IF(AND($E$1>0,COUNT(AO31:AO34)>0),IF(AO$20="P",SUM(AO31:AO34)*100,SUM(AO31:AO34)/$E$1*100),"") ->  | AP35: =IF(COUNT(AP31:AP34)>0,SUM(AP31:AP34),"") -> 0 | AQ35: =IF(COUNT(AQ31:AQ34)>0,SUM(AQ31:AQ34),"") -> 0 | AR35: =IF(COUNT(AR31:AR34)>0,SUM(AR31:AR34),"") ->  | AS35: =IF(COUNT(AS31:AS34)>0,SUM(AS31:AS34),"") ->  | AU35: =IF(COUNT(AU31:AU34)>0,SUM(AU31:AU34),"") ->  | AW35: Ergebnisse [% und n] | AZ35: =SUM(AZ31:AZ34) -> 0 | BB35: =IF(COUNT(BB31:BB34)>0,AVERAGE(BB31:BB34),"") -> 0 | BC35: =IF(COUNT(BC31:BC34)>0,AVERAGE(BC31:BC34),"") ->  | BE35: =IF($AZ35>0,IF(BE$20="P",BE31*$AZ31+BE32*$AZ32+BE33*$AZ33+BE34*$AZ34,SUM(BE31:BE34))/$AZ35*100,"") ->  | BG35: =IF($AZ35>0,IF(BG$20="P",BG31*$AZ31+BG32*$AZ32+BG33*$AZ33+BG34*$AZ34,SUM(BG31:BG34))/$AZ35*100,"") ->  | BI35: =IF($AZ35>0,IF(BI$20="P",BI31*$AZ31+BI32*$AZ32+BI33*$AZ33+BI34*$AZ34,SUM(BI31:BI34))/$AZ35*100,"") ->  | BK35: =IF($AZ35>0,IF(BK$20="P",BK31*$AZ31+BK32*$AZ32+BK33*$AZ33+BK34*$AZ34,SUM(BK31:BK34))/$AZ35*100,"") ->  | BM35: =IF($AZ35>0,IF(BM$20="P",BM31*$AZ31+BM32*$AZ32+BM33*$AZ33+BM34*$AZ34,SUM(BM31:BM34))/$AZ35*100,"") ->  | BO35: =IF($AZ35>0,IF(BO$20="P",BO31*$AZ31+BO32*$AZ32+BO33*$AZ33+BO34*$AZ34,SUM(BO31:BO34))/$AZ35*100,"") ->  | BQ35: =IF(AZ35>0,SUM(BQ31:BQ34),"") ->  | BR35: =IF(AZ35>0,BQ35/AZ35*100,"") ->  | BS35: =IF(COUNT(BS31:BS34)>0,AVERAGE(BS31:BS34),"") ->  | BT35: Erg. % | BV35: =IF(COUNT(BV31:BV34)>0,AVERAGE(BV31:BV34)*100,"") ->  | BX35: =IF(COUNT(BX31:BX34)>0,AVERAGE(BX31:BX34)*100,"") ->  | BZ35: =IF(COUNT(BZ31:BZ34)>0,AVERAGE(BZ31:BZ34)*100,"") ->  | CB35: =IF(COUNT(CB31:CB34)>0,AVERAGE(CB31:CB34),"") ->  | CD35: =IF(COUNT(CD31:CD34)>0,AVERAGE(CD31:CD34),"") ->  | CF35: =IF(COUNT(CF31:CF34)>0,AVERAGE(CF31:CF34),"") -> 
B36: DATEN013 | C36: =C34+1 -> 22 | D36: =X34 -> 10000 | X36: =IF(COUNT(D36,Z36)=2,D36-Z36-V36,"") -> 10000 | Z36: =IF(COUNT(D36)=1,kalkTV(F36,D36)+kalkTV(H36,D36)+kalkTV(J36,D36)+kalkTV(L36,D36)+kalkTV(N36,D36)+kalkTV(P36,D36)+kalkTV(R36,D36)+kalkTV(T36,D36),"") -> 0 | AA36: 10000 | AB36: =IF(AA36>0,Z36/AA36*100,"") -> 0 | AC36: =IF($AA36>0,IF(COUNT(F36)=1,IF(F$20="P",IF($B$1="GF_HUHN",F36*D36/AA36*100,F36*100),F36/$AA36*100),""),"") ->  | AD36: =IF($AA36>0,IF(COUNT(H36)=1,IF(H$20="P",IF($B$1="GF_HUHN",H36*D36/AA36*100,H36*100),H36/$AA36*100),""),"") ->  | AE36: =IF($AA36>0,IF(COUNT(J36)=1,IF(J$20="P",IF($B$1="GF_HUHN",J36*D36/AA36*100,J36*100),J36/$AA36*100),""),"") ->  | AF36: =IF($AA36>0,IF(COUNT(L36)=1,IF(L$20="P",IF($B$1="GF_HUHN",L36*D36/AA36*100,L36*100),L36/$AA36*100),""),"") ->  | AG36: =IF($AA36>0,IF(COUNT(N36)=1,IF(N$20="P",IF($B$1="GF_HUHN",N36*D36/AA36*100,N36*100),N36/$AA36*100),""),"") ->  | AH36: =IF($AA36>0,IF(COUNT(P36)=1,IF(P$20="P",IF($B$1="GF_HUHN",P36*D36/AA36*100,P36*100),P36/$AA36*100),""),"") ->  | AI36: =IF($AA36>0,IF(COUNT(R36)=1,IF(R$20="P",IF($B$1="GF_HUHN",R36*D36/AA36*100,R36*100),R36/$AA36*100),""),"") ->  | AJ36: =IF($AA36>0,IF(COUNT(T36)=1,IF(T$20="P",IF($B$1="GF_HUHN",T36*D36/AA36*100,T36*100),T36/$AA36*100),""),"") ->  | AP36: =IF(AA36>0,kalkTV(AM36,D36)+kalkTV(AO36,D36),"") -> 0 | AQ36: =IF(COUNT(AP36)=1,SUM(AR36:AS36),"") -> 0 | AR36: =IF($AA36>0,IF(COUNT(AM36)=1,IF(AM$20="P",IF($B$1="GF_HUHN",AM36*D36/AA36*100,AM36*100),AM36/$AA36*100),""),"") ->  | AS36: =IF($AA36>0,IF(COUNT(AO36)=1,IF(AO$20="P",IF($B$1="GF_HUHN",AO36*D36/AA36*100,AO36*100),AO36/$AA36*100),""),"") ->  | AU36: =IF(AND(AA36>0,COUNT(AG36,AR36)>0),IF(COUNT(AG36)=1,AG36,0)+IF(COUNT(AR36)=1,AR36,0),"") ->  | AV36: =IF(AND(AA36>0,COUNT(AI36,AS36)>0,$B$1="GF_PUTE"),IF(COUNT(AI36)=1,AI36,0)+IF(COUNT(AS36)=1,AS36,0),"") ->  | AX36: =IF(COUNT(D36)=1,(D36+X36)/2,"") -> 10000 | BB36: =IF(COUNT(AX36)=1,AZ36/7/AX36*100,"") -> 0 | BC36: =IF(COUNT(AZ34,AZ36)=2,BB36-BB34,"") ->  | BQ36: =IF(AZ36>0,IF(BE$20="P",BE36*$AZ36,BE36)+IF(BG$20="P",BG36*$AZ36,BG36)+IF(BI$20="P",BI36*$AZ36,BI36)+IF(BK$20="P",BK36*$AZ36,BK36)+IF(BM$20="P",BM36*$AZ36,BM36)+IF(BO$20="P",BO36*$AZ36,BO36),"") ->  | BR36: =IF(AND(AZ36>0,COUNT(BQ36)=1),BQ36/AZ36*100,"") ->  | BS36: =IF(COUNT(BR34,BR36)=2,BR36-BR34,"") ->  | CF36: =IF(AND(COUNT(CB36:CD36)=2,CD36>0),CB36/CD36,"") -> 
B37: DATEN014 | C37: =C36+1 -> 23 | D37: =X36 -> 10000 | X37: =IF(COUNT(D37)=1,D37-Z37-V37,"") -> 10000 | Z37: =IF(COUNT(D37)=1,kalkTV(F37,D37)+kalkTV(H37,D37)+kalkTV(J37,D37)+kalkTV(L37,D37)+kalkTV(N37,D37)+kalkTV(P37,D37)+kalkTV(R37,D37)+kalkTV(T37,D37),"") -> 0 | AA37: 10000 | AB37: =IF(AA37>0,Z37/AA37*100,"") -> 0 | AC37: =IF($AA37>0,IF(COUNT(F37)=1,IF(F$20="P",IF($B$1="GF_HUHN",F37*D37/AA37*100,F37*100),F37/$AA37*100),""),"") ->  | AD37: =IF($AA37>0,IF(COUNT(H37)=1,IF(H$20="P",IF($B$1="GF_HUHN",H37*D37/AA37*100,H37*100),H37/$AA37*100),""),"") ->  | AE37: =IF($AA37>0,IF(COUNT(J37)=1,IF(J$20="P",IF($B$1="GF_HUHN",J37*D37/AA37*100,J37*100),J37/$AA37*100),""),"") ->  | AF37: =IF($AA37>0,IF(COUNT(L37)=1,IF(L$20="P",IF($B$1="GF_HUHN",L37*D37/AA37*100,L37*100),L37/$AA37*100),""),"") ->  | AG37: =IF($AA37>0,IF(COUNT(N37)=1,IF(N$20="P",IF($B$1="GF_HUHN",N37*D37/AA37*100,N37*100),N37/$AA37*100),""),"") ->  | AH37: =IF($AA37>0,IF(COUNT(P37)=1,IF(P$20="P",IF($B$1="GF_HUHN",P37*D37/AA37*100,P37*100),P37/$AA37*100),""),"") ->  | AI37: =IF($AA37>0,IF(COUNT(R37)=1,IF(R$20="P",IF($B$1="GF_HUHN",R37*D37/AA37*100,R37*100),R37/$AA37*100),""),"") ->  | AJ37: =IF($AA37>0,IF(COUNT(T37)=1,IF(T$20="P",IF($B$1="GF_HUHN",T37*D37/AA37*100,T37*100),T37/$AA37*100),""),"") ->  | AP37: =IF(AA37>0,kalkTV(AM37,D37)+kalkTV(AO37,D37),"") -> 0 | AQ37: =IF(COUNT(AP37)=1,SUM(AR37:AS37),"") -> 0 | AR37: =IF($AA37>0,IF(COUNT(AM37)=1,IF(AM$20="P",IF($B$1="GF_HUHN",AM37*D37/AA37*100,AM37*100),AM37/$AA37*100),""),"") ->  | AS37: =IF($AA37>0,IF(COUNT(AO37)=1,IF(AO$20="P",IF($B$1="GF_HUHN",AO37*D37/AA37*100,AO37*100),AO37/$AA37*100),""),"") ->  | AU37: =IF(AND(AA37>0,COUNT(AG37,AR37)>0),IF(COUNT(AG37)=1,AG37,0)+IF(COUNT(AR37)=1,AR37,0),"") ->  | AV37: =IF(AND(AA37>0,COUNT(AI37,AS37)>0,$B$1="GF_PUTE"),IF(COUNT(AI37)=1,AI37,0)+IF(COUNT(AS37)=1,AS37,0),"") ->  | AX37: 10000 | BB37: =IF(COUNT(AX37)=1,AZ37/7/AX37*100,"") -> 0 | BC37: =IF(COUNT(AZ36:AZ37)=2,BB37-BB36,"") ->  | BQ37: =IF(AZ37>0,IF(BE$20="P",BE37*$AZ37,BE37)+IF(BG$20="P",BG37*$AZ37,BG37)+IF(BI$20="P",BI37*$AZ37,BI37)+IF(BK$20="P",BK37*$AZ37,BK37)+IF(BM$20="P",BM37*$AZ37,BM37)+IF(BO$20="P",BO37*$AZ37,BO37),"") ->  | BR37: =IF(AND(AZ37>0,COUNT(BQ37)=1),BQ37/AZ37*100,"") ->  | BS37: =IF(COUNT(BR36:BR37)=2,BR37-BR36,"") ->  | CF37: =IF(AND(COUNT(CB37:CD37)=2,CD37>0),CB37/CD37,"") -> 
B38: DATEN015 | C38: =C37+1 -> 24 | D38: =X37 -> 10000 | X38: =IF(COUNT(D38)=1,D38-Z38-V38,"") -> 10000 | Z38: =IF(COUNT(D38)=1,kalkTV(F38,D38)+kalkTV(H38,D38)+kalkTV(J38,D38)+kalkTV(L38,D38)+kalkTV(N38,D38)+kalkTV(P38,D38)+kalkTV(R38,D38)+kalkTV(T38,D38),"") -> 0 | AA38: 10000 | AB38: =IF(AA38>0,Z38/AA38*100,"") -> 0 | AC38: =IF($AA38>0,IF(COUNT(F38)=1,IF(F$20="P",IF($B$1="GF_HUHN",F38*D38/AA38*100,F38*100),F38/$AA38*100),""),"") ->  | AD38: =IF($AA38>0,IF(COUNT(H38)=1,IF(H$20="P",IF($B$1="GF_HUHN",H38*D38/AA38*100,H38*100),H38/$AA38*100),""),"") ->  | AE38: =IF($AA38>0,IF(COUNT(J38)=1,IF(J$20="P",IF($B$1="GF_HUHN",J38*D38/AA38*100,J38*100),J38/$AA38*100),""),"") ->  | AF38: =IF($AA38>0,IF(COUNT(L38)=1,IF(L$20="P",IF($B$1="GF_HUHN",L38*D38/AA38*100,L38*100),L38/$AA38*100),""),"") ->  | AG38: =IF($AA38>0,IF(COUNT(N38)=1,IF(N$20="P",IF($B$1="GF_HUHN",N38*D38/AA38*100,N38*100),N38/$AA38*100),""),"") ->  | AH38: =IF($AA38>0,IF(COUNT(P38)=1,IF(P$20="P",IF($B$1="GF_HUHN",P38*D38/AA38*100,P38*100),P38/$AA38*100),""),"") ->  | AI38: =IF($AA38>0,IF(COUNT(R38)=1,IF(R$20="P",IF($B$1="GF_HUHN",R38*D38/AA38*100,R38*100),R38/$AA38*100),""),"") ->  | AJ38: =IF($AA38>0,IF(COUNT(T38)=1,IF(T$20="P",IF($B$1="GF_HUHN",T38*D38/AA38*100,T38*100),T38/$AA38*100),""),"") ->  | AP38: =IF(AA38>0,kalkTV(AM38,D38)+kalkTV(AO38,D38),"") -> 0 | AQ38: 0 | AR38: =IF($AA38>0,IF(COUNT(AM38)=1,IF(AM$20="P",IF($B$1="GF_HUHN",AM38*D38/AA38*100,AM38*100),AM38/$AA38*100),""),"") ->  | AS38: =IF($AA38>0,IF(COUNT(AO38)=1,IF(AO$20="P",IF($B$1="GF_HUHN",AO38*D38/AA38*100,AO38*100),AO38/$AA38*100),""),"") ->  | AX38: 10000 | BB38: 0 | BR38: =IF(AND(AZ38>0,COUNT(BQ38)=1),BQ38/AZ38*100,"") ->  | CF38: =IF(AND(COUNT(CB38:CD38)=2,CD38>0),CB38/CD38,"") -> 
B39: DATEN016 | C39: =C38+1 -> 25 | D39: =X38 -> 10000 | X39: =IF(COUNT(D39)=1,D39-Z39-V39,"") -> 10000 | Z39: =IF(COUNT(D39)=1,kalkTV(F39,D39)+kalkTV(H39,D39)+kalkTV(J39,D39)+kalkTV(L39,D39)+kalkTV(N39,D39)+kalkTV(P39,D39)+kalkTV(R39,D39)+kalkTV(T39,D39),"") -> 0 | AA39: 10000 | AB39: =IF(AA39>0,Z39/AA39*100,"") -> 0 | AC39: =IF($AA39>0,IF(COUNT(F39)=1,IF(F$20="P",IF($B$1="GF_HUHN",F39*D39/AA39*100,F39*100),F39/$AA39*100),""),"") ->  | AD39: =IF($AA39>0,IF(COUNT(H39)=1,IF(H$20="P",IF($B$1="GF_HUHN",H39*D39/AA39*100,H39*100),H39/$AA39*100),""),"") ->  | AE39: =IF($AA39>0,IF(COUNT(J39)=1,IF(J$20="P",IF($B$1="GF_HUHN",J39*D39/AA39*100,J39*100),J39/$AA39*100),""),"") ->  | AF39: =IF($AA39>0,IF(COUNT(L39)=1,IF(L$20="P",IF($B$1="GF_HUHN",L39*D39/AA39*100,L39*100),L39/$AA39*100),""),"") ->  | AG39: =IF($AA39>0,IF(COUNT(N39)=1,IF(N$20="P",IF($B$1="GF_HUHN",N39*D39/AA39*100,N39*100),N39/$AA39*100),""),"") ->  | AH39: =IF($AA39>0,IF(COUNT(P39)=1,IF(P$20="P",IF($B$1="GF_HUHN",P39*D39/AA39*100,P39*100),P39/$AA39*100),""),"") ->  | AI39: =IF($AA39>0,IF(COUNT(R39)=1,IF(R$20="P",IF($B$1="GF_HUHN",R39*D39/AA39*100,R39*100),R39/$AA39*100),""),"") ->  | AJ39: =IF($AA39>0,IF(COUNT(T39)=1,IF(T$20="P",IF($B$1="GF_HUHN",T39*D39/AA39*100,T39*100),T39/$AA39*100),""),"") ->  | AP39: =IF(AA39>0,kalkTV(AM39,D39)+kalkTV(AO39,D39),"") -> 0 | AQ39: 0 | AR39: =IF($AA39>0,IF(COUNT(AM39)=1,IF(AM$20="P",IF($B$1="GF_HUHN",AM39*D39/AA39*100,AM39*100),AM39/$AA39*100),""),"") ->  | AS39: =IF($AA39>0,IF(COUNT(AO39)=1,IF(AO$20="P",IF($B$1="GF_HUHN",AO39*D39/AA39*100,AO39*100),AO39/$AA39*100),""),"") ->  | AX39: 10000 | BB39: 0 | BR39: =IF(AND(AZ39>0,COUNT(BQ39)=1),BQ39/AZ39*100,"") ->  | CF39: =IF(AND(COUNT(CB39:CD39)=2,CD39>0),CB39/CD39,"") -> 
B40: ERGEB904 | D40: Ergebnisse | E40: % | F40: =AC40 ->  | H40: =AD40 ->  | J40: =AE40 ->  | L40: =AF40 ->  | N40: =AG40 ->  | P40: =AH40 ->  | R40: =AI40 ->  | T40: =AJ40 ->  | Z40: =IF(COUNT(Z36:Z39)>0,SUM(Z36:Z39),"") -> 0 | AA40: 0 | AB40: =IF(AND($E$1>0,Z40<>""),SUM(Z36:Z39)/$E$1*100,"") -> 0 | AC40: =IF(COUNT(AC36:AC39)>0,SUM(AC36:AC39),"") ->  | AD40: =IF(COUNT(AD36:AD39)>0,SUM(AD36:AD39),"") ->  | AE40: =IF(COUNT(AE36:AE39)>0,SUM(AE36:AE39),"") ->  | AJ40: =IF(COUNT(AJ36:AJ39)>0,SUM(AJ36:AJ39),"") ->  | AM40: =IF(AND($E$1>0,COUNT(AM36:AM39)>0),IF(AM$20="P",SUM(AM36:AM39)*100,SUM(AM36:AM39)/$E$1*100),"") ->  | AO40: =IF(AND($E$1>0,COUNT(AO36:AO39)>0),IF(AO$20="P",SUM(AO36:AO39)*100,SUM(AO36:AO39)/$E$1*100),"") ->  | AP40: =IF(COUNT(AP36:AP39)>0,SUM(AP36:AP39),"") -> 0 | AQ40: =IF(COUNT(AQ36:AQ39)>0,SUM(AQ36:AQ39),"") -> 0 | AR40: =IF(COUNT(AR36:AR39)>0,SUM(AR36:AR39),"") ->  | AS40: =IF(COUNT(AS36:AS39)>0,SUM(AS36:AS39),"") ->  | AU40: =IF(COUNT(AU36:AU39)>0,SUM(AU36:AU39),"") ->  | AW40: Ergebnisse [% und n] | AZ40: =SUM(AZ36:AZ39) -> 0 | BB40: =IF(COUNT(BB36:BB39)>0,AVERAGE(BB36:BB39),"") -> 0 | BC40: =IF(COUNT(BC36:BC39)>0,AVERAGE(BC36:BC39),"") ->  | BE40: =IF($AZ40>0,IF(BE$20="P",BE36*$AZ36+BE37*$AZ37+BE38*$AZ38+BE39*$AZ39,SUM(BE36:BE39))/$AZ40*100,"") ->  | BG40: =IF($AZ40>0,IF(BG$20="P",BG36*$AZ36+BG37*$AZ37+BG38*$AZ38+BG39*$AZ39,SUM(BG36:BG39))/$AZ40*100,"") ->  | BI40: =IF($AZ40>0,IF(BI$20="P",BI36*$AZ36+BI37*$AZ37+BI38*$AZ38+BI39*$AZ39,SUM(BI36:BI39))/$AZ40*100,"") ->  | BK40: =IF($AZ40>0,IF(BK$20="P",BK36*$AZ36+BK37*$AZ37+BK38*$AZ38+BK39*$AZ39,SUM(BK36:BK39))/$AZ40*100,"") ->  | BM40: =IF($AZ40>0,IF(BM$20="P",BM36*$AZ36+BM37*$AZ37+BM38*$AZ38+BM39*$AZ39,SUM(BM36:BM39))/$AZ40*100,"") ->  | BO40: =IF($AZ40>0,IF(BO$20="P",BO36*$AZ36+BO37*$AZ37+BO38*$AZ38+BO39*$AZ39,SUM(BO36:BO39))/$AZ40*100,"") ->  | BQ40: =IF(AZ40>0,SUM(BQ36:BQ39),"") ->  | BR40: =IF(AZ40>0,BQ40/AZ40*100,"") ->  | BS40: =IF(COUNT(BS36:BS39)>0,AVERAGE(BS36:BS39),"") ->  | BT40: Erg. % | BV40: =IF(COUNT(BV36:BV39)>0,AVERAGE(BV36:BV39)*100,"") ->  | BX40: =IF(COUNT(BX36:BX39)>0,AVERAGE(BX36:BX39)*100,"") ->  | BZ40: =IF(COUNT(BZ36:BZ39)>0,AVERAGE(BZ36:BZ39)*100,"") ->  | CB40: =IF(COUNT(CB36:CB39)>0,AVERAGE(CB36:CB39),"") ->  | CD40: =IF(COUNT(CD36:CD39)>0,AVERAGE(CD36:CD39),"") ->  | CF40: =IF(COUNT(CF36:CF39)>0,AVERAGE(CF36:CF39),"") -> 
B41: DATEN017 | C41: =C39+1 -> 26 | D41: =X39 -> 10000 | X41: =IF(COUNT(D41,Z41)=2,D41-Z41-V41,"") -> 10000 | Z41: =IF(COUNT(D41)=1,kalkTV(F41,D41)+kalkTV(H41,D41)+kalkTV(J41,D41)+kalkTV(L41,D41)+kalkTV(N41,D41)+kalkTV(P41,D41)+kalkTV(R41,D41)+kalkTV(T41,D41),"") -> 0 | AA41: 10000 | AB41: =IF(AA41>0,Z41/AA41*100,"") -> 0 | AC41: =IF($AA41>0,IF(COUNT(F41)=1,IF(F$20="P",IF($B$1="GF_HUHN",F41*D41/AA41*100,F41*100),F41/$AA41*100),""),"") ->  | AD41: =IF($AA41>0,IF(COUNT(H41)=1,IF(H$20="P",IF($B$1="GF_HUHN",H41*D41/AA41*100,H41*100),H41/$AA41*100),""),"") ->  | AE41: =IF($AA41>0,IF(COUNT(J41)=1,IF(J$20="P",IF($B$1="GF_HUHN",J41*D41/AA41*100,J41*100),J41/$AA41*100),""),"") ->  | AF41: =IF($AA41>0,IF(COUNT(L41)=1,IF(L$20="P",IF($B$1="GF_HUHN",L41*D41/AA41*100,L41*100),L41/$AA41*100),""),"") ->  | AG41: =IF($AA41>0,IF(COUNT(N41)=1,IF(N$20="P",IF($B$1="GF_HUHN",N41*D41/AA41*100,N41*100),N41/$AA41*100),""),"") ->  | AH41: =IF($AA41>0,IF(COUNT(P41)=1,IF(P$20="P",IF($B$1="GF_HUHN",P41*D41/AA41*100,P41*100),P41/$AA41*100),""),"") ->  | AI41: =IF($AA41>0,IF(COUNT(R41)=1,IF(R$20="P",IF($B$1="GF_HUHN",R41*D41/AA41*100,R41*100),R41/$AA41*100),""),"") ->  | AJ41: =IF($AA41>0,IF(COUNT(T41)=1,IF(T$20="P",IF($B$1="GF_HUHN",T41*D41/AA41*100,T41*100),T41/$AA41*100),""),"") ->  | AP41: =IF(AA41>0,kalkTV(AM41,D41)+kalkTV(AO41,D41),"") -> 0 | AQ41: =IF(COUNT(AP41)=1,SUM(AR41:AS41),"") -> 0 | AR41: =IF($AA41>0,IF(COUNT(AM41)=1,IF(AM$20="P",IF($B$1="GF_HUHN",AM41*D41/AA41*100,AM41*100),AM41/$AA41*100),""),"") ->  | AS41: =IF($AA41>0,IF(COUNT(AO41)=1,IF(AO$20="P",IF($B$1="GF_HUHN",AO41*D41/AA41*100,AO41*100),AO41/$AA41*100),""),"") ->  | AU41: =IF(AND(AA41>0,COUNT(AG41,AR41)>0),IF(COUNT(AG41)=1,AG41,0)+IF(COUNT(AR41)=1,AR41,0),"") ->  | AV41: =IF(AND(AA41>0,COUNT(AI41,AS41)>0,$B$1="GF_PUTE"),IF(COUNT(AI41)=1,AI41,0)+IF(COUNT(AS41)=1,AS41,0),"") ->  | AX41: =IF(COUNT(D41)=1,(D41+X41)/2,"") -> 10000 | BB41: =IF(COUNT(AX41)=1,AZ41/7/AX41*100,"") -> 0 | BC41: =IF(COUNT(AZ39,AZ41)=2,BB41-BB39,"") ->  | BQ41: =IF(AZ41>0,IF(BE$20="P",BE41*$AZ41,BE41)+IF(BG$20="P",BG41*$AZ41,BG41)+IF(BI$20="P",BI41*$AZ41,BI41)+IF(BK$20="P",BK41*$AZ41,BK41)+IF(BM$20="P",BM41*$AZ41,BM41)+IF(BO$20="P",BO41*$AZ41,BO41),"") ->  | BR41: =IF(AND(AZ41>0,COUNT(BQ41)=1),BQ41/AZ41*100,"") ->  | BS41: =IF(COUNT(BR39,BR41)=2,BR41-BR39,"") ->  | CF41: =IF(AND(COUNT(CB41:CD41)=2,CD41>0),CB41/CD41,"") -> 
B42: DATEN018 | C42: =C41+1 -> 27 | D42: =X41 -> 10000 | X42: =IF(COUNT(D42)=1,D42-Z42-V42,"") -> 10000 | Z42: =IF(COUNT(D42)=1,kalkTV(F42,D42)+kalkTV(H42,D42)+kalkTV(J42,D42)+kalkTV(L42,D42)+kalkTV(N42,D42)+kalkTV(P42,D42)+kalkTV(R42,D42)+kalkTV(T42,D42),"") -> 0 | AA42: 10000 | AB42: =IF(AA42>0,Z42/AA42*100,"") -> 0 | AC42: =IF($AA42>0,IF(COUNT(F42)=1,IF(F$20="P",IF($B$1="GF_HUHN",F42*D42/AA42*100,F42*100),F42/$AA42*100),""),"") ->  | AD42: =IF($AA42>0,IF(COUNT(H42)=1,IF(H$20="P",IF($B$1="GF_HUHN",H42*D42/AA42*100,H42*100),H42/$AA42*100),""),"") ->  | AE42: =IF($AA42>0,IF(COUNT(J42)=1,IF(J$20="P",IF($B$1="GF_HUHN",J42*D42/AA42*100,J42*100),J42/$AA42*100),""),"") ->  | AF42: =IF($AA42>0,IF(COUNT(L42)=1,IF(L$20="P",IF($B$1="GF_HUHN",L42*D42/AA42*100,L42*100),L42/$AA42*100),""),"") ->  | AG42: =IF($AA42>0,IF(COUNT(N42)=1,IF(N$20="P",IF($B$1="GF_HUHN",N42*D42/AA42*100,N42*100),N42/$AA42*100),""),"") ->  | AH42: =IF($AA42>0,IF(COUNT(P42)=1,IF(P$20="P",IF($B$1="GF_HUHN",P42*D42/AA42*100,P42*100),P42/$AA42*100),""),"") ->  | AI42: =IF($AA42>0,IF(COUNT(R42)=1,IF(R$20="P",IF($B$1="GF_HUHN",R42*D42/AA42*100,R42*100),R42/$AA42*100),""),"") ->  | AJ42: =IF($AA42>0,IF(COUNT(T42)=1,IF(T$20="P",IF($B$1="GF_HUHN",T42*D42/AA42*100,T42*100),T42/$AA42*100),""),"") ->  | AP42: =IF(AA42>0,kalkTV(AM42,D42)+kalkTV(AO42,D42),"") -> 0 | AQ42: =IF(COUNT(AP42)=1,SUM(AR42:AS42),"") -> 0 | AR42: =IF($AA42>0,IF(COUNT(AM42)=1,IF(AM$20="P",IF($B$1="GF_HUHN",AM42*D42/AA42*100,AM42*100),AM42/$AA42*100),""),"") ->  | AS42: =IF($AA42>0,IF(COUNT(AO42)=1,IF(AO$20="P",IF($B$1="GF_HUHN",AO42*D42/AA42*100,AO42*100),AO42/$AA42*100),""),"") ->  | AU42: =IF(AND(AA42>0,COUNT(AG42,AR42)>0),IF(COUNT(AG42)=1,AG42,0)+IF(COUNT(AR42)=1,AR42,0),"") ->  | AV42: =IF(AND(AA42>0,COUNT(AI42,AS42)>0,$B$1="GF_PUTE"),IF(COUNT(AI42)=1,AI42,0)+IF(COUNT(AS42)=1,AS42,0),"") ->  | AX42: 10000 | BB42: =IF(COUNT(AX42)=1,AZ42/7/AX42*100,"") -> 0 | BC42: =IF(COUNT(AZ41:AZ42)=2,BB42-BB41,"") ->  | BQ42: =IF(AZ42>0,IF(BE$20="P",BE42*$AZ42,BE42)+IF(BG$20="P",BG42*$AZ42,BG42)+IF(BI$20="P",BI42*$AZ42,BI42)+IF(BK$20="P",BK42*$AZ42,BK42)+IF(BM$20="P",BM42*$AZ42,BM42)+IF(BO$20="P",BO42*$AZ42,BO42),"") ->  | BR42: =IF(AND(AZ42>0,COUNT(BQ42)=1),BQ42/AZ42*100,"") ->  | BS42: =IF(COUNT(BR41:BR42)=2,BR42-BR41,"") ->  | CF42: =IF(AND(COUNT(CB42:CD42)=2,CD42>0),CB42/CD42,"") -> 
B43: DATEN019 | C43: =C42+1 -> 28 | D43: =X42 -> 10000 | X43: =IF(COUNT(D43)=1,D43-Z43-V43,"") -> 10000 | Z43: =IF(COUNT(D43)=1,kalkTV(F43,D43)+kalkTV(H43,D43)+kalkTV(J43,D43)+kalkTV(L43,D43)+kalkTV(N43,D43)+kalkTV(P43,D43)+kalkTV(R43,D43)+kalkTV(T43,D43),"") -> 0 | AA43: 10000 | AB43: =IF(AA43>0,Z43/AA43*100,"") -> 0 | AC43: =IF($AA43>0,IF(COUNT(F43)=1,IF(F$20="P",IF($B$1="GF_HUHN",F43*D43/AA43*100,F43*100),F43/$AA43*100),""),"") ->  | AD43: =IF($AA43>0,IF(COUNT(H43)=1,IF(H$20="P",IF($B$1="GF_HUHN",H43*D43/AA43*100,H43*100),H43/$AA43*100),""),"") ->  | AE43: =IF($AA43>0,IF(COUNT(J43)=1,IF(J$20="P",IF($B$1="GF_HUHN",J43*D43/AA43*100,J43*100),J43/$AA43*100),""),"") ->  | AF43: =IF($AA43>0,IF(COUNT(L43)=1,IF(L$20="P",IF($B$1="GF_HUHN",L43*D43/AA43*100,L43*100),L43/$AA43*100),""),"") ->  | AG43: =IF($AA43>0,IF(COUNT(N43)=1,IF(N$20="P",IF($B$1="GF_HUHN",N43*D43/AA43*100,N43*100),N43/$AA43*100),""),"") ->  | AH43: =IF($AA43>0,IF(COUNT(P43)=1,IF(P$20="P",IF($B$1="GF_HUHN",P43*D43/AA43*100,P43*100),P43/$AA43*100),""),"") ->  | AI43: =IF($AA43>0,IF(COUNT(R43)=1,IF(R$20="P",IF($B$1="GF_HUHN",R43*D43/AA43*100,R43*100),R43/$AA43*100),""),"") ->  | AJ43: =IF($AA43>0,IF(COUNT(T43)=1,IF(T$20="P",IF($B$1="GF_HUHN",T43*D43/AA43*100,T43*100),T43/$AA43*100),""),"") ->  | AP43: =IF(AA43>0,kalkTV(AM43,D43)+kalkTV(AO43,D43),"") -> 0 | AQ43: 0 | AR43: =IF($AA43>0,IF(COUNT(AM43)=1,IF(AM$20="P",IF($B$1="GF_HUHN",AM43*D43/AA43*100,AM43*100),AM43/$AA43*100),""),"") ->  | AS43: =IF($AA43>0,IF(COUNT(AO43)=1,IF(AO$20="P",IF($B$1="GF_HUHN",AO43*D43/AA43*100,AO43*100),AO43/$AA43*100),""),"") ->  | AX43: 10000 | BB43: 0 | BR43: =IF(AND(AZ43>0,COUNT(BQ43)=1),BQ43/AZ43*100,"") ->  | CF43: =IF(AND(COUNT(CB43:CD43)=2,CD43>0),CB43/CD43,"") -> 
B44: DATEN020 | C44: =C43+1 -> 29 | D44: =X43 -> 10000 | X44: =IF(COUNT(D44)=1,D44-Z44-V44,"") -> 10000 | Z44: =IF(COUNT(D44)=1,kalkTV(F44,D44)+kalkTV(H44,D44)+kalkTV(J44,D44)+kalkTV(L44,D44)+kalkTV(N44,D44)+kalkTV(P44,D44)+kalkTV(R44,D44)+kalkTV(T44,D44),"") -> 0 | AA44: 10000 | AB44: =IF(AA44>0,Z44/AA44*100,"") -> 0 | AC44: =IF($AA44>0,IF(COUNT(F44)=1,IF(F$20="P",IF($B$1="GF_HUHN",F44*D44/AA44*100,F44*100),F44/$AA44*100),""),"") ->  | AD44: =IF($AA44>0,IF(COUNT(H44)=1,IF(H$20="P",IF($B$1="GF_HUHN",H44*D44/AA44*100,H44*100),H44/$AA44*100),""),"") ->  | AE44: =IF($AA44>0,IF(COUNT(J44)=1,IF(J$20="P",IF($B$1="GF_HUHN",J44*D44/AA44*100,J44*100),J44/$AA44*100),""),"") ->  | AF44: =IF($AA44>0,IF(COUNT(L44)=1,IF(L$20="P",IF($B$1="GF_HUHN",L44*D44/AA44*100,L44*100),L44/$AA44*100),""),"") ->  | AG44: =IF($AA44>0,IF(COUNT(N44)=1,IF(N$20="P",IF($B$1="GF_HUHN",N44*D44/AA44*100,N44*100),N44/$AA44*100),""),"") ->  | AH44: =IF($AA44>0,IF(COUNT(P44)=1,IF(P$20="P",IF($B$1="GF_HUHN",P44*D44/AA44*100,P44*100),P44/$AA44*100),""),"") ->  | AI44: =IF($AA44>0,IF(COUNT(R44)=1,IF(R$20="P",IF($B$1="GF_HUHN",R44*D44/AA44*100,R44*100),R44/$AA44*100),""),"") ->  | AJ44: =IF($AA44>0,IF(COUNT(T44)=1,IF(T$20="P",IF($B$1="GF_HUHN",T44*D44/AA44*100,T44*100),T44/$AA44*100),""),"") ->  | AP44: =IF(AA44>0,kalkTV(AM44,D44)+kalkTV(AO44,D44),"") -> 0 | AQ44: 0 | AR44: =IF($AA44>0,IF(COUNT(AM44)=1,IF(AM$20="P",IF($B$1="GF_HUHN",AM44*D44/AA44*100,AM44*100),AM44/$AA44*100),""),"") ->  | AS44: =IF($AA44>0,IF(COUNT(AO44)=1,IF(AO$20="P",IF($B$1="GF_HUHN",AO44*D44/AA44*100,AO44*100),AO44/$AA44*100),""),"") ->  | AX44: 10000 | BB44: 0 | BR44: =IF(AND(AZ44>0,COUNT(BQ44)=1),BQ44/AZ44*100,"") ->  | CF44: =IF(AND(COUNT(CB44:CD44)=2,CD44>0),CB44/CD44,"") -> 
B45: ERGEB905 | D45: Ergebnisse | E45: % | F45: =AC45 ->  | H45: =AD45 ->  | J45: =AE45 ->  | L45: =AF45 ->  | N45: =AG45 ->  | P45: =AH45 ->  | R45: =AI45 ->  | T45: =AJ45 ->  | Z45: =IF(COUNT(Z41:Z44)>0,SUM(Z41:Z44),"") -> 0 | AA45: 0 | AB45: =IF(AND($E$1>0,Z45<>""),SUM(Z41:Z44)/$E$1*100,"") -> 0 | AC45: =IF(COUNT(AC41:AC44)>0,SUM(AC41:AC44),"") ->  | AD45: =IF(COUNT(AD41:AD44)>0,SUM(AD41:AD44),"") ->  | AE45: =IF(COUNT(AE41:AE44)>0,SUM(AE41:AE44),"") ->  | AJ45: =IF(COUNT(AJ41:AJ44)>0,SUM(AJ41:AJ44),"") ->  | AM45: =IF(AND($E$1>0,COUNT(AM41:AM44)>0),IF(AM$20="P",SUM(AM41:AM44)*100,SUM(AM41:AM44)/$E$1*100),"") ->  | AO45: =IF(AND($E$1>0,COUNT(AO41:AO44)>0),IF(AO$20="P",SUM(AO41:AO44)*100,SUM(AO41:AO44)/$E$1*100),"") ->  | AP45: =IF(COUNT(AP41:AP44)>0,SUM(AP41:AP44),"") -> 0 | AQ45: =IF(COUNT(AQ41:AQ44)>0,SUM(AQ41:AQ44),"") -> 0 | AR45: =IF(COUNT(AR41:AR44)>0,SUM(AR41:AR44),"") ->  | AS45: =IF(COUNT(AS41:AS44)>0,SUM(AS41:AS44),"") ->  | AU45: =IF(COUNT(AU41:AU44)>0,SUM(AU41:AU44),"") ->  | AW45: Ergebnisse [% und n] | AZ45: =SUM(AZ41:AZ44) -> 0 | BB45: =IF(COUNT(BB41:BB44)>0,AVERAGE(BB41:BB44),"") -> 0 | BC45: =IF(COUNT(BC41:BC44)>0,AVERAGE(BC41:BC44),"") ->  | BE45: =IF($AZ45>0,IF(BE$20="P",BE41*$AZ41+BE42*$AZ42+BE43*$AZ43+BE44*$AZ44,SUM(BE41:BE44))/$AZ45*100,"") ->  | BG45: =IF($AZ45>0,IF(BG$20="P",BG41*$AZ41+BG42*$AZ42+BG43*$AZ43+BG44*$AZ44,SUM(BG41:BG44))/$AZ45*100,"") ->  | BI45: =IF($AZ45>0,IF(BI$20="P",BI41*$AZ41+BI42*$AZ42+BI43*$AZ43+BI44*$AZ44,SUM(BI41:BI44))/$AZ45*100,"") ->  | BK45: =IF($AZ45>0,IF(BK$20="P",BK41*$AZ41+BK42*$AZ42+BK43*$AZ43+BK44*$AZ44,SUM(BK41:BK44))/$AZ45*100,"") ->  | BM45: =IF($AZ45>0,IF(BM$20="P",BM41*$AZ41+BM42*$AZ42+BM43*$AZ43+BM44*$AZ44,SUM(BM41:BM44))/$AZ45*100,"") ->  | BO45: =IF($AZ45>0,IF(BO$20="P",BO41*$AZ41+BO42*$AZ42+BO43*$AZ43+BO44*$AZ44,SUM(BO41:BO44))/$AZ45*100,"") ->  | BQ45: =IF(AZ45>0,SUM(BQ41:BQ44),"") ->  | BR45: =IF(AZ45>0,BQ45/AZ45*100,"") ->  | BS45: =IF(COUNT(BS41:BS44)>0,AVERAGE(BS41:BS44),"") ->  | BT45: Erg. % | BV45: =IF(COUNT(BV41:BV44)>0,AVERAGE(BV41:BV44)*100,"") ->  | BX45: =IF(COUNT(BX41:BX44)>0,AVERAGE(BX41:BX44)*100,"") ->  | BZ45: =IF(COUNT(BZ41:BZ44)>0,AVERAGE(BZ41:BZ44)*100,"") ->  | CB45: =IF(COUNT(CB41:CB44)>0,AVERAGE(CB41:CB44),"") ->  | CD45: =IF(COUNT(CD41:CD44)>0,AVERAGE(CD41:CD44),"") ->  | CF45: =IF(COUNT(CF41:CF44)>0,AVERAGE(CF41:CF44),"") -> 
B46: DATEN021 | C46: =C44+1 -> 30 | D46: =X44 -> 10000 | X46: =IF(COUNT(D46,Z46)=2,D46-Z46-V46,"") -> 10000 | Z46: =IF(COUNT(D46)=1,kalkTV(F46,D46)+kalkTV(H46,D46)+kalkTV(J46,D46)+kalkTV(L46,D46)+kalkTV(N46,D46)+kalkTV(P46,D46)+kalkTV(R46,D46)+kalkTV(T46,D46),"") -> 0 | AA46: 10000 | AB46: =IF(AA46>0,Z46/AA46*100,"") -> 0 | AC46: =IF($AA46>0,IF(COUNT(F46)=1,IF(F$20="P",IF($B$1="GF_HUHN",F46*D46/AA46*100,F46*100),F46/$AA46*100),""),"") ->  | AD46: =IF($AA46>0,IF(COUNT(H46)=1,IF(H$20="P",IF($B$1="GF_HUHN",H46*D46/AA46*100,H46*100),H46/$AA46*100),""),"") ->  | AE46: =IF($AA46>0,IF(COUNT(J46)=1,IF(J$20="P",IF($B$1="GF_HUHN",J46*D46/AA46*100,J46*100),J46/$AA46*100),""),"") ->  | AF46: =IF($AA46>0,IF(COUNT(L46)=1,IF(L$20="P",IF($B$1="GF_HUHN",L46*D46/AA46*100,L46*100),L46/$AA46*100),""),"") ->  | AG46: =IF($AA46>0,IF(COUNT(N46)=1,IF(N$20="P",IF($B$1="GF_HUHN",N46*D46/AA46*100,N46*100),N46/$AA46*100),""),"") ->  | AH46: =IF($AA46>0,IF(COUNT(P46)=1,IF(P$20="P",IF($B$1="GF_HUHN",P46*D46/AA46*100,P46*100),P46/$AA46*100),""),"") ->  | AI46: =IF($AA46>0,IF(COUNT(R46)=1,IF(R$20="P",IF($B$1="GF_HUHN",R46*D46/AA46*100,R46*100),R46/$AA46*100),""),"") ->  | AJ46: =IF($AA46>0,IF(COUNT(T46)=1,IF(T$20="P",IF($B$1="GF_HUHN",T46*D46/AA46*100,T46*100),T46/$AA46*100),""),"") ->  | AP46: =IF(AA46>0,kalkTV(AM46,D46)+kalkTV(AO46,D46),"") -> 0 | AQ46: =IF(COUNT(AP46)=1,SUM(AR46:AS46),"") -> 0 | AR46: =IF($AA46>0,IF(COUNT(AM46)=1,IF(AM$20="P",IF($B$1="GF_HUHN",AM46*D46/AA46*100,AM46*100),AM46/$AA46*100),""),"") ->  | AS46: =IF($AA46>0,IF(COUNT(AO46)=1,IF(AO$20="P",IF($B$1="GF_HUHN",AO46*D46/AA46*100,AO46*100),AO46/$AA46*100),""),"") ->  | AU46: =IF(AND(AA46>0,COUNT(AG46,AR46)>0),IF(COUNT(AG46)=1,AG46,0)+IF(COUNT(AR46)=1,AR46,0),"") ->  | AV46: =IF(AND(AA46>0,COUNT(AI46,AS46)>0,$B$1="GF_PUTE"),IF(COUNT(AI46)=1,AI46,0)+IF(COUNT(AS46)=1,AS46,0),"") ->  | AX46: =IF(COUNT(D46)=1,(D46+X46)/2,"") -> 10000 | BB46: =IF(COUNT(AX46)=1,AZ46/7/AX46*100,"") -> 0 | BC46: =IF(COUNT(AZ44,AZ46)=2,BB46-BB44,"") ->  | BQ46: =IF(AZ46>0,IF(BE$20="P",BE46*$AZ46,BE46)+IF(BG$20="P",BG46*$AZ46,BG46)+IF(BI$20="P",BI46*$AZ46,BI46)+IF(BK$20="P",BK46*$AZ46,BK46)+IF(BM$20="P",BM46*$AZ46,BM46)+IF(BO$20="P",BO46*$AZ46,BO46),"") ->  | BR46: =IF(AND(AZ46>0,COUNT(BQ46)=1),BQ46/AZ46*100,"") ->  | BS46: =IF(COUNT(BR44,BR46)=2,BR46-BR44,"") ->  | CF46: =IF(AND(COUNT(CB46:CD46)=2,CD46>0),CB46/CD46,"") -> 
B47: DATEN022 | C47: =C46+1 -> 31 | D47: =X46 -> 10000 | X47: =IF(COUNT(D47)=1,D47-Z47-V47,"") -> 10000 | Z47: =IF(COUNT(D47)=1,kalkTV(F47,D47)+kalkTV(H47,D47)+kalkTV(J47,D47)+kalkTV(L47,D47)+kalkTV(N47,D47)+kalkTV(P47,D47)+kalkTV(R47,D47)+kalkTV(T47,D47),"") -> 0 | AA47: 10000 | AB47: =IF(AA47>0,Z47/AA47*100,"") -> 0 | AC47: =IF($AA47>0,IF(COUNT(F47)=1,IF(F$20="P",IF($B$1="GF_HUHN",F47*D47/AA47*100,F47*100),F47/$AA47*100),""),"") ->  | AD47: =IF($AA47>0,IF(COUNT(H47)=1,IF(H$20="P",IF($B$1="GF_HUHN",H47*D47/AA47*100,H47*100),H47/$AA47*100),""),"") ->  | AE47: =IF($AA47>0,IF(COUNT(J47)=1,IF(J$20="P",IF($B$1="GF_HUHN",J47*D47/AA47*100,J47*100),J47/$AA47*100),""),"") ->  | AF47: =IF($AA47>0,IF(COUNT(L47)=1,IF(L$20="P",IF($B$1="GF_HUHN",L47*D47/AA47*100,L47*100),L47/$AA47*100),""),"") ->  | AG47: =IF($AA47>0,IF(COUNT(N47)=1,IF(N$20="P",IF($B$1="GF_HUHN",N47*D47/AA47*100,N47*100),N47/$AA47*100),""),"") ->  | AH47: =IF($AA47>0,IF(COUNT(P47)=1,IF(P$20="P",IF($B$1="GF_HUHN",P47*D47/AA47*100,P47*100),P47/$AA47*100),""),"") ->  | AI47: =IF($AA47>0,IF(COUNT(R47)=1,IF(R$20="P",IF($B$1="GF_HUHN",R47*D47/AA47*100,R47*100),R47/$AA47*100),""),"") ->  | AJ47: =IF($AA47>0,IF(COUNT(T47)=1,IF(T$20="P",IF($B$1="GF_HUHN",T47*D47/AA47*100,T47*100),T47/$AA47*100),""),"") ->  | AP47: =IF(AA47>0,kalkTV(AM47,D47)+kalkTV(AO47,D47),"") -> 0 | AQ47: =IF(COUNT(AP47)=1,SUM(AR47:AS47),"") -> 0 | AR47: =IF($AA47>0,IF(COUNT(AM47)=1,IF(AM$20="P",IF($B$1="GF_HUHN",AM47*D47/AA47*100,AM47*100),AM47/$AA47*100),""),"") ->  | AS47: =IF($AA47>0,IF(COUNT(AO47)=1,IF(AO$20="P",IF($B$1="GF_HUHN",AO47*D47/AA47*100,AO47*100),AO47/$AA47*100),""),"") ->  | AU47: =IF(AND(AA47>0,COUNT(AG47,AR47)>0),IF(COUNT(AG47)=1,AG47,0)+IF(COUNT(AR47)=1,AR47,0),"") ->  | AV47: =IF(AND(AA47>0,COUNT(AI47,AS47)>0,$B$1="GF_PUTE"),IF(COUNT(AI47)=1,AI47,0)+IF(COUNT(AS47)=1,AS47,0),"") ->  | AX47: 10000 | BB47: =IF(COUNT(AX47)=1,AZ47/7/AX47*100,"") -> 0 | BC47: =IF(COUNT(AZ46:AZ47)=2,BB47-BB46,"") ->  | BQ47: =IF(AZ47>0,IF(BE$20="P",BE47*$AZ47,BE47)+IF(BG$20="P",BG47*$AZ47,BG47)+IF(BI$20="P",BI47*$AZ47,BI47)+IF(BK$20="P",BK47*$AZ47,BK47)+IF(BM$20="P",BM47*$AZ47,BM47)+IF(BO$20="P",BO47*$AZ47,BO47),"") ->  | BR47: =IF(AND(AZ47>0,COUNT(BQ47)=1),BQ47/AZ47*100,"") ->  | BS47: =IF(COUNT(BR46:BR47)=2,BR47-BR46,"") ->  | CF47: =IF(AND(COUNT(CB47:CD47)=2,CD47>0),CB47/CD47,"") -> 
B48: DATEN023 | C48: =C47+1 -> 32 | D48: =X47 -> 10000 | X48: =IF(COUNT(D48)=1,D48-Z48-V48,"") -> 10000 | Z48: =IF(COUNT(D48)=1,kalkTV(F48,D48)+kalkTV(H48,D48)+kalkTV(J48,D48)+kalkTV(L48,D48)+kalkTV(N48,D48)+kalkTV(P48,D48)+kalkTV(R48,D48)+kalkTV(T48,D48),"") -> 0 | AA48: 10000 | AB48: =IF(AA48>0,Z48/AA48*100,"") -> 0 | AC48: =IF($AA48>0,IF(COUNT(F48)=1,IF(F$20="P",IF($B$1="GF_HUHN",F48*D48/AA48*100,F48*100),F48/$AA48*100),""),"") ->  | AD48: =IF($AA48>0,IF(COUNT(H48)=1,IF(H$20="P",IF($B$1="GF_HUHN",H48*D48/AA48*100,H48*100),H48/$AA48*100),""),"") ->  | AE48: =IF($AA48>0,IF(COUNT(J48)=1,IF(J$20="P",IF($B$1="GF_HUHN",J48*D48/AA48*100,J48*100),J48/$AA48*100),""),"") ->  | AF48: =IF($AA48>0,IF(COUNT(L48)=1,IF(L$20="P",IF($B$1="GF_HUHN",L48*D48/AA48*100,L48*100),L48/$AA48*100),""),"") ->  | AG48: =IF($AA48>0,IF(COUNT(N48)=1,IF(N$20="P",IF($B$1="GF_HUHN",N48*D48/AA48*100,N48*100),N48/$AA48*100),""),"") ->  | AH48: =IF($AA48>0,IF(COUNT(P48)=1,IF(P$20="P",IF($B$1="GF_HUHN",P48*D48/AA48*100,P48*100),P48/$AA48*100),""),"") ->  | AI48: =IF($AA48>0,IF(COUNT(R48)=1,IF(R$20="P",IF($B$1="GF_HUHN",R48*D48/AA48*100,R48*100),R48/$AA48*100),""),"") ->  | AJ48: =IF($AA48>0,IF(COUNT(T48)=1,IF(T$20="P",IF($B$1="GF_HUHN",T48*D48/AA48*100,T48*100),T48/$AA48*100),""),"") ->  | AP48: =IF(AA48>0,kalkTV(AM48,D48)+kalkTV(AO48,D48),"") -> 0 | AQ48: 0 | AR48: =IF($AA48>0,IF(COUNT(AM48)=1,IF(AM$20="P",IF($B$1="GF_HUHN",AM48*D48/AA48*100,AM48*100),AM48/$AA48*100),""),"") ->  | AS48: =IF($AA48>0,IF(COUNT(AO48)=1,IF(AO$20="P",IF($B$1="GF_HUHN",AO48*D48/AA48*100,AO48*100),AO48/$AA48*100),""),"") ->  | AX48: 10000 | BB48: 0 | BR48: =IF(AND(AZ48>0,COUNT(BQ48)=1),BQ48/AZ48*100,"") ->  | CF48: =IF(AND(COUNT(CB48:CD48)=2,CD48>0),CB48/CD48,"") -> 
B49: DATEN024 | C49: =C48+1 -> 33 | D49: =X48 -> 10000 | X49: =IF(COUNT(D49)=1,D49-Z49-V49,"") -> 10000 | Z49: =IF(COUNT(D49)=1,kalkTV(F49,D49)+kalkTV(H49,D49)+kalkTV(J49,D49)+kalkTV(L49,D49)+kalkTV(N49,D49)+kalkTV(P49,D49)+kalkTV(R49,D49)+kalkTV(T49,D49),"") -> 0 | AA49: 10000 | AB49: =IF(AA49>0,Z49/AA49*100,"") -> 0 | AC49: =IF($AA49>0,IF(COUNT(F49)=1,IF(F$20="P",IF($B$1="GF_HUHN",F49*D49/AA49*100,F49*100),F49/$AA49*100),""),"") ->  | AD49: =IF($AA49>0,IF(COUNT(H49)=1,IF(H$20="P",IF($B$1="GF_HUHN",H49*D49/AA49*100,H49*100),H49/$AA49*100),""),"") ->  | AE49: =IF($AA49>0,IF(COUNT(J49)=1,IF(J$20="P",IF($B$1="GF_HUHN",J49*D49/AA49*100,J49*100),J49/$AA49*100),""),"") ->  | AF49: =IF($AA49>0,IF(COUNT(L49)=1,IF(L$20="P",IF($B$1="GF_HUHN",L49*D49/AA49*100,L49*100),L49/$AA49*100),""),"") ->  | AG49: =IF($AA49>0,IF(COUNT(N49)=1,IF(N$20="P",IF($B$1="GF_HUHN",N49*D49/AA49*100,N49*100),N49/$AA49*100),""),"") ->  | AH49: =IF($AA49>0,IF(COUNT(P49)=1,IF(P$20="P",IF($B$1="GF_HUHN",P49*D49/AA49*100,P49*100),P49/$AA49*100),""),"") ->  | AI49: =IF($AA49>0,IF(COUNT(R49)=1,IF(R$20="P",IF($B$1="GF_HUHN",R49*D49/AA49*100,R49*100),R49/$AA49*100),""),"") ->  | AJ49: =IF($AA49>0,IF(COUNT(T49)=1,IF(T$20="P",IF($B$1="GF_HUHN",T49*D49/AA49*100,T49*100),T49/$AA49*100),""),"") ->  | AP49: =IF(AA49>0,kalkTV(AM49,D49)+kalkTV(AO49,D49),"") -> 0 | AQ49: 0 | AR49: =IF($AA49>0,IF(COUNT(AM49)=1,IF(AM$20="P",IF($B$1="GF_HUHN",AM49*D49/AA49*100,AM49*100),AM49/$AA49*100),""),"") ->  | AS49: =IF($AA49>0,IF(COUNT(AO49)=1,IF(AO$20="P",IF($B$1="GF_HUHN",AO49*D49/AA49*100,AO49*100),AO49/$AA49*100),""),"") ->  | AX49: 10000 | BB49: 0 | BR49: =IF(AND(AZ49>0,COUNT(BQ49)=1),BQ49/AZ49*100,"") ->  | CF49: =IF(AND(COUNT(CB49:CD49)=2,CD49>0),CB49/CD49,"") -> 
B50: ERGEB906 | D50: Ergebnisse | E50: % | F50: =AC50 ->  | H50: =AD50 ->  | J50: =AE50 ->  | L50: =AF50 ->  | N50: =AG50 ->  | P50: =AH50 ->  | R50: =AI50 ->  | T50: =AJ50 ->  | Z50: =IF(COUNT(Z46:Z49)>0,SUM(Z46:Z49),"") -> 0 | AA50: 0 | AB50: =IF(AND($E$1>0,Z50<>""),SUM(Z46:Z49)/$E$1*100,"") -> 0 | AC50: =IF(COUNT(AC46:AC49)>0,SUM(AC46:AC49),"") ->  | AD50: =IF(COUNT(AD46:AD49)>0,SUM(AD46:AD49),"") ->  | AE50: =IF(COUNT(AE46:AE49)>0,SUM(AE46:AE49),"") ->  | AJ50: =IF(COUNT(AJ46:AJ49)>0,SUM(AJ46:AJ49),"") ->  | AM50: =IF(AND($E$1>0,COUNT(AM46:AM49)>0),IF(AM$20="P",SUM(AM46:AM49)*100,SUM(AM46:AM49)/$E$1*100),"") ->  | AO50: =IF(AND($E$1>0,COUNT(AO46:AO49)>0),IF(AO$20="P",SUM(AO46:AO49)*100,SUM(AO46:AO49)/$E$1*100),"") ->  | AP50: =IF(COUNT(AP46:AP49)>0,SUM(AP46:AP49),"") -> 0 | AQ50: =IF(COUNT(AQ46:AQ49)>0,SUM(AQ46:AQ49),"") -> 0 | AR50: =IF(COUNT(AR46:AR49)>0,SUM(AR46:AR49),"") ->  | AS50: =IF(COUNT(AS46:AS49)>0,SUM(AS46:AS49),"") ->  | AU50: =IF(COUNT(AU46:AU49)>0,SUM(AU46:AU49),"") ->  | AW50: Ergebnisse [% und n] | AZ50: =SUM(AZ46:AZ49) -> 0 | BB50: =IF(COUNT(BB46:BB49)>0,AVERAGE(BB46:BB49),"") -> 0 | BC50: =IF(COUNT(BC46:BC49)>0,AVERAGE(BC46:BC49),"") ->  | BE50: =IF($AZ50>0,IF(BE$20="P",BE46*$AZ46+BE47*$AZ47+BE48*$AZ48+BE49*$AZ49,SUM(BE46:BE49))/$AZ50*100,"") ->  | BG50: =IF($AZ50>0,IF(BG$20="P",BG46*$AZ46+BG47*$AZ47+BG48*$AZ48+BG49*$AZ49,SUM(BG46:BG49))/$AZ50*100,"") ->  | BI50: =IF($AZ50>0,IF(BI$20="P",BI46*$AZ46+BI47*$AZ47+BI48*$AZ48+BI49*$AZ49,SUM(BI46:BI49))/$AZ50*100,"") ->  | BK50: =IF($AZ50>0,IF(BK$20="P",BK46*$AZ46+BK47*$AZ47+BK48*$AZ48+BK49*$AZ49,SUM(BK46:BK49))/$AZ50*100,"") ->  | BM50: =IF($AZ50>0,IF(BM$20="P",BM46*$AZ46+BM47*$AZ47+BM48*$AZ48+BM49*$AZ49,SUM(BM46:BM49))/$AZ50*100,"") ->  | BO50: =IF($AZ50>0,IF(BO$20="P",BO46*$AZ46+BO47*$AZ47+BO48*$AZ48+BO49*$AZ49,SUM(BO46:BO49))/$AZ50*100,"") ->  | BQ50: =IF(AZ50>0,SUM(BQ46:BQ49),"") ->  | BR50: =IF(AZ50>0,BQ50/AZ50*100,"") ->  | BS50: =IF(COUNT(BS46:BS49)>0,AVERAGE(BS46:BS49),"") ->  | BT50: Erg. % | BV50: =IF(COUNT(BV46:BV49)>0,AVERAGE(BV46:BV49)*100,"") ->  | BX50: =IF(COUNT(BX46:BX49)>0,AVERAGE(BX46:BX49)*100,"") ->  | BZ50: =IF(COUNT(BZ46:BZ49)>0,AVERAGE(BZ46:BZ49)*100,"") ->  | CB50: =IF(COUNT(CB46:CB49)>0,AVERAGE(CB46:CB49),"") ->  | CD50: =IF(COUNT(CD46:CD49)>0,AVERAGE(CD46:CD49),"") ->  | CF50: =IF(COUNT(CF46:CF49)>0,AVERAGE(CF46:CF49),"") -> 
B51: DATEN025 | C51: =C49+1 -> 34 | D51: =X49 -> 10000 | X51: =IF(COUNT(D51,Z51)=2,D51-Z51-V51,"") -> 10000 | Z51: =IF(COUNT(D51)=1,kalkTV(F51,D51)+kalkTV(H51,D51)+kalkTV(J51,D51)+kalkTV(L51,D51)+kalkTV(N51,D51)+kalkTV(P51,D51)+kalkTV(R51,D51)+kalkTV(T51,D51),"") -> 0 | AA51: 10000 | AB51: =IF(AA51>0,Z51/AA51*100,"") -> 0 | AC51: =IF($AA51>0,IF(COUNT(F51)=1,IF(F$20="P",IF($B$1="GF_HUHN",F51*D51/AA51*100,F51*100),F51/$AA51*100),""),"") ->  | AD51: =IF($AA51>0,IF(COUNT(H51)=1,IF(H$20="P",IF($B$1="GF_HUHN",H51*D51/AA51*100,H51*100),H51/$AA51*100),""),"") ->  | AE51: =IF($AA51>0,IF(COUNT(J51)=1,IF(J$20="P",IF($B$1="GF_HUHN",J51*D51/AA51*100,J51*100),J51/$AA51*100),""),"") ->  | AF51: =IF($AA51>0,IF(COUNT(L51)=1,IF(L$20="P",IF($B$1="GF_HUHN",L51*D51/AA51*100,L51*100),L51/$AA51*100),""),"") ->  | AG51: =IF($AA51>0,IF(COUNT(N51)=1,IF(N$20="P",IF($B$1="GF_HUHN",N51*D51/AA51*100,N51*100),N51/$AA51*100),""),"") ->  | AH51: =IF($AA51>0,IF(COUNT(P51)=1,IF(P$20="P",IF($B$1="GF_HUHN",P51*D51/AA51*100,P51*100),P51/$AA51*100),""),"") ->  | AI51: =IF($AA51>0,IF(COUNT(R51)=1,IF(R$20="P",IF($B$1="GF_HUHN",R51*D51/AA51*100,R51*100),R51/$AA51*100),""),"") ->  | AJ51: =IF($AA51>0,IF(COUNT(T51)=1,IF(T$20="P",IF($B$1="GF_HUHN",T51*D51/AA51*100,T51*100),T51/$AA51*100),""),"") ->  | AP51: =IF(AA51>0,kalkTV(AM51,D51)+kalkTV(AO51,D51),"") -> 0 | AQ51: =IF(COUNT(AP51)=1,SUM(AR51:AS51),"") -> 0 | AR51: =IF($AA51>0,IF(COUNT(AM51)=1,IF(AM$20="P",IF($B$1="GF_HUHN",AM51*D51/AA51*100,AM51*100),AM51/$AA51*100),""),"") ->  | AS51: =IF($AA51>0,IF(COUNT(AO51)=1,IF(AO$20="P",IF($B$1="GF_HUHN",AO51*D51/AA51*100,AO51*100),AO51/$AA51*100),""),"") ->  | AU51: =IF(AND(AA51>0,COUNT(AG51,AR51)>0),IF(COUNT(AG51)=1,AG51,0)+IF(COUNT(AR51)=1,AR51,0),"") ->  | AV51: =IF(AND(AA51>0,COUNT(AI51,AS51)>0,$B$1="GF_PUTE"),IF(COUNT(AI51)=1,AI51,0)+IF(COUNT(AS51)=1,AS51,0),"") ->  | AX51: =IF(COUNT(D51)=1,(D51+X51)/2,"") -> 10000 | BB51: =IF(COUNT(AX51)=1,AZ51/7/AX51*100,"") -> 0 | BC51: =IF(COUNT(AZ49,AZ51)=2,BB51-BB49,"") ->  | BQ51: =IF(AZ51>0,IF(BE$20="P",BE51*$AZ51,BE51)+IF(BG$20="P",BG51*$AZ51,BG51)+IF(BI$20="P",BI51*$AZ51,BI51)+IF(BK$20="P",BK51*$AZ51,BK51)+IF(BM$20="P",BM51*$AZ51,BM51)+IF(BO$20="P",BO51*$AZ51,BO51),"") ->  | BR51: =IF(AND(AZ51>0,COUNT(BQ51)=1),BQ51/AZ51*100,"") ->  | BS51: =IF(COUNT(BR49,BR51)=2,BR51-BR49,"") ->  | CF51: =IF(AND(COUNT(CB51:CD51)=2,CD51>0),CB51/CD51,"") -> 
B52: DATEN026 | C52: =C51+1 -> 35 | D52: =X51 -> 10000 | X52: =IF(COUNT(D52)=1,D52-Z52-V52,"") -> 10000 | Z52: =IF(COUNT(D52)=1,kalkTV(F52,D52)+kalkTV(H52,D52)+kalkTV(J52,D52)+kalkTV(L52,D52)+kalkTV(N52,D52)+kalkTV(P52,D52)+kalkTV(R52,D52)+kalkTV(T52,D52),"") -> 0 | AA52: 10000 | AB52: =IF(AA52>0,Z52/AA52*100,"") -> 0 | AC52: =IF($AA52>0,IF(COUNT(F52)=1,IF(F$20="P",IF($B$1="GF_HUHN",F52*D52/AA52*100,F52*100),F52/$AA52*100),""),"") ->  | AD52: =IF($AA52>0,IF(COUNT(H52)=1,IF(H$20="P",IF($B$1="GF_HUHN",H52*D52/AA52*100,H52*100),H52/$AA52*100),""),"") ->  | AE52: =IF($AA52>0,IF(COUNT(J52)=1,IF(J$20="P",IF($B$1="GF_HUHN",J52*D52/AA52*100,J52*100),J52/$AA52*100),""),"") ->  | AF52: =IF($AA52>0,IF(COUNT(L52)=1,IF(L$20="P",IF($B$1="GF_HUHN",L52*D52/AA52*100,L52*100),L52/$AA52*100),""),"") ->  | AG52: =IF($AA52>0,IF(COUNT(N52)=1,IF(N$20="P",IF($B$1="GF_HUHN",N52*D52/AA52*100,N52*100),N52/$AA52*100),""),"") ->  | AH52: =IF($AA52>0,IF(COUNT(P52)=1,IF(P$20="P",IF($B$1="GF_HUHN",P52*D52/AA52*100,P52*100),P52/$AA52*100),""),"") ->  | AI52: =IF($AA52>0,IF(COUNT(R52)=1,IF(R$20="P",IF($B$1="GF_HUHN",R52*D52/AA52*100,R52*100),R52/$AA52*100),""),"") ->  | AJ52: =IF($AA52>0,IF(COUNT(T52)=1,IF(T$20="P",IF($B$1="GF_HUHN",T52*D52/AA52*100,T52*100),T52/$AA52*100),""),"") ->  | AP52: =IF(AA52>0,kalkTV(AM52,D52)+kalkTV(AO52,D52),"") -> 0 | AQ52: =IF(COUNT(AP52)=1,SUM(AR52:AS52),"") -> 0 | AR52: =IF($AA52>0,IF(COUNT(AM52)=1,IF(AM$20="P",IF($B$1="GF_HUHN",AM52*D52/AA52*100,AM52*100),AM52/$AA52*100),""),"") ->  | AS52: =IF($AA52>0,IF(COUNT(AO52)=1,IF(AO$20="P",IF($B$1="GF_HUHN",AO52*D52/AA52*100,AO52*100),AO52/$AA52*100),""),"") ->  | AU52: =IF(AND(AA52>0,COUNT(AG52,AR52)>0),IF(COUNT(AG52)=1,AG52,0)+IF(COUNT(AR52)=1,AR52,0),"") ->  | AV52: =IF(AND(AA52>0,COUNT(AI52,AS52)>0,$B$1="GF_PUTE"),IF(COUNT(AI52)=1,AI52,0)+IF(COUNT(AS52)=1,AS52,0),"") ->  | AX52: 10000 | BB52: =IF(COUNT(AX52)=1,AZ52/7/AX52*100,"") -> 0 | BC52: =IF(COUNT(AZ51:AZ52)=2,BB52-BB51,"") ->  | BQ52: =IF(AZ52>0,IF(BE$20="P",BE52*$AZ52,BE52)+IF(BG$20="P",BG52*$AZ52,BG52)+IF(BI$20="P",BI52*$AZ52,BI52)+IF(BK$20="P",BK52*$AZ52,BK52)+IF(BM$20="P",BM52*$AZ52,BM52)+IF(BO$20="P",BO52*$AZ52,BO52),"") ->  | BR52: =IF(AND(AZ52>0,COUNT(BQ52)=1),BQ52/AZ52*100,"") ->  | BS52: =IF(COUNT(BR51:BR52)=2,BR52-BR51,"") ->  | CF52: =IF(AND(COUNT(CB52:CD52)=2,CD52>0),CB52/CD52,"") -> 
B53: DATEN027 | C53: =C52+1 -> 36 | D53: =X52 -> 10000 | X53: =IF(COUNT(D53)=1,D53-Z53-V53,"") -> 10000 | Z53: =IF(COUNT(D53)=1,kalkTV(F53,D53)+kalkTV(H53,D53)+kalkTV(J53,D53)+kalkTV(L53,D53)+kalkTV(N53,D53)+kalkTV(P53,D53)+kalkTV(R53,D53)+kalkTV(T53,D53),"") -> 0 | AA53: 10000 | AB53: =IF(AA53>0,Z53/AA53*100,"") -> 0 | AC53: =IF($AA53>0,IF(COUNT(F53)=1,IF(F$20="P",IF($B$1="GF_HUHN",F53*D53/AA53*100,F53*100),F53/$AA53*100),""),"") ->  | AD53: =IF($AA53>0,IF(COUNT(H53)=1,IF(H$20="P",IF($B$1="GF_HUHN",H53*D53/AA53*100,H53*100),H53/$AA53*100),""),"") ->  | AE53: =IF($AA53>0,IF(COUNT(J53)=1,IF(J$20="P",IF($B$1="GF_HUHN",J53*D53/AA53*100,J53*100),J53/$AA53*100),""),"") ->  | AF53: =IF($AA53>0,IF(COUNT(L53)=1,IF(L$20="P",IF($B$1="GF_HUHN",L53*D53/AA53*100,L53*100),L53/$AA53*100),""),"") ->  | AG53: =IF($AA53>0,IF(COUNT(N53)=1,IF(N$20="P",IF($B$1="GF_HUHN",N53*D53/AA53*100,N53*100),N53/$AA53*100),""),"") ->  | AH53: =IF($AA53>0,IF(COUNT(P53)=1,IF(P$20="P",IF($B$1="GF_HUHN",P53*D53/AA53*100,P53*100),P53/$AA53*100),""),"") ->  | AI53: =IF($AA53>0,IF(COUNT(R53)=1,IF(R$20="P",IF($B$1="GF_HUHN",R53*D53/AA53*100,R53*100),R53/$AA53*100),""),"") ->  | AJ53: =IF($AA53>0,IF(COUNT(T53)=1,IF(T$20="P",IF($B$1="GF_HUHN",T53*D53/AA53*100,T53*100),T53/$AA53*100),""),"") ->  | AP53: =IF(AA53>0,kalkTV(AM53,D53)+kalkTV(AO53,D53),"") -> 0 | AQ53: 0 | AR53: =IF($AA53>0,IF(COUNT(AM53)=1,IF(AM$20="P",IF($B$1="GF_HUHN",AM53*D53/AA53*100,AM53*100),AM53/$AA53*100),""),"") ->  | AS53: =IF($AA53>0,IF(COUNT(AO53)=1,IF(AO$20="P",IF($B$1="GF_HUHN",AO53*D53/AA53*100,AO53*100),AO53/$AA53*100),""),"") ->  | AX53: 10000 | BB53: 0 | BR53: =IF(AND(AZ53>0,COUNT(BQ53)=1),BQ53/AZ53*100,"") ->  | CF53: =IF(AND(COUNT(CB53:CD53)=2,CD53>0),CB53/CD53,"") -> 
B54: DATEN028 | C54: =C53+1 -> 37 | D54: =X53 -> 10000 | X54: =IF(COUNT(D54)=1,D54-Z54-V54,"") -> 10000 | Z54: =IF(COUNT(D54)=1,kalkTV(F54,D54)+kalkTV(H54,D54)+kalkTV(J54,D54)+kalkTV(L54,D54)+kalkTV(N54,D54)+kalkTV(P54,D54)+kalkTV(R54,D54)+kalkTV(T54,D54),"") -> 0 | AA54: 10000 | AB54: =IF(AA54>0,Z54/AA54*100,"") -> 0 | AC54: =IF($AA54>0,IF(COUNT(F54)=1,IF(F$20="P",IF($B$1="GF_HUHN",F54*D54/AA54*100,F54*100),F54/$AA54*100),""),"") ->  | AD54: =IF($AA54>0,IF(COUNT(H54)=1,IF(H$20="P",IF($B$1="GF_HUHN",H54*D54/AA54*100,H54*100),H54/$AA54*100),""),"") ->  | AE54: =IF($AA54>0,IF(COUNT(J54)=1,IF(J$20="P",IF($B$1="GF_HUHN",J54*D54/AA54*100,J54*100),J54/$AA54*100),""),"") ->  | AF54: =IF($AA54>0,IF(COUNT(L54)=1,IF(L$20="P",IF($B$1="GF_HUHN",L54*D54/AA54*100,L54*100),L54/$AA54*100),""),"") ->  | AG54: =IF($AA54>0,IF(COUNT(N54)=1,IF(N$20="P",IF($B$1="GF_HUHN",N54*D54/AA54*100,N54*100),N54/$AA54*100),""),"") ->  | AH54: =IF($AA54>0,IF(COUNT(P54)=1,IF(P$20="P",IF($B$1="GF_HUHN",P54*D54/AA54*100,P54*100),P54/$AA54*100),""),"") ->  | AI54: =IF($AA54>0,IF(COUNT(R54)=1,IF(R$20="P",IF($B$1="GF_HUHN",R54*D54/AA54*100,R54*100),R54/$AA54*100),""),"") ->  | AJ54: =IF($AA54>0,IF(COUNT(T54)=1,IF(T$20="P",IF($B$1="GF_HUHN",T54*D54/AA54*100,T54*100),T54/$AA54*100),""),"") ->  | AP54: =IF(AA54>0,kalkTV(AM54,D54)+kalkTV(AO54,D54),"") -> 0 | AQ54: 0 | AR54: =IF($AA54>0,IF(COUNT(AM54)=1,IF(AM$20="P",IF($B$1="GF_HUHN",AM54*D54/AA54*100,AM54*100),AM54/$AA54*100),""),"") ->  | AS54: =IF($AA54>0,IF(COUNT(AO54)=1,IF(AO$20="P",IF($B$1="GF_HUHN",AO54*D54/AA54*100,AO54*100),AO54/$AA54*100),""),"") ->  | AX54: 10000 | BB54: 0 | BR54: =IF(AND(AZ54>0,COUNT(BQ54)=1),BQ54/AZ54*100,"") ->  | CF54: =IF(AND(COUNT(CB54:CD54)=2,CD54>0),CB54/CD54,"") -> 
B55: ERGEB907 | D55: Ergebnisse | E55: % | F55: =AC55 ->  | H55: =AD55 ->  | J55: =AE55 ->  | L55: =AF55 ->  | N55: =AG55 ->  | P55: =AH55 ->  | R55: =AI55 ->  | T55: =AJ55 ->  | Z55: =IF(COUNT(Z51:Z54)>0,SUM(Z51:Z54),"") -> 0 | AA55: 0 | AB55: =IF(AND($E$1>0,Z55<>""),SUM(Z51:Z54)/$E$1*100,"") -> 0 | AC55: =IF(COUNT(AC51:AC54)>0,SUM(AC51:AC54),"") ->  | AD55: =IF(COUNT(AD51:AD54)>0,SUM(AD51:AD54),"") ->  | AE55: =IF(COUNT(AE51:AE54)>0,SUM(AE51:AE54),"") ->  | AJ55: =IF(COUNT(AJ51:AJ54)>0,SUM(AJ51:AJ54),"") ->  | AM55: =IF(AND($E$1>0,COUNT(AM51:AM54)>0),IF(AM$20="P",SUM(AM51:AM54)*100,SUM(AM51:AM54)/$E$1*100),"") ->  | AO55: =IF(AND($E$1>0,COUNT(AO51:AO54)>0),IF(AO$20="P",SUM(AO51:AO54)*100,SUM(AO51:AO54)/$E$1*100),"") ->  | AP55: =IF(COUNT(AP51:AP54)>0,SUM(AP51:AP54),"") -> 0 | AQ55: =IF(COUNT(AQ51:AQ54)>0,SUM(AQ51:AQ54),"") -> 0 | AR55: =IF(COUNT(AR51:AR54)>0,SUM(AR51:AR54),"") ->  | AS55: =IF(COUNT(AS51:AS54)>0,SUM(AS51:AS54),"") ->  | AU55: =IF(COUNT(AU51:AU54)>0,SUM(AU51:AU54),"") ->  | AW55: Ergebnisse [% und n] | AZ55: =SUM(AZ51:AZ54) -> 0 | BB55: =IF(COUNT(BB51:BB54)>0,AVERAGE(BB51:BB54),"") -> 0 | BC55: =IF(COUNT(BC51:BC54)>0,AVERAGE(BC51:BC54),"") ->  | BE55: =IF($AZ55>0,IF(BE$20="P",BE51*$AZ51+BE52*$AZ52+BE53*$AZ53+BE54*$AZ54,SUM(BE51:BE54))/$AZ55*100,"") ->  | BG55: =IF($AZ55>0,IF(BG$20="P",BG51*$AZ51+BG52*$AZ52+BG53*$AZ53+BG54*$AZ54,SUM(BG51:BG54))/$AZ55*100,"") ->  | BI55: =IF($AZ55>0,IF(BI$20="P",BI51*$AZ51+BI52*$AZ52+BI53*$AZ53+BI54*$AZ54,SUM(BI51:BI54))/$AZ55*100,"") ->  | BK55: =IF($AZ55>0,IF(BK$20="P",BK51*$AZ51+BK52*$AZ52+BK53*$AZ53+BK54*$AZ54,SUM(BK51:BK54))/$AZ55*100,"") ->  | BM55: =IF($AZ55>0,IF(BM$20="P",BM51*$AZ51+BM52*$AZ52+BM53*$AZ53+BM54*$AZ54,SUM(BM51:BM54))/$AZ55*100,"") ->  | BO55: =IF($AZ55>0,IF(BO$20="P",BO51*$AZ51+BO52*$AZ52+BO53*$AZ53+BO54*$AZ54,SUM(BO51:BO54))/$AZ55*100,"") ->  | BQ55: =IF(AZ55>0,SUM(BQ51:BQ54),"") ->  | BR55: =IF(AZ55>0,BQ55/AZ55*100,"") ->  | BS55: =IF(COUNT(BS51:BS54)>0,AVERAGE(BS51:BS54),"") ->  | BT55: Erg. % | BV55: =IF(COUNT(BV51:BV54)>0,AVERAGE(BV51:BV54)*100,"") ->  | BX55: =IF(COUNT(BX51:BX54)>0,AVERAGE(BX51:BX54)*100,"") ->  | BZ55: =IF(COUNT(BZ51:BZ54)>0,AVERAGE(BZ51:BZ54)*100,"") ->  | CB55: =IF(COUNT(CB51:CB54)>0,AVERAGE(CB51:CB54),"") ->  | CD55: =IF(COUNT(CD51:CD54)>0,AVERAGE(CD51:CD54),"") ->  | CF55: =IF(COUNT(CF51:CF54)>0,AVERAGE(CF51:CF54),"") -> 
B56: DATEN029 | C56: =C54+1 -> 38 | D56: =X54 -> 10000 | X56: =IF(COUNT(D56,Z56)=2,D56-Z56-V56,"") -> 10000 | Z56: =IF(COUNT(D56)=1,kalkTV(F56,D56)+kalkTV(H56,D56)+kalkTV(J56,D56)+kalkTV(L56,D56)+kalkTV(N56,D56)+kalkTV(P56,D56)+kalkTV(R56,D56)+kalkTV(T56,D56),"") -> 0 | AA56: 10000 | AB56: =IF(AA56>0,Z56/AA56*100,"") -> 0 | AC56: =IF($AA56>0,IF(COUNT(F56)=1,IF(F$20="P",IF($B$1="GF_HUHN",F56*D56/AA56*100,F56*100),F56/$AA56*100),""),"") ->  | AD56: =IF($AA56>0,IF(COUNT(H56)=1,IF(H$20="P",IF($B$1="GF_HUHN",H56*D56/AA56*100,H56*100),H56/$AA56*100),""),"") ->  | AE56: =IF($AA56>0,IF(COUNT(J56)=1,IF(J$20="P",IF($B$1="GF_HUHN",J56*D56/AA56*100,J56*100),J56/$AA56*100),""),"") ->  | AF56: =IF($AA56>0,IF(COUNT(L56)=1,IF(L$20="P",IF($B$1="GF_HUHN",L56*D56/AA56*100,L56*100),L56/$AA56*100),""),"") ->  | AG56: =IF($AA56>0,IF(COUNT(N56)=1,IF(N$20="P",IF($B$1="GF_HUHN",N56*D56/AA56*100,N56*100),N56/$AA56*100),""),"") ->  | AH56: =IF($AA56>0,IF(COUNT(P56)=1,IF(P$20="P",IF($B$1="GF_HUHN",P56*D56/AA56*100,P56*100),P56/$AA56*100),""),"") ->  | AI56: =IF($AA56>0,IF(COUNT(R56)=1,IF(R$20="P",IF($B$1="GF_HUHN",R56*D56/AA56*100,R56*100),R56/$AA56*100),""),"") ->  | AJ56: =IF($AA56>0,IF(COUNT(T56)=1,IF(T$20="P",IF($B$1="GF_HUHN",T56*D56/AA56*100,T56*100),T56/$AA56*100),""),"") ->  | AP56: =IF(AA56>0,kalkTV(AM56,D56)+kalkTV(AO56,D56),"") -> 0 | AQ56: =IF(COUNT(AP56)=1,SUM(AR56:AS56),"") -> 0 | AR56: =IF($AA56>0,IF(COUNT(AM56)=1,IF(AM$20="P",IF($B$1="GF_HUHN",AM56*D56/AA56*100,AM56*100),AM56/$AA56*100),""),"") ->  | AS56: =IF($AA56>0,IF(COUNT(AO56)=1,IF(AO$20="P",IF($B$1="GF_HUHN",AO56*D56/AA56*100,AO56*100),AO56/$AA56*100),""),"") ->  | AU56: =IF(AND(AA56>0,COUNT(AG56,AR56)>0),IF(COUNT(AG56)=1,AG56,0)+IF(COUNT(AR56)=1,AR56,0),"") ->  | AV56: =IF(AND(AA56>0,COUNT(AI56,AS56)>0,$B$1="GF_PUTE"),IF(COUNT(AI56)=1,AI56,0)+IF(COUNT(AS56)=1,AS56,0),"") ->  | AX56: =IF(COUNT(D56)=1,(D56+X56)/2,"") -> 10000 | BB56: =IF(COUNT(AX56)=1,AZ56/7/AX56*100,"") -> 0 | BC56: =IF(COUNT(AZ54,AZ56)=2,BB56-BB54,"") ->  | BQ56: =IF(AZ56>0,IF(BE$20="P",BE56*$AZ56,BE56)+IF(BG$20="P",BG56*$AZ56,BG56)+IF(BI$20="P",BI56*$AZ56,BI56)+IF(BK$20="P",BK56*$AZ56,BK56)+IF(BM$20="P",BM56*$AZ56,BM56)+IF(BO$20="P",BO56*$AZ56,BO56),"") ->  | BR56: =IF(AND(AZ56>0,COUNT(BQ56)=1),BQ56/AZ56*100,"") ->  | BS56: =IF(COUNT(BR54,BR56)=2,BR56-BR54,"") ->  | CF56: =IF(AND(COUNT(CB56:CD56)=2,CD56>0),CB56/CD56,"") -> 
B57: DATEN030 | C57: =C56+1 -> 39 | D57: =X56 -> 10000 | X57: =IF(COUNT(D57)=1,D57-Z57-V57,"") -> 10000 | Z57: =IF(COUNT(D57)=1,kalkTV(F57,D57)+kalkTV(H57,D57)+kalkTV(J57,D57)+kalkTV(L57,D57)+kalkTV(N57,D57)+kalkTV(P57,D57)+kalkTV(R57,D57)+kalkTV(T57,D57),"") -> 0 | AA57: 10000 | AB57: =IF(AA57>0,Z57/AA57*100,"") -> 0 | AC57: =IF($AA57>0,IF(COUNT(F57)=1,IF(F$20="P",IF($B$1="GF_HUHN",F57*D57/AA57*100,F57*100),F57/$AA57*100),""),"") ->  | AD57: =IF($AA57>0,IF(COUNT(H57)=1,IF(H$20="P",IF($B$1="GF_HUHN",H57*D57/AA57*100,H57*100),H57/$AA57*100),""),"") ->  | AE57: =IF($AA57>0,IF(COUNT(J57)=1,IF(J$20="P",IF($B$1="GF_HUHN",J57*D57/AA57*100,J57*100),J57/$AA57*100),""),"") ->  | AF57: =IF($AA57>0,IF(COUNT(L57)=1,IF(L$20="P",IF($B$1="GF_HUHN",L57*D57/AA57*100,L57*100),L57/$AA57*100),""),"") ->  | AG57: =IF($AA57>0,IF(COUNT(N57)=1,IF(N$20="P",IF($B$1="GF_HUHN",N57*D57/AA57*100,N57*100),N57/$AA57*100),""),"") ->  | AH57: =IF($AA57>0,IF(COUNT(P57)=1,IF(P$20="P",IF($B$1="GF_HUHN",P57*D57/AA57*100,P57*100),P57/$AA57*100),""),"") ->  | AI57: =IF($AA57>0,IF(COUNT(R57)=1,IF(R$20="P",IF($B$1="GF_HUHN",R57*D57/AA57*100,R57*100),R57/$AA57*100),""),"") ->  | AJ57: =IF($AA57>0,IF(COUNT(T57)=1,IF(T$20="P",IF($B$1="GF_HUHN",T57*D57/AA57*100,T57*100),T57/$AA57*100),""),"") ->  | AP57: =IF(AA57>0,kalkTV(AM57,D57)+kalkTV(AO57,D57),"") -> 0 | AQ57: =IF(COUNT(AP57)=1,SUM(AR57:AS57),"") -> 0 | AR57: =IF($AA57>0,IF(COUNT(AM57)=1,IF(AM$20="P",IF($B$1="GF_HUHN",AM57*D57/AA57*100,AM57*100),AM57/$AA57*100),""),"") ->  | AS57: =IF($AA57>0,IF(COUNT(AO57)=1,IF(AO$20="P",IF($B$1="GF_HUHN",AO57*D57/AA57*100,AO57*100),AO57/$AA57*100),""),"") ->  | AU57: =IF(AND(AA57>0,COUNT(AG57,AR57)>0),IF(COUNT(AG57)=1,AG57,0)+IF(COUNT(AR57)=1,AR57,0),"") ->  | AV57: =IF(AND(AA57>0,COUNT(AI57,AS57)>0,$B$1="GF_PUTE"),IF(COUNT(AI57)=1,AI57,0)+IF(COUNT(AS57)=1,AS57,0),"") ->  | AX57: 10000 | BB57: =IF(COUNT(AX57)=1,AZ57/7/AX57*100,"") -> 0 | BC57: =IF(COUNT(AZ56:AZ57)=2,BB57-BB56,"") ->  | BQ57: =IF(AZ57>0,IF(BE$20="P",BE57*$AZ57,BE57)+IF(BG$20="P",BG57*$AZ57,BG57)+IF(BI$20="P",BI57*$AZ57,BI57)+IF(BK$20="P",BK57*$AZ57,BK57)+IF(BM$20="P",BM57*$AZ57,BM57)+IF(BO$20="P",BO57*$AZ57,BO57),"") ->  | BR57: =IF(AND(AZ57>0,COUNT(BQ57)=1),BQ57/AZ57*100,"") ->  | BS57: =IF(COUNT(BR56:BR57)=2,BR57-BR56,"") ->  | CF57: =IF(AND(COUNT(CB57:CD57)=2,CD57>0),CB57/CD57,"") -> 
B58: DATEN031 | C58: =C57+1 -> 40 | D58: =X57 -> 10000 | X58: =IF(COUNT(D58)=1,D58-Z58-V58,"") -> 10000 | Z58: =IF(COUNT(D58)=1,kalkTV(F58,D58)+kalkTV(H58,D58)+kalkTV(J58,D58)+kalkTV(L58,D58)+kalkTV(N58,D58)+kalkTV(P58,D58)+kalkTV(R58,D58)+kalkTV(T58,D58),"") -> 0 | AA58: 10000 | AB58: =IF(AA58>0,Z58/AA58*100,"") -> 0 | AC58: =IF($AA58>0,IF(COUNT(F58)=1,IF(F$20="P",IF($B$1="GF_HUHN",F58*D58/AA58*100,F58*100),F58/$AA58*100),""),"") ->  | AD58: =IF($AA58>0,IF(COUNT(H58)=1,IF(H$20="P",IF($B$1="GF_HUHN",H58*D58/AA58*100,H58*100),H58/$AA58*100),""),"") ->  | AE58: =IF($AA58>0,IF(COUNT(J58)=1,IF(J$20="P",IF($B$1="GF_HUHN",J58*D58/AA58*100,J58*100),J58/$AA58*100),""),"") ->  | AF58: =IF($AA58>0,IF(COUNT(L58)=1,IF(L$20="P",IF($B$1="GF_HUHN",L58*D58/AA58*100,L58*100),L58/$AA58*100),""),"") ->  | AG58: =IF($AA58>0,IF(COUNT(N58)=1,IF(N$20="P",IF($B$1="GF_HUHN",N58*D58/AA58*100,N58*100),N58/$AA58*100),""),"") ->  | AH58: =IF($AA58>0,IF(COUNT(P58)=1,IF(P$20="P",IF($B$1="GF_HUHN",P58*D58/AA58*100,P58*100),P58/$AA58*100),""),"") ->  | AI58: =IF($AA58>0,IF(COUNT(R58)=1,IF(R$20="P",IF($B$1="GF_HUHN",R58*D58/AA58*100,R58*100),R58/$AA58*100),""),"") ->  | AJ58: =IF($AA58>0,IF(COUNT(T58)=1,IF(T$20="P",IF($B$1="GF_HUHN",T58*D58/AA58*100,T58*100),T58/$AA58*100),""),"") ->  | AP58: =IF(AA58>0,kalkTV(AM58,D58)+kalkTV(AO58,D58),"") -> 0 | AQ58: 0 | AR58: =IF($AA58>0,IF(COUNT(AM58)=1,IF(AM$20="P",IF($B$1="GF_HUHN",AM58*D58/AA58*100,AM58*100),AM58/$AA58*100),""),"") ->  | AS58: =IF($AA58>0,IF(COUNT(AO58)=1,IF(AO$20="P",IF($B$1="GF_HUHN",AO58*D58/AA58*100,AO58*100),AO58/$AA58*100),""),"") ->  | AX58: 10000 | BB58: 0 | BR58: =IF(AND(AZ58>0,COUNT(BQ58)=1),BQ58/AZ58*100,"") ->  | CF58: =IF(AND(COUNT(CB58:CD58)=2,CD58>0),CB58/CD58,"") -> 
B59: DATEN032 | C59: =C58+1 -> 41 | D59: =X58 -> 10000 | X59: =IF(COUNT(D59)=1,D59-Z59-V59,"") -> 10000 | Z59: =IF(COUNT(D59)=1,kalkTV(F59,D59)+kalkTV(H59,D59)+kalkTV(J59,D59)+kalkTV(L59,D59)+kalkTV(N59,D59)+kalkTV(P59,D59)+kalkTV(R59,D59)+kalkTV(T59,D59),"") -> 0 | AA59: 10000 | AB59: =IF(AA59>0,Z59/AA59*100,"") -> 0 | AC59: =IF($AA59>0,IF(COUNT(F59)=1,IF(F$20="P",IF($B$1="GF_HUHN",F59*D59/AA59*100,F59*100),F59/$AA59*100),""),"") ->  | AD59: =IF($AA59>0,IF(COUNT(H59)=1,IF(H$20="P",IF($B$1="GF_HUHN",H59*D59/AA59*100,H59*100),H59/$AA59*100),""),"") ->  | AE59: =IF($AA59>0,IF(COUNT(J59)=1,IF(J$20="P",IF($B$1="GF_HUHN",J59*D59/AA59*100,J59*100),J59/$AA59*100),""),"") ->  | AF59: =IF($AA59>0,IF(COUNT(L59)=1,IF(L$20="P",IF($B$1="GF_HUHN",L59*D59/AA59*100,L59*100),L59/$AA59*100),""),"") ->  | AG59: =IF($AA59>0,IF(COUNT(N59)=1,IF(N$20="P",IF($B$1="GF_HUHN",N59*D59/AA59*100,N59*100),N59/$AA59*100),""),"") ->  | AH59: =IF($AA59>0,IF(COUNT(P59)=1,IF(P$20="P",IF($B$1="GF_HUHN",P59*D59/AA59*100,P59*100),P59/$AA59*100),""),"") ->  | AI59: =IF($AA59>0,IF(COUNT(R59)=1,IF(R$20="P",IF($B$1="GF_HUHN",R59*D59/AA59*100,R59*100),R59/$AA59*100),""),"") ->  | AJ59: =IF($AA59>0,IF(COUNT(T59)=1,IF(T$20="P",IF($B$1="GF_HUHN",T59*D59/AA59*100,T59*100),T59/$AA59*100),""),"") ->  | AP59: =IF(AA59>0,kalkTV(AM59,D59)+kalkTV(AO59,D59),"") -> 0 | AQ59: 0 | AR59: =IF($AA59>0,IF(COUNT(AM59)=1,IF(AM$20="P",IF($B$1="GF_HUHN",AM59*D59/AA59*100,AM59*100),AM59/$AA59*100),""),"") ->  | AS59: =IF($AA59>0,IF(COUNT(AO59)=1,IF(AO$20="P",IF($B$1="GF_HUHN",AO59*D59/AA59*100,AO59*100),AO59/$AA59*100),""),"") ->  | AX59: 10000 | BB59: 0 | BR59: =IF(AND(AZ59>0,COUNT(BQ59)=1),BQ59/AZ59*100,"") ->  | CF59: =IF(AND(COUNT(CB59:CD59)=2,CD59>0),CB59/CD59,"") -> 
B60: ERGEB908 | D60: Ergebnisse | E60: % | F60: =AC60 ->  | H60: =AD60 ->  | J60: =AE60 ->  | L60: =AF60 ->  | N60: =AG60 ->  | P60: =AH60 ->  | R60: =AI60 ->  | T60: =AJ60 ->  | Z60: =IF(COUNT(Z56:Z59)>0,SUM(Z56:Z59),"") -> 0 | AA60: 0 | AB60: =IF(AND($E$1>0,Z60<>""),SUM(Z56:Z59)/$E$1*100,"") -> 0 | AC60: =IF(COUNT(AC56:AC59)>0,SUM(AC56:AC59),"") ->  | AD60: =IF(COUNT(AD56:AD59)>0,SUM(AD56:AD59),"") ->  | AE60: =IF(COUNT(AE56:AE59)>0,SUM(AE56:AE59),"") ->  | AJ60: =IF(COUNT(AJ56:AJ59)>0,SUM(AJ56:AJ59),"") ->  | AM60: =IF(AND($E$1>0,COUNT(AM56:AM59)>0),IF(AM$20="P",SUM(AM56:AM59)*100,SUM(AM56:AM59)/$E$1*100),"") ->  | AO60: =IF(AND($E$1>0,COUNT(AO56:AO59)>0),IF(AO$20="P",SUM(AO56:AO59)*100,SUM(AO56:AO59)/$E$1*100),"") ->  | AP60: =IF(COUNT(AP56:AP59)>0,SUM(AP56:AP59),"") -> 0 | AQ60: =IF(COUNT(AQ56:AQ59)>0,SUM(AQ56:AQ59),"") -> 0 | AR60: =IF(COUNT(AR56:AR59)>0,SUM(AR56:AR59),"") ->  | AS60: =IF(COUNT(AS56:AS59)>0,SUM(AS56:AS59),"") ->  | AU60: =IF(COUNT(AU56:AU59)>0,SUM(AU56:AU59),"") ->  | AW60: Ergebnisse [% und n] | AZ60: =SUM(AZ56:AZ59) -> 0 | BB60: =IF(COUNT(BB56:BB59)>0,AVERAGE(BB56:BB59),"") -> 0 | BC60: =IF(COUNT(BC56:BC59)>0,AVERAGE(BC56:BC59),"") ->  | BE60: =IF($AZ60>0,IF(BE$20="P",BE56*$AZ56+BE57*$AZ57+BE58*$AZ58+BE59*$AZ59,SUM(BE56:BE59))/$AZ60*100,"") ->  | BG60: =IF($AZ60>0,IF(BG$20="P",BG56*$AZ56+BG57*$AZ57+BG58*$AZ58+BG59*$AZ59,SUM(BG56:BG59))/$AZ60*100,"") ->  | BI60: =IF($AZ60>0,IF(BI$20="P",BI56*$AZ56+BI57*$AZ57+BI58*$AZ58+BI59*$AZ59,SUM(BI56:BI59))/$AZ60*100,"") ->  | BK60: =IF($AZ60>0,IF(BK$20="P",BK56*$AZ56+BK57*$AZ57+BK58*$AZ58+BK59*$AZ59,SUM(BK56:BK59))/$AZ60*100,"") ->  | BM60: =IF($AZ60>0,IF(BM$20="P",BM56*$AZ56+BM57*$AZ57+BM58*$AZ58+BM59*$AZ59,SUM(BM56:BM59))/$AZ60*100,"") ->  | BO60: =IF($AZ60>0,IF(BO$20="P",BO56*$AZ56+BO57*$AZ57+BO58*$AZ58+BO59*$AZ59,SUM(BO56:BO59))/$AZ60*100,"") ->  | BQ60: =IF(AZ60>0,SUM(BQ56:BQ59),"") ->  | BR60: =IF(AZ60>0,BQ60/AZ60*100,"") ->  | BS60: =IF(COUNT(BS56:BS59)>0,AVERAGE(BS56:BS59),"") ->  | BT60: Erg. % | BV60: =IF(COUNT(BV56:BV59)>0,AVERAGE(BV56:BV59)*100,"") ->  | BX60: =IF(COUNT(BX56:BX59)>0,AVERAGE(BX56:BX59)*100,"") ->  | BZ60: =IF(COUNT(BZ56:BZ59)>0,AVERAGE(BZ56:BZ59)*100,"") ->  | CB60: =IF(COUNT(CB56:CB59)>0,AVERAGE(CB56:CB59),"") ->  | CD60: =IF(COUNT(CD56:CD59)>0,AVERAGE(CD56:CD59),"") ->  | CF60: =IF(COUNT(CF56:CF59)>0,AVERAGE(CF56:CF59),"") -> 
B61: DATEN033 | C61: =C59+1 -> 42 | D61: =X59 -> 10000 | X61: =IF(COUNT(D61,Z61)=2,D61-Z61-V61,"") -> 10000 | Z61: =IF(COUNT(D61)=1,kalkTV(F61,D61)+kalkTV(H61,D61)+kalkTV(J61,D61)+kalkTV(L61,D61)+kalkTV(N61,D61)+kalkTV(P61,D61)+kalkTV(R61,D61)+kalkTV(T61,D61),"") -> 0 | AA61: 10000 | AB61: =IF(AA61>0,Z61/AA61*100,"") -> 0 | AC61: =IF($AA61>0,IF(COUNT(F61)=1,IF(F$20="P",IF($B$1="GF_HUHN",F61*D61/AA61*100,F61*100),F61/$AA61*100),""),"") ->  | AD61: =IF($AA61>0,IF(COUNT(H61)=1,IF(H$20="P",IF($B$1="GF_HUHN",H61*D61/AA61*100,H61*100),H61/$AA61*100),""),"") ->  | AE61: =IF($AA61>0,IF(COUNT(J61)=1,IF(J$20="P",IF($B$1="GF_HUHN",J61*D61/AA61*100,J61*100),J61/$AA61*100),""),"") ->  | AF61: =IF($AA61>0,IF(COUNT(L61)=1,IF(L$20="P",IF($B$1="GF_HUHN",L61*D61/AA61*100,L61*100),L61/$AA61*100),""),"") ->  | AG61: =IF($AA61>0,IF(COUNT(N61)=1,IF(N$20="P",IF($B$1="GF_HUHN",N61*D61/AA61*100,N61*100),N61/$AA61*100),""),"") ->  | AH61: =IF($AA61>0,IF(COUNT(P61)=1,IF(P$20="P",IF($B$1="GF_HUHN",P61*D61/AA61*100,P61*100),P61/$AA61*100),""),"") ->  | AI61: =IF($AA61>0,IF(COUNT(R61)=1,IF(R$20="P",IF($B$1="GF_HUHN",R61*D61/AA61*100,R61*100),R61/$AA61*100),""),"") ->  | AJ61: =IF($AA61>0,IF(COUNT(T61)=1,IF(T$20="P",IF($B$1="GF_HUHN",T61*D61/AA61*100,T61*100),T61/$AA61*100),""),"") ->  | AP61: =IF(AA61>0,kalkTV(AM61,D61)+kalkTV(AO61,D61),"") -> 0 | AQ61: =IF(COUNT(AP61)=1,SUM(AR61:AS61),"") -> 0 | AR61: =IF($AA61>0,IF(COUNT(AM61)=1,IF(AM$20="P",IF($B$1="GF_HUHN",AM61*D61/AA61*100,AM61*100),AM61/$AA61*100),""),"") ->  | AS61: =IF($AA61>0,IF(COUNT(AO61)=1,IF(AO$20="P",IF($B$1="GF_HUHN",AO61*D61/AA61*100,AO61*100),AO61/$AA61*100),""),"") ->  | AU61: =IF(AND(AA61>0,COUNT(AG61,AR61)>0),IF(COUNT(AG61)=1,AG61,0)+IF(COUNT(AR61)=1,AR61,0),"") ->  | AV61: =IF(AND(AA61>0,COUNT(AI61,AS61)>0,$B$1="GF_PUTE"),IF(COUNT(AI61)=1,AI61,0)+IF(COUNT(AS61)=1,AS61,0),"") ->  | AX61: =IF(COUNT(D61)=1,(D61+X61)/2,"") -> 10000 | BB61: =IF(COUNT(AX61)=1,AZ61/7/AX61*100,"") -> 0 | BC61: =IF(COUNT(AZ59,AZ61)=2,BB61-BB59,"") ->  | BQ61: =IF(AZ61>0,IF(BE$20="P",BE61*$AZ61,BE61)+IF(BG$20="P",BG61*$AZ61,BG61)+IF(BI$20="P",BI61*$AZ61,BI61)+IF(BK$20="P",BK61*$AZ61,BK61)+IF(BM$20="P",BM61*$AZ61,BM61)+IF(BO$20="P",BO61*$AZ61,BO61),"") ->  | BR61: =IF(AND(AZ61>0,COUNT(BQ61)=1),BQ61/AZ61*100,"") ->  | BS61: =IF(COUNT(BR59,BR61)=2,BR61-BR59,"") ->  | CF61: =IF(AND(COUNT(CB61:CD61)=2,CD61>0),CB61/CD61,"") -> 
B62: DATEN034 | C62: =C61+1 -> 43 | D62: =X61 -> 10000 | X62: =IF(COUNT(D62)=1,D62-Z62-V62,"") -> 10000 | Z62: =IF(COUNT(D62)=1,kalkTV(F62,D62)+kalkTV(H62,D62)+kalkTV(J62,D62)+kalkTV(L62,D62)+kalkTV(N62,D62)+kalkTV(P62,D62)+kalkTV(R62,D62)+kalkTV(T62,D62),"") -> 0 | AA62: 10000 | AB62: =IF(AA62>0,Z62/AA62*100,"") -> 0 | AC62: =IF($AA62>0,IF(COUNT(F62)=1,IF(F$20="P",IF($B$1="GF_HUHN",F62*D62/AA62*100,F62*100),F62/$AA62*100),""),"") ->  | AD62: =IF($AA62>0,IF(COUNT(H62)=1,IF(H$20="P",IF($B$1="GF_HUHN",H62*D62/AA62*100,H62*100),H62/$AA62*100),""),"") ->  | AE62: =IF($AA62>0,IF(COUNT(J62)=1,IF(J$20="P",IF($B$1="GF_HUHN",J62*D62/AA62*100,J62*100),J62/$AA62*100),""),"") ->  | AF62: =IF($AA62>0,IF(COUNT(L62)=1,IF(L$20="P",IF($B$1="GF_HUHN",L62*D62/AA62*100,L62*100),L62/$AA62*100),""),"") ->  | AG62: =IF($AA62>0,IF(COUNT(N62)=1,IF(N$20="P",IF($B$1="GF_HUHN",N62*D62/AA62*100,N62*100),N62/$AA62*100),""),"") ->  | AH62: =IF($AA62>0,IF(COUNT(P62)=1,IF(P$20="P",IF($B$1="GF_HUHN",P62*D62/AA62*100,P62*100),P62/$AA62*100),""),"") ->  | AI62: =IF($AA62>0,IF(COUNT(R62)=1,IF(R$20="P",IF($B$1="GF_HUHN",R62*D62/AA62*100,R62*100),R62/$AA62*100),""),"") ->  | AJ62: =IF($AA62>0,IF(COUNT(T62)=1,IF(T$20="P",IF($B$1="GF_HUHN",T62*D62/AA62*100,T62*100),T62/$AA62*100),""),"") ->  | AP62: =IF(AA62>0,kalkTV(AM62,D62)+kalkTV(AO62,D62),"") -> 0 | AQ62: =IF(COUNT(AP62)=1,SUM(AR62:AS62),"") -> 0 | AR62: =IF($AA62>0,IF(COUNT(AM62)=1,IF(AM$20="P",IF($B$1="GF_HUHN",AM62*D62/AA62*100,AM62*100),AM62/$AA62*100),""),"") ->  | AS62: =IF($AA62>0,IF(COUNT(AO62)=1,IF(AO$20="P",IF($B$1="GF_HUHN",AO62*D62/AA62*100,AO62*100),AO62/$AA62*100),""),"") ->  | AU62: =IF(AND(AA62>0,COUNT(AG62,AR62)>0),IF(COUNT(AG62)=1,AG62,0)+IF(COUNT(AR62)=1,AR62,0),"") ->  | AV62: =IF(AND(AA62>0,COUNT(AI62,AS62)>0,$B$1="GF_PUTE"),IF(COUNT(AI62)=1,AI62,0)+IF(COUNT(AS62)=1,AS62,0),"") ->  | AX62: 10000 | BB62: =IF(COUNT(AX62)=1,AZ62/7/AX62*100,"") -> 0 | BC62: =IF(COUNT(AZ61:AZ62)=2,BB62-BB61,"") ->  | BQ62: =IF(AZ62>0,IF(BE$20="P",BE62*$AZ62,BE62)+IF(BG$20="P",BG62*$AZ62,BG62)+IF(BI$20="P",BI62*$AZ62,BI62)+IF(BK$20="P",BK62*$AZ62,BK62)+IF(BM$20="P",BM62*$AZ62,BM62)+IF(BO$20="P",BO62*$AZ62,BO62),"") ->  | BR62: =IF(AND(AZ62>0,COUNT(BQ62)=1),BQ62/AZ62*100,"") ->  | BS62: =IF(COUNT(BR61:BR62)=2,BR62-BR61,"") ->  | CF62: =IF(AND(COUNT(CB62:CD62)=2,CD62>0),CB62/CD62,"") -> 
B63: DATEN035 | C63: =C62+1 -> 44 | D63: =X62 -> 10000 | X63: =IF(COUNT(D63)=1,D63-Z63-V63,"") -> 10000 | Z63: =IF(COUNT(D63)=1,kalkTV(F63,D63)+kalkTV(H63,D63)+kalkTV(J63,D63)+kalkTV(L63,D63)+kalkTV(N63,D63)+kalkTV(P63,D63)+kalkTV(R63,D63)+kalkTV(T63,D63),"") -> 0 | AA63: 10000 | AB63: =IF(AA63>0,Z63/AA63*100,"") -> 0 | AC63: =IF($AA63>0,IF(COUNT(F63)=1,IF(F$20="P",IF($B$1="GF_HUHN",F63*D63/AA63*100,F63*100),F63/$AA63*100),""),"") ->  | AD63: =IF($AA63>0,IF(COUNT(H63)=1,IF(H$20="P",IF($B$1="GF_HUHN",H63*D63/AA63*100,H63*100),H63/$AA63*100),""),"") ->  | AE63: =IF($AA63>0,IF(COUNT(J63)=1,IF(J$20="P",IF($B$1="GF_HUHN",J63*D63/AA63*100,J63*100),J63/$AA63*100),""),"") ->  | AF63: =IF($AA63>0,IF(COUNT(L63)=1,IF(L$20="P",IF($B$1="GF_HUHN",L63*D63/AA63*100,L63*100),L63/$AA63*100),""),"") ->  | AG63: =IF($AA63>0,IF(COUNT(N63)=1,IF(N$20="P",IF($B$1="GF_HUHN",N63*D63/AA63*100,N63*100),N63/$AA63*100),""),"") ->  | AH63: =IF($AA63>0,IF(COUNT(P63)=1,IF(P$20="P",IF($B$1="GF_HUHN",P63*D63/AA63*100,P63*100),P63/$AA63*100),""),"") ->  | AI63: =IF($AA63>0,IF(COUNT(R63)=1,IF(R$20="P",IF($B$1="GF_HUHN",R63*D63/AA63*100,R63*100),R63/$AA63*100),""),"") ->  | AJ63: =IF($AA63>0,IF(COUNT(T63)=1,IF(T$20="P",IF($B$1="GF_HUHN",T63*D63/AA63*100,T63*100),T63/$AA63*100),""),"") ->  | AP63: =IF(AA63>0,kalkTV(AM63,D63)+kalkTV(AO63,D63),"") -> 0 | AQ63: 0 | AR63: =IF($AA63>0,IF(COUNT(AM63)=1,IF(AM$20="P",IF($B$1="GF_HUHN",AM63*D63/AA63*100,AM63*100),AM63/$AA63*100),""),"") ->  | AS63: =IF($AA63>0,IF(COUNT(AO63)=1,IF(AO$20="P",IF($B$1="GF_HUHN",AO63*D63/AA63*100,AO63*100),AO63/$AA63*100),""),"") ->  | AX63: 10000 | BB63: 0 | BR63: =IF(AND(AZ63>0,COUNT(BQ63)=1),BQ63/AZ63*100,"") ->  | CF63: =IF(AND(COUNT(CB63:CD63)=2,CD63>0),CB63/CD63,"") -> 
B64: DATEN036 | C64: =C63+1 -> 45 | D64: =X63 -> 10000 | X64: =IF(COUNT(D64)=1,D64-Z64-V64,"") -> 10000 | Z64: =IF(COUNT(D64)=1,kalkTV(F64,D64)+kalkTV(H64,D64)+kalkTV(J64,D64)+kalkTV(L64,D64)+kalkTV(N64,D64)+kalkTV(P64,D64)+kalkTV(R64,D64)+kalkTV(T64,D64),"") -> 0 | AA64: 10000 | AB64: =IF(AA64>0,Z64/AA64*100,"") -> 0 | AC64: =IF($AA64>0,IF(COUNT(F64)=1,IF(F$20="P",IF($B$1="GF_HUHN",F64*D64/AA64*100,F64*100),F64/$AA64*100),""),"") ->  | AD64: =IF($AA64>0,IF(COUNT(H64)=1,IF(H$20="P",IF($B$1="GF_HUHN",H64*D64/AA64*100,H64*100),H64/$AA64*100),""),"") ->  | AE64: =IF($AA64>0,IF(COUNT(J64)=1,IF(J$20="P",IF($B$1="GF_HUHN",J64*D64/AA64*100,J64*100),J64/$AA64*100),""),"") ->  | AF64: =IF($AA64>0,IF(COUNT(L64)=1,IF(L$20="P",IF($B$1="GF_HUHN",L64*D64/AA64*100,L64*100),L64/$AA64*100),""),"") ->  | AG64: =IF($AA64>0,IF(COUNT(N64)=1,IF(N$20="P",IF($B$1="GF_HUHN",N64*D64/AA64*100,N64*100),N64/$AA64*100),""),"") ->  | AH64: =IF($AA64>0,IF(COUNT(P64)=1,IF(P$20="P",IF($B$1="GF_HUHN",P64*D64/AA64*100,P64*100),P64/$AA64*100),""),"") ->  | AI64: =IF($AA64>0,IF(COUNT(R64)=1,IF(R$20="P",IF($B$1="GF_HUHN",R64*D64/AA64*100,R64*100),R64/$AA64*100),""),"") ->  | AJ64: =IF($AA64>0,IF(COUNT(T64)=1,IF(T$20="P",IF($B$1="GF_HUHN",T64*D64/AA64*100,T64*100),T64/$AA64*100),""),"") ->  | AP64: =IF(AA64>0,kalkTV(AM64,D64)+kalkTV(AO64,D64),"") -> 0 | AQ64: 0 | AR64: =IF($AA64>0,IF(COUNT(AM64)=1,IF(AM$20="P",IF($B$1="GF_HUHN",AM64*D64/AA64*100,AM64*100),AM64/$AA64*100),""),"") ->  | AS64: =IF($AA64>0,IF(COUNT(AO64)=1,IF(AO$20="P",IF($B$1="GF_HUHN",AO64*D64/AA64*100,AO64*100),AO64/$AA64*100),""),"") ->  | AX64: 10000 | BB64: 0 | BR64: =IF(AND(AZ64>0,COUNT(BQ64)=1),BQ64/AZ64*100,"") ->  | CF64: =IF(AND(COUNT(CB64:CD64)=2,CD64>0),CB64/CD64,"") -> 
B65: ERGEB909 | D65: Ergebnisse | E65: % | F65: =AC65 ->  | H65: =AD65 ->  | J65: =AE65 ->  | L65: =AF65 ->  | N65: =AG65 ->  | P65: =AH65 ->  | R65: =AI65 ->  | T65: =AJ65 ->  | Z65: =IF(COUNT(Z61:Z64)>0,SUM(Z61:Z64),"") -> 0 | AA65: 0 | AB65: =IF(AND($E$1>0,Z65<>""),SUM(Z61:Z64)/$E$1*100,"") -> 0 | AC65: =IF(COUNT(AC61:AC64)>0,SUM(AC61:AC64),"") ->  | AD65: =IF(COUNT(AD61:AD64)>0,SUM(AD61:AD64),"") ->  | AE65: =IF(COUNT(AE61:AE64)>0,SUM(AE61:AE64),"") ->  | AJ65: =IF(COUNT(AJ61:AJ64)>0,SUM(AJ61:AJ64),"") ->  | AM65: =IF(AND($E$1>0,COUNT(AM61:AM64)>0),IF(AM$20="P",SUM(AM61:AM64)*100,SUM(AM61:AM64)/$E$1*100),"") ->  | AO65: =IF(AND($E$1>0,COUNT(AO61:AO64)>0),IF(AO$20="P",SUM(AO61:AO64)*100,SUM(AO61:AO64)/$E$1*100),"") ->  | AP65: =IF(COUNT(AP61:AP64)>0,SUM(AP61:AP64),"") -> 0 | AQ65: =IF(COUNT(AQ61:AQ64)>0,SUM(AQ61:AQ64),"") -> 0 | AR65: =IF(COUNT(AR61:AR64)>0,SUM(AR61:AR64),"") ->  | AS65: =IF(COUNT(AS61:AS64)>0,SUM(AS61:AS64),"") ->  | AU65: =IF(COUNT(AU61:AU64)>0,SUM(AU61:AU64),"") ->  | AW65: Ergebnisse [% und n] | AZ65: =SUM(AZ61:AZ64) -> 0 | BB65: =IF(COUNT(BB61:BB64)>0,AVERAGE(BB61:BB64),"") -> 0 | BC65: =IF(COUNT(BC61:BC64)>0,AVERAGE(BC61:BC64),"") ->  | BE65: =IF($AZ65>0,IF(BE$20="P",BE61*$AZ61+BE62*$AZ62+BE63*$AZ63+BE64*$AZ64,SUM(BE61:BE64))/$AZ65*100,"") ->  | BG65: =IF($AZ65>0,IF(BG$20="P",BG61*$AZ61+BG62*$AZ62+BG63*$AZ63+BG64*$AZ64,SUM(BG61:BG64))/$AZ65*100,"") ->  | BI65: =IF($AZ65>0,IF(BI$20="P",BI61*$AZ61+BI62*$AZ62+BI63*$AZ63+BI64*$AZ64,SUM(BI61:BI64))/$AZ65*100,"") ->  | BK65: =IF($AZ65>0,IF(BK$20="P",BK61*$AZ61+BK62*$AZ62+BK63*$AZ63+BK64*$AZ64,SUM(BK61:BK64))/$AZ65*100,"") ->  | BM65: =IF($AZ65>0,IF(BM$20="P",BM61*$AZ61+BM62*$AZ62+BM63*$AZ63+BM64*$AZ64,SUM(BM61:BM64))/$AZ65*100,"") ->  | BO65: =IF($AZ65>0,IF(BO$20="P",BO61*$AZ61+BO62*$AZ62+BO63*$AZ63+BO64*$AZ64,SUM(BO61:BO64))/$AZ65*100,"") ->  | BQ65: =IF(AZ65>0,SUM(BQ61:BQ64),"") ->  | BR65: =IF(AZ65>0,BQ65/AZ65*100,"") ->  | BS65: =IF(COUNT(BS61:BS64)>0,AVERAGE(BS61:BS64),"") ->  | BT65: Erg. % | BV65: =IF(COUNT(BV61:BV64)>0,AVERAGE(BV61:BV64)*100,"") ->  | BX65: =IF(COUNT(BX61:BX64)>0,AVERAGE(BX61:BX64)*100,"") ->  | BZ65: =IF(COUNT(BZ61:BZ64)>0,AVERAGE(BZ61:BZ64)*100,"") ->  | CB65: =IF(COUNT(CB61:CB64)>0,AVERAGE(CB61:CB64),"") ->  | CD65: =IF(COUNT(CD61:CD64)>0,AVERAGE(CD61:CD64),"") ->  | CF65: =IF(COUNT(CF61:CF64)>0,AVERAGE(CF61:CF64),"") -> 
B66: DATEN037 | C66: =C64+1 -> 46 | D66: =X64 -> 10000 | X66: =IF(COUNT(D66,Z66)=2,D66-Z66-V66,"") -> 10000 | Z66: =IF(COUNT(D66)=1,kalkTV(F66,D66)+kalkTV(H66,D66)+kalkTV(J66,D66)+kalkTV(L66,D66)+kalkTV(N66,D66)+kalkTV(P66,D66)+kalkTV(R66,D66)+kalkTV(T66,D66),"") -> 0 | AA66: 10000 | AB66: =IF(AA66>0,Z66/AA66*100,"") -> 0 | AC66: =IF($AA66>0,IF(COUNT(F66)=1,IF(F$20="P",IF($B$1="GF_HUHN",F66*D66/AA66*100,F66*100),F66/$AA66*100),""),"") ->  | AD66: =IF($AA66>0,IF(COUNT(H66)=1,IF(H$20="P",IF($B$1="GF_HUHN",H66*D66/AA66*100,H66*100),H66/$AA66*100),""),"") ->  | AE66: =IF($AA66>0,IF(COUNT(J66)=1,IF(J$20="P",IF($B$1="GF_HUHN",J66*D66/AA66*100,J66*100),J66/$AA66*100),""),"") ->  | AF66: =IF($AA66>0,IF(COUNT(L66)=1,IF(L$20="P",IF($B$1="GF_HUHN",L66*D66/AA66*100,L66*100),L66/$AA66*100),""),"") ->  | AG66: =IF($AA66>0,IF(COUNT(N66)=1,IF(N$20="P",IF($B$1="GF_HUHN",N66*D66/AA66*100,N66*100),N66/$AA66*100),""),"") ->  | AH66: =IF($AA66>0,IF(COUNT(P66)=1,IF(P$20="P",IF($B$1="GF_HUHN",P66*D66/AA66*100,P66*100),P66/$AA66*100),""),"") ->  | AI66: =IF($AA66>0,IF(COUNT(R66)=1,IF(R$20="P",IF($B$1="GF_HUHN",R66*D66/AA66*100,R66*100),R66/$AA66*100),""),"") ->  | AJ66: =IF($AA66>0,IF(COUNT(T66)=1,IF(T$20="P",IF($B$1="GF_HUHN",T66*D66/AA66*100,T66*100),T66/$AA66*100),""),"") ->  | AP66: =IF(AA66>0,kalkTV(AM66,D66)+kalkTV(AO66,D66),"") -> 0 | AQ66: =IF(COUNT(AP66)=1,SUM(AR66:AS66),"") -> 0 | AR66: =IF($AA66>0,IF(COUNT(AM66)=1,IF(AM$20="P",IF($B$1="GF_HUHN",AM66*D66/AA66*100,AM66*100),AM66/$AA66*100),""),"") ->  | AS66: =IF($AA66>0,IF(COUNT(AO66)=1,IF(AO$20="P",IF($B$1="GF_HUHN",AO66*D66/AA66*100,AO66*100),AO66/$AA66*100),""),"") ->  | AU66: =IF(AND(AA66>0,COUNT(AG66,AR66)>0),IF(COUNT(AG66)=1,AG66,0)+IF(COUNT(AR66)=1,AR66,0),"") ->  | AV66: =IF(AND(AA66>0,COUNT(AI66,AS66)>0,$B$1="GF_PUTE"),IF(COUNT(AI66)=1,AI66,0)+IF(COUNT(AS66)=1,AS66,0),"") ->  | AX66: =IF(COUNT(D66)=1,(D66+X66)/2,"") -> 10000 | BB66: =IF(COUNT(AX66)=1,AZ66/7/AX66*100,"") -> 0 | BC66: =IF(COUNT(AZ64,AZ66)=2,BB66-BB64,"") ->  | BQ66: =IF(AZ66>0,IF(BE$20="P",BE66*$AZ66,BE66)+IF(BG$20="P",BG66*$AZ66,BG66)+IF(BI$20="P",BI66*$AZ66,BI66)+IF(BK$20="P",BK66*$AZ66,BK66)+IF(BM$20="P",BM66*$AZ66,BM66)+IF(BO$20="P",BO66*$AZ66,BO66),"") ->  | BR66: =IF(AND(AZ66>0,COUNT(BQ66)=1),BQ66/AZ66*100,"") ->  | BS66: =IF(COUNT(BR64,BR66)=2,BR66-BR64,"") ->  | CF66: =IF(AND(COUNT(CB66:CD66)=2,CD66>0),CB66/CD66,"") -> 
B67: DATEN038 | C67: =C66+1 -> 47 | D67: =X66 -> 10000 | X67: =IF(COUNT(D67)=1,D67-Z67-V67,"") -> 10000 | Z67: =IF(COUNT(D67)=1,kalkTV(F67,D67)+kalkTV(H67,D67)+kalkTV(J67,D67)+kalkTV(L67,D67)+kalkTV(N67,D67)+kalkTV(P67,D67)+kalkTV(R67,D67)+kalkTV(T67,D67),"") -> 0 | AA67: 10000 | AB67: =IF(AA67>0,Z67/AA67*100,"") -> 0 | AC67: =IF($AA67>0,IF(COUNT(F67)=1,IF(F$20="P",IF($B$1="GF_HUHN",F67*D67/AA67*100,F67*100),F67/$AA67*100),""),"") ->  | AD67: =IF($AA67>0,IF(COUNT(H67)=1,IF(H$20="P",IF($B$1="GF_HUHN",H67*D67/AA67*100,H67*100),H67/$AA67*100),""),"") ->  | AE67: =IF($AA67>0,IF(COUNT(J67)=1,IF(J$20="P",IF($B$1="GF_HUHN",J67*D67/AA67*100,J67*100),J67/$AA67*100),""),"") ->  | AF67: =IF($AA67>0,IF(COUNT(L67)=1,IF(L$20="P",IF($B$1="GF_HUHN",L67*D67/AA67*100,L67*100),L67/$AA67*100),""),"") ->  | AG67: =IF($AA67>0,IF(COUNT(N67)=1,IF(N$20="P",IF($B$1="GF_HUHN",N67*D67/AA67*100,N67*100),N67/$AA67*100),""),"") ->  | AH67: =IF($AA67>0,IF(COUNT(P67)=1,IF(P$20="P",IF($B$1="GF_HUHN",P67*D67/AA67*100,P67*100),P67/$AA67*100),""),"") ->  | AI67: =IF($AA67>0,IF(COUNT(R67)=1,IF(R$20="P",IF($B$1="GF_HUHN",R67*D67/AA67*100,R67*100),R67/$AA67*100),""),"") ->  | AJ67: =IF($AA67>0,IF(COUNT(T67)=1,IF(T$20="P",IF($B$1="GF_HUHN",T67*D67/AA67*100,T67*100),T67/$AA67*100),""),"") ->  | AP67: =IF(AA67>0,kalkTV(AM67,D67)+kalkTV(AO67,D67),"") -> 0 | AQ67: =IF(COUNT(AP67)=1,SUM(AR67:AS67),"") -> 0 | AR67: =IF($AA67>0,IF(COUNT(AM67)=1,IF(AM$20="P",IF($B$1="GF_HUHN",AM67*D67/AA67*100,AM67*100),AM67/$AA67*100),""),"") ->  | AS67: =IF($AA67>0,IF(COUNT(AO67)=1,IF(AO$20="P",IF($B$1="GF_HUHN",AO67*D67/AA67*100,AO67*100),AO67/$AA67*100),""),"") ->  | AU67: =IF(AND(AA67>0,COUNT(AG67,AR67)>0),IF(COUNT(AG67)=1,AG67,0)+IF(COUNT(AR67)=1,AR67,0),"") ->  | AV67: =IF(AND(AA67>0,COUNT(AI67,AS67)>0,$B$1="GF_PUTE"),IF(COUNT(AI67)=1,AI67,0)+IF(COUNT(AS67)=1,AS67,0),"") ->  | AX67: 10000 | BB67: =IF(COUNT(AX67)=1,AZ67/7/AX67*100,"") -> 0 | BC67: =IF(COUNT(AZ66:AZ67)=2,BB67-BB66,"") ->  | BQ67: =IF(AZ67>0,IF(BE$20="P",BE67*$AZ67,BE67)+IF(BG$20="P",BG67*$AZ67,BG67)+IF(BI$20="P",BI67*$AZ67,BI67)+IF(BK$20="P",BK67*$AZ67,BK67)+IF(BM$20="P",BM67*$AZ67,BM67)+IF(BO$20="P",BO67*$AZ67,BO67),"") ->  | BR67: =IF(AND(AZ67>0,COUNT(BQ67)=1),BQ67/AZ67*100,"") ->  | BS67: =IF(COUNT(BR66:BR67)=2,BR67-BR66,"") ->  | CF67: =IF(AND(COUNT(CB67:CD67)=2,CD67>0),CB67/CD67,"") -> 
B68: DATEN039 | C68: =C67+1 -> 48 | D68: =X67 -> 10000 | X68: =IF(COUNT(D68)=1,D68-Z68-V68,"") -> 10000 | Z68: =IF(COUNT(D68)=1,kalkTV(F68,D68)+kalkTV(H68,D68)+kalkTV(J68,D68)+kalkTV(L68,D68)+kalkTV(N68,D68)+kalkTV(P68,D68)+kalkTV(R68,D68)+kalkTV(T68,D68),"") -> 0 | AA68: 10000 | AB68: =IF(AA68>0,Z68/AA68*100,"") -> 0 | AC68: =IF($AA68>0,IF(COUNT(F68)=1,IF(F$20="P",IF($B$1="GF_HUHN",F68*D68/AA68*100,F68*100),F68/$AA68*100),""),"") ->  | AD68: =IF($AA68>0,IF(COUNT(H68)=1,IF(H$20="P",IF($B$1="GF_HUHN",H68*D68/AA68*100,H68*100),H68/$AA68*100),""),"") ->  | AE68: =IF($AA68>0,IF(COUNT(J68)=1,IF(J$20="P",IF($B$1="GF_HUHN",J68*D68/AA68*100,J68*100),J68/$AA68*100),""),"") ->  | AF68: =IF($AA68>0,IF(COUNT(L68)=1,IF(L$20="P",IF($B$1="GF_HUHN",L68*D68/AA68*100,L68*100),L68/$AA68*100),""),"") ->  | AG68: =IF($AA68>0,IF(COUNT(N68)=1,IF(N$20="P",IF($B$1="GF_HUHN",N68*D68/AA68*100,N68*100),N68/$AA68*100),""),"") ->  | AH68: =IF($AA68>0,IF(COUNT(P68)=1,IF(P$20="P",IF($B$1="GF_HUHN",P68*D68/AA68*100,P68*100),P68/$AA68*100),""),"") ->  | AI68: =IF($AA68>0,IF(COUNT(R68)=1,IF(R$20="P",IF($B$1="GF_HUHN",R68*D68/AA68*100,R68*100),R68/$AA68*100),""),"") ->  | AJ68: =IF($AA68>0,IF(COUNT(T68)=1,IF(T$20="P",IF($B$1="GF_HUHN",T68*D68/AA68*100,T68*100),T68/$AA68*100),""),"") ->  | AP68: =IF(AA68>0,kalkTV(AM68,D68)+kalkTV(AO68,D68),"") -> 0 | AQ68: 0 | AR68: =IF($AA68>0,IF(COUNT(AM68)=1,IF(AM$20="P",IF($B$1="GF_HUHN",AM68*D68/AA68*100,AM68*100),AM68/$AA68*100),""),"") ->  | AS68: =IF($AA68>0,IF(COUNT(AO68)=1,IF(AO$20="P",IF($B$1="GF_HUHN",AO68*D68/AA68*100,AO68*100),AO68/$AA68*100),""),"") ->  | AX68: 10000 | BB68: 0 | BR68: =IF(AND(AZ68>0,COUNT(BQ68)=1),BQ68/AZ68*100,"") ->  | CF68: =IF(AND(COUNT(CB68:CD68)=2,CD68>0),CB68/CD68,"") -> 
B69: DATEN040 | C69: =C68+1 -> 49 | D69: =X68 -> 10000 | X69: =IF(COUNT(D69)=1,D69-Z69-V69,"") -> 10000 | Z69: =IF(COUNT(D69)=1,kalkTV(F69,D69)+kalkTV(H69,D69)+kalkTV(J69,D69)+kalkTV(L69,D69)+kalkTV(N69,D69)+kalkTV(P69,D69)+kalkTV(R69,D69)+kalkTV(T69,D69),"") -> 0 | AA69: 10000 | AB69: =IF(AA69>0,Z69/AA69*100,"") -> 0 | AC69: =IF($AA69>0,IF(COUNT(F69)=1,IF(F$20="P",IF($B$1="GF_HUHN",F69*D69/AA69*100,F69*100),F69/$AA69*100),""),"") ->  | AD69: =IF($AA69>0,IF(COUNT(H69)=1,IF(H$20="P",IF($B$1="GF_HUHN",H69*D69/AA69*100,H69*100),H69/$AA69*100),""),"") ->  | AE69: =IF($AA69>0,IF(COUNT(J69)=1,IF(J$20="P",IF($B$1="GF_HUHN",J69*D69/AA69*100,J69*100),J69/$AA69*100),""),"") ->  | AF69: =IF($AA69>0,IF(COUNT(L69)=1,IF(L$20="P",IF($B$1="GF_HUHN",L69*D69/AA69*100,L69*100),L69/$AA69*100),""),"") ->  | AG69: =IF($AA69>0,IF(COUNT(N69)=1,IF(N$20="P",IF($B$1="GF_HUHN",N69*D69/AA69*100,N69*100),N69/$AA69*100),""),"") ->  | AH69: =IF($AA69>0,IF(COUNT(P69)=1,IF(P$20="P",IF($B$1="GF_HUHN",P69*D69/AA69*100,P69*100),P69/$AA69*100),""),"") ->  | AI69: =IF($AA69>0,IF(COUNT(R69)=1,IF(R$20="P",IF($B$1="GF_HUHN",R69*D69/AA69*100,R69*100),R69/$AA69*100),""),"") ->  | AJ69: =IF($AA69>0,IF(COUNT(T69)=1,IF(T$20="P",IF($B$1="GF_HUHN",T69*D69/AA69*100,T69*100),T69/$AA69*100),""),"") ->  | AP69: =IF(AA69>0,kalkTV(AM69,D69)+kalkTV(AO69,D69),"") -> 0 | AQ69: 0 | AR69: =IF($AA69>0,IF(COUNT(AM69)=1,IF(AM$20="P",IF($B$1="GF_HUHN",AM69*D69/AA69*100,AM69*100),AM69/$AA69*100),""),"") ->  | AS69: =IF($AA69>0,IF(COUNT(AO69)=1,IF(AO$20="P",IF($B$1="GF_HUHN",AO69*D69/AA69*100,AO69*100),AO69/$AA69*100),""),"") ->  | AX69: 10000 | BB69: 0 | BR69: =IF(AND(AZ69>0,COUNT(BQ69)=1),BQ69/AZ69*100,"") ->  | CF69: =IF(AND(COUNT(CB69:CD69)=2,CD69>0),CB69/CD69,"") -> 
B70: ERGEB910 | D70: Ergebnisse | E70: % | F70: =AC70 ->  | H70: =AD70 ->  | J70: =AE70 ->  | L70: =AF70 ->  | N70: =AG70 ->  | P70: =AH70 ->  | R70: =AI70 ->  | T70: =AJ70 ->  | Z70: =IF(COUNT(Z66:Z69)>0,SUM(Z66:Z69),"") -> 0 | AA70: 0 | AB70: =IF(AND($E$1>0,Z70<>""),SUM(Z66:Z69)/$E$1*100,"") -> 0 | AC70: =IF(COUNT(AC66:AC69)>0,SUM(AC66:AC69),"") ->  | AD70: =IF(COUNT(AD66:AD69)>0,SUM(AD66:AD69),"") ->  | AE70: =IF(COUNT(AE66:AE69)>0,SUM(AE66:AE69),"") ->  | AJ70: =IF(COUNT(AJ66:AJ69)>0,SUM(AJ66:AJ69),"") ->  | AM70: =IF(AND($E$1>0,COUNT(AM66:AM69)>0),IF(AM$20="P",SUM(AM66:AM69)*100,SUM(AM66:AM69)/$E$1*100),"") ->  | AO70: =IF(AND($E$1>0,COUNT(AO66:AO69)>0),IF(AO$20="P",SUM(AO66:AO69)*100,SUM(AO66:AO69)/$E$1*100),"") ->  | AP70: =IF(COUNT(AP66:AP69)>0,SUM(AP66:AP69),"") -> 0 | AQ70: =IF(COUNT(AQ66:AQ69)>0,SUM(AQ66:AQ69),"") -> 0 | AR70: =IF(COUNT(AR66:AR69)>0,SUM(AR66:AR69),"") ->  | AS70: =IF(COUNT(AS66:AS69)>0,SUM(AS66:AS69),"") ->  | AU70: =IF(COUNT(AU66:AU69)>0,SUM(AU66:AU69),"") ->  | AW70: Ergebnisse [% und n] | AZ70: =SUM(AZ66:AZ69) -> 0 | BB70: =IF(COUNT(BB66:BB69)>0,AVERAGE(BB66:BB69),"") -> 0 | BC70: =IF(COUNT(BC66:BC69)>0,AVERAGE(BC66:BC69),"") ->  | BE70: =IF($AZ70>0,IF(BE$20="P",BE66*$AZ66+BE67*$AZ67+BE68*$AZ68+BE69*$AZ69,SUM(BE66:BE69))/$AZ70*100,"") ->  | BG70: =IF($AZ70>0,IF(BG$20="P",BG66*$AZ66+BG67*$AZ67+BG68*$AZ68+BG69*$AZ69,SUM(BG66:BG69))/$AZ70*100,"") ->  | BI70: =IF($AZ70>0,IF(BI$20="P",BI66*$AZ66+BI67*$AZ67+BI68*$AZ68+BI69*$AZ69,SUM(BI66:BI69))/$AZ70*100,"") ->  | BK70: =IF($AZ70>0,IF(BK$20="P",BK66*$AZ66+BK67*$AZ67+BK68*$AZ68+BK69*$AZ69,SUM(BK66:BK69))/$AZ70*100,"") ->  | BM70: =IF($AZ70>0,IF(BM$20="P",BM66*$AZ66+BM67*$AZ67+BM68*$AZ68+BM69*$AZ69,SUM(BM66:BM69))/$AZ70*100,"") ->  | BO70: =IF($AZ70>0,IF(BO$20="P",BO66*$AZ66+BO67*$AZ67+BO68*$AZ68+BO69*$AZ69,SUM(BO66:BO69))/$AZ70*100,"") ->  | BQ70: =IF(AZ70>0,SUM(BQ66:BQ69),"") ->  | BR70: =IF(AZ70>0,BQ70/AZ70*100,"") ->  | BS70: =IF(COUNT(BS66:BS69)>0,AVERAGE(BS66:BS69),"") ->  | BT70: Erg. % | BV70: =IF(COUNT(BV66:BV69)>0,AVERAGE(BV66:BV69)*100,"") ->  | BX70: =IF(COUNT(BX66:BX69)>0,AVERAGE(BX66:BX69)*100,"") ->  | BZ70: =IF(COUNT(BZ66:BZ69)>0,AVERAGE(BZ66:BZ69)*100,"") ->  | CB70: =IF(COUNT(CB66:CB69)>0,AVERAGE(CB66:CB69),"") ->  | CD70: =IF(COUNT(CD66:CD69)>0,AVERAGE(CD66:CD69),"") ->  | CF70: =IF(COUNT(CF66:CF69)>0,AVERAGE(CF66:CF69),"") -> 
B71: DATEN041 | C71: =C69+1 -> 50 | D71: =X69 -> 10000 | X71: =IF(COUNT(D71,Z71)=2,D71-Z71-V71,"") -> 10000 | Z71: =IF(COUNT(D71)=1,kalkTV(F71,D71)+kalkTV(H71,D71)+kalkTV(J71,D71)+kalkTV(L71,D71)+kalkTV(N71,D71)+kalkTV(P71,D71)+kalkTV(R71,D71)+kalkTV(T71,D71),"") -> 0 | AA71: 10000 | AB71: =IF(AA71>0,Z71/AA71*100,"") -> 0 | AC71: =IF($AA71>0,IF(COUNT(F71)=1,IF(F$20="P",IF($B$1="GF_HUHN",F71*D71/AA71*100,F71*100),F71/$AA71*100),""),"") ->  | AD71: =IF($AA71>0,IF(COUNT(H71)=1,IF(H$20="P",IF($B$1="GF_HUHN",H71*D71/AA71*100,H71*100),H71/$AA71*100),""),"") ->  | AE71: =IF($AA71>0,IF(COUNT(J71)=1,IF(J$20="P",IF($B$1="GF_HUHN",J71*D71/AA71*100,J71*100),J71/$AA71*100),""),"") ->  | AF71: =IF($AA71>0,IF(COUNT(L71)=1,IF(L$20="P",IF($B$1="GF_HUHN",L71*D71/AA71*100,L71*100),L71/$AA71*100),""),"") ->  | AG71: =IF($AA71>0,IF(COUNT(N71)=1,IF(N$20="P",IF($B$1="GF_HUHN",N71*D71/AA71*100,N71*100),N71/$AA71*100),""),"") ->  | AH71: =IF($AA71>0,IF(COUNT(P71)=1,IF(P$20="P",IF($B$1="GF_HUHN",P71*D71/AA71*100,P71*100),P71/$AA71*100),""),"") ->  | AI71: =IF($AA71>0,IF(COUNT(R71)=1,IF(R$20="P",IF($B$1="GF_HUHN",R71*D71/AA71*100,R71*100),R71/$AA71*100),""),"") ->  | AJ71: =IF($AA71>0,IF(COUNT(T71)=1,IF(T$20="P",IF($B$1="GF_HUHN",T71*D71/AA71*100,T71*100),T71/$AA71*100),""),"") ->  | AP71: =IF(AA71>0,kalkTV(AM71,D71)+kalkTV(AO71,D71),"") -> 0 | AQ71: =IF(COUNT(AP71)=1,SUM(AR71:AS71),"") -> 0 | AR71: =IF($AA71>0,IF(COUNT(AM71)=1,IF(AM$20="P",IF($B$1="GF_HUHN",AM71*D71/AA71*100,AM71*100),AM71/$AA71*100),""),"") ->  | AS71: =IF($AA71>0,IF(COUNT(AO71)=1,IF(AO$20="P",IF($B$1="GF_HUHN",AO71*D71/AA71*100,AO71*100),AO71/$AA71*100),""),"") ->  | AU71: =IF(AND(AA71>0,COUNT(AG71,AR71)>0),IF(COUNT(AG71)=1,AG71,0)+IF(COUNT(AR71)=1,AR71,0),"") ->  | AV71: =IF(AND(AA71>0,COUNT(AI71,AS71)>0,$B$1="GF_PUTE"),IF(COUNT(AI71)=1,AI71,0)+IF(COUNT(AS71)=1,AS71,0),"") ->  | AX71: =IF(COUNT(D71)=1,(D71+X71)/2,"") -> 10000 | BB71: =IF(COUNT(AX71)=1,AZ71/7/AX71*100,"") -> 0 | BC71: =IF(COUNT(AZ69,AZ71)=2,BB71-BB69,"") ->  | BQ71: =IF(AZ71>0,IF(BE$20="P",BE71*$AZ71,BE71)+IF(BG$20="P",BG71*$AZ71,BG71)+IF(BI$20="P",BI71*$AZ71,BI71)+IF(BK$20="P",BK71*$AZ71,BK71)+IF(BM$20="P",BM71*$AZ71,BM71)+IF(BO$20="P",BO71*$AZ71,BO71),"") ->  | BR71: =IF(AND(AZ71>0,COUNT(BQ71)=1),BQ71/AZ71*100,"") ->  | BS71: =IF(COUNT(BR69,BR71)=2,BR71-BR69,"") ->  | CF71: =IF(AND(COUNT(CB71:CD71)=2,CD71>0),CB71/CD71,"") -> 
B72: DATEN042 | C72: =C71+1 -> 51 | D72: =X71 -> 10000 | X72: =IF(COUNT(D72)=1,D72-Z72-V72,"") -> 10000 | Z72: =IF(COUNT(D72)=1,kalkTV(F72,D72)+kalkTV(H72,D72)+kalkTV(J72,D72)+kalkTV(L72,D72)+kalkTV(N72,D72)+kalkTV(P72,D72)+kalkTV(R72,D72)+kalkTV(T72,D72),"") -> 0 | AA72: 10000 | AB72: =IF(AA72>0,Z72/AA72*100,"") -> 0 | AC72: =IF($AA72>0,IF(COUNT(F72)=1,IF(F$20="P",IF($B$1="GF_HUHN",F72*D72/AA72*100,F72*100),F72/$AA72*100),""),"") ->  | AD72: =IF($AA72>0,IF(COUNT(H72)=1,IF(H$20="P",IF($B$1="GF_HUHN",H72*D72/AA72*100,H72*100),H72/$AA72*100),""),"") ->  | AE72: =IF($AA72>0,IF(COUNT(J72)=1,IF(J$20="P",IF($B$1="GF_HUHN",J72*D72/AA72*100,J72*100),J72/$AA72*100),""),"") ->  | AF72: =IF($AA72>0,IF(COUNT(L72)=1,IF(L$20="P",IF($B$1="GF_HUHN",L72*D72/AA72*100,L72*100),L72/$AA72*100),""),"") ->  | AG72: =IF($AA72>0,IF(COUNT(N72)=1,IF(N$20="P",IF($B$1="GF_HUHN",N72*D72/AA72*100,N72*100),N72/$AA72*100),""),"") ->  | AH72: =IF($AA72>0,IF(COUNT(P72)=1,IF(P$20="P",IF($B$1="GF_HUHN",P72*D72/AA72*100,P72*100),P72/$AA72*100),""),"") ->  | AI72: =IF($AA72>0,IF(COUNT(R72)=1,IF(R$20="P",IF($B$1="GF_HUHN",R72*D72/AA72*100,R72*100),R72/$AA72*100),""),"") ->  | AJ72: =IF($AA72>0,IF(COUNT(T72)=1,IF(T$20="P",IF($B$1="GF_HUHN",T72*D72/AA72*100,T72*100),T72/$AA72*100),""),"") ->  | AP72: =IF(AA72>0,kalkTV(AM72,D72)+kalkTV(AO72,D72),"") -> 0 | AQ72: =IF(COUNT(AP72)=1,SUM(AR72:AS72),"") -> 0 | AR72: =IF($AA72>0,IF(COUNT(AM72)=1,IF(AM$20="P",IF($B$1="GF_HUHN",AM72*D72/AA72*100,AM72*100),AM72/$AA72*100),""),"") ->  | AS72: =IF($AA72>0,IF(COUNT(AO72)=1,IF(AO$20="P",IF($B$1="GF_HUHN",AO72*D72/AA72*100,AO72*100),AO72/$AA72*100),""),"") ->  | AU72: =IF(AND(AA72>0,COUNT(AG72,AR72)>0),IF(COUNT(AG72)=1,AG72,0)+IF(COUNT(AR72)=1,AR72,0),"") ->  | AV72: =IF(AND(AA72>0,COUNT(AI72,AS72)>0,$B$1="GF_PUTE"),IF(COUNT(AI72)=1,AI72,0)+IF(COUNT(AS72)=1,AS72,0),"") ->  | AX72: 10000 | BB72: =IF(COUNT(AX72)=1,AZ72/7/AX72*100,"") -> 0 | BC72: =IF(COUNT(AZ71:AZ72)=2,BB72-BB71,"") ->  | BQ72: =IF(AZ72>0,IF(BE$20="P",BE72*$AZ72,BE72)+IF(BG$20="P",BG72*$AZ72,BG72)+IF(BI$20="P",BI72*$AZ72,BI72)+IF(BK$20="P",BK72*$AZ72,BK72)+IF(BM$20="P",BM72*$AZ72,BM72)+IF(BO$20="P",BO72*$AZ72,BO72),"") ->  | BR72: =IF(AND(AZ72>0,COUNT(BQ72)=1),BQ72/AZ72*100,"") ->  | BS72: =IF(COUNT(BR71:BR72)=2,BR72-BR71,"") ->  | CF72: =IF(AND(COUNT(CB72:CD72)=2,CD72>0),CB72/CD72,"") -> 
B73: DATEN043 | C73: =C72+1 -> 52 | D73: =X72 -> 10000 | X73: =IF(COUNT(D73)=1,D73-Z73-V73,"") -> 10000 | Z73: =IF(COUNT(D73)=1,kalkTV(F73,D73)+kalkTV(H73,D73)+kalkTV(J73,D73)+kalkTV(L73,D73)+kalkTV(N73,D73)+kalkTV(P73,D73)+kalkTV(R73,D73)+kalkTV(T73,D73),"") -> 0 | AA73: 10000 | AB73: =IF(AA73>0,Z73/AA73*100,"") -> 0 | AC73: =IF($AA73>0,IF(COUNT(F73)=1,IF(F$20="P",IF($B$1="GF_HUHN",F73*D73/AA73*100,F73*100),F73/$AA73*100),""),"") ->  | AD73: =IF($AA73>0,IF(COUNT(H73)=1,IF(H$20="P",IF($B$1="GF_HUHN",H73*D73/AA73*100,H73*100),H73/$AA73*100),""),"") ->  | AE73: =IF($AA73>0,IF(COUNT(J73)=1,IF(J$20="P",IF($B$1="GF_HUHN",J73*D73/AA73*100,J73*100),J73/$AA73*100),""),"") ->  | AF73: =IF($AA73>0,IF(COUNT(L73)=1,IF(L$20="P",IF($B$1="GF_HUHN",L73*D73/AA73*100,L73*100),L73/$AA73*100),""),"") ->  | AG73: =IF($AA73>0,IF(COUNT(N73)=1,IF(N$20="P",IF($B$1="GF_HUHN",N73*D73/AA73*100,N73*100),N73/$AA73*100),""),"") ->  | AH73: =IF($AA73>0,IF(COUNT(P73)=1,IF(P$20="P",IF($B$1="GF_HUHN",P73*D73/AA73*100,P73*100),P73/$AA73*100),""),"") ->  | AI73: =IF($AA73>0,IF(COUNT(R73)=1,IF(R$20="P",IF($B$1="GF_HUHN",R73*D73/AA73*100,R73*100),R73/$AA73*100),""),"") ->  | AJ73: =IF($AA73>0,IF(COUNT(T73)=1,IF(T$20="P",IF($B$1="GF_HUHN",T73*D73/AA73*100,T73*100),T73/$AA73*100),""),"") ->  | AP73: =IF(AA73>0,kalkTV(AM73,D73)+kalkTV(AO73,D73),"") -> 0 | AQ73: 0 | AR73: =IF($AA73>0,IF(COUNT(AM73)=1,IF(AM$20="P",IF($B$1="GF_HUHN",AM73*D73/AA73*100,AM73*100),AM73/$AA73*100),""),"") ->  | AS73: =IF($AA73>0,IF(COUNT(AO73)=1,IF(AO$20="P",IF($B$1="GF_HUHN",AO73*D73/AA73*100,AO73*100),AO73/$AA73*100),""),"") ->  | AX73: 10000 | BB73: 0 | BR73: =IF(AND(AZ73>0,COUNT(BQ73)=1),BQ73/AZ73*100,"") ->  | CF73: =IF(AND(COUNT(CB73:CD73)=2,CD73>0),CB73/CD73,"") -> 
B74: DATEN044 | C74: =C73+1 -> 53 | D74: =X73 -> 10000 | X74: =IF(COUNT(D74)=1,D74-Z74-V74,"") -> 10000 | Z74: =IF(COUNT(D74)=1,kalkTV(F74,D74)+kalkTV(H74,D74)+kalkTV(J74,D74)+kalkTV(L74,D74)+kalkTV(N74,D74)+kalkTV(P74,D74)+kalkTV(R74,D74)+kalkTV(T74,D74),"") -> 0 | AA74: 10000 | AB74: =IF(AA74>0,Z74/AA74*100,"") -> 0 | AC74: =IF($AA74>0,IF(COUNT(F74)=1,IF(F$20="P",IF($B$1="GF_HUHN",F74*D74/AA74*100,F74*100),F74/$AA74*100),""),"") ->  | AD74: =IF($AA74>0,IF(COUNT(H74)=1,IF(H$20="P",IF($B$1="GF_HUHN",H74*D74/AA74*100,H74*100),H74/$AA74*100),""),"") ->  | AE74: =IF($AA74>0,IF(COUNT(J74)=1,IF(J$20="P",IF($B$1="GF_HUHN",J74*D74/AA74*100,J74*100),J74/$AA74*100),""),"") ->  | AF74: =IF($AA74>0,IF(COUNT(L74)=1,IF(L$20="P",IF($B$1="GF_HUHN",L74*D74/AA74*100,L74*100),L74/$AA74*100),""),"") ->  | AG74: =IF($AA74>0,IF(COUNT(N74)=1,IF(N$20="P",IF($B$1="GF_HUHN",N74*D74/AA74*100,N74*100),N74/$AA74*100),""),"") ->  | AH74: =IF($AA74>0,IF(COUNT(P74)=1,IF(P$20="P",IF($B$1="GF_HUHN",P74*D74/AA74*100,P74*100),P74/$AA74*100),""),"") ->  | AI74: =IF($AA74>0,IF(COUNT(R74)=1,IF(R$20="P",IF($B$1="GF_HUHN",R74*D74/AA74*100,R74*100),R74/$AA74*100),""),"") ->  | AJ74: =IF($AA74>0,IF(COUNT(T74)=1,IF(T$20="P",IF($B$1="GF_HUHN",T74*D74/AA74*100,T74*100),T74/$AA74*100),""),"") ->  | AP74: =IF(AA74>0,kalkTV(AM74,D74)+kalkTV(AO74,D74),"") -> 0 | AQ74: 0 | AR74: =IF($AA74>0,IF(COUNT(AM74)=1,IF(AM$20="P",IF($B$1="GF_HUHN",AM74*D74/AA74*100,AM74*100),AM74/$AA74*100),""),"") ->  | AS74: =IF($AA74>0,IF(COUNT(AO74)=1,IF(AO$20="P",IF($B$1="GF_HUHN",AO74*D74/AA74*100,AO74*100),AO74/$AA74*100),""),"") ->  | AX74: 10000 | BB74: 0 | BR74: =IF(AND(AZ74>0,COUNT(BQ74)=1),BQ74/AZ74*100,"") ->  | CF74: =IF(AND(COUNT(CB74:CD74)=2,CD74>0),CB74/CD74,"") -> 
B75: ERGEB911 | D75: Ergebnisse | E75: % | F75: =AC75 ->  | H75: =AD75 ->  | J75: =AE75 ->  | L75: =AF75 ->  | N75: =AG75 ->  | P75: =AH75 ->  | R75: =AI75 ->  | T75: =AJ75 ->  | Z75: =IF(COUNT(Z71:Z74)>0,SUM(Z71:Z74),"") -> 0 | AA75: 0 | AB75: =IF(AND($E$1>0,Z75<>""),SUM(Z71:Z74)/$E$1*100,"") -> 0 | AC75: =IF(COUNT(AC71:AC74)>0,SUM(AC71:AC74),"") ->  | AD75: =IF(COUNT(AD71:AD74)>0,SUM(AD71:AD74),"") ->  | AE75: =IF(COUNT(AE71:AE74)>0,SUM(AE71:AE74),"") ->  | AJ75: =IF(COUNT(AJ71:AJ74)>0,SUM(AJ71:AJ74),"") ->  | AM75: =IF(AND($E$1>0,COUNT(AM71:AM74)>0),IF(AM$20="P",SUM(AM71:AM74)*100,SUM(AM71:AM74)/$E$1*100),"") ->  | AO75: =IF(AND($E$1>0,COUNT(AO71:AO74)>0),IF(AO$20="P",SUM(AO71:AO74)*100,SUM(AO71:AO74)/$E$1*100),"") ->  | AP75: =IF(COUNT(AP71:AP74)>0,SUM(AP71:AP74),"") -> 0 | AQ75: =IF(COUNT(AQ71:AQ74)>0,SUM(AQ71:AQ74),"") -> 0 | AR75: =IF(COUNT(AR71:AR74)>0,SUM(AR71:AR74),"") ->  | AS75: =IF(COUNT(AS71:AS74)>0,SUM(AS71:AS74),"") ->  | AU75: =IF(COUNT(AU71:AU74)>0,SUM(AU71:AU74),"") ->  | AW75: Ergebnisse [% und n] | AZ75: =SUM(AZ71:AZ74) -> 0 | BB75: =IF(COUNT(BB71:BB74)>0,AVERAGE(BB71:BB74),"") -> 0 | BC75: =IF(COUNT(BC71:BC74)>0,AVERAGE(BC71:BC74),"") ->  | BE75: =IF($AZ75>0,IF(BE$20="P",BE71*$AZ71+BE72*$AZ72+BE73*$AZ73+BE74*$AZ74,SUM(BE71:BE74))/$AZ75*100,"") ->  | BG75: =IF($AZ75>0,IF(BG$20="P",BG71*$AZ71+BG72*$AZ72+BG73*$AZ73+BG74*$AZ74,SUM(BG71:BG74))/$AZ75*100,"") ->  | BI75: =IF($AZ75>0,IF(BI$20="P",BI71*$AZ71+BI72*$AZ72+BI73*$AZ73+BI74*$AZ74,SUM(BI71:BI74))/$AZ75*100,"") ->  | BK75: =IF($AZ75>0,IF(BK$20="P",BK71*$AZ71+BK72*$AZ72+BK73*$AZ73+BK74*$AZ74,SUM(BK71:BK74))/$AZ75*100,"") ->  | BM75: =IF($AZ75>0,IF(BM$20="P",BM71*$AZ71+BM72*$AZ72+BM73*$AZ73+BM74*$AZ74,SUM(BM71:BM74))/$AZ75*100,"") ->  | BO75: =IF($AZ75>0,IF(BO$20="P",BO71*$AZ71+BO72*$AZ72+BO73*$AZ73+BO74*$AZ74,SUM(BO71:BO74))/$AZ75*100,"") ->  | BQ75: =IF(AZ75>0,SUM(BQ71:BQ74),"") ->  | BR75: =IF(AZ75>0,BQ75/AZ75*100,"") ->  | BS75: =IF(COUNT(BS71:BS74)>0,AVERAGE(BS71:BS74),"") ->  | BT75: Erg. % | BV75: =IF(COUNT(BV71:BV74)>0,AVERAGE(BV71:BV74)*100,"") ->  | BX75: =IF(COUNT(BX71:BX74)>0,AVERAGE(BX71:BX74)*100,"") ->  | BZ75: =IF(COUNT(BZ71:BZ74)>0,AVERAGE(BZ71:BZ74)*100,"") ->  | CB75: =IF(COUNT(CB71:CB74)>0,AVERAGE(CB71:CB74),"") ->  | CD75: =IF(COUNT(CD71:CD74)>0,AVERAGE(CD71:CD74),"") ->  | CF75: =IF(COUNT(CF71:CF74)>0,AVERAGE(CF71:CF74),"") -> 
B76: DATEN045 | C76: =C74+1 -> 54 | D76: =X74 -> 10000 | X76: =IF(COUNT(D76,Z76)=2,D76-Z76-V76,"") -> 10000 | Z76: =IF(COUNT(D76)=1,kalkTV(F76,D76)+kalkTV(H76,D76)+kalkTV(J76,D76)+kalkTV(L76,D76)+kalkTV(N76,D76)+kalkTV(P76,D76)+kalkTV(R76,D76)+kalkTV(T76,D76),"") -> 0 | AA76: 10000 | AB76: =IF(AA76>0,Z76/AA76*100,"") -> 0 | AC76: =IF($AA76>0,IF(COUNT(F76)=1,IF(F$20="P",IF($B$1="GF_HUHN",F76*D76/AA76*100,F76*100),F76/$AA76*100),""),"") ->  | AD76: =IF($AA76>0,IF(COUNT(H76)=1,IF(H$20="P",IF($B$1="GF_HUHN",H76*D76/AA76*100,H76*100),H76/$AA76*100),""),"") ->  | AE76: =IF($AA76>0,IF(COUNT(J76)=1,IF(J$20="P",IF($B$1="GF_HUHN",J76*D76/AA76*100,J76*100),J76/$AA76*100),""),"") ->  | AF76: =IF($AA76>0,IF(COUNT(L76)=1,IF(L$20="P",IF($B$1="GF_HUHN",L76*D76/AA76*100,L76*100),L76/$AA76*100),""),"") ->  | AG76: =IF($AA76>0,IF(COUNT(N76)=1,IF(N$20="P",IF($B$1="GF_HUHN",N76*D76/AA76*100,N76*100),N76/$AA76*100),""),"") ->  | AH76: =IF($AA76>0,IF(COUNT(P76)=1,IF(P$20="P",IF($B$1="GF_HUHN",P76*D76/AA76*100,P76*100),P76/$AA76*100),""),"") ->  | AI76: =IF($AA76>0,IF(COUNT(R76)=1,IF(R$20="P",IF($B$1="GF_HUHN",R76*D76/AA76*100,R76*100),R76/$AA76*100),""),"") ->  | AJ76: =IF($AA76>0,IF(COUNT(T76)=1,IF(T$20="P",IF($B$1="GF_HUHN",T76*D76/AA76*100,T76*100),T76/$AA76*100),""),"") ->  | AP76: =IF(AA76>0,kalkTV(AM76,D76)+kalkTV(AO76,D76),"") -> 0 | AQ76: =IF(COUNT(AP76)=1,SUM(AR76:AS76),"") -> 0 | AR76: =IF($AA76>0,IF(COUNT(AM76)=1,IF(AM$20="P",IF($B$1="GF_HUHN",AM76*D76/AA76*100,AM76*100),AM76/$AA76*100),""),"") ->  | AS76: =IF($AA76>0,IF(COUNT(AO76)=1,IF(AO$20="P",IF($B$1="GF_HUHN",AO76*D76/AA76*100,AO76*100),AO76/$AA76*100),""),"") ->  | AU76: =IF(AND(AA76>0,COUNT(AG76,AR76)>0),IF(COUNT(AG76)=1,AG76,0)+IF(COUNT(AR76)=1,AR76,0),"") ->  | AV76: =IF(AND(AA76>0,COUNT(AI76,AS76)>0,$B$1="GF_PUTE"),IF(COUNT(AI76)=1,AI76,0)+IF(COUNT(AS76)=1,AS76,0),"") ->  | AX76: =IF(COUNT(D76)=1,(D76+X76)/2,"") -> 10000 | BB76: =IF(COUNT(AX76)=1,AZ76/7/AX76*100,"") -> 0 | BC76: =IF(COUNT(AZ74,AZ76)=2,BB76-BB74,"") ->  | BQ76: =IF(AZ76>0,IF(BE$20="P",BE76*$AZ76,BE76)+IF(BG$20="P",BG76*$AZ76,BG76)+IF(BI$20="P",BI76*$AZ76,BI76)+IF(BK$20="P",BK76*$AZ76,BK76)+IF(BM$20="P",BM76*$AZ76,BM76)+IF(BO$20="P",BO76*$AZ76,BO76),"") ->  | BR76: =IF(AND(AZ76>0,COUNT(BQ76)=1),BQ76/AZ76*100,"") ->  | BS76: =IF(COUNT(BR74,BR76)=2,BR76-BR74,"") ->  | CF76: =IF(AND(COUNT(CB76:CD76)=2,CD76>0),CB76/CD76,"") -> 
B77: DATEN046 | C77: =C76+1 -> 55 | D77: =X76 -> 10000 | X77: =IF(COUNT(D77)=1,D77-Z77-V77,"") -> 10000 | Z77: =IF(COUNT(D77)=1,kalkTV(F77,D77)+kalkTV(H77,D77)+kalkTV(J77,D77)+kalkTV(L77,D77)+kalkTV(N77,D77)+kalkTV(P77,D77)+kalkTV(R77,D77)+kalkTV(T77,D77),"") -> 0 | AA77: 10000 | AB77: =IF(AA77>0,Z77/AA77*100,"") -> 0 | AC77: =IF($AA77>0,IF(COUNT(F77)=1,IF(F$20="P",IF($B$1="GF_HUHN",F77*D77/AA77*100,F77*100),F77/$AA77*100),""),"") ->  | AD77: =IF($AA77>0,IF(COUNT(H77)=1,IF(H$20="P",IF($B$1="GF_HUHN",H77*D77/AA77*100,H77*100),H77/$AA77*100),""),"") ->  | AE77: =IF($AA77>0,IF(COUNT(J77)=1,IF(J$20="P",IF($B$1="GF_HUHN",J77*D77/AA77*100,J77*100),J77/$AA77*100),""),"") ->  | AF77: =IF($AA77>0,IF(COUNT(L77)=1,IF(L$20="P",IF($B$1="GF_HUHN",L77*D77/AA77*100,L77*100),L77/$AA77*100),""),"") ->  | AG77: =IF($AA77>0,IF(COUNT(N77)=1,IF(N$20="P",IF($B$1="GF_HUHN",N77*D77/AA77*100,N77*100),N77/$AA77*100),""),"") ->  | AH77: =IF($AA77>0,IF(COUNT(P77)=1,IF(P$20="P",IF($B$1="GF_HUHN",P77*D77/AA77*100,P77*100),P77/$AA77*100),""),"") ->  | AI77: =IF($AA77>0,IF(COUNT(R77)=1,IF(R$20="P",IF($B$1="GF_HUHN",R77*D77/AA77*100,R77*100),R77/$AA77*100),""),"") ->  | AJ77: =IF($AA77>0,IF(COUNT(T77)=1,IF(T$20="P",IF($B$1="GF_HUHN",T77*D77/AA77*100,T77*100),T77/$AA77*100),""),"") ->  | AP77: =IF(AA77>0,kalkTV(AM77,D77)+kalkTV(AO77,D77),"") -> 0 | AQ77: =IF(COUNT(AP77)=1,SUM(AR77:AS77),"") -> 0 | AR77: =IF($AA77>0,IF(COUNT(AM77)=1,IF(AM$20="P",IF($B$1="GF_HUHN",AM77*D77/AA77*100,AM77*100),AM77/$AA77*100),""),"") ->  | AS77: =IF($AA77>0,IF(COUNT(AO77)=1,IF(AO$20="P",IF($B$1="GF_HUHN",AO77*D77/AA77*100,AO77*100),AO77/$AA77*100),""),"") ->  | AU77: =IF(AND(AA77>0,COUNT(AG77,AR77)>0),IF(COUNT(AG77)=1,AG77,0)+IF(COUNT(AR77)=1,AR77,0),"") ->  | AV77: =IF(AND(AA77>0,COUNT(AI77,AS77)>0,$B$1="GF_PUTE"),IF(COUNT(AI77)=1,AI77,0)+IF(COUNT(AS77)=1,AS77,0),"") ->  | AX77: 10000 | BB77: =IF(COUNT(AX77)=1,AZ77/7/AX77*100,"") -> 0 | BC77: =IF(COUNT(AZ76:AZ77)=2,BB77-BB76,"") ->  | BQ77: =IF(AZ77>0,IF(BE$20="P",BE77*$AZ77,BE77)+IF(BG$20="P",BG77*$AZ77,BG77)+IF(BI$20="P",BI77*$AZ77,BI77)+IF(BK$20="P",BK77*$AZ77,BK77)+IF(BM$20="P",BM77*$AZ77,BM77)+IF(BO$20="P",BO77*$AZ77,BO77),"") ->  | BR77: =IF(AND(AZ77>0,COUNT(BQ77)=1),BQ77/AZ77*100,"") ->  | BS77: =IF(COUNT(BR76:BR77)=2,BR77-BR76,"") ->  | CF77: =IF(AND(COUNT(CB77:CD77)=2,CD77>0),CB77/CD77,"") -> 
B78: DATEN047 | C78: =C77+1 -> 56 | D78: =X77 -> 10000 | X78: =IF(COUNT(D78)=1,D78-Z78-V78,"") -> 10000 | Z78: =IF(COUNT(D78)=1,kalkTV(F78,D78)+kalkTV(H78,D78)+kalkTV(J78,D78)+kalkTV(L78,D78)+kalkTV(N78,D78)+kalkTV(P78,D78)+kalkTV(R78,D78)+kalkTV(T78,D78),"") -> 0 | AA78: 10000 | AB78: =IF(AA78>0,Z78/AA78*100,"") -> 0 | AC78: =IF($AA78>0,IF(COUNT(F78)=1,IF(F$20="P",IF($B$1="GF_HUHN",F78*D78/AA78*100,F78*100),F78/$AA78*100),""),"") ->  | AD78: =IF($AA78>0,IF(COUNT(H78)=1,IF(H$20="P",IF($B$1="GF_HUHN",H78*D78/AA78*100,H78*100),H78/$AA78*100),""),"") ->  | AE78: =IF($AA78>0,IF(COUNT(J78)=1,IF(J$20="P",IF($B$1="GF_HUHN",J78*D78/AA78*100,J78*100),J78/$AA78*100),""),"") ->  | AF78: =IF($AA78>0,IF(COUNT(L78)=1,IF(L$20="P",IF($B$1="GF_HUHN",L78*D78/AA78*100,L78*100),L78/$AA78*100),""),"") ->  | AG78: =IF($AA78>0,IF(COUNT(N78)=1,IF(N$20="P",IF($B$1="GF_HUHN",N78*D78/AA78*100,N78*100),N78/$AA78*100),""),"") ->  | AH78: =IF($AA78>0,IF(COUNT(P78)=1,IF(P$20="P",IF($B$1="GF_HUHN",P78*D78/AA78*100,P78*100),P78/$AA78*100),""),"") ->  | AI78: =IF($AA78>0,IF(COUNT(R78)=1,IF(R$20="P",IF($B$1="GF_HUHN",R78*D78/AA78*100,R78*100),R78/$AA78*100),""),"") ->  | AJ78: =IF($AA78>0,IF(COUNT(T78)=1,IF(T$20="P",IF($B$1="GF_HUHN",T78*D78/AA78*100,T78*100),T78/$AA78*100),""),"") ->  | AP78: =IF(AA78>0,kalkTV(AM78,D78)+kalkTV(AO78,D78),"") -> 0 | AQ78: 0 | AR78: =IF($AA78>0,IF(COUNT(AM78)=1,IF(AM$20="P",IF($B$1="GF_HUHN",AM78*D78/AA78*100,AM78*100),AM78/$AA78*100),""),"") ->  | AS78: =IF($AA78>0,IF(COUNT(AO78)=1,IF(AO$20="P",IF($B$1="GF_HUHN",AO78*D78/AA78*100,AO78*100),AO78/$AA78*100),""),"") ->  | AX78: 10000 | BB78: 0 | BR78: =IF(AND(AZ78>0,COUNT(BQ78)=1),BQ78/AZ78*100,"") ->  | CF78: =IF(AND(COUNT(CB78:CD78)=2,CD78>0),CB78/CD78,"") -> 
B79: DATEN048 | C79: =C78+1 -> 57 | D79: =X78 -> 10000 | X79: =IF(COUNT(D79)=1,D79-Z79-V79,"") -> 10000 | Z79: =IF(COUNT(D79)=1,kalkTV(F79,D79)+kalkTV(H79,D79)+kalkTV(J79,D79)+kalkTV(L79,D79)+kalkTV(N79,D79)+kalkTV(P79,D79)+kalkTV(R79,D79)+kalkTV(T79,D79),"") -> 0 | AA79: 10000 | AB79: =IF(AA79>0,Z79/AA79*100,"") -> 0 | AC79: =IF($AA79>0,IF(COUNT(F79)=1,IF(F$20="P",IF($B$1="GF_HUHN",F79*D79/AA79*100,F79*100),F79/$AA79*100),""),"") ->  | AD79: =IF($AA79>0,IF(COUNT(H79)=1,IF(H$20="P",IF($B$1="GF_HUHN",H79*D79/AA79*100,H79*100),H79/$AA79*100),""),"") ->  | AE79: =IF($AA79>0,IF(COUNT(J79)=1,IF(J$20="P",IF($B$1="GF_HUHN",J79*D79/AA79*100,J79*100),J79/$AA79*100),""),"") ->  | AF79: =IF($AA79>0,IF(COUNT(L79)=1,IF(L$20="P",IF($B$1="GF_HUHN",L79*D79/AA79*100,L79*100),L79/$AA79*100),""),"") ->  | AG79: =IF($AA79>0,IF(COUNT(N79)=1,IF(N$20="P",IF($B$1="GF_HUHN",N79*D79/AA79*100,N79*100),N79/$AA79*100),""),"") ->  | AH79: =IF($AA79>0,IF(COUNT(P79)=1,IF(P$20="P",IF($B$1="GF_HUHN",P79*D79/AA79*100,P79*100),P79/$AA79*100),""),"") ->  | AI79: =IF($AA79>0,IF(COUNT(R79)=1,IF(R$20="P",IF($B$1="GF_HUHN",R79*D79/AA79*100,R79*100),R79/$AA79*100),""),"") ->  | AJ79: =IF($AA79>0,IF(COUNT(T79)=1,IF(T$20="P",IF($B$1="GF_HUHN",T79*D79/AA79*100,T79*100),T79/$AA79*100),""),"") ->  | AP79: =IF(AA79>0,kalkTV(AM79,D79)+kalkTV(AO79,D79),"") -> 0 | AQ79: 0 | AR79: =IF($AA79>0,IF(COUNT(AM79)=1,IF(AM$20="P",IF($B$1="GF_HUHN",AM79*D79/AA79*100,AM79*100),AM79/$AA79*100),""),"") ->  | AS79: =IF($AA79>0,IF(COUNT(AO79)=1,IF(AO$20="P",IF($B$1="GF_HUHN",AO79*D79/AA79*100,AO79*100),AO79/$AA79*100),""),"") ->  | AX79: 10000 | BB79: 0 | BR79: =IF(AND(AZ79>0,COUNT(BQ79)=1),BQ79/AZ79*100,"") ->  | CF79: =IF(AND(COUNT(CB79:CD79)=2,CD79>0),CB79/CD79,"") -> 
B80: ERGEB912 | D80: Ergebnisse | E80: % | F80: =AC80 ->  | H80: =AD80 ->  | J80: =AE80 ->  | L80: =AF80 ->  | N80: =AG80 ->  | P80: =AH80 ->  | R80: =AI80 ->  | T80: =AJ80 ->  | Z80: =IF(COUNT(Z76:Z79)>0,SUM(Z76:Z79),"") -> 0 | AA80: 0 | AB80: =IF(AND($E$1>0,Z80<>""),SUM(Z76:Z79)/$E$1*100,"") -> 0 | AC80: =IF(COUNT(AC76:AC79)>0,SUM(AC76:AC79),"") ->  | AD80: =IF(COUNT(AD76:AD79)>0,SUM(AD76:AD79),"") ->  | AE80: =IF(COUNT(AE76:AE79)>0,SUM(AE76:AE79),"") ->  | AJ80: =IF(COUNT(AJ76:AJ79)>0,SUM(AJ76:AJ79),"") ->  | AM80: =IF(AND($E$1>0,COUNT(AM76:AM79)>0),IF(AM$20="P",SUM(AM76:AM79)*100,SUM(AM76:AM79)/$E$1*100),"") ->  | AO80: =IF(AND($E$1>0,COUNT(AO76:AO79)>0),IF(AO$20="P",SUM(AO76:AO79)*100,SUM(AO76:AO79)/$E$1*100),"") ->  | AP80: =IF(COUNT(AP76:AP79)>0,SUM(AP76:AP79),"") -> 0 | AQ80: =IF(COUNT(AQ76:AQ79)>0,SUM(AQ76:AQ79),"") -> 0 | AR80: =IF(COUNT(AR76:AR79)>0,SUM(AR76:AR79),"") ->  | AS80: =IF(COUNT(AS76:AS79)>0,SUM(AS76:AS79),"") ->  | AU80: =IF(COUNT(AU76:AU79)>0,SUM(AU76:AU79),"") ->  | AW80: Ergebnisse [% und n] | AZ80: =SUM(AZ76:AZ79) -> 0 | BB80: =IF(COUNT(BB76:BB79)>0,AVERAGE(BB76:BB79),"") -> 0 | BC80: =IF(COUNT(BC76:BC79)>0,AVERAGE(BC76:BC79),"") ->  | BE80: =IF($AZ80>0,IF(BE$20="P",BE76*$AZ76+BE77*$AZ77+BE78*$AZ78+BE79*$AZ79,SUM(BE76:BE79))/$AZ80*100,"") ->  | BG80: =IF($AZ80>0,IF(BG$20="P",BG76*$AZ76+BG77*$AZ77+BG78*$AZ78+BG79*$AZ79,SUM(BG76:BG79))/$AZ80*100,"") ->  | BI80: =IF($AZ80>0,IF(BI$20="P",BI76*$AZ76+BI77*$AZ77+BI78*$AZ78+BI79*$AZ79,SUM(BI76:BI79))/$AZ80*100,"") ->  | BK80: =IF($AZ80>0,IF(BK$20="P",BK76*$AZ76+BK77*$AZ77+BK78*$AZ78+BK79*$AZ79,SUM(BK76:BK79))/$AZ80*100,"") ->  | BM80: =IF($AZ80>0,IF(BM$20="P",BM76*$AZ76+BM77*$AZ77+BM78*$AZ78+BM79*$AZ79,SUM(BM76:BM79))/$AZ80*100,"") ->  | BO80: =IF($AZ80>0,IF(BO$20="P",BO76*$AZ76+BO77*$AZ77+BO78*$AZ78+BO79*$AZ79,SUM(BO76:BO79))/$AZ80*100,"") ->  | BQ80: =IF(AZ80>0,SUM(BQ76:BQ79),"") ->  | BR80: =IF(AZ80>0,BQ80/AZ80*100,"") ->  | BS80: =IF(COUNT(BS76:BS79)>0,AVERAGE(BS76:BS79),"") ->  | BT80: Erg. % | BV80: =IF(COUNT(BV76:BV79)>0,AVERAGE(BV76:BV79)*100,"") ->  | BX80: =IF(COUNT(BX76:BX79)>0,AVERAGE(BX76:BX79)*100,"") ->  | BZ80: =IF(COUNT(BZ76:BZ79)>0,AVERAGE(BZ76:BZ79)*100,"") ->  | CB80: =IF(COUNT(CB76:CB79)>0,AVERAGE(CB76:CB79),"") ->  | CD80: =IF(COUNT(CD76:CD79)>0,AVERAGE(CD76:CD79),"") ->  | CF80: =IF(COUNT(CF76:CF79)>0,AVERAGE(CF76:CF79),"") -> 
B81: DATEN049 | C81: =C79+1 -> 58 | D81: =X79 -> 10000 | X81: =IF(COUNT(D81,Z81)=2,D81-Z81-V81,"") -> 10000 | Z81: =IF(COUNT(D81)=1,kalkTV(F81,D81)+kalkTV(H81,D81)+kalkTV(J81,D81)+kalkTV(L81,D81)+kalkTV(N81,D81)+kalkTV(P81,D81)+kalkTV(R81,D81)+kalkTV(T81,D81),"") -> 0 | AA81: 10000 | AB81: =IF(AA81>0,Z81/AA81*100,"") -> 0 | AC81: =IF($AA81>0,IF(COUNT(F81)=1,IF(F$20="P",IF($B$1="GF_HUHN",F81*D81/AA81*100,F81*100),F81/$AA81*100),""),"") ->  | AD81: =IF($AA81>0,IF(COUNT(H81)=1,IF(H$20="P",IF($B$1="GF_HUHN",H81*D81/AA81*100,H81*100),H81/$AA81*100),""),"") ->  | AE81: =IF($AA81>0,IF(COUNT(J81)=1,IF(J$20="P",IF($B$1="GF_HUHN",J81*D81/AA81*100,J81*100),J81/$AA81*100),""),"") ->  | AF81: =IF($AA81>0,IF(COUNT(L81)=1,IF(L$20="P",IF($B$1="GF_HUHN",L81*D81/AA81*100,L81*100),L81/$AA81*100),""),"") ->  | AG81: =IF($AA81>0,IF(COUNT(N81)=1,IF(N$20="P",IF($B$1="GF_HUHN",N81*D81/AA81*100,N81*100),N81/$AA81*100),""),"") ->  | AH81: =IF($AA81>0,IF(COUNT(P81)=1,IF(P$20="P",IF($B$1="GF_HUHN",P81*D81/AA81*100,P81*100),P81/$AA81*100),""),"") ->  | AI81: =IF($AA81>0,IF(COUNT(R81)=1,IF(R$20="P",IF($B$1="GF_HUHN",R81*D81/AA81*100,R81*100),R81/$AA81*100),""),"") ->  | AJ81: =IF($AA81>0,IF(COUNT(T81)=1,IF(T$20="P",IF($B$1="GF_HUHN",T81*D81/AA81*100,T81*100),T81/$AA81*100),""),"") ->  | AP81: =IF(AA81>0,kalkTV(AM81,D81)+kalkTV(AO81,D81),"") -> 0 | AQ81: =IF(COUNT(AP81)=1,SUM(AR81:AS81),"") -> 0 | AR81: =IF($AA81>0,IF(COUNT(AM81)=1,IF(AM$20="P",IF($B$1="GF_HUHN",AM81*D81/AA81*100,AM81*100),AM81/$AA81*100),""),"") ->  | AS81: =IF($AA81>0,IF(COUNT(AO81)=1,IF(AO$20="P",IF($B$1="GF_HUHN",AO81*D81/AA81*100,AO81*100),AO81/$AA81*100),""),"") ->  | AU81: =IF(AND(AA81>0,COUNT(AG81,AR81)>0),IF(COUNT(AG81)=1,AG81,0)+IF(COUNT(AR81)=1,AR81,0),"") ->  | AV81: =IF(AND(AA81>0,COUNT(AI81,AS81)>0,$B$1="GF_PUTE"),IF(COUNT(AI81)=1,AI81,0)+IF(COUNT(AS81)=1,AS81,0),"") ->  | AX81: =IF(COUNT(D81)=1,(D81+X81)/2,"") -> 10000 | BB81: =IF(COUNT(AX81)=1,AZ81/7/AX81*100,"") -> 0 | BC81: =IF(COUNT(AZ79,AZ81)=2,BB81-BB79,"") ->  | BQ81: =IF(AZ81>0,IF(BE$20="P",BE81*$AZ81,BE81)+IF(BG$20="P",BG81*$AZ81,BG81)+IF(BI$20="P",BI81*$AZ81,BI81)+IF(BK$20="P",BK81*$AZ81,BK81)+IF(BM$20="P",BM81*$AZ81,BM81)+IF(BO$20="P",BO81*$AZ81,BO81),"") ->  | BR81: =IF(AND(AZ81>0,COUNT(BQ81)=1),BQ81/AZ81*100,"") ->  | BS81: =IF(COUNT(BR79,BR81)=2,BR81-BR79,"") ->  | CF81: =IF(AND(COUNT(CB81:CD81)=2,CD81>0),CB81/CD81,"") -> 
B82: DATEN050 | C82: =C81+1 -> 59 | D82: =X81 -> 10000 | X82: =IF(COUNT(D82)=1,D82-Z82-V82,"") -> 10000 | Z82: =IF(COUNT(D82)=1,kalkTV(F82,D82)+kalkTV(H82,D82)+kalkTV(J82,D82)+kalkTV(L82,D82)+kalkTV(N82,D82)+kalkTV(P82,D82)+kalkTV(R82,D82)+kalkTV(T82,D82),"") -> 0 | AA82: 10000 | AB82: =IF(AA82>0,Z82/AA82*100,"") -> 0 | AC82: =IF($AA82>0,IF(COUNT(F82)=1,IF(F$20="P",IF($B$1="GF_HUHN",F82*D82/AA82*100,F82*100),F82/$AA82*100),""),"") ->  | AD82: =IF($AA82>0,IF(COUNT(H82)=1,IF(H$20="P",IF($B$1="GF_HUHN",H82*D82/AA82*100,H82*100),H82/$AA82*100),""),"") ->  | AE82: =IF($AA82>0,IF(COUNT(J82)=1,IF(J$20="P",IF($B$1="GF_HUHN",J82*D82/AA82*100,J82*100),J82/$AA82*100),""),"") ->  | AF82: =IF($AA82>0,IF(COUNT(L82)=1,IF(L$20="P",IF($B$1="GF_HUHN",L82*D82/AA82*100,L82*100),L82/$AA82*100),""),"") ->  | AG82: =IF($AA82>0,IF(COUNT(N82)=1,IF(N$20="P",IF($B$1="GF_HUHN",N82*D82/AA82*100,N82*100),N82/$AA82*100),""),"") ->  | AH82: =IF($AA82>0,IF(COUNT(P82)=1,IF(P$20="P",IF($B$1="GF_HUHN",P82*D82/AA82*100,P82*100),P82/$AA82*100),""),"") ->  | AI82: =IF($AA82>0,IF(COUNT(R82)=1,IF(R$20="P",IF($B$1="GF_HUHN",R82*D82/AA82*100,R82*100),R82/$AA82*100),""),"") ->  | AJ82: =IF($AA82>0,IF(COUNT(T82)=1,IF(T$20="P",IF($B$1="GF_HUHN",T82*D82/AA82*100,T82*100),T82/$AA82*100),""),"") ->  | AP82: =IF(AA82>0,kalkTV(AM82,D82)+kalkTV(AO82,D82),"") -> 0 | AQ82: =IF(COUNT(AP82)=1,SUM(AR82:AS82),"") -> 0 | AR82: =IF($AA82>0,IF(COUNT(AM82)=1,IF(AM$20="P",IF($B$1="GF_HUHN",AM82*D82/AA82*100,AM82*100),AM82/$AA82*100),""),"") ->  | AS82: =IF($AA82>0,IF(COUNT(AO82)=1,IF(AO$20="P",IF($B$1="GF_HUHN",AO82*D82/AA82*100,AO82*100),AO82/$AA82*100),""),"") ->  | AU82: =IF(AND(AA82>0,COUNT(AG82,AR82)>0),IF(COUNT(AG82)=1,AG82,0)+IF(COUNT(AR82)=1,AR82,0),"") ->  | AV82: =IF(AND(AA82>0,COUNT(AI82,AS82)>0,$B$1="GF_PUTE"),IF(COUNT(AI82)=1,AI82,0)+IF(COUNT(AS82)=1,AS82,0),"") ->  | AX82: 10000 | BB82: =IF(COUNT(AX82)=1,AZ82/7/AX82*100,"") -> 0 | BC82: =IF(COUNT(AZ81:AZ82)=2,BB82-BB81,"") ->  | BQ82: =IF(AZ82>0,IF(BE$20="P",BE82*$AZ82,BE82)+IF(BG$20="P",BG82*$AZ82,BG82)+IF(BI$20="P",BI82*$AZ82,BI82)+IF(BK$20="P",BK82*$AZ82,BK82)+IF(BM$20="P",BM82*$AZ82,BM82)+IF(BO$20="P",BO82*$AZ82,BO82),"") ->  | BR82: =IF(AND(AZ82>0,COUNT(BQ82)=1),BQ82/AZ82*100,"") ->  | BS82: =IF(COUNT(BR81:BR82)=2,BR82-BR81,"") ->  | CF82: =IF(AND(COUNT(CB82:CD82)=2,CD82>0),CB82/CD82,"") -> 
B83: DATEN051 | C83: =C82+1 -> 60 | D83: =X82 -> 10000 | X83: =IF(COUNT(D83)=1,D83-Z83-V83,"") -> 10000 | Z83: =IF(COUNT(D83)=1,kalkTV(F83,D83)+kalkTV(H83,D83)+kalkTV(J83,D83)+kalkTV(L83,D83)+kalkTV(N83,D83)+kalkTV(P83,D83)+kalkTV(R83,D83)+kalkTV(T83,D83),"") -> 0 | AA83: 10000 | AB83: =IF(AA83>0,Z83/AA83*100,"") -> 0 | AC83: =IF($AA83>0,IF(COUNT(F83)=1,IF(F$20="P",IF($B$1="GF_HUHN",F83*D83/AA83*100,F83*100),F83/$AA83*100),""),"") ->  | AD83: =IF($AA83>0,IF(COUNT(H83)=1,IF(H$20="P",IF($B$1="GF_HUHN",H83*D83/AA83*100,H83*100),H83/$AA83*100),""),"") ->  | AE83: =IF($AA83>0,IF(COUNT(J83)=1,IF(J$20="P",IF($B$1="GF_HUHN",J83*D83/AA83*100,J83*100),J83/$AA83*100),""),"") ->  | AF83: =IF($AA83>0,IF(COUNT(L83)=1,IF(L$20="P",IF($B$1="GF_HUHN",L83*D83/AA83*100,L83*100),L83/$AA83*100),""),"") ->  | AG83: =IF($AA83>0,IF(COUNT(N83)=1,IF(N$20="P",IF($B$1="GF_HUHN",N83*D83/AA83*100,N83*100),N83/$AA83*100),""),"") ->  | AH83: =IF($AA83>0,IF(COUNT(P83)=1,IF(P$20="P",IF($B$1="GF_HUHN",P83*D83/AA83*100,P83*100),P83/$AA83*100),""),"") ->  | AI83: =IF($AA83>0,IF(COUNT(R83)=1,IF(R$20="P",IF($B$1="GF_HUHN",R83*D83/AA83*100,R83*100),R83/$AA83*100),""),"") ->  | AJ83: =IF($AA83>0,IF(COUNT(T83)=1,IF(T$20="P",IF($B$1="GF_HUHN",T83*D83/AA83*100,T83*100),T83/$AA83*100),""),"") ->  | AP83: =IF(AA83>0,kalkTV(AM83,D83)+kalkTV(AO83,D83),"") -> 0 | AQ83: 0 | AR83: =IF($AA83>0,IF(COUNT(AM83)=1,IF(AM$20="P",IF($B$1="GF_HUHN",AM83*D83/AA83*100,AM83*100),AM83/$AA83*100),""),"") ->  | AS83: =IF($AA83>0,IF(COUNT(AO83)=1,IF(AO$20="P",IF($B$1="GF_HUHN",AO83*D83/AA83*100,AO83*100),AO83/$AA83*100),""),"") ->  | AX83: 10000 | BB83: 0 | BR83: =IF(AND(AZ83>0,COUNT(BQ83)=1),BQ83/AZ83*100,"") ->  | CF83: =IF(AND(COUNT(CB83:CD83)=2,CD83>0),CB83/CD83,"") -> 
B84: DATEN052 | C84: =C83+1 -> 61 | D84: =X83 -> 10000 | X84: =IF(COUNT(D84)=1,D84-Z84-V84,"") -> 10000 | Z84: =IF(COUNT(D84)=1,kalkTV(F84,D84)+kalkTV(H84,D84)+kalkTV(J84,D84)+kalkTV(L84,D84)+kalkTV(N84,D84)+kalkTV(P84,D84)+kalkTV(R84,D84)+kalkTV(T84,D84),"") -> 0 | AA84: 10000 | AB84: =IF(AA84>0,Z84/AA84*100,"") -> 0 | AC84: =IF($AA84>0,IF(COUNT(F84)=1,IF(F$20="P",IF($B$1="GF_HUHN",F84*D84/AA84*100,F84*100),F84/$AA84*100),""),"") ->  | AD84: =IF($AA84>0,IF(COUNT(H84)=1,IF(H$20="P",IF($B$1="GF_HUHN",H84*D84/AA84*100,H84*100),H84/$AA84*100),""),"") ->  | AE84: =IF($AA84>0,IF(COUNT(J84)=1,IF(J$20="P",IF($B$1="GF_HUHN",J84*D84/AA84*100,J84*100),J84/$AA84*100),""),"") ->  | AF84: =IF($AA84>0,IF(COUNT(L84)=1,IF(L$20="P",IF($B$1="GF_HUHN",L84*D84/AA84*100,L84*100),L84/$AA84*100),""),"") ->  | AG84: =IF($AA84>0,IF(COUNT(N84)=1,IF(N$20="P",IF($B$1="GF_HUHN",N84*D84/AA84*100,N84*100),N84/$AA84*100),""),"") ->  | AH84: =IF($AA84>0,IF(COUNT(P84)=1,IF(P$20="P",IF($B$1="GF_HUHN",P84*D84/AA84*100,P84*100),P84/$AA84*100),""),"") ->  | AI84: =IF($AA84>0,IF(COUNT(R84)=1,IF(R$20="P",IF($B$1="GF_HUHN",R84*D84/AA84*100,R84*100),R84/$AA84*100),""),"") ->  | AJ84: =IF($AA84>0,IF(COUNT(T84)=1,IF(T$20="P",IF($B$1="GF_HUHN",T84*D84/AA84*100,T84*100),T84/$AA84*100),""),"") ->  | AP84: =IF(AA84>0,kalkTV(AM84,D84)+kalkTV(AO84,D84),"") -> 0 | AQ84: 0 | AR84: =IF($AA84>0,IF(COUNT(AM84)=1,IF(AM$20="P",IF($B$1="GF_HUHN",AM84*D84/AA84*100,AM84*100),AM84/$AA84*100),""),"") ->  | AS84: =IF($AA84>0,IF(COUNT(AO84)=1,IF(AO$20="P",IF($B$1="GF_HUHN",AO84*D84/AA84*100,AO84*100),AO84/$AA84*100),""),"") ->  | AX84: 10000 | BB84: 0 | BR84: =IF(AND(AZ84>0,COUNT(BQ84)=1),BQ84/AZ84*100,"") ->  | CF84: =IF(AND(COUNT(CB84:CD84)=2,CD84>0),CB84/CD84,"") -> 
B85: ERGEB913 | D85: Ergebnisse | E85: % | F85: =AC85 ->  | H85: =AD85 ->  | J85: =AE85 ->  | L85: =AF85 ->  | N85: =AG85 ->  | P85: =AH85 ->  | R85: =AI85 ->  | T85: =AJ85 ->  | Z85: =IF(COUNT(Z81:Z84)>0,SUM(Z81:Z84),"") -> 0 | AA85: 0 | AB85: =IF(AND($E$1>0,Z85<>""),SUM(Z81:Z84)/$E$1*100,"") -> 0 | AC85: =IF(COUNT(AC81:AC84)>0,SUM(AC81:AC84),"") ->  | AD85: =IF(COUNT(AD81:AD84)>0,SUM(AD81:AD84),"") ->  | AE85: =IF(COUNT(AE81:AE84)>0,SUM(AE81:AE84),"") ->  | AJ85: =IF(COUNT(AJ81:AJ84)>0,SUM(AJ81:AJ84),"") ->  | AM85: =IF(AND($E$1>0,COUNT(AM81:AM84)>0),IF(AM$20="P",SUM(AM81:AM84)*100,SUM(AM81:AM84)/$E$1*100),"") ->  | AO85: =IF(AND($E$1>0,COUNT(AO81:AO84)>0),IF(AO$20="P",SUM(AO81:AO84)*100,SUM(AO81:AO84)/$E$1*100),"") ->  | AP85: =IF(COUNT(AP81:AP84)>0,SUM(AP81:AP84),"") -> 0 | AQ85: =IF(COUNT(AQ81:AQ84)>0,SUM(AQ81:AQ84),"") -> 0 | AR85: =IF(COUNT(AR81:AR84)>0,SUM(AR81:AR84),"") ->  | AS85: =IF(COUNT(AS81:AS84)>0,SUM(AS81:AS84),"") ->  | AU85: =IF(COUNT(AU81:AU84)>0,SUM(AU81:AU84),"") ->  | AW85: Ergebnisse [% und n] | AZ85: =SUM(AZ81:AZ84) -> 0 | BB85: =IF(COUNT(BB81:BB84)>0,AVERAGE(BB81:BB84),"") -> 0 | BC85: =IF(COUNT(BC81:BC84)>0,AVERAGE(BC81:BC84),"") ->  | BE85: =IF($AZ85>0,IF(BE$20="P",BE81*$AZ81+BE82*$AZ82+BE83*$AZ83+BE84*$AZ84,SUM(BE81:BE84))/$AZ85*100,"") ->  | BG85: =IF($AZ85>0,IF(BG$20="P",BG81*$AZ81+BG82*$AZ82+BG83*$AZ83+BG84*$AZ84,SUM(BG81:BG84))/$AZ85*100,"") ->  | BI85: =IF($AZ85>0,IF(BI$20="P",BI81*$AZ81+BI82*$AZ82+BI83*$AZ83+BI84*$AZ84,SUM(BI81:BI84))/$AZ85*100,"") ->  | BK85: =IF($AZ85>0,IF(BK$20="P",BK81*$AZ81+BK82*$AZ82+BK83*$AZ83+BK84*$AZ84,SUM(BK81:BK84))/$AZ85*100,"") ->  | BM85: =IF($AZ85>0,IF(BM$20="P",BM81*$AZ81+BM82*$AZ82+BM83*$AZ83+BM84*$AZ84,SUM(BM81:BM84))/$AZ85*100,"") ->  | BO85: =IF($AZ85>0,IF(BO$20="P",BO81*$AZ81+BO82*$AZ82+BO83*$AZ83+BO84*$AZ84,SUM(BO81:BO84))/$AZ85*100,"") ->  | BQ85: =IF(AZ85>0,SUM(BQ81:BQ84),"") ->  | BR85: =IF(AZ85>0,BQ85/AZ85*100,"") ->  | BS85: =IF(COUNT(BS81:BS84)>0,AVERAGE(BS81:BS84),"") ->  | BT85: Erg. % | BV85: =IF(COUNT(BV81:BV84)>0,AVERAGE(BV81:BV84)*100,"") ->  | BX85: =IF(COUNT(BX81:BX84)>0,AVERAGE(BX81:BX84)*100,"") ->  | BZ85: =IF(COUNT(BZ81:BZ84)>0,AVERAGE(BZ81:BZ84)*100,"") ->  | CB85: =IF(COUNT(CB81:CB84)>0,AVERAGE(CB81:CB84),"") ->  | CD85: =IF(COUNT(CD81:CD84)>0,AVERAGE(CD81:CD84),"") ->  | CF85: =IF(COUNT(CF81:CF84)>0,AVERAGE(CF81:CF84),"") -> 
B86: DATEN053 | C86: =C84+1 -> 62 | D86: =X84 -> 10000 | X86: =IF(COUNT(D86,Z86)=2,D86-Z86-V86,"") -> 10000 | Z86: =IF(COUNT(D86)=1,kalkTV(F86,D86)+kalkTV(H86,D86)+kalkTV(J86,D86)+kalkTV(L86,D86)+kalkTV(N86,D86)+kalkTV(P86,D86)+kalkTV(R86,D86)+kalkTV(T86,D86),"") -> 0 | AA86: 10000 | AB86: =IF(AA86>0,Z86/AA86*100,"") -> 0 | AC86: =IF($AA86>0,IF(COUNT(F86)=1,IF(F$20="P",IF($B$1="GF_HUHN",F86*D86/AA86*100,F86*100),F86/$AA86*100),""),"") ->  | AD86: =IF($AA86>0,IF(COUNT(H86)=1,IF(H$20="P",IF($B$1="GF_HUHN",H86*D86/AA86*100,H86*100),H86/$AA86*100),""),"") ->  | AE86: =IF($AA86>0,IF(COUNT(J86)=1,IF(J$20="P",IF($B$1="GF_HUHN",J86*D86/AA86*100,J86*100),J86/$AA86*100),""),"") ->  | AF86: =IF($AA86>0,IF(COUNT(L86)=1,IF(L$20="P",IF($B$1="GF_HUHN",L86*D86/AA86*100,L86*100),L86/$AA86*100),""),"") ->  | AG86: =IF($AA86>0,IF(COUNT(N86)=1,IF(N$20="P",IF($B$1="GF_HUHN",N86*D86/AA86*100,N86*100),N86/$AA86*100),""),"") ->  | AH86: =IF($AA86>0,IF(COUNT(P86)=1,IF(P$20="P",IF($B$1="GF_HUHN",P86*D86/AA86*100,P86*100),P86/$AA86*100),""),"") ->  | AI86: =IF($AA86>0,IF(COUNT(R86)=1,IF(R$20="P",IF($B$1="GF_HUHN",R86*D86/AA86*100,R86*100),R86/$AA86*100),""),"") ->  | AJ86: =IF($AA86>0,IF(COUNT(T86)=1,IF(T$20="P",IF($B$1="GF_HUHN",T86*D86/AA86*100,T86*100),T86/$AA86*100),""),"") ->  | AP86: =IF(AA86>0,kalkTV(AM86,D86)+kalkTV(AO86,D86),"") -> 0 | AQ86: =IF(COUNT(AP86)=1,SUM(AR86:AS86),"") -> 0 | AR86: =IF($AA86>0,IF(COUNT(AM86)=1,IF(AM$20="P",IF($B$1="GF_HUHN",AM86*D86/AA86*100,AM86*100),AM86/$AA86*100),""),"") ->  | AS86: =IF($AA86>0,IF(COUNT(AO86)=1,IF(AO$20="P",IF($B$1="GF_HUHN",AO86*D86/AA86*100,AO86*100),AO86/$AA86*100),""),"") ->  | AU86: =IF(AND(AA86>0,COUNT(AG86,AR86)>0),IF(COUNT(AG86)=1,AG86,0)+IF(COUNT(AR86)=1,AR86,0),"") ->  | AV86: =IF(AND(AA86>0,COUNT(AI86,AS86)>0,$B$1="GF_PUTE"),IF(COUNT(AI86)=1,AI86,0)+IF(COUNT(AS86)=1,AS86,0),"") ->  | AX86: =IF(COUNT(D86)=1,(D86+X86)/2,"") -> 10000 | BB86: =IF(COUNT(AX86)=1,AZ86/7/AX86*100,"") -> 0 | BC86: =IF(COUNT(AZ84,AZ86)=2,BB86-BB84,"") ->  | BQ86: =IF(AZ86>0,IF(BE$20="P",BE86*$AZ86,BE86)+IF(BG$20="P",BG86*$AZ86,BG86)+IF(BI$20="P",BI86*$AZ86,BI86)+IF(BK$20="P",BK86*$AZ86,BK86)+IF(BM$20="P",BM86*$AZ86,BM86)+IF(BO$20="P",BO86*$AZ86,BO86),"") ->  | BR86: =IF(AND(AZ86>0,COUNT(BQ86)=1),BQ86/AZ86*100,"") ->  | BS86: =IF(COUNT(BR84,BR86)=2,BR86-BR84,"") ->  | CF86: =IF(AND(COUNT(CB86:CD86)=2,CD86>0),CB86/CD86,"") -> 
